Workbook

Sheet 【入力案内】
B2: 【入力案内】エネルギーコスト削減促進ツールについて
B4: 〇 「エネルギーコスト削減促進ツール」（以下「本ツール」という。）は、省エネルギー設備の投資をする際の判断材料を提供するツールです。 〇 具体的には、Ⅰ 投資設備の情報や資金の調達方法から今回投資する設備の回収期間を算出する 「導入設備」 の観点、Ⅱ 電気代・ガス代等のお支払い状況から投資によって削減できる水道光熱費等・CO2排出量を算出する 「エネルギーコスト・二酸化炭素排出量」 の観点、Ⅲ 決算書から会社全体の財務状況を検討する 「財務指標」 の観点、の３つの観点からシミュレーションをすることが可能です。データの出力に際しては、カーボンニュートラルに向けた投資促進税制や経営革新計画の申請に活用可能な各種様式を出力できます。 〇 それぞれのシミュレーションは個別に実施することも可能ですし、３つの観点の全てをご入力いただくと総合判断のための「設備投資判断結果」のシートを出力することが可能となります。ぜひ、本ツールをご活用いただき、収益構造の改善に向けた経営計画の立案にご利用ください。
B9: データ入力 | F9: データ出力
B10: 以下の各入力シートにデータを入力していただくことで、各様式のシートが出力されます。 | F10: 右のボタンを押していただくことで全ての出力シートが別ファイルに出力されます。
B12: 区分 | C12: 入力内容 | D12: 入力シート | F12: 区分 | G12: 出力内容 | H12: 出力シート | J12: 出力内容
B13: Ⅰ 導入設備 | C13: 設備のカタログや見積書から製品情報を入力します。 また、資金調達方法（借入や補助金など）を入力します。 | D13: 【入力】導入設備 | F13: Ⅰ 導入設備 | G13: 今回投資設備の回収期間と、投資設備の法定耐用年数を比較し、投資計画が妥当かどうかが分かります。 ※ 同様の設備を投資している県内の事例をグラフに出力できるため、他社のデータを比較しながら計画を立案することができます。 | H13: 【出力】投資回収期間 | J13: Ⅳ 総合判断 ・Ⅰ～Ⅲの入力情報 から計算結果をまとめて出力できます。 【出力】設備投資判断結果
D15: ※ 【入力】導入設備のタブへは、 上の入力フォーム（ボタン）から簡単に入力できます。 ※ 設備区分・設備種別をご入力いただくと、【出力】 削減量グラフが表示されますので、ご活用ください。 | H15: 【出力】削減量グラフ（選択設備）
H17: 【出力】削減量グラフ（全設備）
B19: Ⅱ エネルギーコスト・ 二酸化炭素排出量 | C19: 電気・都市ガス等の使用量・使用金額を入力します。 ※ 【入力】導入設備の下記の項目を入力すると、今回の投資によって削減できるエネルギーコストや二酸化炭素排出量が分かります。 ・設備区分 ・投資額 ※ 【入力】企業情報の下記の項目を入力すると、県内の似たような業種、売上規模の他社のエネルギーコストや二酸化炭素排出量が分かります。 ・ローカルベンチマーク23業種_大分類 ・売上高（最新決算期） | D19: 【入力】CO2算出（電気・都市ガス） 年間を通じての電気等の使用量・使用金額が 分かる場合には、こちらのシートから入力してください。 | F19: Ⅱ エネルギーコスト・ 二酸化炭素排出量 | G19: 会社全体の現在のエネルギーコスト（≒水道光熱費）や二酸化炭素排出量を見える化します。 さらに、今回の投資によって削減できるエネルギーコストや二酸化炭素排出量が分かります。
H21: 【出力】投資によるエネルギーコスト・CO2排出量削減効果
D23: ↑ 【入力補助】CO2排出量 年間の電気等使用量・金額が分からない 場合には、こちらのシートから毎月の伝票を 入力することで上記の年間データを入力 することができます。 | H23: 【出力】CO2排出量計算表……※
H25: 【出力】炭素生産性……………※
H27: ※ カーボンニュートラルに向けた投資促進税制の申請に必要な様式です。出力内容をご確認の上、申請にご活用ください。
D29: 【入力】導入設備………※
D30: 【入力】企業情報………※
B31: Ⅲ 財務指標 | C31: 業種、従業員数、決算書（貸借対照表・損益計算書）の内容を入力します。 | D31: 【入力】企業情報 | F31: Ⅲ 財務指標 | G31: 会社の財務状況を安全性や健全性等の６項目から評価でき、 会社全体でみて投資が可能な状態か分かります。 | H31: 【出力】財務分析
H33: 【出力】ローカルベンチマーク
H35: 【出力】経営革新計画（申請必要書類）

Sheet 【出力】設備投資判断結果
A1: 設備投資判断の結果
B3: 設備投資 資金回収期間
B4: =" 投資設備："&【入力】導入設備!C4&" （投資額："&IF(【入力】導入設備!C9="","",TEXT(【入力】導入設備!C9,"#,##0")&"千円") &" ）" -> 投資設備： （投資額： ）
B5: 回収年数 | D5: =IF(【入力】導入設備!C29="","-",ROUND(【入力】導入設備!C29,2)&"年") -> - | G5: =IF(【入力】導入設備!C29<【入力】導入設備!C8,"償却が終わる前に回収することができます。","償却が終わる前に回収することができません。") -> 償却が終わる前に回収することができません。
M6: ■基本情報
B7: 法定耐用年数 | D7: =IF(【入力】導入設備!C8="","-",ROUND(【入力】導入設備!C8,1)&"年") -> - | M7: 商号 | P7: =【出力】財務分析!D5 -> 
M9: 所在地 | P9: =【出力】財務分析!D6 -> 
M10: 代表者名 | P10: =【出力】財務分析!D7 -> 
B11: エネルギーコスト・CO2排出量（同規模同業種との比較） | M11: 業種_大分類 | P11: =【出力】財務分析!D9 -> 
M12: 業種_小分類 | P12: =【出力】財務分析!D10 -> 
B13: =" 業種 ※1："&【参考】データ集計!BE2&" ／ 売上規模（千円）："&【参考】データ集計!BF2 -> 業種 ※1： ／ 売上規模（千円）： | M13: 事業規模 | P13: =【出力】財務分析!D20 -> 業種欄が未入力のため規模判定ができません
B14: ="（該当件数： "&【参考】データ集計!BR2&" 件）" -> （該当件数： 0 件）
B15: 自社コスト年間合計額（千円） | E15: 導入前 | H15: 導入後※3 | M15: 売上高 | P15: =【出力】財務分析!$D$27 -> 
E16: =【出力】CO2排出量計算表!L47 -> 0 | H16: =IFERROR(IF(【入力】導入設備!C22="",E16-VLOOKUP(VLOOKUP(【入力】導入設備!C9*1000,【参照】選択リスト!A87:B103,2),'【出力】削減量グラフ（選択設備）'!C60:H80,4,FALSE),E16-【入力】導入設備!C22),0) -> 0 | M16: 営業利益 | P16: =【出力】財務分析!$D$29 -> 
M17: 従業員数 | P17: =【出力】財務分析!D12 -> 
B19: （参考）助成金申請者コスト平均額（千円） | E19: =IFERROR(【参考】データ集計!BS2/1000,"該当データがありません") -> 該当データがありません
M20: ■財務指標(最新期）
M21: 指標 | P21: =【出力】財務分析!D26 -> 
B22: 自社CO2年間排出量（t-CO2） | E22: 導入前 | H22: 導入後 ※3 | P22: 算出結果 | R22: 貴社点数 | T22: 業種基準値
E23: =【出力】CO2排出量計算表!K46 -> 0 | H23: =IFERROR(IF(B49 = 0,【出力】CO2排出量計算表!K46-VLOOKUP(VLOOKUP(【入力】導入設備!C9*1000,【参照】選択リスト!A87:B103,2),'【出力】削減量グラフ（全設備）'!C60:H80,6,FALSE),【出力】CO2排出量計算表!K46-VLOOKUP(VLOOKUP(【入力】導入設備!C9*1000,【参照】選択リスト!A87:B103,2),'【出力】削減量グラフ（選択設備）'!C60:H80,6,FALSE)),0) -> 0 | M23: ①売上増加率 | P23: =【出力】財務分析!K6 -> - | R23: =【出力】財務分析!L6 -> . | T23: =IFERROR(INDEX(【参照】売上増加率基準値!$E:$E,MATCH($P$12&$P$13,INDEX(【参照】売上増加率基準値!$C:$C&【参照】売上増加率基準値!$D:$D,),0)),"-") -> -
M24: ②営業利益率 | P24: =【出力】財務分析!K7 -> - | R24: =【出力】財務分析!L7 -> . | T24: =IFERROR(INDEX(【参照】営業利益率基準値!$E:$E,MATCH($P$12&$P$13,INDEX(【参照】営業利益率基準値!$C:$C&【参照】営業利益率基準値!$D:$D,),0)),"-") -> -
B25: 自社の設備導入後CO2削減量 | E25: =IFERROR(IF(B49 = 0, "約" & ROUND(VLOOKUP(VLOOKUP(【入力】導入設備!C9*1000,【参照】選択リスト!A87:B103,2),'【出力】削減量グラフ（全設備）'!C60:H80,6,FALSE),1) & "t（" & ROUND(VLOOKUP(VLOOKUP(【入力】導入設備!C9*1000,【参照】選択リスト!A87:B103,2),'【出力】削減量グラフ（全設備）'!C60:H80,6,FALSE) / E23 * 100,1) & "%）", "約" & ROUND(VLOOKUP(VLOOKUP(【入力】導入設備!C9*1000,【参照】選択リスト!A87:B103,2),'【出力】削減量グラフ（選択設備）'!C60:H80,6,FALSE),1) & "t（" & ROUND(VLOOKUP(VLOOKUP(【入力】導入設備!C9*1000,【参照】選択リスト!A87:B103,2),'【出力】削減量グラフ（選択設備）'!C60:H80,6,FALSE) / E23 * 100,1) & "%）"),"0.0") -> 0.0 | M25: ③労働生産性 | P25: =【出力】財務分析!K8 -> - | R25: =【出力】財務分析!L8 -> . | T25: =IFERROR(INDEX(【参照】労働生産性基準値!$E:$E,MATCH($P$12&$P$13,INDEX(【参照】労働生産性基準値!$C:$C&【参照】労働生産性基準値!$D:$D,),0)),"-") -> -
M26: ④EBITDA有利子負債倍率 | P26: =【出力】財務分析!K9 -> - | R26: =【出力】財務分析!L9 -> . | T26: =IFERROR(INDEX(【参照】EBITDA基準値!$E:$E,MATCH($P$12&$P$13,INDEX(【参照】EBITDA基準値!$C:$C&【参照】EBITDA基準値!$D:$D,),0)),"-") -> -
B27: ="電気事業者メニュー:"&'【入力】CO2算出（電気・都市ガス）'!L29 -> 電気事業者メニュー:中部電力ミライズ(株) メニューA | E27: CO2を削減可能 | J27: =IF(B49 = 0, "※", "") ->  | M27: ⑤営業運転資本回転期間 | P27: =【出力】財務分析!K10 -> - | R27: =【出力】財務分析!L10 -> . | T27: =IFERROR(INDEX(【参照】営業運転資本回転期間基準値!$E:$E,MATCH($P$12&$P$13,INDEX(【参照】営業運転資本回転期間基準値!$C:$C&【参照】営業運転資本回転期間基準値!$D:$D,),0)),"-") -> -
M28: ⑥自己資本比率 | P28: =【出力】財務分析!K11 -> - | R28: =【出力】財務分析!L11 -> . | T28: =IFERROR(INDEX(【参照】自己資本比率基準値!$E:$E,MATCH($P$12&$P$13,INDEX(【参照】自己資本比率基準値!$C:$C&【参照】自己資本比率基準値!$D:$D,),0)),"-") -> -
B29: （参考）助成金申請者CO2平均排出量 （t-CO2）※2 | E29: =IFERROR(【参考】データ集計!BT2,"該当データがありません") -> 該当データがありません
P30: 総合評価点 | S30: =SUM(R23:S28) -> 0 | T30: =IF(S30>=24,"A",IF(S30>=18,"B",IF(S30>=12,"C","D"))) -> D
B31: =IF(B49 = 0, "※ 選択された設備のデータがないため、全設備のデータを使用しています。", "") -> 
B33: 財務指標（ローカルベンチマークから会社の経営安定に関係する指標を抜粋） | M33: ■財務指標（過去2期）
M34: 指標 | P34: =【出力】財務分析!E26 ->  | V34: =【出力】財務分析!F26 ->  | AD34: ※１各項目の評点および総合評価点は各項目の業種基準値からの乖離を示すものであり、点数の高低が必ずしも企業の評価を示すものではありません。非財務指標も含め、総合的な判断が必要なことにご留意ください。 ※２レーダーチャートで3期分の財務分析結果の推移が確認できるため、各指標が良化（あるいは悪化）した要因を非財務の対話シートを活用しながら把握することで、経営状況や課題の把握に繋がります。
B35: EBITDA有利子負債倍率 【健全性・低いほどよい】 （借入金－現金・預金）／ （営業利益＋減価償却費） | E35: 自社点数 5点満点 | G35: 自社 | I35: 業種基準値 | P35: 算出結果 | R35: 貴社点数 | T35: 業種基準値 | V35: 算出結果 | Y35: 貴社点数 | AA35: 業種基準値
M36: ①売上増加率 | P36: =【出力】財務分析!M6 -> - | R36: =【出力】財務分析!N6 -> . | T36: =IFERROR(INDEX(【参照】売上増加率基準値!$E:$E,MATCH($P$12&$P$13,INDEX(【参照】売上増加率基準値!$C:$C&【参照】売上増加率基準値!$D:$D,),0)),"-") -> - | V36: =【出力】財務分析!O6 -> - | Y36: =【出力】財務分析!P6 -> . | AA36: =IFERROR(INDEX(【参照】売上増加率基準値!$E:$E,MATCH($P$12&$P$13,INDEX(【参照】売上増加率基準値!$C:$C&【参照】売上増加率基準値!$D:$D,),0)),"-") -> -
E37: =【出力】ローカルベンチマーク!H26 -> . | G37: =【出力】ローカルベンチマーク!F26 -> - | I37: =【出力】ローカルベンチマーク!J26 -> - | M37: ②営業利益率 | P37: =【出力】財務分析!M7 -> - | R37: =【出力】財務分析!N7 -> . | T37: =IFERROR(INDEX(【参照】営業利益率基準値!$E:$E,MATCH($P$12&$P$13,INDEX(【参照】営業利益率基準値!$C:$C&【参照】営業利益率基準値!$D:$D,),0)),"-") -> - | V37: =【出力】財務分析!O7 -> - | Y37: =【出力】財務分析!P7 -> . | AA37: =IFERROR(INDEX(【参照】営業利益率基準値!$E:$E,MATCH($P$12&$P$13,INDEX(【参照】営業利益率基準値!$C:$C&【参照】営業利益率基準値!$D:$D,),0)),"-") -> -
M38: ③労働生産性 | P38: =【出力】財務分析!M8 -> - | R38: =【出力】財務分析!N8 -> . | T38: =IFERROR(INDEX(【参照】労働生産性基準値!$E:$E,MATCH($P$12&$P$13,INDEX(【参照】労働生産性基準値!$C:$C&【参照】労働生産性基準値!$D:$D,),0)),"-") -> - | V38: =【出力】財務分析!O8 -> - | Y38: =【出力】財務分析!P8 -> . | AA38: =IFERROR(INDEX(【参照】労働生産性基準値!$E:$E,MATCH($P$12&$P$13,INDEX(【参照】労働生産性基準値!$C:$C&【参照】労働生産性基準値!$D:$D,),0)),"-") -> -
M39: ④EBITDA有利子負債倍率 | P39: =【出力】財務分析!M9 -> - | R39: =【出力】財務分析!N9 -> . | T39: =IFERROR(INDEX(【参照】EBITDA基準値!$E:$E,MATCH($P$12&$P$13,INDEX(【参照】EBITDA基準値!$C:$C&【参照】EBITDA基準値!$D:$D,),0)),"-") -> - | V39: =【出力】財務分析!O9 -> - | Y39: =【出力】財務分析!P9 -> . | AA39: =IFERROR(INDEX(【参照】EBITDA基準値!$E:$E,MATCH($P$12&$P$13,INDEX(【参照】EBITDA基準値!$C:$C&【参照】EBITDA基準値!$D:$D,),0)),"-") -> -
M40: ⑤営業運転資本回転期間 | P40: =【出力】財務分析!M10 -> - | R40: =【出力】財務分析!N10 -> . | T40: =IFERROR(INDEX(【参照】営業運転資本回転期間基準値!$E:$E,MATCH($P$12&$P$13,INDEX(【参照】営業運転資本回転期間基準値!$C:$C&【参照】営業運転資本回転期間基準値!$D:$D,),0)),"-") -> - | V40: =【出力】財務分析!O10 -> - | Y40: =【出力】財務分析!P10 -> . | AA40: =IFERROR(INDEX(【参照】営業運転資本回転期間基準値!$E:$E,MATCH($P$12&$P$13,INDEX(【参照】営業運転資本回転期間基準値!$C:$C&【参照】営業運転資本回転期間基準値!$D:$D,),0)),"-") -> -
B41: 自己資本比率 【安全性・高いほどよい】 純資産／負債・純資産合計 | E41: 自社点数 5点満点 | G41: 自社 | I41: 業種基準値 | M41: ⑥自己資本比率 | P41: =【出力】財務分析!M11 -> - | R41: =【出力】財務分析!N11 -> . | T41: =IFERROR(INDEX(【参照】自己資本比率基準値!$E:$E,MATCH($P$12&$P$13,INDEX(【参照】自己資本比率基準値!$C:$C&【参照】自己資本比率基準値!$D:$D,),0)),"-") -> - | V41: =【出力】財務分析!O11 -> - | Y41: =【出力】財務分析!P11 -> . | AA41: =IFERROR(INDEX(【参照】自己資本比率基準値!$E:$E,MATCH($P$12&$P$13,INDEX(【参照】自己資本比率基準値!$C:$C&【参照】自己資本比率基準値!$D:$D,),0)),"-") -> -
E43: =【出力】ローカルベンチマーク!H28 -> . | G43: =【出力】ローカルベンチマーク!F28 -> - | I43: =【出力】ローカルベンチマーク!J28 -> - | P43: 総合評価点 | S43: =SUM(R36:S41) -> 0 | T43: =IF(S43>=24,"A",IF(S43>=18,"B",IF(S43>=12,"C","D"))) -> D | V43: 総合評価点 | Z43: =SUM(Y36:Z41) -> 0 | AA43: =IF(Z43>=24,"A",IF(Z43>=18,"B",IF(Z43>=12,"C","D"))) -> D
B45: 総合評価点（30点満点） | E45: =【出力】ローカルベンチマーク!I30 -> 0 | G45: =【出力】ローカルベンチマーク!J30 -> D | P45: ※総合評価点のランクはA：24点以上、B：18点以上24点未満、C：12点以上18点未満、D：12点未満
B49: =IFERROR(VLOOKUP(VLOOKUP(【入力】導入設備!C9*1000,【参照】選択リスト!A87:B103,2),'【出力】削減量グラフ（選択設備）'!C60:H80,6,FALSE), "") ->  | L49: 引用元：ローカルベンチマーク（経済産業省HP）
A50: （注意事項）
B51: ※1 日本標準分類（細分類）の「一般貸切旅客自動車運送業」「航空運送業」「他に分類されない運輸に附帯するサービス業」「旅行業（旅行業者代理業を除く）」
B52: 「旅行業者代理業」「他に分類されないその他の生活関連サービス業」については「サービス業，その他」に含まれます。
B53: ※2 CO2排出量について、算出には下記の一般的な係数を使用しているため参考値となります。
B54: 電気：【入力】CO2算出（電気・都市ガス）にて選択した導入後の電気事業者メニューの係数を使用
B55: LPG（㎥）：0.0142、LPG（kl）：0.0161、LNG（㎥）：0.0139、LNG（kl）：0.0135、都市ガス：0.0136（単位発熱量係数：45）、灯油：0.0185、A重油：0.0189
B56: ※3 「自社コスト年間合計額（導入後）」「自社CO2年間排出量（導入後）」の値は、他社のデータや入力いただいた水道光熱費のデータなどを基に算出しています。
B57: 各項目の値の算出の考え方は下記の通りです。
B58: 自社コスト年間合計額（導入後）：（自社コスト年間合計額（導入前））ー（光熱水費削減額） ※光熱水費削減額は、シート「【入力】導入設備」より値を取得しております。
B59: 自社CO2年間排出量（導入後）：（自社CO2年間排出量（導入前））-（助成金申請者の平均CO2削減量）
B60: ※（助成金申請者の平均CO2削減量）について、選択した設備の助成金申請者データがある場合は、選択設備に絞り込んだデータの平均CO2削減量を使用しています。
B61: 選択した設備の助成金申請者データがない場合は、全設備のデータの平均CO2削減量を使用しています。

Sheet 【入力】導入設備
B1: 黄色の欄は必ずご入力ください。（正しく出力されません。）水色の欄の入力は任意です。
B3: 導入設備 | C3: ※金額の単位は千円
B4: 設備名 | D4: 例）〇〇製 冷蔵機器
B5: 型番 | D5: 例）ABC-123
B6: 設備区分 | D6: 例）空調・換気設備 ※リスト選択
B7: 設備種別 | D7: 例）業務用エアコン ※リスト選択
B8: 法定耐用年数（年） | D8: 例）4 ※「設備名＋法定耐用年数」で検索することで取得できます。
B9: 投資額（千円） | D9: 例）1,000
B11: 資金調達先 | C11: ※金額の単位は千円 | F11: =IF($C$9<>$F$14,"※投資額と調達額の合計が異なります","") -> 
B12: 調達方法 | F12: 合計 | G12: 例）借入、その他
B13: 調達先 | G13: 例）〇〇銀行
B14: 調達額（千円） | F14: =SUM(C14:E14) -> 0 | G14: 例）2,000
B15: 月返済元金（千円） | F15: =SUMIF(C12:E12,"借入",C15:E15) -> 0 | G15: 例）100
B16: 返済期間（月） | F16: - | G16: 例）36
B17: 年支払利率（％） | F17: =IFERROR(SUMPRODUCT((C12:E12="借入")*(C14:E14),(C12:E12="借入")*(C17:E17))/SUMIF(C12:E12,"借入",C14:E14),0) -> 0 | G17: 例）2.5
B19: 増減額計算 | C19: ※金額の単位は千円 | E19: 「1年目データコピー」ボタンを押下することで2年目～5年目欄に1年目の値をコピーします。金利は33行目の借入残額×利率の値をコピーします。
B20: 項目 | C20: 1年目 | D20: 2年目 | E20: 3年目 | F20: 4年目 | G20: 5年目
B21: ①減価償却費増加額 | H21: 例）600
B22: ②水道光熱費削減額 | H22: 例）350
B23: ③借入利息支払 | H23: 例）20
B24: ④その他増減額 | H24: 例）-80
B25: ⑤法人税等税率（％） | H25: 例）20
B26: ⑥法人税等増減額（ー①＋②－③＋④)×⑤ | C26: =(-C21+C22-C23+C24)*C25/100 -> 0 | D26: =(-D21+D22-D23+D24)*D25/100 -> 0 | E26: =(-E21+E22-E23+E24)*E25/100 -> 0 | F26: =(-F21+F22-F23+F24)*F25/100 -> 0 | G26: =(-G21+G22-G23+G24)*G25/100 -> 0
B27: 合計増減額（①＋②－③＋④－⑥） | C27: =C21+C22-C23+C24-C26 -> 0 | D27: =D21+D22-D23+D24-D26 -> 0 | E27: =E21+E22-E23+E24-E26 -> 0 | F27: =F21+F22-F23+F24-F26 -> 0 | G27: =G21+G22-G23+G24-G26 -> 0
B28: 投資による累積利益 | C28: =C27 -> 0 | D28: =IF(D27=0,0,C28+D27) -> 0 | E28: =IF(E27=0,0,D28+E27) -> 0 | F28: =IF(F27=0,0,E28+F27) -> 0 | G28: =IF(G27=0,0,F28+G27) -> 0
B29: 回収期間（年） | E29: 黄色の入力欄に入力後、「回収期間計算」ボタンを押下してください。
C31: ※金額の単位は千円
B32: 年返済額 | C32: =F15*12 -> 0 | D32: =IF(C34=0,0,IF($F$15*12>C34,C34,$F$15*12)) -> 0 | E32: =IF(D34=0,0,IF($F$15*12>D34,D34,$F$15*12)) -> 0 | F32: =IF(E34=0,0,IF($F$15*12>E34,E34,$F$15*12)) -> 0 | G32: =IF(F34=0,0,IF($F$15*12>F34,F34,$F$15*12)) -> 0
B33: 借入残額×利率（③の参考値） ※１ | C33: =SUMIF(C12:E12,"借入",C14:E14)*$F$17/100 -> 0 | D33: =C34*$F$17/100 -> 0 | E33: =D34*$F$17/100 -> 0 | F33: =E34*$F$17/100 -> 0 | G33: =F34*$F$17/100 -> 0
B34: 借入残額 | C34: =IFERROR(SUMIF(C12:E12,"借入",C14:E14)-C32,"") -> 0 | D34: =IFERROR(IF(C34-D32<0,0,C34-D32),"") -> 0 | E34: =IFERROR(IF(D34-E32<0,0,D34-E32),"") -> 0 | F34: =IFERROR(IF(E34-F32<0,0,E34-F32),"") -> 0 | G34: =IFERROR(IF(F34-G32<0,0,F34-G32),"") -> 0
B35: ※１ ご入力いただいた内容から近似値を算出しております。精確に計算されたい場合は、お近くの金融機関にお問い合わせください。
B37: ■目次の入力フォームを使用して入力した場合の数値について
B38: 入力フォームより情報を入力した場合、「増減額計算」の①～⑤は概算値が自動的に設定されます。各項目については下記のように値が設定されています。
B39: 各項目の精確な数値がお手元に用意されている場合は、値を修正してください。
B40: ①減価償却費増加額 | C40: 投資額/法定耐用年数
B41: ②水道光熱費削減額 | C41: (設備区分)(投資額)に入力いただいた情報から、県内企業で同じ設備区分に同額程度の投資を行っている企業が削減出来ているエネルギーコストの
C42: 平均値を概算値として設定しています。（参考：出力シート「【出力】削減量グラフ（選択設備）」）
C43: 同じ設備区分に同額程度の投資を行っている企業のデータが無い場合は、この欄は「０」となります。
C44: シート「【出力】削減量グラフ（選択設備）」「【出力】削減量グラフ（全設備）」のデータを参照し、手入力してください。
B45: ③借入利息支払 | C45: 33行目(借入残額×利率)より算出された値を設定しています。
B46: ④その他増減額 | C46: デフォルト値として0を設定しています。
B47: ⑤法人税等税率（％） | C47: デフォルト値として40を設定しています。
B49: ■算出指標
B50: 法人税等増減額 | C50: （ー減価償却費増加額＋水道光熱費削減額ー借入利息支払＋その他増減額）×法人税等税率
B51: 合計増減額 | C51: 減価償却費増加額＋水道光熱費削減額ー借入利息支払＋その他増減額ー法人税等増減額
B52: 投資による累積利益 | C52: 前年までの累積利益＋当年度の合計増減額
B53: 回収期間 | C53: 投資による累積利益が投資額より多くなった年を基準年とします。
C54: (累積利益>投資額となった前年)+｛(投資額)-(その前年までの投資による累積利益)｝/(累積利益>投資額となった年の合計増減額)
C56: 下記に詳細を説明します。
C57: 累積利益>投資額となった前年を整数部とします。
C58: 前年までの「投資による累積利益」から投資額に到達するまでの残額（投資額-その前年のまでの投資による累積利益）を
C59: 投資額に到達する年の合計増減額（累積利益>投資額となった年の合計増減額）で割った数値を、小数部とします。
C60: この2つを足し合わせることで、回収期間を算出しています。
C62: 例えば、投資額：2,000千円で、5年目に投資による累積利益：2,010千円となった場合、
C63: （4年目の投資による累積利益：1,608千円、5年目の合計増減額：402千円）
C64: 累積利益>投資額となった前年：4
C65: (投資額-4年目までの投資による累積利益)/5年目の合計増減額：（2,000-1,608）/402
C66: 回収期間は4.98年となります。
B67: 年返済額 | C67: 月返済元金×12
B68: 借入残額 | C68: 前年までの借入残額ー年返済額

Sheet 【出力】投資回収期間
A1: 投資回収期間の結果
A2: 今回投資設備の回収期間と、投資設備の法定耐用年数を比較し、投資計画が妥当かどうかが分かります。
B4: 設備投資 資金回収期間
B5: =" 投資設備："&【入力】導入設備!C4&" （投資額："&IF(【入力】導入設備!C9="","",TEXT(【入力】導入設備!C9,"#,##0")&"千円") &" ）" -> 投資設備： （投資額： ）
B6: 回収年数 | D6: =IF(【入力】導入設備!C29="","-",ROUND(【入力】導入設備!C29,2)&"年") -> - | G6: =IF(【入力】導入設備!C29<【入力】導入設備!C8,"償却が終わる前に回収することができます。","償却が終わる前に回収することができません。") -> 償却が終わる前に回収することができません。
B8: 法定耐用年数 | D8: =IF(【入力】導入設備!C8="","-",ROUND(【入力】導入設備!C8,1)&"年") -> -
A13: （参考）投資による累積利益の推移
A14: 「【入力】導入設備」シートにて入力された増減額を参考として、5年目以降の投資による累積利益の推移を表したグラフになります。
A15: 1年目から5年目までの増減額を基とした概算値になりますので、参考としてご確認ください。

Sheet 【参照】導入設備5年目以降 (hidden)
A2: 項目 | B2: 1年目 | C2: 2年目 | D2: 3年目 | E2: 4年目 | F2: 5年目 | G2: 6年目 | H2: 7年目 | I2: 8年目 | J2: 9年目 | K2: 10年目 | L2: 11年目 | M2: 12年目 | N2: 13年目 | O2: 14年目 | P2: 15年目
A3: ①減価償却費増加額 | B3: =【入力】導入設備!C21 -> 0 | C3: =【入力】導入設備!D21 -> 0 | D3: =【入力】導入設備!E21 -> 0 | E3: =【入力】導入設備!F21 -> 0 | F3: =【入力】導入設備!G21 -> 0 | G3: =IF(【入力】導入設備!$C$8>=6,【入力】導入設備!$G$21,0) -> 0 | H3: =IF(【入力】導入設備!$C$8>=7,【入力】導入設備!$G$21,0) -> 0 | I3: =IF(【入力】導入設備!$C$8>=8,【入力】導入設備!$G$21,0) -> 0 | J3: =IF(【入力】導入設備!$C$8>=9,【入力】導入設備!$G$21,0) -> 0 | K3: =IF(【入力】導入設備!$C$8>=10,【入力】導入設備!$G$21,0) -> 0 | L3: =IF(【入力】導入設備!$C$8>=11,【入力】導入設備!$G$21,0) -> 0 | M3: =IF(【入力】導入設備!$C$8>=12,【入力】導入設備!$G$21,0) -> 0 | N3: =IF(【入力】導入設備!$C$8>=13,【入力】導入設備!$G$21,0) -> 0 | O3: =IF(【入力】導入設備!$C$8>=14,【入力】導入設備!$G$21,0) -> 0 | P3: =IF(【入力】導入設備!$C$8>=15,【入力】導入設備!$G$21,0) -> 0
A4: ②水道光熱費削減額 | B4: =【入力】導入設備!C22 -> 0 | C4: =【入力】導入設備!D22 -> 0 | D4: =【入力】導入設備!E22 -> 0 | E4: =【入力】導入設備!F22 -> 0 | F4: =【入力】導入設備!G22 -> 0 | G4: =【入力】導入設備!$G$22 -> 0 | H4: =【入力】導入設備!$G$22 -> 0 | I4: =【入力】導入設備!$G$22 -> 0 | J4: =【入力】導入設備!$G$22 -> 0 | K4: =【入力】導入設備!$G$22 -> 0 | L4: =【入力】導入設備!$G$22 -> 0 | M4: =【入力】導入設備!$G$22 -> 0 | N4: =【入力】導入設備!$G$22 -> 0 | O4: =【入力】導入設備!$G$22 -> 0 | P4: =【入力】導入設備!$G$22 -> 0
A5: ③借入利息支払 | B5: =【入力】導入設備!C23 -> 0 | C5: =【入力】導入設備!D23 -> 0 | D5: =【入力】導入設備!E23 -> 0 | E5: =【入力】導入設備!F23 -> 0 | F5: =【入力】導入設備!G23 -> 0 | G5: =G13 -> 0 | H5: =H13 -> 0 | I5: 0 | J5: 0 | K5: 0 | L5: 0 | M5: 0 | N5: 0 | O5: 0 | P5: 0
A6: ④その他増減額 | B6: =【入力】導入設備!C24 -> 0 | C6: =【入力】導入設備!D24 -> 0 | D6: =【入力】導入設備!E24 -> 0 | E6: =【入力】導入設備!F24 -> 0 | F6: =【入力】導入設備!G24 -> 0 | G6: =【入力】導入設備!$G$24 -> 0 | H6: =【入力】導入設備!$G$24 -> 0 | I6: =【入力】導入設備!$G$24 -> 0 | J6: =【入力】導入設備!$G$24 -> 0 | K6: =【入力】導入設備!$G$24 -> 0 | L6: =【入力】導入設備!$G$24 -> 0 | M6: =【入力】導入設備!$G$24 -> 0 | N6: =【入力】導入設備!$G$24 -> 0 | O6: =【入力】導入設備!$G$24 -> 0 | P6: =【入力】導入設備!$G$24 -> 0
A7: ⑤法人税等税率（％） | B7: =【入力】導入設備!C25 -> 0 | C7: =【入力】導入設備!D25 -> 0 | D7: =【入力】導入設備!E25 -> 0 | E7: =【入力】導入設備!F25 -> 0 | F7: =【入力】導入設備!G25 -> 0 | G7: =【入力】導入設備!$G$25 -> 0 | H7: =【入力】導入設備!$G$25 -> 0 | I7: =【入力】導入設備!$G$25 -> 0 | J7: =【入力】導入設備!$G$25 -> 0 | K7: =【入力】導入設備!$G$25 -> 0 | L7: =【入力】導入設備!$G$25 -> 0 | M7: =【入力】導入設備!$G$25 -> 0 | N7: =【入力】導入設備!$G$25 -> 0 | O7: =【入力】導入設備!$G$25 -> 0 | P7: =【入力】導入設備!$G$25 -> 0
A8: ⑥法人税等増減額（ー①＋②－③＋④)×⑤ | B8: =【入力】導入設備!C26 -> 0 | C8: =【入力】導入設備!D26 -> 0 | D8: =【入力】導入設備!E26 -> 0 | E8: =【入力】導入設備!F26 -> 0 | F8: =【入力】導入設備!G26 -> 0 | G8: =(-G3+G4-G5+G6)*G7/100 -> 0 | H8: 0 | I8: 0 | J8: 0 | K8: 0 | L8: =(-L3+L4-L5+L6)*L7/100 -> 0 | M8: =(-M3+M4-M5+M6)*M7/100 -> 0 | N8: 0 | O8: 0 | P8: 0
A9: 合計増減額（①＋②－③＋④－⑥） | B9: =【入力】導入設備!C27 -> 0 | C9: =【入力】導入設備!D27 -> 0 | D9: =【入力】導入設備!E27 -> 0 | E9: =【入力】導入設備!F27 -> 0 | F9: =【入力】導入設備!G27 -> 0 | G9: =G3+G4-G5+G6-G8 -> 0 | H9: 0 | I9: 0 | J9: 0 | K9: 0 | L9: 0 | M9: =M3+M4-M5+M6-M8 -> 0 | N9: 0 | O9: 0 | P9: 0
A10: 投資による累積利益 | B10: =【入力】導入設備!C28 -> 0 | C10: =【入力】導入設備!D28 -> 0 | D10: =【入力】導入設備!E28 -> 0 | E10: =【入力】導入設備!F28 -> 0 | F10: =【入力】導入設備!G28 -> 0 | G10: =【入力】導入設備!G28+【参照】導入設備5年目以降!G9 -> 0 | H10: =IF(H9=0,0,G10+H9) -> 0 | I10: 0 | J10: 0 | K10: 0 | L10: 0 | M10: 0 | N10: =IF(N9=0,0,M10+N9) -> 0 | O10: 0 | P10: 0
A12: 年返済額 | B12: =【入力】導入設備!C32 -> 0 | C12: =【入力】導入設備!D32 -> 0 | D12: =【入力】導入設備!E32 -> 0 | E12: =【入力】導入設備!F32 -> 0 | F12: =【入力】導入設備!G32 -> 0 | G12: =IF(F14=0,0,IF(【入力】導入設備!$F$15*12>F14,F14,【入力】導入設備!$F$15*12)) -> 0 | H12: =IF(G14=0,0,IF(【入力】導入設備!$F$15*12>G14,G14,【入力】導入設備!$F$15*12)) -> 0 | I12: =IF(H14=0,0,IF(【入力】導入設備!$F$15*12>H14,H14,【入力】導入設備!$F$15*12)) -> 0 | J12: =IF(I14=0,0,IF(【入力】導入設備!$F$15*12>I14,I14,【入力】導入設備!$F$15*12)) -> 0 | K12: =IF(J14=0,0,IF(【入力】導入設備!$F$15*12>J14,J14,【入力】導入設備!$F$15*12)) -> 0 | L12: =IF(K14=0,0,IF(【入力】導入設備!$F$15*12>K14,K14,【入力】導入設備!$F$15*12)) -> 0 | M12: =IF(L14=0,0,IF(【入力】導入設備!$F$15*12>L14,L14,【入力】導入設備!$F$15*12)) -> 0 | N12: =IF(M14=0,0,IF(【入力】導入設備!$F$15*12>M14,M14,【入力】導入設備!$F$15*12)) -> 0 | O12: =IF(N14=0,0,IF(【入力】導入設備!$F$15*12>N14,N14,【入力】導入設備!$F$15*12)) -> 0 | P12: =IF(O14=0,0,IF(【入力】導入設備!$F$15*12>O14,O14,【入力】導入設備!$F$15*12)) -> 0
A13: 借入残額×利率（③の参考値） ※１ | B13: =【入力】導入設備!C33 -> 0 | C13: =【入力】導入設備!D33 -> 0 | D13: =【入力】導入設備!E33 -> 0 | E13: =【入力】導入設備!F33 -> 0 | F13: =【入力】導入設備!G33 -> 0 | G13: =F14*【入力】導入設備!$F$17/100 -> 0 | H13: =G14*【入力】導入設備!$F$17/100 -> 0 | I13: =H14*【入力】導入設備!$F$17/100 -> 0 | J13: =I14*【入力】導入設備!$F$17/100 -> 0 | K13: =J14*【入力】導入設備!$F$17/100 -> 0 | L13: =K14*【入力】導入設備!$F$17/100 -> 0 | M13: =L14*【入力】導入設備!$F$17/100 -> 0 | N13: =M14*【入力】導入設備!$F$17/100 -> 0 | O13: =N14*【入力】導入設備!$F$17/100 -> 0 | P13: =O14*【入力】導入設備!$F$17/100 -> 0
A14: 借入残額 | B14: =【入力】導入設備!C34 -> 0 | C14: =【入力】導入設備!D34 -> 0 | D14: =【入力】導入設備!E34 -> 0 | E14: =【入力】導入設備!F34 -> 0 | F14: =【入力】導入設備!G34 -> 0 | G14: =IFERROR(IF(F14-G12<0,0,F14-G12),"") -> 0 | H14: 0 | I14: 0 | J14: 0 | K14: 0 | L14: 0 | M14: 0 | N14: 0 | O14: 0 | P14: 0
A16: 投資額（千円） | B16: =【入力】導入設備!$C$9 -> 0 | C16: =【入力】導入設備!$C$9 -> 0 | D16: =【入力】導入設備!$C$9 -> 0 | E16: =【入力】導入設備!$C$9 -> 0 | F16: =【入力】導入設備!$C$9 -> 0 | G16: =【入力】導入設備!$C$9 -> 0 | H16: =【入力】導入設備!$C$9 -> 0 | I16: =【入力】導入設備!$C$9 -> 0 | J16: =【入力】導入設備!$C$9 -> 0 | K16: =【入力】導入設備!$C$9 -> 0 | L16: =【入力】導入設備!$C$9 -> 0 | M16: =【入力】導入設備!$C$9 -> 0 | N16: =【入力】導入設備!$C$9 -> 0 | O16: =【入力】導入設備!$C$9 -> 0 | P16: =【入力】導入設備!$C$9 -> 0

Sheet 【出力】削減量グラフ（選択設備）
B2: ="【"&B7&"】に設備投資を行った県内企業データ" -> 【空調・換気設備】に設備投資を行った県内企業データ
B3: 同種の設備投資を行っている県内企業のデータを、投資額範囲別に表示します。 | J3: =B7&"_1件あたりのCO2排出削減量" -> 空調・換気設備_1件あたりのCO2排出削減量
B7: =IF(【入力】導入設備!C6="","空調・換気設備",【入力】導入設備!C6) -> 空調・換気設備 | D7: =B7&"_対象経費" -> 空調・換気設備_対象経費 | F7: =B7&"_件数" -> 空調・換気設備_件数 | H7: =B7&"_1件あたりの削減額" -> 空調・換気設備_1件あたりの削減額
B59: 設備区分 | C59: 投資額範囲（千円） | D59: 件数（件） | E59: 削減額（千円） | F59: 1件あたりの削減額（千円） | G59: CO2排出削減量（t-CO2） | H59: 1件あたりのCO2排出削減量（t-CO2）
B60: =B7 -> 空調・換気設備 | C60: 1～1,000 | D60: =VLOOKUP($B$60&C60,【参考】データ集計!$AU$2:$BC$232,5,FALSE) -> 146 | E60: =VLOOKUP($B$60&C60,【参考】データ集計!$AU$2:$BC$232,6,FALSE)/1000 -> 14490.865 | F60: =VLOOKUP($B$60&C60,【参考】データ集計!$AU$2:$BC$232,7,FALSE) -> 99.2525 | G60: =VLOOKUP($B$60&C60,【参考】データ集計!$AU$2:$BC$232,8,FALSE) -> 266.3643032 | H60: =VLOOKUP($B$60&C60,【参考】データ集計!$AU$2:$BC$232,9,FALSE) -> 1.824413036
C61: 1,000～2,000 | D61: =VLOOKUP($B$60&C61,【参考】データ集計!$AU$2:$BC$232,5,FALSE) -> 196 | E61: =VLOOKUP($B$60&C61,【参考】データ集計!$AU$2:$BC$232,6,FALSE)/1000 -> 26351.382 | F61: =VLOOKUP($B$60&C61,【参考】データ集計!$AU$2:$BC$232,7,FALSE) -> 134.4458265 | G61: =VLOOKUP($B$60&C61,【参考】データ集計!$AU$2:$BC$232,8,FALSE) -> 485.6562416 | H61: =VLOOKUP($B$60&C61,【参考】データ集計!$AU$2:$BC$232,9,FALSE) -> 2.477837967
C62: 2,000～3,000 | D62: =VLOOKUP($B$60&C62,【参考】データ集計!$AU$2:$BC$232,5,FALSE) -> 46 | E62: =VLOOKUP($B$60&C62,【参考】データ集計!$AU$2:$BC$232,6,FALSE)/1000 -> 11255.982 | F62: =VLOOKUP($B$60&C62,【参考】データ集計!$AU$2:$BC$232,7,FALSE) -> 244.6952609 | G62: =VLOOKUP($B$60&C62,【参考】データ集計!$AU$2:$BC$232,8,FALSE) -> 219.8016108 | H62: =VLOOKUP($B$60&C62,【参考】データ集計!$AU$2:$BC$232,9,FALSE) -> 4.778295888
C63: 3,000～4,000 | D63: =VLOOKUP($B$60&C63,【参考】データ集計!$AU$2:$BC$232,5,FALSE) -> 28 | E63: =VLOOKUP($B$60&C63,【参考】データ集計!$AU$2:$BC$232,6,FALSE)/1000 -> 7525.691 | F63: =VLOOKUP($B$60&C63,【参考】データ集計!$AU$2:$BC$232,7,FALSE) -> 268.7746786 | G63: =VLOOKUP($B$60&C63,【参考】データ集計!$AU$2:$BC$232,8,FALSE) -> 126.8620314 | H63: =VLOOKUP($B$60&C63,【参考】データ集計!$AU$2:$BC$232,9,FALSE) -> 4.530786837
C64: 4,000～5,000 | D64: =VLOOKUP($B$60&C64,【参考】データ集計!$AU$2:$BC$232,5,FALSE) -> 18 | E64: =VLOOKUP($B$60&C64,【参考】データ集計!$AU$2:$BC$232,6,FALSE)/1000 -> 4512.321 | F64: =VLOOKUP($B$60&C64,【参考】データ集計!$AU$2:$BC$232,7,FALSE) -> 250.6845 | G64: =VLOOKUP($B$60&C64,【参考】データ集計!$AU$2:$BC$232,8,FALSE) -> 95.60491788 | H64: =VLOOKUP($B$60&C64,【参考】データ集計!$AU$2:$BC$232,9,FALSE) -> 5.311384327
C65: 5,000～6,000 | D65: =VLOOKUP($B$60&C65,【参考】データ集計!$AU$2:$BC$232,5,FALSE) -> 14 | E65: =VLOOKUP($B$60&C65,【参考】データ集計!$AU$2:$BC$232,6,FALSE)/1000 -> 13270.5 | F65: =VLOOKUP($B$60&C65,【参考】データ集計!$AU$2:$BC$232,7,FALSE) -> 947.8928571 | G65: =VLOOKUP($B$60&C65,【参考】データ集計!$AU$2:$BC$232,8,FALSE) -> 249.5159763 | H65: =VLOOKUP($B$60&C65,【参考】データ集計!$AU$2:$BC$232,9,FALSE) -> 17.82256974
C66: 6,000～7,000 | D66: =VLOOKUP($B$60&C66,【参考】データ集計!$AU$2:$BC$232,5,FALSE) -> 8 | E66: =VLOOKUP($B$60&C66,【参考】データ集計!$AU$2:$BC$232,6,FALSE)/1000 -> 2860.774 | F66: =VLOOKUP($B$60&C66,【参考】データ集計!$AU$2:$BC$232,7,FALSE) -> 357.59675 | G66: =VLOOKUP($B$60&C66,【参考】データ集計!$AU$2:$BC$232,8,FALSE) -> 43.15223217 | H66: =VLOOKUP($B$60&C66,【参考】データ集計!$AU$2:$BC$232,9,FALSE) -> 5.394029021
C67: 7,000～8,000 | D67: =VLOOKUP($B$60&C67,【参考】データ集計!$AU$2:$BC$232,5,FALSE) -> 10 | E67: =VLOOKUP($B$60&C67,【参考】データ集計!$AU$2:$BC$232,6,FALSE)/1000 -> 12523.129 | F67: =VLOOKUP($B$60&C67,【参考】データ集計!$AU$2:$BC$232,7,FALSE) -> 1252.3129 | G67: =VLOOKUP($B$60&C67,【参考】データ集計!$AU$2:$BC$232,8,FALSE) -> 260.6137308 | H67: =VLOOKUP($B$60&C67,【参考】データ集計!$AU$2:$BC$232,9,FALSE) -> 26.06137308
C68: 8,000～9,000 | D68: =VLOOKUP($B$60&C68,【参考】データ集計!$AU$2:$BC$232,5,FALSE) -> 2 | E68: =VLOOKUP($B$60&C68,【参考】データ集計!$AU$2:$BC$232,6,FALSE)/1000 -> 4249.597 | F68: =VLOOKUP($B$60&C68,【参考】データ集計!$AU$2:$BC$232,7,FALSE) -> 2124.7985 | G68: =VLOOKUP($B$60&C68,【参考】データ集計!$AU$2:$BC$232,8,FALSE) -> 85.77052338 | H68: =VLOOKUP($B$60&C68,【参考】データ集計!$AU$2:$BC$232,9,FALSE) -> 42.88526169
C69: 9,000～10,000 | D69: =VLOOKUP($B$60&C69,【参考】データ集計!$AU$2:$BC$232,5,FALSE) -> 6 | E69: =VLOOKUP($B$60&C69,【参考】データ集計!$AU$2:$BC$232,6,FALSE)/1000 -> 2653.258 | F69: =VLOOKUP($B$60&C69,【参考】データ集計!$AU$2:$BC$232,7,FALSE) -> 442.2096667 | G69: =VLOOKUP($B$60&C69,【参考】データ集計!$AU$2:$BC$232,8,FALSE) -> 50.16738 | H69: =VLOOKUP($B$60&C69,【参考】データ集計!$AU$2:$BC$232,9,FALSE) -> 8.36123
C70: 10,000～11,000 | D70: =VLOOKUP($B$60&C70,【参考】データ集計!$AU$2:$BC$232,5,FALSE) -> 7 | E70: =VLOOKUP($B$60&C70,【参考】データ集計!$AU$2:$BC$232,6,FALSE)/1000 -> 3424.254 | F70: =VLOOKUP($B$60&C70,【参考】データ集計!$AU$2:$BC$232,7,FALSE) -> 489.1791429 | G70: =VLOOKUP($B$60&C70,【参考】データ集計!$AU$2:$BC$232,8,FALSE) -> 64.2452888 | H70: =VLOOKUP($B$60&C70,【参考】データ集計!$AU$2:$BC$232,9,FALSE) -> 9.1778984
C71: 11,000～12,000 | D71: =VLOOKUP($B$60&C71,【参考】データ集計!$AU$2:$BC$232,5,FALSE) -> 2 | E71: =VLOOKUP($B$60&C71,【参考】データ集計!$AU$2:$BC$232,6,FALSE)/1000 -> 449.876 | F71: =VLOOKUP($B$60&C71,【参考】データ集計!$AU$2:$BC$232,7,FALSE) -> 224.938 | G71: =VLOOKUP($B$60&C71,【参考】データ集計!$AU$2:$BC$232,8,FALSE) -> 11.508274 | H71: =VLOOKUP($B$60&C71,【参考】データ集計!$AU$2:$BC$232,9,FALSE) -> 5.754137
C72: 12,000～13,000 | D72: =VLOOKUP($B$60&C72,【参考】データ集計!$AU$2:$BC$232,5,FALSE) -> 1 | E72: =VLOOKUP($B$60&C72,【参考】データ集計!$AU$2:$BC$232,6,FALSE)/1000 -> 53.986 | F72: =VLOOKUP($B$60&C72,【参考】データ集計!$AU$2:$BC$232,7,FALSE) -> 53.986 | G72: =VLOOKUP($B$60&C72,【参考】データ集計!$AU$2:$BC$232,8,FALSE) -> 0.697996 | H72: =VLOOKUP($B$60&C72,【参考】データ集計!$AU$2:$BC$232,9,FALSE) -> 0.697996
C73: 13,000～14,000 | D73: =VLOOKUP($B$60&C73,【参考】データ集計!$AU$2:$BC$232,5,FALSE) -> 1 | E73: =VLOOKUP($B$60&C73,【参考】データ集計!$AU$2:$BC$232,6,FALSE)/1000 -> 1048.257 | F73: =VLOOKUP($B$60&C73,【参考】データ集計!$AU$2:$BC$232,7,FALSE) -> 1048.257 | G73: =VLOOKUP($B$60&C73,【参考】データ集計!$AU$2:$BC$232,8,FALSE) -> 20.457518 | H73: =VLOOKUP($B$60&C73,【参考】データ集計!$AU$2:$BC$232,9,FALSE) -> 20.457518
C74: 14,000～15,000 | D74: =VLOOKUP($B$60&C74,【参考】データ集計!$AU$2:$BC$232,5,FALSE) -> 1 | E74: =VLOOKUP($B$60&C74,【参考】データ集計!$AU$2:$BC$232,6,FALSE)/1000 -> 249.227 | F74: =VLOOKUP($B$60&C74,【参考】データ集計!$AU$2:$BC$232,7,FALSE) -> 249.227 | G74: =VLOOKUP($B$60&C74,【参考】データ集計!$AU$2:$BC$232,8,FALSE) -> 6.472051 | H74: =VLOOKUP($B$60&C74,【参考】データ集計!$AU$2:$BC$232,9,FALSE) -> 6.472051
C75: 15,000～16,000 | D75: =VLOOKUP($B$60&C75,【参考】データ集計!$AU$2:$BC$232,5,FALSE) -> 0 | E75: =VLOOKUP($B$60&C75,【参考】データ集計!$AU$2:$BC$232,6,FALSE)/1000 -> 0 | F75: =VLOOKUP($B$60&C75,【参考】データ集計!$AU$2:$BC$232,7,FALSE) -> 0 | G75: =VLOOKUP($B$60&C75,【参考】データ集計!$AU$2:$BC$232,8,FALSE) -> 0 | H75: =VLOOKUP($B$60&C75,【参考】データ集計!$AU$2:$BC$232,9,FALSE) -> 0
C76: 16,000～17,000 | D76: =VLOOKUP($B$60&C76,【参考】データ集計!$AU$2:$BC$232,5,FALSE) -> 0 | E76: =VLOOKUP($B$60&C76,【参考】データ集計!$AU$2:$BC$232,6,FALSE)/1000 -> 0 | F76: =VLOOKUP($B$60&C76,【参考】データ集計!$AU$2:$BC$232,7,FALSE) -> 0 | G76: =VLOOKUP($B$60&C76,【参考】データ集計!$AU$2:$BC$232,8,FALSE) -> 0 | H76: =VLOOKUP($B$60&C76,【参考】データ集計!$AU$2:$BC$232,9,FALSE) -> 0
C77: 17,000～18,000 | D77: =VLOOKUP($B$60&C77,【参考】データ集計!$AU$2:$BC$232,5,FALSE) -> 0 | E77: =VLOOKUP($B$60&C77,【参考】データ集計!$AU$2:$BC$232,6,FALSE)/1000 -> 0 | F77: =VLOOKUP($B$60&C77,【参考】データ集計!$AU$2:$BC$232,7,FALSE) -> 0 | G77: =VLOOKUP($B$60&C77,【参考】データ集計!$AU$2:$BC$232,8,FALSE) -> 0 | H77: =VLOOKUP($B$60&C77,【参考】データ集計!$AU$2:$BC$232,9,FALSE) -> 0
C78: 18,000～19,000 | D78: =VLOOKUP($B$60&C78,【参考】データ集計!$AU$2:$BC$232,5,FALSE) -> 0 | E78: =VLOOKUP($B$60&C78,【参考】データ集計!$AU$2:$BC$232,6,FALSE)/1000 -> 0 | F78: =VLOOKUP($B$60&C78,【参考】データ集計!$AU$2:$BC$232,7,FALSE) -> 0 | G78: =VLOOKUP($B$60&C78,【参考】データ集計!$AU$2:$BC$232,8,FALSE) -> 0 | H78: =VLOOKUP($B$60&C78,【参考】データ集計!$AU$2:$BC$232,9,FALSE) -> 0
C79: 19,000～20,000 | D79: =VLOOKUP($B$60&C79,【参考】データ集計!$AU$2:$BC$232,5,FALSE) -> 0 | E79: =VLOOKUP($B$60&C79,【参考】データ集計!$AU$2:$BC$232,6,FALSE)/1000 -> 0 | F79: =VLOOKUP($B$60&C79,【参考】データ集計!$AU$2:$BC$232,7,FALSE) -> 0 | G79: =VLOOKUP($B$60&C79,【参考】データ集計!$AU$2:$BC$232,8,FALSE) -> 0 | H79: =VLOOKUP($B$60&C79,【参考】データ集計!$AU$2:$BC$232,9,FALSE) -> 0
C80: 20,000～ | D80: =VLOOKUP($B$60&C80,【参考】データ集計!$AU$2:$BC$232,5,FALSE) -> 1 | E80: =VLOOKUP($B$60&C80,【参考】データ集計!$AU$2:$BC$232,6,FALSE)/1000 -> 1841.972 | F80: =VLOOKUP($B$60&C80,【参考】データ集計!$AU$2:$BC$232,7,FALSE) -> 1841.972 | G80: =VLOOKUP($B$60&C80,【参考】データ集計!$AU$2:$BC$232,8,FALSE) -> 50.680052 | H80: =VLOOKUP($B$60&C80,【参考】データ集計!$AU$2:$BC$232,9,FALSE) -> 50.680052

Sheet 【出力】削減量グラフ（全設備）
B2: ="設備投資を行った県内企業データ" -> 設備投資を行った県内企業データ
B3: 設備投資を行っている県内企業のデータを、投資額範囲別に表示します。 | J3: =B7&"_1件あたりのCO2排出削減量" -> 空調・換気設備_1件あたりのCO2排出削減量
B7: =IF(【入力】導入設備!C6="","空調・換気設備",【入力】導入設備!C6) -> 空調・換気設備 | D7: =B7&"_対象経費" -> 空調・換気設備_対象経費 | F7: =B7&"_件数" -> 空調・換気設備_件数 | H7: =B7&"_1件あたりの削減額" -> 空調・換気設備_1件あたりの削減額
B59: 設備区分 | C59: 投資額範囲（千円） | D59: 件数（件） | E59: 削減額（千円） | F59: 1件あたりの削減額（千円） | G59: CO2排出削減量（t-CO2） | H59: 1件あたりのCO2排出削減量（t-CO2）
B60: 全設備合計 | C60: 1～1,000 | D60: =VLOOKUP($B$60&C60,【参考】データ集計!$AU$2:$BC$253,5,FALSE) -> 343 | E60: =VLOOKUP($B$60&C60,【参考】データ集計!$AU$2:$BC$253,6,FALSE)/1000 -> 36284.8195 | F60: =VLOOKUP($B$60&C60,【参考】データ集計!$AU$2:$BC$253,7,FALSE) -> 105.7866458 | G60: =VLOOKUP($B$60&C60,【参考】データ集計!$AU$2:$BC$253,8,FALSE) -> 628.7923566 | H60: =VLOOKUP($B$60&C60,【参考】データ集計!$AU$2:$BC$253,9,FALSE) -> 1.833213868
C61: 1,000～2,000 | D61: =VLOOKUP($B$60&C61,【参考】データ集計!$AU$2:$BC$253,5,FALSE) -> 453 | E61: =VLOOKUP($B$60&C61,【参考】データ集計!$AU$2:$BC$253,6,FALSE)/1000 -> 66449.548 | F61: =VLOOKUP($B$60&C61,【参考】データ集計!$AU$2:$BC$253,7,FALSE) -> 146.6877439 | G61: =VLOOKUP($B$60&C61,【参考】データ集計!$AU$2:$BC$253,8,FALSE) -> 1152.883604 | H61: =VLOOKUP($B$60&C61,【参考】データ集計!$AU$2:$BC$253,9,FALSE) -> 2.544996918
C62: 2,000～3,000 | D62: =VLOOKUP($B$60&C62,【参考】データ集計!$AU$2:$BC$253,5,FALSE) -> 147 | E62: =VLOOKUP($B$60&C62,【参考】データ集計!$AU$2:$BC$253,6,FALSE)/1000 -> 41407.2545 | F62: =VLOOKUP($B$60&C62,【参考】データ集計!$AU$2:$BC$253,7,FALSE) -> 281.6820034 | G62: =VLOOKUP($B$60&C62,【参考】データ集計!$AU$2:$BC$253,8,FALSE) -> 792.4618227 | H62: =VLOOKUP($B$60&C62,【参考】データ集計!$AU$2:$BC$253,9,FALSE) -> 5.390896753
C63: 3,000～4,000 | D63: =VLOOKUP($B$60&C63,【参考】データ集計!$AU$2:$BC$253,5,FALSE) -> 83 | E63: =VLOOKUP($B$60&C63,【参考】データ集計!$AU$2:$BC$253,6,FALSE)/1000 -> 35242.373 | F63: =VLOOKUP($B$60&C63,【参考】データ集計!$AU$2:$BC$253,7,FALSE) -> 424.6069036 | G63: =VLOOKUP($B$60&C63,【参考】データ集計!$AU$2:$BC$253,8,FALSE) -> 655.6616757 | H63: =VLOOKUP($B$60&C63,【参考】データ集計!$AU$2:$BC$253,9,FALSE) -> 7.899538261
C64: 4,000～5,000 | D64: =VLOOKUP($B$60&C64,【参考】データ集計!$AU$2:$BC$253,5,FALSE) -> 52 | E64: =VLOOKUP($B$60&C64,【参考】データ集計!$AU$2:$BC$253,6,FALSE)/1000 -> 21497.933 | F64: =VLOOKUP($B$60&C64,【参考】データ集計!$AU$2:$BC$253,7,FALSE) -> 413.4217885 | G64: =VLOOKUP($B$60&C64,【参考】データ集計!$AU$2:$BC$253,8,FALSE) -> 426.1912679 | H64: =VLOOKUP($B$60&C64,【参考】データ集計!$AU$2:$BC$253,9,FALSE) -> 8.195985922
C65: 5,000～6,000 | D65: =VLOOKUP($B$60&C65,【参考】データ集計!$AU$2:$BC$253,5,FALSE) -> 38 | E65: =VLOOKUP($B$60&C65,【参考】データ集計!$AU$2:$BC$253,6,FALSE)/1000 -> 24065.98 | F65: =VLOOKUP($B$60&C65,【参考】データ集計!$AU$2:$BC$253,7,FALSE) -> 633.3152632 | G65: =VLOOKUP($B$60&C65,【参考】データ集計!$AU$2:$BC$253,8,FALSE) -> 427.9121699 | H65: =VLOOKUP($B$60&C65,【参考】データ集計!$AU$2:$BC$253,9,FALSE) -> 11.26084658
C66: 6,000～7,000 | D66: =VLOOKUP($B$60&C66,【参考】データ集計!$AU$2:$BC$253,5,FALSE) -> 23 | E66: =VLOOKUP($B$60&C66,【参考】データ集計!$AU$2:$BC$253,6,FALSE)/1000 -> 12084.038 | F66: =VLOOKUP($B$60&C66,【参考】データ集計!$AU$2:$BC$253,7,FALSE) -> 525.3929565 | G66: =VLOOKUP($B$60&C66,【参考】データ集計!$AU$2:$BC$253,8,FALSE) -> 271.4317221 | H66: =VLOOKUP($B$60&C66,【参考】データ集計!$AU$2:$BC$253,9,FALSE) -> 11.80137922
C67: 7,000～8,000 | D67: =VLOOKUP($B$60&C67,【参考】データ集計!$AU$2:$BC$253,5,FALSE) -> 32 | E67: =VLOOKUP($B$60&C67,【参考】データ集計!$AU$2:$BC$253,6,FALSE)/1000 -> 21627.7528 | F67: =VLOOKUP($B$60&C67,【参考】データ集計!$AU$2:$BC$253,7,FALSE) -> 675.867275 | G67: =VLOOKUP($B$60&C67,【参考】データ集計!$AU$2:$BC$253,8,FALSE) -> 498.5090836 | H67: =VLOOKUP($B$60&C67,【参考】データ集計!$AU$2:$BC$253,9,FALSE) -> 15.57840886
C68: 8,000～9,000 | D68: =VLOOKUP($B$60&C68,【参考】データ集計!$AU$2:$BC$253,5,FALSE) -> 17 | E68: =VLOOKUP($B$60&C68,【参考】データ集計!$AU$2:$BC$253,6,FALSE)/1000 -> 18817.666 | F68: =VLOOKUP($B$60&C68,【参考】データ集計!$AU$2:$BC$253,7,FALSE) -> 1106.921529 | G68: =VLOOKUP($B$60&C68,【参考】データ集計!$AU$2:$BC$253,8,FALSE) -> 356.62591 | H68: =VLOOKUP($B$60&C68,【参考】データ集計!$AU$2:$BC$253,9,FALSE) -> 20.9779947
C69: 9,000～10,000 | D69: =VLOOKUP($B$60&C69,【参考】データ集計!$AU$2:$BC$253,5,FALSE) -> 24 | E69: =VLOOKUP($B$60&C69,【参考】データ集計!$AU$2:$BC$253,6,FALSE)/1000 -> 21037.689 | F69: =VLOOKUP($B$60&C69,【参考】データ集計!$AU$2:$BC$253,7,FALSE) -> 876.570375 | G69: =VLOOKUP($B$60&C69,【参考】データ集計!$AU$2:$BC$253,8,FALSE) -> 391.2672108 | H69: =VLOOKUP($B$60&C69,【参考】データ集計!$AU$2:$BC$253,9,FALSE) -> 16.30280045
C70: 10,000～11,000 | D70: =VLOOKUP($B$60&C70,【参考】データ集計!$AU$2:$BC$253,5,FALSE) -> 27 | E70: =VLOOKUP($B$60&C70,【参考】データ集計!$AU$2:$BC$253,6,FALSE)/1000 -> 18752.158 | F70: =VLOOKUP($B$60&C70,【参考】データ集計!$AU$2:$BC$253,7,FALSE) -> 694.5243704 | G70: =VLOOKUP($B$60&C70,【参考】データ集計!$AU$2:$BC$253,8,FALSE) -> 381.7904734 | H70: =VLOOKUP($B$60&C70,【参考】データ集計!$AU$2:$BC$253,9,FALSE) -> 14.1403879
C71: 11,000～12,000 | D71: =VLOOKUP($B$60&C71,【参考】データ集計!$AU$2:$BC$253,5,FALSE) -> 16 | E71: =VLOOKUP($B$60&C71,【参考】データ集計!$AU$2:$BC$253,6,FALSE)/1000 -> 27555.674 | F71: =VLOOKUP($B$60&C71,【参考】データ集計!$AU$2:$BC$253,7,FALSE) -> 1722.229625 | G71: =VLOOKUP($B$60&C71,【参考】データ集計!$AU$2:$BC$253,8,FALSE) -> 580.1469195 | H71: =VLOOKUP($B$60&C71,【参考】データ集計!$AU$2:$BC$253,9,FALSE) -> 36.25918247
C72: 12,000～13,000 | D72: =VLOOKUP($B$60&C72,【参考】データ集計!$AU$2:$BC$253,5,FALSE) -> 13 | E72: =VLOOKUP($B$60&C72,【参考】データ集計!$AU$2:$BC$253,6,FALSE)/1000 -> 15405.1604 | F72: =VLOOKUP($B$60&C72,【参考】データ集計!$AU$2:$BC$253,7,FALSE) -> 1185.012338 | G72: =VLOOKUP($B$60&C72,【参考】データ集計!$AU$2:$BC$253,8,FALSE) -> 233.6122189 | H72: =VLOOKUP($B$60&C72,【参考】データ集計!$AU$2:$BC$253,9,FALSE) -> 17.97017068
C73: 13,000～14,000 | D73: =VLOOKUP($B$60&C73,【参考】データ集計!$AU$2:$BC$253,5,FALSE) -> 8 | E73: =VLOOKUP($B$60&C73,【参考】データ集計!$AU$2:$BC$253,6,FALSE)/1000 -> 12215.609 | F73: =VLOOKUP($B$60&C73,【参考】データ集計!$AU$2:$BC$253,7,FALSE) -> 1526.951125 | G73: =VLOOKUP($B$60&C73,【参考】データ集計!$AU$2:$BC$253,8,FALSE) -> 249.1837406 | H73: =VLOOKUP($B$60&C73,【参考】データ集計!$AU$2:$BC$253,9,FALSE) -> 31.14796758
C74: 14,000～15,000 | D74: =VLOOKUP($B$60&C74,【参考】データ集計!$AU$2:$BC$253,5,FALSE) -> 12 | E74: =VLOOKUP($B$60&C74,【参考】データ集計!$AU$2:$BC$253,6,FALSE)/1000 -> 9387.905 | F74: =VLOOKUP($B$60&C74,【参考】データ集計!$AU$2:$BC$253,7,FALSE) -> 782.3254167 | G74: =VLOOKUP($B$60&C74,【参考】データ集計!$AU$2:$BC$253,8,FALSE) -> 191.8429996 | H74: =VLOOKUP($B$60&C74,【参考】データ集計!$AU$2:$BC$253,9,FALSE) -> 15.98691663
C75: 15,000～16,000 | D75: =VLOOKUP($B$60&C75,【参考】データ集計!$AU$2:$BC$253,5,FALSE) -> 2 | E75: =VLOOKUP($B$60&C75,【参考】データ集計!$AU$2:$BC$253,6,FALSE)/1000 -> 2784.905 | F75: =VLOOKUP($B$60&C75,【参考】データ集計!$AU$2:$BC$253,7,FALSE) -> 1392.4525 | G75: =VLOOKUP($B$60&C75,【参考】データ集計!$AU$2:$BC$253,8,FALSE) -> 37.30972212 | H75: =VLOOKUP($B$60&C75,【参考】データ集計!$AU$2:$BC$253,9,FALSE) -> 18.65486106
C76: 16,000～17,000 | D76: =VLOOKUP($B$60&C76,【参考】データ集計!$AU$2:$BC$253,5,FALSE) -> 2 | E76: =VLOOKUP($B$60&C76,【参考】データ集計!$AU$2:$BC$253,6,FALSE)/1000 -> 353.574 | F76: =VLOOKUP($B$60&C76,【参考】データ集計!$AU$2:$BC$253,7,FALSE) -> 176.787 | G76: =VLOOKUP($B$60&C76,【参考】データ集計!$AU$2:$BC$253,8,FALSE) -> 4.585037 | H76: =VLOOKUP($B$60&C76,【参考】データ集計!$AU$2:$BC$253,9,FALSE) -> 2.2925185
C77: 17,000～18,000 | D77: =VLOOKUP($B$60&C77,【参考】データ集計!$AU$2:$BC$253,5,FALSE) -> 3 | E77: =VLOOKUP($B$60&C77,【参考】データ集計!$AU$2:$BC$253,6,FALSE)/1000 -> 2029.276 | F77: =VLOOKUP($B$60&C77,【参考】データ集計!$AU$2:$BC$253,7,FALSE) -> 676.4253333 | G77: =VLOOKUP($B$60&C77,【参考】データ集計!$AU$2:$BC$253,8,FALSE) -> 32.361121 | H77: =VLOOKUP($B$60&C77,【参考】データ集計!$AU$2:$BC$253,9,FALSE) -> 10.78704033
C78: 18,000～19,000 | D78: =VLOOKUP($B$60&C78,【参考】データ集計!$AU$2:$BC$253,5,FALSE) -> 3 | E78: =VLOOKUP($B$60&C78,【参考】データ集計!$AU$2:$BC$253,6,FALSE)/1000 -> 2702.633 | F78: =VLOOKUP($B$60&C78,【参考】データ集計!$AU$2:$BC$253,7,FALSE) -> 900.8776667 | G78: =VLOOKUP($B$60&C78,【参考】データ集計!$AU$2:$BC$253,8,FALSE) -> 70.9546567 | H78: =VLOOKUP($B$60&C78,【参考】データ集計!$AU$2:$BC$253,9,FALSE) -> 23.65155223
C79: 19,000～20,000 | D79: =VLOOKUP($B$60&C79,【参考】データ集計!$AU$2:$BC$253,5,FALSE) -> 2 | E79: =VLOOKUP($B$60&C79,【参考】データ集計!$AU$2:$BC$253,6,FALSE)/1000 -> 47.238 | F79: =VLOOKUP($B$60&C79,【参考】データ集計!$AU$2:$BC$253,7,FALSE) -> 23.619 | G79: =VLOOKUP($B$60&C79,【参考】データ集計!$AU$2:$BC$253,8,FALSE) -> 0.778101 | H79: =VLOOKUP($B$60&C79,【参考】データ集計!$AU$2:$BC$253,9,FALSE) -> 0.3890505
C80: 20,000～ | D80: =VLOOKUP($B$60&C80,【参考】データ集計!$AU$2:$BC$253,5,FALSE) -> 13 | E80: =VLOOKUP($B$60&C80,【参考】データ集計!$AU$2:$BC$253,6,FALSE)/1000 -> 6979.879 | F80: =VLOOKUP($B$60&C80,【参考】データ集計!$AU$2:$BC$253,7,FALSE) -> 536.9137692 | G80: =VLOOKUP($B$60&C80,【参考】データ集計!$AU$2:$BC$253,8,FALSE) -> 131.0397238 | H80: =VLOOKUP($B$60&C80,【参考】データ集計!$AU$2:$BC$253,9,FALSE) -> 10.07997876

Sheet 【入力補助】CO2排出量
B2: エネルギー起源CO2排出量算出用入力シート
C3: 電気、燃料、熱の月ごとの金額・使用量を、背景に色がついている入力欄に入力してください。黄色の欄は必ずご入力ください。（正しく出力されません。）水色の欄の入力は任意です。
C4: 電気事業者メニュー検索： | F4: こちらの入力欄のみ、金額の単位が「円」となりますので入力の際はご注意ください。シート「【入力】CO2算出（電気・都市ガス）」にて「千円」単位に変換されます。
B5: エネルギーの種類 | F5: 単位 | H5: 年合計 | J5: 4月 | L5: 5月 | N5: 6月 | P5: 7月 | R5: 8月 | T5: 9月 | V5: 10月 | X5: 11月 | Z5: 12月 | AB5: 1月 | AD5: 2月 | AF5: 3月
F7: 金額 | G7: 使用量 | H7: 金額 | I7: 使用量 | J7: 金額 | K7: 使用量 | L7: 金額 | M7: 使用量 | N7: 金額 | O7: 使用量 | P7: 金額 | Q7: 使用量 | R7: 金額 | S7: 使用量 | T7: 金額 | U7: 使用量 | V7: 金額 | W7: 使用量 | X7: 金額 | Y7: 使用量 | Z7: 金額 | AA7: 使用量 | AB7: 金額 | AC7: 使用量 | AD7: 金額 | AE7: 使用量 | AF7: 金額 | AG7: 使用量
B8: 電気 | F8: 円 | G8: kWh | H8: =SUM(J8,L8,N8,P8,R8,T8,V8,X8,Z8,AB8,AD8,AF8) -> 0 | I8: 0
F9: 円 | G9: kWh | H9: 0 | I9: 0
F10: 円 | G10: kWh | H10: 0 | I10: 0
F11: 円 | G11: kWh | H11: 0 | I11: 0
F12: 円 | G12: kWh | H12: 0 | I12: 0
B14: 燃料 | C14: 原油 | F14: 円 | G14: L | H14: =SUM(J14,L14,N14,P14,R14,T14,V14,X14,Z14,AB14,AD14,AF14) -> 0 | I14: =SUM(K14,M14,O14,Q14,S14,U14,W14,Y14,AA14,AC14,AE14,AG14) -> 0
C15: コンデンセート | F15: 円 | G15: L | H15: 0 | I15: =SUM(K15,M15,O15,Q15,S15,U15,W15,Y15,AA15,AC15,AE15,AG15) -> 0
C16: 揮発油（ガソリン） | F16: 円 | G16: L | H16: 0 | I16: 0
C17: ナフサ | F17: 円 | G17: L | H17: 0 | I17: 0
C18: ジェット燃料油 | F18: 円 | G18: L | H18: 0 | I18: 0
C19: 灯油 | F19: 円 | G19: L | H19: 0 | I19: 0
C20: 軽油 | F20: 円 | G20: L | H20: 0 | I20: 0
C21: Ａ重油 | F21: 円 | G21: L | H21: 0 | I21: 0
C22: Ｂ・Ｃ重油 | F22: 円 | G22: L | H22: 0 | I22: 0
C23: 石油アスファルト | F23: 円 | G23: Kg | H23: 0 | I23: 0
C24: 石油コークス | F24: 円 | G24: Kg | H24: 0 | I24: 0
C25: 石油ガス | D25: ＬＰＧ | E25: プロパン・ブタン混合 | F25: 円 | G25: ㎥ | H25: 0 | I25: 0
D26: 石油系ガス | F26: 円 | G26: ㎥ | H26: 0 | I26: 0
C27: 可燃性天然ガス | D27: ＬＮＧ | F27: 円 | G27: Kg | H27: 0 | I27: 0
D28: その他の天然ガス | F28: 円 | G28: ㎥ | H28: 0 | I28: 0
C29: 石炭 | D29: 原料炭 | F29: 円 | G29: Kg | H29: 0 | I29: 0
D30: 一般炭 | F30: 円 | G30: Kg | H30: 0 | I30: 0
D31: 無煙炭 | F31: 円 | G31: Kg | H31: =SUM(J31,L31,N31,P31,R31,T31,V31,X31,Z31,AB31,AD31,AF31) -> 0 | I31: 0
C32: 石炭コークス | F32: 円 | G32: Kg | H32: 0 | I32: 0
C33: コールタール | F33: 円 | G33: Kg | H33: 0 | I33: 0
C34: コークス炉ガス | F34: 円 | G34: ㎥ | H34: 0 | I34: 0
C35: 高炉ガス | F35: 円 | G35: ㎥ | H35: 0 | I35: 0
C36: 転炉ガス | F36: 円 | G36: ㎥ | H36: 0 | I36: 0
C37: その他の燃料 | D37: 都市ガス | F37: 円 | G37: ㎥ | H37: =SUM(J37,L37,N37,P37,R37,T37,V37,X37,Z37,AB37,AD37,AF37) -> 0 | I37: =SUM(K37,M37,O37,Q37,S37,U37,W37,Y37,AA37,AC37,AE37,AG37) -> 0
D38: テナント空調推計値 | F38: 円 | G38: MJ | H38: =SUM(J38,L38,N38,P38,R38,T38,V38,X38,Z38,AB38,AD38,AF38) -> 0 | I38: 0
B40: 熱 | C40: 産業用蒸気 | F40: 円 | G40: MJ | H40: =SUM(J40,L40,N40,P40,R40,T40,V40,X40,Z40,AB40,AD40,AF40) -> 0 | I40: 0
C41: 産業用以外の蒸気 | F41: 円 | G41: MJ | H41: 0 | I41: 0
C42: 温水 | F42: 円 | G42: MJ | H42: 0 | I42: 0
C43: 冷水 | F43: 円 | G43: MJ | H43: 0 | I43: 0
B45: ※1 本計算ツールにおいて「調整後排出係数等を用いたCO2排出量」とは、調整後排出係数、無効化した国内認証排出削
B46: 減量（他者へ移転した量を差し引いたもの）又は海外認証排出削減量を反映したCO2排出量をいいます。
B47: なお、本値には非エネルギー起源CO2排出量等が含まれておらず、温対法に報告する調整後排出量とは異なります
B48: のでご注意ください。
B50: 引用元：エネルギー起源二酸化炭素排出量等計算ツール（経済産業省HP）

Sheet 【入力】CO2算出（電気・都市ガス）
B2: エネルギー起源二酸化炭素排出量等計算ツール
B4: このツールは、エネルギー起源二酸化炭素排出量等の計算のためのツールです。「エネルギー起源二酸化炭素排出量等計算ツールの利用マニュアル」を参照のうえ、以下のとおり使用してください。 利用マニュアルはこちら ⇒ （１）計算ツールの色付きのセルに入力してください。黄色は必須入力項目、水色は任意入力項目となります。 （２）各数値は、事業者全体のCO2排出量を計算したい場合は事業者全体の値、特定の事業所のCO2排出量を計算したい場合は当該事業所の値について、1年度（4月～3月）の合計値を入力してください。 各数値の1年度（4月～3月）の合計値を出す際に月ごとの数値を足し合わせる計算が必要な場合、シート「【入力補助】CO2排出量」に月ごとの使用量、使用金額を入力いただくことで、こちらのシートに合計値を反映させることができます。 （３）電気の入力欄について、導入前と導入後でそれぞれに必須項目がございますので、どちらも必ず入力を行ってください。 （４）計算ツールはエクセルで作成されており、計算式の破損防止のために、シートには保護がかけてあります。
B6: １．電気の入力欄
C7: 【導入前（現在）】
C8: 「利用マニュアル」を参照のうえ、電気を購入している電気事業者ごとに、下表の黄色セル・水色セルに数値を入力してください。
C9: 電気事業者メニュー検索：
C10: 電気事業者メニュー （係数の根拠） | L10: 基礎排出係数 t-CO2/kWh | R10: 調整後排出係数 t-CO2/kWh | X10: 使用金額 千円 | AD10: 使用量 千kWh | AH10: 基礎排出量 t-CO2 | AN10: 調整後排出量 t-CO2 | AT10: 係数の適用範囲
C12: =IF(【入力補助】CO2排出量!C8="","",【入力補助】CO2排出量!C8) ->  | L12: =IFERROR(SUBSTITUTE(VLOOKUP(C12,【参照】排出量係数!$C$2:$E$2000,2,FALSE),"※",""),"") ->  | R12: =IFERROR(SUBSTITUTE(VLOOKUP(C12,【参照】排出量係数!$C$2:$E$2000,3,FALSE),"※",""),"") ->  | X12: =【入力補助】CO2排出量!H8/1000 -> 0 | AD12: =【入力補助】CO2排出量!I8/1000 -> 0 | AH12: =IFERROR(L12*AD12*1000,"") ->  | AN12: =IFERROR(R12*AD12*1000,"") ->  | AT12: =IF(C12="","",C12&"管内の工場等") -> 
C13: =IF(【入力補助】CO2排出量!C9="","",【入力補助】CO2排出量!C9) ->  | L13: =IFERROR(SUBSTITUTE(VLOOKUP(C13,【参照】排出量係数!$C$2:$E$2000,2,FALSE),"※",""),"") ->  | R13: =IFERROR(SUBSTITUTE(VLOOKUP(C13,【参照】排出量係数!$C$2:$E$2000,3,FALSE),"※",""),"") ->  | X13: =【入力補助】CO2排出量!H9/1000 -> 0 | AD13: =【入力補助】CO2排出量!I9/1000 -> 0 | AH13: =IFERROR(L13*AD13*1000,"") ->  | AN13: =IFERROR(R13*AD13*1000,"") -> 
C14: =IF(【入力補助】CO2排出量!C10="","",【入力補助】CO2排出量!C10) ->  | L14: =IFERROR(SUBSTITUTE(VLOOKUP(C14,【参照】排出量係数!$C$2:$E$2000,2,FALSE),"※",""),"") ->  | R14: =IFERROR(SUBSTITUTE(VLOOKUP(C14,【参照】排出量係数!$C$2:$E$2000,3,FALSE),"※",""),"") ->  | X14: =【入力補助】CO2排出量!H10/1000 -> 0 | AD14: =【入力補助】CO2排出量!I10/1000 -> 0
C15: =IF(【入力補助】CO2排出量!C11="","",【入力補助】CO2排出量!C11) ->  | L15: =IFERROR(SUBSTITUTE(VLOOKUP(C15,【参照】排出量係数!$C$2:$E$2000,2,FALSE),"※",""),"") ->  | R15: =IFERROR(SUBSTITUTE(VLOOKUP(C15,【参照】排出量係数!$C$2:$E$2000,3,FALSE),"※",""),"") ->  | X15: =【入力補助】CO2排出量!H11/1000 -> 0 | AD15: =【入力補助】CO2排出量!I11/1000 -> 0 | AH15: =IFERROR(L15*AD15*1000,"") -> 
C16: =IF(【入力補助】CO2排出量!C12="","",【入力補助】CO2排出量!C12) ->  | L16: =IFERROR(SUBSTITUTE(VLOOKUP(C16,【参照】排出量係数!$C$2:$E$2000,2,FALSE),"※",""),"") ->  | R16: =IFERROR(SUBSTITUTE(VLOOKUP(C16,【参照】排出量係数!$C$2:$E$2000,3,FALSE),"※",""),"") ->  | X16: =【入力補助】CO2排出量!H12/1000 -> 0 | AD16: =【入力補助】CO2排出量!I12/1000 -> 0
L17: =IFERROR(SUBSTITUTE(VLOOKUP(C17,【参照】排出量係数!$C$2:$E$2000,2,FALSE),"※",""),"") ->  | R17: =IFERROR(SUBSTITUTE(VLOOKUP(C17,【参照】排出量係数!$C$2:$E$2000,3,FALSE),"※",""),"") -> 
L18: =IFERROR(SUBSTITUTE(VLOOKUP(C18,【参照】排出量係数!$C$2:$E$2000,2,FALSE),"※",""),"") ->  | R18: =IFERROR(SUBSTITUTE(VLOOKUP(C18,【参照】排出量係数!$C$2:$E$2000,3,FALSE),"※",""),"") -> 
L19: =IFERROR(SUBSTITUTE(VLOOKUP(C19,【参照】排出量係数!$C$2:$E$2000,2,FALSE),"※",""),"") ->  | R19: =IFERROR(SUBSTITUTE(VLOOKUP(C19,【参照】排出量係数!$C$2:$E$2000,3,FALSE),"※",""),"") -> 
L20: =IFERROR(SUBSTITUTE(VLOOKUP(C20,【参照】排出量係数!$C$2:$E$2000,2,FALSE),"※",""),"") ->  | R20: =IFERROR(SUBSTITUTE(VLOOKUP(C20,【参照】排出量係数!$C$2:$E$2000,3,FALSE),"※",""),"") -> 
L21: =IFERROR(SUBSTITUTE(VLOOKUP(C21,【参照】排出量係数!$C$2:$E$2000,2,FALSE),"※",""),"") ->  | R21: =IFERROR(SUBSTITUTE(VLOOKUP(C21,【参照】排出量係数!$C$2:$E$2000,3,FALSE),"※",""),"") -> 
C22: 合計 | L22: - | R22: - | X22: =SUM(X12:AC21) -> 0 | AD22: =SUM(AD12:AG21) -> 0 | AH22: =SUM(AH12:AM21) -> 0 | AN22: =SUM(AN12:AS21) -> 0 | AT22: -
C25: 【導入後】
C26: 設備導入後、電気を購入する電気事業者メニューを選択してください。
C27: 複数ある場合は、主となる1つを選択してください。
C28: 電気事業者メニュー検索：
C29: 電気事業者メニュー | L29: 中部電力ミライズ(株) メニューA
B32: ２．都市ガスの入力欄
C33: 「利用マニュアル」を参照のうえ、都市ガスを購入している事業者ごとに、下表の水色セルに入力してください。
C35: 都市ガス会社名 | M35: 規格 | P35: 単位発熱量 | X35: CO2 排出係数 t-C/GJ | AJ35: 使用金額 千円 | AO35: 使用量 千m3 | AT35: CO2/C | AW35: CO2排出量 t-CO2
P36: 係数 | T36: 単位
T37: GJ/千m3 | X37: 0.0136 | AJ37: =【入力補助】CO2排出量!H37/1000 -> 0 | AO37: =【入力補助】CO2排出量!I37/1000 -> 0 | AT37: =44/12 -> 3.666666667 | AW37: =P37*X37*AO37*AT37 -> 0
T38: GJ/千m3 | X38: 0.0136 | AT38: =44/12 -> 3.666666667 | AW38: =P38*X38*AO38*AT38 -> 0
T39: GJ/千m3 | X39: 0.0136 | AT39: =44/12 -> 3.666666667 | AW39: =P39*X39*AO39*AT39 -> 0
C40: 合計 | M40: - | P40: - | X40: - | AJ40: =SUM(AJ37:AN39) -> 0 | AO40: =SUM(AO37:AS39) -> 0 | AW40: =SUM(AW37:BA39) -> 0
B45: ３．国内認証排出削減量及び海外認証排出削減量
C46: 「利用マニュアル」を参照のうえ、以下の（１）～（３）の水色セルに入力してください。
C47: なお、（１）～（３）の入力は任意です。CO2をオフセットするJ-クレジットやJCMクレジットといったクレジットを扱ったことがない
C48: 事業者は、下記については入力不要です。
B50: （１）調整後温室効果ガス排出量の算定に用いた国内認証排出削減量及び海外認証排出削減量の量
C51: 種別 | R51: 合計量
Y52: ｔ－CO2
Y53: ｔ－CO2
Y54: ｔ－CO2
Y55: ｔ－CO2
C56: 合計量 | R56: =SUM(R52:X55) -> 0 | Y56: ｔ－CO2
B59: （２）国内認証排出削減量に係る情報
C60: 削減量の識別
C61: クレジット特定番号等 | X61: 無効化日又は移転日 | AM61: 無効加量又は移転量
M62: ～ | AS62: ｔ－CO2
M63: ～ | AS63: ｔ－CO2
M64: ～ | AS64: ｔ－CO2
C65: 合計量 | AM65: =SUM(AM62:AR64) -> 0 | AS65: ｔ－CO2
C67: 削減量の識別
C68: クレジット特定番号等 | X68: 無効化日又は移転日 | AM68: 無効加量又は移転量
M69: ～ | AS69: ｔ－CO2
M70: ～ | AS70: ｔ－CO2
M71: ～ | AS71: ｔ－CO2
C72: 合計量 | AM72: =SUM(AM69:AR71) -> 0 | AS72: ｔ－CO2
C74: 削減量の識別
C75: クレジット特定番号等 | X75: 無効化日又は移転日 | AM75: 無効加量又は移転量
M76: ～ | AS76: ｔ－CO2
M77: ～ | AS77: ｔ－CO2
M78: ～ | AS78: ｔ－CO2
C79: 合計量 | AM79: =SUM(AM76:AR78) -> 0 | AS79: ｔ－CO2
B82: （３）海外認証排出削減量に係る情報
C83: 削減量の識別
C84: 識別番号 | X84: 無効化日 | AM84: 無効加量
AS85: ｔ－CO2
AS86: ｔ－CO2
AS87: ｔ－CO2
C88: 合計量 | AM88: =SUM(AM85:AR87) -> 0 | AS88: ｔ－CO2
B91: 引用元：エネルギー起源二酸化炭素排出量等計算ツール（経済産業省HP）

Sheet 【出力】投資によるエネルギーコスト・CO2排出量削減効果
A1: 投資によるエネルギーコスト・CO2排出量削減効果
A2: 会社全体の現在のエネルギーコスト（≒水道光熱費）や二酸化炭素排出量を見える化します。
A3: さらに、今回の投資によって削減できるエネルギーコストや二酸化炭素排出量が分かります。
B4: エネルギーコスト・CO2排出量（同規模同業種との比較）
B6: =" 業種 ※1："&【参考】データ集計!BE2&" ／ 売上規模（千円）："&【参考】データ集計!BF2 -> 業種 ※1： ／ 売上規模（千円）：
B7: ="（該当件数： "&【参考】データ集計!BR2&" 件）" -> （該当件数： 0 件）
B8: 自社コスト年間合計額（千円） | G8: 導入前 | J8: 導入後※3
G9: =【出力】CO2排出量計算表!L47 -> 0 | J9: =IFERROR(IF(【入力】導入設備!C22="",G9-VLOOKUP(VLOOKUP(【入力】導入設備!C9*1000,【参照】選択リスト!A87:B103,2),'【出力】削減量グラフ（選択設備）'!C60:H80,4,FALSE),G9-【入力】導入設備!C22),0) -> 0
B12: (参考)助成金申請者コスト平均額（千円） | G12: =IFERROR(【参考】データ集計!BS2/1000, "該当データがありません") -> 該当データがありません
B16: 自社CO2年間排出量（t-CO2） | G16: 導入前 | J16: 導入後 ※3
G17: =【出力】CO2排出量計算表!K46 -> 0 | J17: =IFERROR(IF(B29 = 0,【出力】CO2排出量計算表!K46-VLOOKUP(VLOOKUP(【入力】導入設備!C9*1000,【参照】選択リスト!A87:B103,2),'【出力】削減量グラフ（全設備）'!C60:H80,6,FALSE),【出力】CO2排出量計算表!K46-VLOOKUP(VLOOKUP(【入力】導入設備!C9*1000,【参照】選択リスト!A87:B103,2),'【出力】削減量グラフ（選択設備）'!C60:H80,6,FALSE)),0) -> 0
B20: 自社の設備導入後CO2削減量 | G20: =IFERROR(IF(B29 = 0, "約" & ROUND(VLOOKUP(VLOOKUP(【入力】導入設備!C9*1000,【参照】選択リスト!A87:B103,2),'【出力】削減量グラフ（全設備）'!C60:H80,6,FALSE),1) & "t（" & ROUND(VLOOKUP(VLOOKUP(【入力】導入設備!C9*1000,【参照】選択リスト!A87:B103,2),'【出力】削減量グラフ（全設備）'!C60:H80,6,FALSE) / G17 * 100,1) & "%）", "約" & ROUND(VLOOKUP(VLOOKUP(【入力】導入設備!C9*1000,【参照】選択リスト!A87:B103,2),'【出力】削減量グラフ（選択設備）'!C60:H80,6,FALSE),1) & "t（" & ROUND(VLOOKUP(VLOOKUP(【入力】導入設備!C9*1000,【参照】選択リスト!A87:B103,2),'【出力】削減量グラフ（選択設備）'!C60:H80,6,FALSE) / G17 * 100,1) & "%）"),"0.0") -> 0.0
B22: ="電気事業者メニュー:"&'【入力】CO2算出（電気・都市ガス）'!L29 -> 電気事業者メニュー:中部電力ミライズ(株) メニューA | G22: CO2を削減可能 | L22: =IF(B29 = 0, "※", "") -> 
B24: (参考)助成金申請者CO2平均排出量 （t-CO2）※2 | G24: =IFERROR(【参考】データ集計!BT2,"該当データがありません") -> 該当データがありません
B28: =IF(B29 = 0, "※ 選択された設備のデータがないため、全設備のデータを使用しています。", "") -> 
B29: =IFERROR(VLOOKUP(VLOOKUP(【入力】導入設備!C9*1000,【参照】選択リスト!A87:B103,2),'【出力】削減量グラフ（選択設備）'!C60:H80,6,FALSE), "") -> 
A30: （注意事項）
B31: ※1 日本標準分類（細分類）の「一般貸切旅客自動車運送業」「航空運送業」「他に分類されない運輸に附帯するサービス業」「旅行業（旅行業者代理業を除く）」
B32: 「旅行業者代理業」「他に分類されないその他の生活関連サービス業」については「サービス業，その他」に含まれます。
B33: ※2 CO2排出量について、算出には下記の一般的な係数を使用しているため参考値となります。
B34: 電気：【入力】CO2算出（電気・都市ガス）にて選択した導入後の電気事業者メニューの係数を使用
B35: LPG（㎥）：0.0142、LPG（kl）：0.0161、LNG（㎥）：0.0139、LNG（kl）：0.0135、都市ガス：0.0136（単位発熱量係数：45）、灯油：0.0185、A重油：0.0189
B36: ※3 「自社コスト年間合計額（導入後）」「自社CO2年間排出量（導入後）」の値は、他社のデータや入力いただいた水道光熱費のデータなどを基に算出しています。
B37: 各項目の値の算出の考え方は下記の通りです。
B38: 自社コスト年間合計額（導入後）：（自社コスト年間合計額（導入前））ー（光熱水費削減額） ※光熱水費削減額は、シート「【入力】導入設備」より値を取得しております。
B39: 自社CO2年間排出量（導入後）：（自社CO2年間排出量（導入前））-（助成金申請者の平均CO2削減量）
B40: ※（助成金申請者の平均CO2削減量）について、選択した設備の助成金申請者データがある場合は、選択設備に絞り込んだデータの平均CO2削減量を使用しています。
B41: 選択した設備の助成金申請者データがない場合は、全設備のデータの平均CO2削減量を使用しています。

Sheet 【出力】CO2排出量計算表
B2: ４．エネルギー起源CO2排出量計算表
C3: シート「【入力補助】CO2排出量」で入力された月ごとの金額・使用量が合算されますのでご確認下さい。
B5: エネルギーの種類 | E5: 金額 | F5: 使用量 | H5: 係数 | K5: CO2排出量
H6: 単位発熱量 | I6: 排出係数 | J6: CO2/C | K6: CO2基礎 排出量 | L6: 調整後排出係数等を用いた CO2排出量 ※1
E7: 千円 | F7: 単位 | G7: 数値 | H7: GJ/単位 | I7: t-CO2/kWh | J7: ×44/12 | K7: t-CO2 | L7: t-CO2
B8: 電 気 | C8: 買電（購入電気） | E8: ='【入力】CO2算出（電気・都市ガス）'!X22 -> 0 | F8: 千kWh | G8: ='【入力】CO2算出（電気・都市ガス）'!AD22 -> 0 | H8: 「１．電気の入力欄」参照 | K8: ='【入力】CO2算出（電気・都市ガス）'!AH22 -> 0 | L8: ='【入力】CO2算出（電気・都市ガス）'!AN22 -> 0
C9: 電気合計 | E9: =SUM(E8) -> 0 | K9: =SUM(K8) -> 0 | L9: =SUM(L8) -> 0
H10: GJ/単位 | I10: t-C/GJ | J10: ×44/12
B11: 燃料 | C11: 原油 | E11: =【入力補助】CO2排出量!H14/1000 -> 0 | F11: kL | G11: =【入力補助】CO2排出量!I14/1000 -> 0 | H11: 38.2 | I11: 0.0187 | J11: =44/12 -> 3.666666667 | K11: =$G11*$H11*$I11*$J11 -> 0 | L11: =$G11*$H11*$I11*$J11 -> 0
C12: コンデンセート | E12: =【入力補助】CO2排出量!H15/1000 -> 0 | F12: kL | G12: =【入力補助】CO2排出量!I15/1000 -> 0 | H12: 35.3 | I12: 0.0184 | J12: =44/12 -> 3.666666667 | K12: =$G12*$H12*$I12*$J12 -> 0 | L12: =$G12*$H12*$I12*$J12 -> 0
C13: 揮発油（ガソリン） | E13: =【入力補助】CO2排出量!H16/1000 -> 0 | F13: kL | G13: =【入力補助】CO2排出量!I16/1000 -> 0 | H13: 34.6 | I13: 0.0183 | J13: 3.666666667 | K13: =$G13*$H13*$I13*$J13 -> 0 | L13: 0
C14: ナフサ | E14: =【入力補助】CO2排出量!H17/1000 -> 0 | F14: kL | G14: =【入力補助】CO2排出量!I17/1000 -> 0 | H14: 33.6 | I14: 0.0182 | J14: 3.666666667 | K14: 0 | L14: 0
C15: ジェット燃料油 | E15: =【入力補助】CO2排出量!H18/1000 -> 0 | F15: kL | G15: =【入力補助】CO2排出量!I18/1000 -> 0 | H15: 36.7 | I15: 0.0183 | J15: 3.666666667 | K15: 0 | L15: 0
C16: 灯油 | E16: =【入力補助】CO2排出量!H19/1000 -> 0 | F16: kL | G16: =【入力補助】CO2排出量!I19/1000 -> 0 | H16: 36.7 | I16: 0.0185 | J16: 3.666666667 | K16: 0 | L16: 0
C17: 軽油 | E17: =【入力補助】CO2排出量!H20/1000 -> 0 | F17: kL | G17: =【入力補助】CO2排出量!I20/1000 -> 0 | H17: 37.7 | I17: 0.0187 | J17: 3.666666667 | K17: 0 | L17: 0
C18: Ａ重油 | E18: =【入力補助】CO2排出量!H21/1000 -> 0 | F18: kL | G18: =【入力補助】CO2排出量!I21/1000 -> 0 | H18: 39.1 | I18: 0.0189 | J18: 3.666666667 | K18: =$G18*$H18*$I18*$J18 -> 0 | L18: 0
C19: Ｂ・Ｃ重油 | E19: =【入力補助】CO2排出量!H22/1000 -> 0 | F19: kL | G19: =【入力補助】CO2排出量!I22/1000 -> 0 | H19: 41.9 | I19: 0.0195 | J19: 3.666666667 | K19: =$G19*$H19*$I19*$J19 -> 0 | L19: 0
C20: 石油アスファルト | E20: =【入力補助】CO2排出量!H23/1000 -> 0 | F20: ｔ | G20: =【入力補助】CO2排出量!I23/1000 -> 0 | H20: 40.9 | I20: 0.0208 | J20: 3.666666667 | K20: 0 | L20: 0
C21: 石油コークス | E21: =【入力補助】CO2排出量!H24/1000 -> 0 | F21: ｔ | G21: =【入力補助】CO2排出量!I24/1000 -> 0 | H21: 29.9 | I21: 0.0254 | J21: 3.666666667 | K21: 0 | L21: 0
C22: 石油ガス | D22: ＬＰＧ | E22: =【入力補助】CO2排出量!H25/1000 -> 0 | F22: ｔ | G22: =IF(【入力補助】CO2排出量!E25="プロパン・ブタン混合",【入力補助】CO2排出量!I25*(1/458),IF(【入力補助】CO2排出量!E25="プロパン",【入力補助】CO2排出量!I25*(1/502),IF(【入力補助】CO2排出量!E25="ブタン",【入力補助】CO2排出量!I25*(1/355),""))) -> 0 | H22: 50.8 | I22: 0.0161 | J22: 3.666666667 | K22: =$G22*$H22*$I22*$J22 -> 0 | L22: 0
D23: 石油系ガス | E23: =【入力補助】CO2排出量!H26/1000 -> 0 | F23: 千m3 | G23: =【入力補助】CO2排出量!I26/1000 -> 0 | H23: 44.9 | I23: 0.0142 | J23: 3.666666667 | K23: 0 | L23: 0
C24: 可燃性天然ガス | D24: ＬＮＧ | E24: =【入力補助】CO2排出量!H27/1000 -> 0 | F24: ｔ | G24: =【入力補助】CO2排出量!I27/1000 -> 0 | H24: 54.6 | I24: 0.0135 | J24: 3.666666667 | K24: 0 | L24: 0
D25: その他の天然ガス | E25: =【入力補助】CO2排出量!H28/1000 -> 0 | F25: 千m3 | G25: =【入力補助】CO2排出量!I28/1000 -> 0 | H25: 43.5 | I25: 0.0139 | J25: 3.666666667 | K25: 0 | L25: 0
C26: 石炭 | D26: 原料炭 | E26: =【入力補助】CO2排出量!H29/1000 -> 0 | F26: ｔ | G26: =【入力補助】CO2排出量!I29/1000 -> 0 | H26: 29 | I26: 0.0245 | J26: 3.666666667 | K26: 0 | L26: 0
D27: 一般炭 | E27: =【入力補助】CO2排出量!H30/1000 -> 0 | F27: ｔ | G27: =【入力補助】CO2排出量!I30/1000 -> 0 | H27: 25.7 | I27: 0.0247 | J27: 3.666666667 | K27: 0 | L27: 0
D28: 無煙炭 | E28: =【入力補助】CO2排出量!H31/1000 -> 0 | F28: ｔ | G28: =【入力補助】CO2排出量!I31/1000 -> 0 | H28: 26.9 | I28: 0.0255 | J28: 3.666666667 | K28: 0 | L28: 0
C29: 石炭コークス | E29: =【入力補助】CO2排出量!H32/1000 -> 0 | F29: ｔ | G29: =【入力補助】CO2排出量!I32/1000 -> 0 | H29: 29.4 | I29: 0.0294 | J29: 3.666666667 | K29: 0 | L29: 0
C30: コールタール | E30: =【入力補助】CO2排出量!H33/1000 -> 0 | F30: ｔ | G30: =【入力補助】CO2排出量!I33/1000 -> 0 | H30: 37.3 | I30: 0.0209 | J30: 3.666666667 | K30: 0 | L30: 0
C31: コークス炉ガス | E31: =【入力補助】CO2排出量!H34/1000 -> 0 | F31: 千m3 | G31: =【入力補助】CO2排出量!I34/1000 -> 0 | H31: 21.1 | I31: 0.011 | J31: 3.666666667 | K31: 0 | L31: 0
C32: 高炉ガス | E32: =【入力補助】CO2排出量!H35/1000 -> 0 | F32: 千m3 | G32: =【入力補助】CO2排出量!I35/1000 -> 0 | H32: 3.41 | I32: 0.0263 | J32: 3.666666667 | K32: 0 | L32: 0
C33: 転炉ガス | E33: =【入力補助】CO2排出量!H36/1000 -> 0 | F33: 千m3 | G33: =【入力補助】CO2排出量!I36/1000 -> 0 | H33: 8.41 | I33: 0.0384 | J33: 3.666666667 | K33: 0 | L33: 0
C34: その他の燃料 | D34: 都市ガス | E34: ='【入力】CO2算出（電気・都市ガス）'!AJ40 -> 0 | F34: 千m3 | G34: ='【入力】CO2算出（電気・都市ガス）'!AO40 -> 0 | H34: 「２．都市ガスの入力欄」参照 | K34: ='【入力】CO2算出（電気・都市ガス）'!AW40 -> 0 | L34: =K34 -> 0
D35: テナント空調推計値 | E35: =【入力補助】CO2排出量!H38/1000 -> 0 | F35: GJ | G35: =【入力補助】CO2排出量!I38/1000 -> 0 | H35: - | I35: 0.057 | J35: t-CO2/GJ | K35: =G35*I35 -> 0 | L35: =K35 -> 0
C36: 燃料合計 | E36: =SUM(E11:E35) -> 0 | K36: =SUM(K11:K35) -> 0 | L36: =SUM(L11:L35) -> 0
I37: t-CO2/GJ
B38: 熱 | C38: 産業用蒸気 | E38: =【入力補助】CO2排出量!H40/1000 -> 0 | F38: GJ | G38: =【入力補助】CO2排出量!I40/1000 -> 0 | H38: - | I38: 0.06 | J38: - | K38: =$G38*$I38 -> 0 | L38: =$G38*$I38 -> 0
C39: 産業用以外の蒸気 | E39: =【入力補助】CO2排出量!H41/1000 -> 0 | F39: GJ | G39: =【入力補助】CO2排出量!I41/1000 -> 0 | H39: - | I39: 0.057 | J39: - | K39: =$G39*$I39 -> 0 | L39: =$G39*$I39 -> 0
C40: 温水 | E40: =【入力補助】CO2排出量!H42/1000 -> 0 | F40: GJ | G40: =【入力補助】CO2排出量!I42/1000 -> 0 | H40: - | I40: 0.057 | J40: - | K40: 0 | L40: =$G40*$I40 -> 0
C41: 冷水 | E41: =【入力補助】CO2排出量!H43/1000 -> 0 | F41: GJ | G41: =【入力補助】CO2排出量!I43/1000 -> 0 | H41: - | I41: 0.057 | J41: - | K41: 0 | L41: =$G41*$I41 -> 0
C42: 熱合計 | E42: =SUM(E38:E41) -> 0 | K42: =SUM(K38:K41) -> 0 | L42: =SUM(L38:L41) -> 0
B44: 無効化した国内及び海外認証排出削減量 | K44: - | L44: =IF('【入力】CO2算出（電気・都市ガス）'!R56=0,"-",'【入力】CO2算出（電気・都市ガス）'!R56) -> -
B46: CO2排出量 tCO2 | K46: =ROUNDDOWN(K9+K36+K42,2) -> 0 | L46: =ROUNDDOWN(L9+L36+L42-SUM(L44:L44),2) -> 0
B47: エネルギーコスト 千円 | L47: =ROUNDDOWN(E9+E36+E42,0) -> 0
B49: ※1 本計算ツールにおいて「調整後排出係数等を用いたCO2排出量」とは、調整後排出係数、無効化した国内認証排出削
B50: 減量（他者へ移転した量を差し引いたもの）又は海外認証排出削減量を反映したCO2排出量をいいます。
B51: なお、本値には非エネルギー起源CO2排出量等が含まれておらず、温対法に報告する調整後排出量とは異なります
B52: のでご注意ください。
B54: 引用元：エネルギー起源二酸化炭素排出量等計算ツール（経済産業省HP）

Sheet 【出力】炭素生産性
B1: シート7.炭素生産性目標（CN投資促進税制）
B4: エネルギー利用環境負荷低減事業適応に関する炭素生産性の目標値に関する詳細
B5: （注）セルの背景がカラーで塗りつぶされたセルについて、以下の表の記入要領に従い記入してください。
B6: 必ず表１から順に記入してください。
B7: ※なお、「生産工程効率化等設備」の炭素生産性の計算（１％以上向上の要件）は、様式を用意していません。自由様式にて、計算根拠を提出ください。
B9: 表１
B10: 事業者名 | C10: =IF(【入力】企業情報!C7="", "", 【入力】企業情報!C7) -> 
B11: 目標設定の単位
B13: （表１の記入要領）
B14: １．「事業者名」は、会社名を正式名称で記入してください。
B15: ２．「目標設定の単位」は、エネルギー利用環境負荷低減事業適応に関する炭素生産性の目標 を設定する単位をプルダウンより選択してください。
B16: なお、「事業者全体」を「設備を導入する事業所で営む事業と同種の事業を営む事業所全体」と読み替えて適用する場合は、「事業者全体」を選択してください。
B18: 表２
B19: 基準年度 | C19: =IF(【入力】企業情報!E18="",0,INT(TEXT(【入力】企業情報!E18,"yyyy"))) -> 0
B20: 計画初年度
B21: 目標年度
B23: （表２の記入要領）
B24: １．「基準年度」、「計画初年度」及び「目標年度」は、西暦を算用数字で記入してください。算用数字以外は記入しないでください。
B25: ２．「基準年度」及び「目標年度」は、それぞれ事業適応の実施に関する指針（以下「実施指針」という。）に規定する「基準年度」及び「目標年度」をいいます。
B26: ３．「計画初年度」と「目標年度」が同じ場合は、それぞれに同じ数字を記入してください。
B28: 表３ | C28: =IF(C11="事業所","事業所名：",IF(C11="事業者全体","事業者全体","事業者全体 又は 事業所")) -> 事業者全体 又は 事業所 | E28: =IF(AND(C28="事業所名：",D28=""),"左のセルに事業所の名称を記入してください。","") -> 
B29: 年度 | C29: 基準年度 | D29: =IF(OR(C20="",C21=""),"",IF($C$20-$C$21=0,"目標年度","計画初年度")) ->  | E29: =IF(OR(C20="",C21=""),"",IF($C$21-C20=1,"目標年度",IF(C21-C20=2,"計画２年度","ー"))) ->  | F29: =IF(OR(C20="",C21=""),"",IF($C$21-C20=1,"ー",IF(C21-C20=2,"目標年度","ー"))) -> 
C30: =C19 -> 0 | D30: =C20 -> 0 | E30: =IF($E$29="計画２年度",$C$21-1,IF($E$29="目標年度",$C$21,"ー")) -> ー | F30: =IF($F$29="ー","ー",IF($F$29="目標年度",$C$21,"ー")) -> ー
B31: 炭素生産性の計算単位 | D31: =IF(AND($C$11="事業所",$C$31="事業所"),"事業所",IF(AND($C$11="事業所",$C$31="事業者全体"),"事業所",IF(AND($C$11="事業者全体",$C$31="事業者全体"),"事業者全体",IF(AND($C$11="事業者全体",$C$31="事業所"),"基準年度の単位が正しいか確認してください。","")))) ->  | E31: =IF(AND($C$11="事業所",$C$31="事業所"),"事業所",IF(AND($C$11="事業所",$C$31="事業者全体"),"事業所",IF(AND($C$11="事業者全体",$C$31="事業者全体"),"事業者全体",IF(AND($C$11="事業者全体",$C$31="事業所"),"基準年度の単位が正しいか確認してください。","")))) ->  | F31: =IF(AND($C$11="事業所",$C$31="事業所"),"事業所",IF(AND($C$11="事業所",$C$31="事業者全体"),"事業所",IF(AND($C$11="事業者全体",$C$31="事業者全体"),"事業者全体",IF(AND($C$11="事業者全体",$C$31="事業所"),"基準年度の単位が正しいか確認してください。","")))) -> 
B32: 付加価値額 | C32: =SUM(C33:C35) -> 0 | D32: =SUM(D33:D35) -> 0 | E32: =SUM(E33:E35) -> 0 | F32: =SUM(F33:F35) -> 0
B33: （営業利益） | C33: =【入力】企業情報!E26 -> 0
B34: （人件費） | C34: =【入力】企業情報!E25 -> 0
B35: （減価償却額） | C35: =【入力】企業情報!E29 -> 0
B36: エネルギー起源二酸化炭素排出量 | C36: =【出力】CO2排出量計算表!K46 -> 0
B37: 炭素生産性 | C37: =C32/C36 ->  | D37: =D32/D36 ->  | E37: =E32/E36 ->  | F37: =F32/F36 -> 
B38: 炭素生産性向上割合 | C38: － | D38: =(D37-$C$37)/$C$37 ->  | E38: =(E37-$C$37)/$C$37 ->  | F38: =(F37-$C$37)/$C$37 -> 
B39: （金額単位：千円、エネ起源CO2排出量単位：t/CO2）
B41: （表３の記入要領）
B42: １．表１の「目標設定の単位」が「事業所」の場合は、「事業所名」の欄に事業所の名称を記入してください。
B43: ２．「基準年度」の「炭素生産性の計算単位」をプルダウンより選択してください。
B44: なお、「事業者全体」を「設備を導入する事業所で営む事業と同種の事業を営む事業所全体」と読み替えて適用する場合は、「事業者全体」を選択してください。
B45: ３．「営業利益」、「人件費」及び「減価償却費」は、千円単位で記入してください。
B46: 実施指針の規定に従い、営業利益以外を用いる場合もこの欄に記入してください。
B47: ４．「エネルギー起源二酸化炭素排出量」は、t/CO2単位で記入してください。算出方法は、生産工程効率化等設備に関する命令（以下「設備命令」という。）の規定に従います。
B48: 設備命令の規定に従い、調整後排出係数等を反映した二酸化炭素排出量を用いる場合もこの欄に記入してください。
B49: なお、上記の排出量は、エネルギー起源二酸化炭素排出量等計算ツール（以下「計算ツール」という。）を用いて算出することも可能です。
B50: （参考）計算ツールは以下に掲載しています。
B52: ５．本添付資料に加えて、「付加価値額」及び「エネルギー起源二酸化炭素排出量」の算出の考え方が分かる資料を申請の際に提出してください。様式は自由です。
B53: ６．基準年度については各種入力シートの情報を基に表示しております。それ以降の欄を入力してください。
B55: 表４
B56: 炭素生産性の目標値 | C56: =IF(D29="目標年度",D38,IF(E29="目標年度",E38,IF(F29="目標年度",F38,""))) -> 
B59: 備考欄
B67: （注）表１から表３の記入内容について、補足説明がある場合は、別紙を作成するか、別紙を作成し提出してください。
B69: 引用元：事業適用計画の認定申請書（経済産業省HP）

Sheet 【入力】企業情報
A1: 黄色の欄は必ずご入力ください。（正しく出力されません。）水色の欄の入力は任意です。水色の欄を入力すると経営革新計画が作成できます。
A3: このシートでは、企業情報・財務情報を入力します。入力した内容は、他のシートにて使用されます。
A4: 入力内容については、このシートの（表１）入力項目に関する補足事項やマニュアルをご確認ください。
A6: ●基本情報 | C6: ※金額の単位は千円 | J6: （表１）入力項目に関する補足事項
A7: 会社名 | F7: 例）株式会社〇〇 | J7: 項番 | K7: 項目名 | M7: 説明
A8: 所在地 | F8: 例）長野県〇〇市1-1-1 | J8: 1 | K8: 資本金 | M8: 個人事業主の場合は、資本金は「0」と入力して下さい。
A9: 代表者名 | F9: 例）〇〇 〇〇 | J9: 2 | K9: 事業規模 | M9: 赤枠の項目が未入力の場合、事業規模が判定できないため、必ず入力して下さい。
A10: ローカルベンチマーク23業種_大分類 | M10: 事業規模は、中小企業基本法の中小企業者の定義(表2）に基づき判定しております。
A11: ローカルベンチマーク23業種_小分類 | M11: 尚、中小企業以外の「中堅企業等」は、「中規模企業」として事業規模判定をしております。
A12: 資本金 ※１ | J12: 3 | K12: 従業員数 | M12: 従業員（正社員）には、パート及び派遣及び契約社員は含まれません。
A13: 事業規模 ※２ | C13: =IF(OR(C10="",C11=""),"業種欄が未入力のため規模判定ができません",IF(LEFT(C10,2)<>LEFT(C11,2),"業種欄に間違いがあるため規模判定ができません",IF(E19="","従業員数欄が未入力のため規模判定ができません",IF(C12="","資本金欄が未入力のため規模判定ができません",【参照】企業規模!C2)))) -> 業種欄が未入力のため規模判定ができません | M13: 従業員兼役員は含まれます。
M14: 役員のみの企業で上記定義によると0名となる場合については、1名として下さい。
A15: ●財務分析用入力情報 | C15: ※金額の単位は千円、従業員数の単位は人 | J15: 4 | K15: 給与支給総額 | M15: 給与支給総額は、給料や賃金及び賞与のほか、給与所得とされる手当（残業手当、扶養手当、住宅手当等）を含みます。
A16: 項目 | C16: 入力欄 | M16: ただし、給与所得とされない手当（退職金等）及び福利厚生費（法定福利費含む）は含みません。
C17: 前々期決算期 | D17: 前期決算期 | E17: 最新決算期 | J17: 5 | K17: 人件費 | M17: 人件費は、給与・賞与・退職金・福利厚生費・派遣労働者費・アルバイトの賃金・退職給与引当金等を含みます。
A18: 決算年月 | F18: 例）yyyy/m/d（yyyy年m月へ変換されます） | J18: 6 | K18: 普通償却額 | M18: 設備リースやレンタル料を損失金で計上している場合は、普通償却額へ含めて記入してください。
A19: 従業員数 ※３ | J19: 7 | K19: 減価償却費 | M19: 製造原価、一般管理販売費等に計上されている減価償却費の合計を入力してください。
A20: 売上高 | J20: 8 | K20: 受取手形 | M20: 受取手形には、割引手形を含めた金額を入力して下さい。
A21: 前期売上高 | D21: =C20 -> 0 | E21: =D20 -> 0 | J21: 9 | K21: 支払手形 | M21: 支払手形には、設備支払手形は含めません。
A22: 売上原価 | J22: 10 | K22: 借入金 | M22: 借入金は、長期借入・短期借入・1年以内返済長期借入金の合計を入力して下さい。
A23: 販売費及び一般管理費 | M23: 役員借入金の科目を別途設けている場合にはその金額を借入金に含める必要はありません。
A24: 給与支給総額 ※４ | M24: なお、基準値の計算上、役員借入金のうち、長期借入・短期借入・1年以内返済長期借入金に計上されていないものは含まれていません。
A25: 人件費 ※５
A26: 営業利益
A27: 普通償却額 ※６ | J27: (表2）
A28: 特別償却額 | J28: 業種 | L28: 本財務分析シートの業種区分 | O28: 中小企業基本法 中小企業定義
A29: 減価償却費 ※７ | J29: 製造業 | L29: 農業、建設業、製造業、不動産業、 | O29: 資本金の額又は出資の総額が3億円以下の会社 又は 常時使用する従業員の数が300人以下の会社及び個人
A30: 経常利益 | J30: その他 | L30: 運輸業、エネルギー、その他 | P30: 内、従業員20人以下の企業を「小規模企業」とする。
A31: 現金・預金 | J31: 卸売業 | L31: 卸売業 | O31: 資本金の額又は出資の総額が1億円以下の会社 又は 常時使用する従業員の数が100人以下の会社及び個人
A32: 受取手形 ※８ | P32: 内、従業員5人以下の企業を「小規模企業」とする。
A33: 売掛金 | J33: 小売業 | L33: 小売業、飲食業 | O33: 資本金の額又は出資の総額が5千万円以下の会社 又は 常時使用する従業員の数が50人以下の会社及び個人
A34: 棚卸資産 | P34: 内、従業員5人以下の企業を「小規模企業」とする。
A35: 支払手形 ※９ | J35: サービス業 | L35: サービス業、医療業、保健衛生、 | O35: 資本金の額又は出資の総額が5千万円以下の会社 又は 常時使用する従業員の数が100人以下の会社及び個人
A36: 買掛金 | L36: 廃棄物処理業、観光業 | P36: 内、従業員5人以下の企業を「小規模企業」とする。
A37: 借入金 ※１０
A38: 負債合計
A39: 純資産合計

Sheet 【出力】財務分析
B1: 【入力】企業情報の入力内容を基に各指標を算出しております。
B3: ■基本入力情報 | D3: ※金額の単位は千円、従業員数の単位は人 | H3: ■算出結果
B4: 項目 | D4: 入力欄 | K4: =D26 ->  | M4: =E26 ->  | O4: =F26 -> 
B5: 商号 | D5: =IF(【入力】企業情報!C7="", "", 【入力】企業情報!C7) ->  | H5: 指標 | K5: 算出結果 | L5: 点数 | M5: 算出結果 | N5: 点数 | O5: 算出結果 | P5: 点数
B6: 所在地 | D6: =IF(【入力】企業情報!C8="", "", 【入力】企業情報!C8) ->  | H6: ①売上増加率 | K6: =IFERROR(IF(OR(D27="",D28=""),"-",(D27/D28)-1),"-") -> - | L6: =IFERROR(IF(OR(K6="-",$J$16="-"),".",IF((K6>=$M$16),5,IF(AND(K6>=$L$16,K6<$M$16),4,IF(AND(K6>=$K$16,K6<$L$16),3,IF(AND(K6>=$J$16,K6<$K$16),2,IF((K6<$J$16),1)))))),".") -> . | M6: =IFERROR(IF(OR(E27="",E28=""),"-",(E27/E28)-1),"-") -> - | N6: =IFERROR(IF(OR($J$16="-",M6="-"),".",IF((M6>=$M$16),5,IF(AND(M6>=$L$16,M6<$M$16),4,IF(AND(M6>=$K$16,M6<$L$16),3,IF(AND(M6>=$J$16,M6<$K$16),2,IF((M6<$J$16),1)))))),".") -> . | O6: =IFERROR(IF(OR(F27="",F28=""),"-",(F27/F28)-1),"-") -> - | P6: =IFERROR(IF(OR($J$16="-",O6="-"),".",IF((O6>=$M$16),5,IF(AND(O6>=$L$16,O6<$M$16),4,IF(AND(O6>=$K$16,O6<$L$16),3,IF(AND(O6>=$J$16,O6<$K$16),2,IF((O6<$J$16),1)))))),".") -> .
B7: 代表者名 | D7: =IF(【入力】企業情報!C9="", "", 【入力】企業情報!C9) ->  | H7: ②営業利益率 | K7: =IFERROR(IF(OR(D29="",D27=""),"-",D29/D27),"-") -> - | L7: =IFERROR(IF(OR($J$17="-",K7="-"),".",IF((K7>=$M$17),5,IF(AND(K7>=$L$17,K7<$M$17),4,IF(AND(K7>=$K$17,K7<$L$17),3,IF(AND(K7>=$J$17,K7<$K$17),2,IF((K7<$J$17),1)))))),".") -> . | M7: =IFERROR(IF(OR(E29="",E27=""),"-",E29/E27),"-") -> - | N7: =IFERROR(IF(OR($J$17="-",M7="-"),".",IF((M7>=$M$17),5,IF(AND(M7>=$L$17,M7<$M$17),4,IF(AND(M7>=$K$17,M7<$L$17),3,IF(AND(M7>=$J$17,M7<$K$17),2,IF((M7<$J$17),1)))))),".") -> . | O7: =IFERROR(IF(OR(F29="",F27=""),"-",F29/F27),"-") -> - | P7: =IFERROR(IF(OR($J$17="-",O7="-"),".",IF((O7>=$M$17),5,IF(AND(O7>=$L$17,O7<$M$17),4,IF(AND(O7>=$K$17,O7<$L$17),3,IF(AND(O7>=$J$17,O7<$K$17),2,IF((O7<$J$17),1)))))),".") -> .
B8: 業種確認ボタン | H8: ③労働生産性 ※8 | K8: =IFERROR(IF(OR(D29="",D12=""),"-",D29/D12),"-") -> - | L8: =IFERROR(IF(OR($J$18="-",K8="-"),".",IF((K8>=$M$18),5,IF(AND(K8>=$L$18,K8<$M$18),4,IF(AND(K8>=$K$18,K8<$L$18),3,IF(AND(K8>=$J$18,K8<$K$18),2,IF((K8<$J$18),1)))))),".") -> . | M8: =IFERROR(IF(OR(E29="",E12=""),"-",E29/E12),"-") -> - | N8: =IFERROR(IF(OR($J$18="-",M8="-"),".",IF((M8>=$M$18),5,IF(AND(M8>=$L$18,M8<$M$18),4,IF(AND(M8>=$K$18,M8<$L$18),3,IF(AND(M8>=$J$18,M8<$K$18),2,IF((M8<$J$18),1)))))),".") -> . | O8: =IFERROR(IF(OR(F29="",F12=""),"-",F29/F12),"-") -> - | P8: =IFERROR(IF(OR($J$18="-",O8="-"),".",IF((O8>=$M$18),5,IF(AND(O8>=$L$18,O8<$M$18),4,IF(AND(O8>=$K$18,O8<$L$18),3,IF(AND(O8>=$J$18,O8<$K$18),2,IF((O8<$J$18),1)))))),".") -> .
B9: ローカルベンチマーク23業種_大分類 | D9: =IF(【入力】企業情報!C10="", "", 【入力】企業情報!C10) ->  | H9: ④EBITDA有利子負債倍率 ※9 | K9: =IFERROR(IF(OR(D29="",D30="",D31="",D38=""),"-",(D38-D31)/(D29+D30)),"-") -> - | L9: =IFERROR(IF($J$19="-",".",IF(AND($D$38<>"",$D$31<>"",OR($D$38<$D$31,$D$38-$D$31=0)),5,IF(AND($D$29<>"",$D$30<>"",(($D$29+$D$30)<=0)),1,IF((K9<$M$19),5,IF(AND(K9>=$M$19,K9<$L$19),4,IF(AND(K9>=$L$19,K9<$K$19),3,IF(AND(K9>=$K$19,K9<$J$19),2,IF(AND(K9>=$J$19,K9<>"-"),1,IF(K9="-","."))))))))),".") -> . | M9: =IFERROR(IF(OR(E29="",E30="",E31="",E38=""),"-",(E38-E31)/(E29+E30)),"-") -> - | N9: =IFERROR(IF($J$19="-",".",IF(AND($E$38<>"",$E$31<>"",OR($E$38<$E$31,$E$38-$E$31=0)),5,IF(AND($E$29<>"",$E$30<>"",(($E$29+$E$30)<=0)),1,IF((M9<$M$19),5,IF(AND(M9>=$M$19,M9<$L$19),4,IF(AND(M9>=$L$19,M9<$K$19),3,IF(AND(M9>=$K$19,M9<$J$19),2,IF(AND(M9>=$J$19,M9<>"-"),1,IF(M9="-","."))))))))),".") -> . | O9: =IFERROR(IF(OR(F29="",F30="",F31="",F38=""),"-",(F38-F31)/(F29+F30)),"-") -> - | P9: =IFERROR(IF($J$19="-",".",IF(AND($F$38<>"",$F$31<>"",OR($F$38<$F$31,$F$38-$F$31=0)),5,IF(AND($F$29<>"",$F$30<>"",(($F$29+$F$30)<=0)),1,IF((O9<$M$19),5,IF(AND(O9>=$M$19,O9<$L$19),4,IF(AND(O9>=$L$19,O9<$K$19),3,IF(AND(O9>=$K$19,O9<$J$19),2,IF(AND(O9>=$J$19,O9<>"-"),1,IF(O9="-","."))))))))),".") -> .
B10: ローカルベンチマーク23業種_小分類 | D10: =IF(【入力】企業情報!C11="", "", 【入力】企業情報!C11) ->  | H10: ⑤営業運転資本回転期間 | K10: =IFERROR(IF(OR(D27="",AND(D33="",D32="",D34="",D37="",D36)),"-",(D33+D32+D34-(D37+D36))/(D27/12)),"-") -> - | L10: =IFERROR(IF(OR($J$20="-",K10="-"),".",IF((K10<$M$20),5,IF(AND(K10>=$M$20,K10<$L$20),4,IF(AND(K10>=$L$20,K10<$K$20),3,IF(AND(K10>=$K$20,K10<$J$20),2,IF((K10>=$J$20),1)))))),".") -> . | M10: =IFERROR(IF(OR(E27="",AND(E33="",E32="",E34="",E37="",E36)),"-",(E33+E32+E34-(E37+E36))/(E27/12)),"-") -> - | N10: =IFERROR(IF(OR($J$20="-",M10="-"),".",IF((M10<$M$20),5,IF(AND(M10>=$M$20,M10<$L$20),4,IF(AND(M10>=$L$20,M10<$K$20),3,IF(AND(M10>=$K$20,M10<$J$20),2,IF((M10>=$J$20),1)))))),".") -> . | O10: =IFERROR(IF(OR(F27="",AND(F33="",F32="",F34="",F37="",F36)),"-",(F33+F32+F34-(F37+F36))/(F27/12)),"-") -> - | P10: =IFERROR(IF(OR($J$20="-",O10="-"),".",IF((O10<$M$20),5,IF(AND(O10>=$M$20,O10<$L$20),4,IF(AND(O10>=$L$20,O10<$K$20),3,IF(AND(O10>=$K$20,O10<$J$20),2,IF((O10>=$J$20),1)))))),".") -> .
D11: 最新決算期 | E11: 前期決算期 | F11: 前々期決算期 | H11: ⑥自己資本比率 | K11: =IFERROR(IF(OR(D39="",D35=""),"-",D39/(D39+D35)),"-") -> - | L11: =IFERROR(IF(OR($J$21="-",K11="-"),".",IF((K11>=$M$21),5,IF(AND(K11>=$L$21,K11<$M$21),4,IF(AND(K11>=$K$21,K11<$L$21),3,IF(AND(K11>=$J$21,K11<$K$21),2,IF((K11<$J$21),1)))))),".") -> . | M11: =IFERROR(IF(OR(E39="",E35=""),"-",E39/(E39+E35)),"-") -> - | N11: =IFERROR(IF(OR($J$21="-",M11="-"),".",IF((M11>=$M$21),5,IF(AND(M11>=$L$21,M11<$M$21),4,IF(AND(M11>=$K$21,M11<$L$21),3,IF(AND(M11>=$J$21,M11<$K$21),2,IF((M11<$J$21),1)))))),".") -> . | O11: =IFERROR(IF(OR(F39="",F35=""),"-",F39/(F39+F35)),"-") -> - | P11: =IFERROR(IF(OR($J$21="-",O11="-"),".",IF((O11>=$M$21),5,IF(AND(O11>=$L$21,O11<$M$21),4,IF(AND(O11>=$K$21,O11<$L$21),3,IF(AND(O11>=$J$21,O11<$K$21),2,IF((O11<$J$21),1)))))),".") -> .
B12: 従業員数（正社員）※1 | D12: =IF(【入力】企業情報!E19="","",【入力】企業情報!E19) ->  | E12: =IF(【入力】企業情報!D19="","",【入力】企業情報!D19) ->  | F12: =IF(【入力】企業情報!C19="","",【入力】企業情報!C19) -> 
B13: 資本金 ※2 | D13: =IF(【入力】企業情報!C12="","",【入力】企業情報!C12) -> 
H14: ="■"&D20&"_"&D10&"_企業のランク基準" -> ■業種欄が未入力のため規模判定ができません__企業のランク基準
H15: 指標 | J15: ⅳ | K15: ⅲ | L15: ⅱ | M15: ⅰ
H16: ①売上増加率 | J16: =IFERROR(INDEX(【参照】売上増加率基準値!$G:$G,MATCH($D$10&$D$20,INDEX(【参照】売上増加率基準値!$C:$C&【参照】売上増加率基準値!$D:$D,),0)),"-") -> - | K16: =IFERROR(INDEX(【参照】売上増加率基準値!$H:$H,MATCH($D$10&$D$20,INDEX(【参照】売上増加率基準値!$C:$C&【参照】売上増加率基準値!$D:$D,),0)),"-") -> - | L16: =IFERROR(INDEX(【参照】売上増加率基準値!$I:$I,MATCH($D$10&$D$20,INDEX(【参照】売上増加率基準値!$C:$C&【参照】売上増加率基準値!$D:$D,),0)),"-") -> - | M16: =IFERROR(INDEX(【参照】売上増加率基準値!$J:$J,MATCH($D$10&$D$20,INDEX(【参照】売上増加率基準値!$C:$C&【参照】売上増加率基準値!$D:$D,),0)),"-") -> -
B17: ※プルダウンメニューが利用できない場合は「業種シート」から 該当する日本標準分類を | H17: ②営業利益率 | J17: =IFERROR(INDEX(【参照】営業利益率基準値!$G:$G,MATCH($D$10&$D$20,INDEX(【参照】営業利益率基準値!$C:$C&【参照】営業利益率基準値!$D:$D,),0)),"-") -> - | K17: =IFERROR(INDEX(【参照】営業利益率基準値!$H:$H,MATCH($D$10&$D$20,INDEX(【参照】営業利益率基準値!$C:$C&【参照】営業利益率基準値!$D:$D,),0)),"-") -> - | L17: =IFERROR(INDEX(【参照】営業利益率基準値!$I:$I,MATCH($D$10&$D$20,INDEX(【参照】営業利益率基準値!$C:$C&【参照】営業利益率基準値!$D:$D,),0)),"-") -> - | M17: =IFERROR(INDEX(【参照】営業利益率基準値!$J:$J,MATCH($D$10&$D$20,INDEX(【参照】営業利益率基準値!$C:$C&【参照】営業利益率基準値!$D:$D,),0)),"-") -> -
B18: コピー＆ペーストして下さい。 | H18: ③労働生産性 | J18: =IFERROR(INDEX(【参照】労働生産性基準値!$G:$G,MATCH($D$10&$D$20,INDEX(【参照】労働生産性基準値!$C:$C&【参照】労働生産性基準値!$D:$D,),0)),"-") -> - | K18: =IFERROR(INDEX(【参照】労働生産性基準値!$H:$H,MATCH($D$10&$D$20,INDEX(【参照】労働生産性基準値!$C:$C&【参照】労働生産性基準値!$D:$D,),0)),"-") -> - | L18: =IFERROR(INDEX(【参照】労働生産性基準値!$I:$I,MATCH($D$10&$D$20,INDEX(【参照】労働生産性基準値!$C:$C&【参照】労働生産性基準値!$D:$D,),0)),"-") -> - | M18: =IFERROR(INDEX(【参照】労働生産性基準値!$J:$J,MATCH($D$10&$D$20,INDEX(【参照】労働生産性基準値!$C:$C&【参照】労働生産性基準値!$D:$D,),0)),"-") -> -
H19: ④EBITDA有利子負債倍率 | J19: =IFERROR(INDEX(【参照】EBITDA基準値!$G:$G,MATCH($D$10&$D$20,INDEX(【参照】EBITDA基準値!$C:$C&【参照】EBITDA基準値!$D:$D,),0)),"-") -> - | K19: =IFERROR(INDEX(【参照】EBITDA基準値!$H:$H,MATCH($D$10&$D$20,INDEX(【参照】EBITDA基準値!$C:$C&【参照】EBITDA基準値!$D:$D,),0)),"-") -> - | L19: =IFERROR(INDEX(【参照】EBITDA基準値!$I:$I,MATCH($D$10&$D$20,INDEX(【参照】EBITDA基準値!$C:$C&【参照】EBITDA基準値!$D:$D,),0)),"-") -> - | M19: =IFERROR(INDEX(【参照】EBITDA基準値!$J:$J,MATCH($D$10&$D$20,INDEX(【参照】EBITDA基準値!$C:$C&【参照】EBITDA基準値!$D:$D,),0)),"-") -> -
B20: 事業規模 ※3 | D20: =IF(OR(D9="",D10=""),"業種欄が未入力のため規模判定ができません",IF(LEFT(D9,2)<>LEFT(D10,2),"業種欄に間違いがあるため規模判定ができません",IF(D12="","従業員数欄が未入力のため規模判定ができません",IF(D13="","資本金欄が未入力のため規模判定ができません",【参照】企業規模!C2)))) -> 業種欄が未入力のため規模判定ができません | H20: ⑤営業運転資本回転期間 | J20: =IFERROR(INDEX(【参照】営業運転資本回転期間基準値!$G:$G,MATCH($D$10&$D$20,INDEX(【参照】営業運転資本回転期間基準値!$C:$C&【参照】営業運転資本回転期間基準値!$D:$D,),0)),"-") -> - | K20: =IFERROR(INDEX(【参照】営業運転資本回転期間基準値!$H:$H,MATCH($D$10&$D$20,INDEX(【参照】営業運転資本回転期間基準値!$C:$C&【参照】営業運転資本回転期間基準値!$D:$D,),0)),"-") -> - | L20: =IFERROR(INDEX(【参照】営業運転資本回転期間基準値!$I:$I,MATCH($D$10&$D$20,INDEX(【参照】営業運転資本回転期間基準値!$C:$C&【参照】営業運転資本回転期間基準値!$D:$D,),0)),"-") -> - | M20: =IFERROR(INDEX(【参照】営業運転資本回転期間基準値!$J:$J,MATCH($D$10&$D$20,INDEX(【参照】営業運転資本回転期間基準値!$C:$C&【参照】営業運転資本回転期間基準値!$D:$D,),0)),"-") -> -
B21: ※上表の 欄が空欄になると事業規模が判定できないため、必ず入力して下さい。 | H21: ⑥自己資本比率 | J21: =IFERROR(INDEX(【参照】自己資本比率基準値!$G:$G,MATCH($D$10&$D$20,INDEX(【参照】自己資本比率基準値!$C:$C&【参照】自己資本比率基準値!$D:$D,),0)),"-") -> - | K21: =IFERROR(INDEX(【参照】自己資本比率基準値!$H:$H,MATCH($D$10&$D$20,INDEX(【参照】自己資本比率基準値!$C:$C&【参照】自己資本比率基準値!$D:$D,),0)),"-") -> - | L21: =IFERROR(INDEX(【参照】自己資本比率基準値!$I:$I,MATCH($D$10&$D$20,INDEX(【参照】自己資本比率基準値!$C:$C&【参照】自己資本比率基準値!$D:$D,),0)),"-") -> - | M21: =IFERROR(INDEX(【参照】自己資本比率基準値!$J:$J,MATCH($D$10&$D$20,INDEX(【参照】自己資本比率基準値!$C:$C&【参照】自己資本比率基準値!$D:$D,),0)),"-") -> -
B23: ■財務分析用入力情報 | D23: ※金額の単位は千円 | H23: ■算出指標
B24: 項目 | D24: 入力欄 | H24: 指標 | K24: 分類 | L24: 単位 | M24: 算出式
D25: 最新決算期 | E25: 前期決算期 | F25: 前々期決算期 | H25: ①売上増加率 | K25: 売上持続性 | L25: ％ | M25: （最新期売上高/前期売上高）－１
B26: 決算年月 | D26: =IF(【入力】企業情報!E18="","",【入力】企業情報!E18) ->  | E26: =IF(【入力】企業情報!D18="","",【入力】企業情報!D18) ->  | F26: =IF(【入力】企業情報!C18="","",【入力】企業情報!C18) ->  | H26: ②営業利益率 | K26: 収益性 | L26: ％ | M26: 営業利益／最新期売上高
B27: 売上高 | D27: =IF(【入力】企業情報!E20="","",【入力】企業情報!E20) ->  | E27: =IF(【入力】企業情報!D20="","",【入力】企業情報!D20) ->  | F27: =IF(【入力】企業情報!C20="","",【入力】企業情報!C20) ->  | H27: ③労働生産性 ※8 | K27: 生産性 | L27: 千円 | M27: 営業利益／従業員数
B28: 前期売上高 | D28: =E27 ->  | E28: =F27 ->  | F28: =IF(【入力】企業情報!C21="","",【入力】企業情報!C21) ->  | H28: ④EBITDA有利子負債倍率 ※9 | K28: 健全性 | L28: 倍 | M28: （借入金－現金・預金）／（営業利益＋減価償却費） ※9
B29: 営業利益 | D29: =IF(【入力】企業情報!E26="","",【入力】企業情報!E26) ->  | E29: =IF(【入力】企業情報!D26="","",【入力】企業情報!D26) ->  | F29: =IF(【入力】企業情報!C26="","",【入力】企業情報!C26) ->  | H29: ⑤営業運転資本回転期間 | K29: 効率性 | L29: ヶ月 | M29: {売上債権（売掛金＋受取手形）＋棚卸資産－
B30: 減価償却費 ※4 | D30: =IF(【入力】企業情報!E29="","",【入力】企業情報!E29) ->  | E30: =IF(【入力】企業情報!D29="","",【入力】企業情報!D29) ->  | F30: =IF(【入力】企業情報!C29="","",【入力】企業情報!C29) ->  | M30: 買入債務（買掛金＋支払手形）}／（売上高／１２）
B31: 現金・預金 | D31: =IF(【入力】企業情報!E31="","",【入力】企業情報!E31) ->  | E31: =IF(【入力】企業情報!D31="","",【入力】企業情報!D31) ->  | F31: =IF(【入力】企業情報!C31="","",【入力】企業情報!C31) ->  | H31: ⑥自己資本比率 | K31: 安全性 | L31: ％ | M31: 純資産／負債・純資産合計
B32: 受取手形 ※5 | D32: =IF(【入力】企業情報!E32="","",【入力】企業情報!E32) ->  | E32: =IF(【入力】企業情報!D32="","",【入力】企業情報!D32) ->  | F32: =IF(【入力】企業情報!C32="","",【入力】企業情報!C32) -> 
B33: 売掛金 | D33: =IF(【入力】企業情報!E33="","",【入力】企業情報!E33) ->  | E33: =IF(【入力】企業情報!D33="","",【入力】企業情報!D33) ->  | F33: =IF(【入力】企業情報!C33="","",【入力】企業情報!C33) -> 
B34: 棚卸資産 | D34: =IF(【入力】企業情報!E34="","",【入力】企業情報!E34) ->  | E34: =IF(【入力】企業情報!D34="","",【入力】企業情報!D34) ->  | F34: =IF(【入力】企業情報!C34="","",【入力】企業情報!C34) -> 
B35: 負債合計 | D35: =IF(【入力】企業情報!E38="","",【入力】企業情報!E38) ->  | E35: =IF(【入力】企業情報!D38="","",【入力】企業情報!D38) ->  | F35: =IF(【入力】企業情報!C38="","",【入力】企業情報!C38) -> 
B36: 支払手形 ※6 | D36: =IF(【入力】企業情報!E35="","",【入力】企業情報!E35) ->  | E36: =IF(【入力】企業情報!D35="","",【入力】企業情報!D35) ->  | F36: =IF(【入力】企業情報!C35="","",【入力】企業情報!C35) -> 
B37: 買掛金 | D37: =IF(【入力】企業情報!E36="","",【入力】企業情報!E36) ->  | E37: =IF(【入力】企業情報!D36="","",【入力】企業情報!D36) ->  | F37: =IF(【入力】企業情報!C36="","",【入力】企業情報!C36) -> 
B38: 借入金 ※7 | D38: =IF(【入力】企業情報!E37="","",【入力】企業情報!E37) ->  | E38: =IF(【入力】企業情報!D37="","",【入力】企業情報!D37) ->  | F38: =IF(【入力】企業情報!C37="","",【入力】企業情報!C37) -> 
B39: 純資産合計 | D39: =IF(【入力】企業情報!E39="","",【入力】企業情報!E39) ->  | E39: =IF(【入力】企業情報!D39="","",【入力】企業情報!D39) ->  | F39: =IF(【入力】企業情報!C39="","",【入力】企業情報!C39) -> 
B41: ※1：従業員（正社員）には、パート及び派遣及び契約社員は含まれません。 | H41: (表1）
B42: 従業員兼役員は含まれます。 | H42: 業種 | I42: 本財務分析シートの業種区分 | K42: 中小企業基本法 中小企業定義
B43: 役員のみの企業で上記定義によると0名となる場合については、1名として下さい。 | H43: 製造業 その他 | I43: 農業、建設業、製造業、不動産業、 | K43: 資本金の額又は出資の総額が3億円以下の会社 又は 常時使用する従業員の数が300人以下の会社及び個人
B44: ※2：個人事業主の場合は、資本金は「0」と入力して下さい。 | I44: 運輸業、エネルギー、その他 | L44: 内、従業員20人以下の企業を「小規模企業」とする。
B45: ※3：事業規模は、中小企業基本法の中小企業者の定義(表1）に基づき | H45: 卸売業 | I45: 卸売業 | K45: 資本金の額又は出資の総額が1億円以下の会社 又は 常時使用する従業員の数が100人以下の会社及び個人
B46: 判定しております。 | L46: 内、従業員5人以下の企業を「小規模企業」とする。
B47: 尚、中小企業以外の「中堅企業等」は、「中規模企業」として事業規模判定をしております。 | H47: 小売業 | I47: 小売業、飲食業 | K47: 資本金の額又は出資の総額が5千万円以下の会社 又は 常時使用する従業員の数が50人以下の会社及び個人
B48: ※4：製造原価、一般管理販売費等に計上されている減価償却費の合計を | L48: 内、従業員5人以下の企業を「小規模企業」とする。
B49: 入力して下さい。 | H49: サービス業 | I49: サービス業、医療業、保健衛生、 | K49: 資本金の額又は出資の総額が5千万円以下の会社 又は 常時使用する従業員の数が100人以下の会社及び個人
B50: ※5：受取手形には、割引手形を含めた金額を入力して下さい。 | I50: 廃棄物処理業、観光業 | L50: 内、従業員5人以下の企業を「小規模企業」とする。
B51: ※6：支払手形には、設備支払手形は含めません。
B52: ※7：借入金は、長期借入・短期借入・1年以内返済長期借入金の合計を入力して下さい。役員借入金の科目を別途設けている場合にはその金額を借入金に含める必要はありません。 なお、基準値の計算上、役員借入金のうち、長期借入・短期借入・1年以内返済長期借入金に計上されていないものは含まれていません。
B53: ※8：本分析の労働生産性は簡易的に計算したものとなりますので、経営力向上計画等に記載の際は、それぞれの定義に沿った数値を各自で計算して下さい。
B54: ※9：以下の優先順位に基づき、点数を付与します。
B55: 優先①：（借入金－現金・預金）が0以下の場合は、「5点」を付与
B56: 優先②：（営業利益＋減価償却費）が0以下の場合は、「1点」を付与
B57: 優先③：（借入金－現金・預金）が0超の時及び（営業利益＋減価償却費）が0超の時、本式にて算出された結果に基づき点数を付与
B59: 引用元：ローカルベンチマーク（経済産業省HP）

Sheet 【出力】ローカルベンチマーク
C6: ■基本情報
C7: 商号 | F7: =【出力】財務分析!D5 -> 
C9: 所在地 | F9: =【出力】財務分析!D6 -> 
C10: 代表者名 | F10: =【出力】財務分析!D7 -> 
C11: 業種_大分類 | F11: =【出力】財務分析!D9 -> 
C12: 業種_小分類 | F12: =【出力】財務分析!D10 -> 
C13: 事業規模 | F13: =【出力】財務分析!D20 -> 業種欄が未入力のため規模判定ができません
C15: 売上高 | F15: =【出力】財務分析!$D$27 -> 
C16: 営業利益 | F16: =【出力】財務分析!$D$29 -> 
C17: 従業員数 | F17: =【出力】財務分析!D12 -> 
C20: ■財務指標(最新期）
C21: 指標 | F21: =【出力】財務分析!D26 -> 
F22: 算出結果 | H22: 貴社点数 | J22: 業種基準値
C23: ①売上増加率 | F23: =【出力】財務分析!K6 -> - | H23: =【出力】財務分析!L6 -> . | J23: =IFERROR(INDEX(【参照】売上増加率基準値!$E:$E,MATCH($F$12&$F$13,INDEX(【参照】売上増加率基準値!$C:$C&【参照】売上増加率基準値!$D:$D,),0)),"-") -> -
C24: ②営業利益率 | F24: =【出力】財務分析!K7 -> - | H24: =【出力】財務分析!L7 -> . | J24: =IFERROR(INDEX(【参照】営業利益率基準値!$E:$E,MATCH($F$12&$F$13,INDEX(【参照】営業利益率基準値!$C:$C&【参照】営業利益率基準値!$D:$D,),0)),"-") -> -
C25: ③労働生産性 | F25: =【出力】財務分析!K8 -> - | H25: =【出力】財務分析!L8 -> . | J25: =IFERROR(INDEX(【参照】労働生産性基準値!$E:$E,MATCH($F$12&$F$13,INDEX(【参照】労働生産性基準値!$C:$C&【参照】労働生産性基準値!$D:$D,),0)),"-") -> -
C26: ④EBITDA有利子負債倍率 | F26: =【出力】財務分析!K9 -> - | H26: =【出力】財務分析!L9 -> . | J26: =IFERROR(INDEX(【参照】EBITDA基準値!$E:$E,MATCH($F$12&$F$13,INDEX(【参照】EBITDA基準値!$C:$C&【参照】EBITDA基準値!$D:$D,),0)),"-") -> -
C27: ⑤営業運転資本回転期間 | F27: =【出力】財務分析!K10 -> - | H27: =【出力】財務分析!L10 -> . | J27: =IFERROR(INDEX(【参照】営業運転資本回転期間基準値!$E:$E,MATCH($F$12&$F$13,INDEX(【参照】営業運転資本回転期間基準値!$C:$C&【参照】営業運転資本回転期間基準値!$D:$D,),0)),"-") -> -
C28: ⑥自己資本比率 | F28: =【出力】財務分析!K11 -> - | H28: =【出力】財務分析!L11 -> . | J28: =IFERROR(INDEX(【参照】自己資本比率基準値!$E:$E,MATCH($F$12&$F$13,INDEX(【参照】自己資本比率基準値!$C:$C&【参照】自己資本比率基準値!$D:$D,),0)),"-") -> -
F30: 総合評価点 | I30: =SUM(H23:I28) -> 0 | J30: =IF(I30>=24,"A",IF(I30>=18,"B",IF(I30>=12,"C","D"))) -> D
C33: ■財務指標（過去2期）
C34: 指標 | F34: =【出力】財務分析!E26 ->  | L34: =【出力】財務分析!F26 ->  | T34: ※１各項目の評点および総合評価点は各項目の業種基準値からの乖離を示すものであり、点数の高低が必ずしも企業の評価を示すものではありません。非財務指標も含め、総合的な判断が必要なことにご留意ください。 ※２レーダーチャートで3期分の財務分析結果の推移が確認できるため、各指標が良化（あるいは悪化）した要因を非財務の対話シートを活用しながら把握することで、経営状況や課題の把握に繋がります。
F35: 算出結果 | H35: 貴社点数 | J35: 業種基準値 | L35: 算出結果 | O35: 貴社点数 | Q35: 業種基準値
C36: ①売上増加率 | F36: =【出力】財務分析!M6 -> - | H36: =【出力】財務分析!N6 -> . | J36: =IFERROR(INDEX(【参照】売上増加率基準値!$E:$E,MATCH($F$12&$F$13,INDEX(【参照】売上増加率基準値!$C:$C&【参照】売上増加率基準値!$D:$D,),0)),"-") -> - | L36: =【出力】財務分析!O6 -> - | O36: =【出力】財務分析!P6 -> . | Q36: =IFERROR(INDEX(【参照】売上増加率基準値!$E:$E,MATCH($F$12&$F$13,INDEX(【参照】売上増加率基準値!$C:$C&【参照】売上増加率基準値!$D:$D,),0)),"-") -> -
C37: ②営業利益率 | F37: =【出力】財務分析!M7 -> - | H37: =【出力】財務分析!N7 -> . | J37: =IFERROR(INDEX(【参照】営業利益率基準値!$E:$E,MATCH($F$12&$F$13,INDEX(【参照】営業利益率基準値!$C:$C&【参照】営業利益率基準値!$D:$D,),0)),"-") -> - | L37: =【出力】財務分析!O7 -> - | O37: =【出力】財務分析!P7 -> . | Q37: =IFERROR(INDEX(【参照】営業利益率基準値!$E:$E,MATCH($F$12&$F$13,INDEX(【参照】営業利益率基準値!$C:$C&【参照】営業利益率基準値!$D:$D,),0)),"-") -> -
C38: ③労働生産性 | F38: =【出力】財務分析!M8 -> - | H38: =【出力】財務分析!N8 -> . | J38: =IFERROR(INDEX(【参照】労働生産性基準値!$E:$E,MATCH($F$12&$F$13,INDEX(【参照】労働生産性基準値!$C:$C&【参照】労働生産性基準値!$D:$D,),0)),"-") -> - | L38: =【出力】財務分析!O8 -> - | O38: =【出力】財務分析!P8 -> . | Q38: =IFERROR(INDEX(【参照】労働生産性基準値!$E:$E,MATCH($F$12&$F$13,INDEX(【参照】労働生産性基準値!$C:$C&【参照】労働生産性基準値!$D:$D,),0)),"-") -> -
C39: ④EBITDA有利子負債倍率 | F39: =【出力】財務分析!M9 -> - | H39: =【出力】財務分析!N9 -> . | J39: =IFERROR(INDEX(【参照】EBITDA基準値!$E:$E,MATCH($F$12&$F$13,INDEX(【参照】EBITDA基準値!$C:$C&【参照】EBITDA基準値!$D:$D,),0)),"-") -> - | L39: =【出力】財務分析!O9 -> - | O39: =【出力】財務分析!P9 -> . | Q39: =IFERROR(INDEX(【参照】EBITDA基準値!$E:$E,MATCH($F$12&$F$13,INDEX(【参照】EBITDA基準値!$C:$C&【参照】EBITDA基準値!$D:$D,),0)),"-") -> -
C40: ⑤営業運転資本回転期間 | F40: =【出力】財務分析!M10 -> - | H40: =【出力】財務分析!N10 -> . | J40: =IFERROR(INDEX(【参照】営業運転資本回転期間基準値!$E:$E,MATCH($F$12&$F$13,INDEX(【参照】営業運転資本回転期間基準値!$C:$C&【参照】営業運転資本回転期間基準値!$D:$D,),0)),"-") -> - | L40: =【出力】財務分析!O10 -> - | O40: =【出力】財務分析!P10 -> . | Q40: =IFERROR(INDEX(【参照】営業運転資本回転期間基準値!$E:$E,MATCH($F$12&$F$13,INDEX(【参照】営業運転資本回転期間基準値!$C:$C&【参照】営業運転資本回転期間基準値!$D:$D,),0)),"-") -> -
C41: ⑥自己資本比率 | F41: =【出力】財務分析!M11 -> - | H41: =【出力】財務分析!N11 -> . | J41: =IFERROR(INDEX(【参照】自己資本比率基準値!$E:$E,MATCH($F$12&$F$13,INDEX(【参照】自己資本比率基準値!$C:$C&【参照】自己資本比率基準値!$D:$D,),0)),"-") -> - | L41: =【出力】財務分析!O11 -> - | O41: =【出力】財務分析!P11 -> . | Q41: =IFERROR(INDEX(【参照】自己資本比率基準値!$E:$E,MATCH($F$12&$F$13,INDEX(【参照】自己資本比率基準値!$C:$C&【参照】自己資本比率基準値!$D:$D,),0)),"-") -> -
F43: 総合評価点 | I43: =SUM(H36:I41) -> 0 | J43: =IF(I43>=24,"A",IF(I43>=18,"B",IF(I43>=12,"C","D"))) -> D | L43: 総合評価点 | P43: =SUM(O36:P41) -> 0 | Q43: =IF(P43>=24,"A",IF(P43>=18,"B",IF(P43>=12,"C","D"))) -> D
F45: ※総合評価点のランクはA：24点以上、B：18点以上24点未満、C：12点以上18点未満、D：12点未満
B49: 引用元：ローカルベンチマーク（経済産業省HP）

Sheet 【参考】データ集計 (hidden)
A1: 主たる業種 | B1: 主たる業種（集約） | C1: 売上高範囲 | D1: 売上高 | E1: 対象経費 | F1: 設備区分 | G1: 導入前 | H1: 導入後 | I1: 削減額 | J1: 対象経費範囲 | K1: 電気（導入前） | L1: 電気（導入後） | M1: LPG（導入前）㎥ | N1: LPG（導入後）㎥ | O1: LPG（導入前）kl | P1: LPG（導入後）kl | Q1: LNG（導入前）㎥ | R1: LNG（導入後）㎥ | S1: LNG（導入前）kl | T1: LNG（導入後）kl | U1: 都市ガス（導入前） | V1: 都市ガス（導入後） | W1: 灯油（導入前） | X1: 灯油（導入後） | Y1: A重油（導入前） | Z1: A重油（導入後） | AA1: 電気の係数 | AB1: 電気（導入前） | AC1: 電気（導入後） | AD1: LPG（導入前）㎥ | AE1: LPG（導入後）㎥ | AF1: LPG（導入前）kl | AG1: LPG（導入後）kl | AH1: LNG（導入前）㎥ | AI1: LNG（導入後）㎥ | AJ1: LNG（導入前）kl | AK1: LNG（導入後）kl | AL1: 都市ガス（導入前） | AM1: 都市ガス（導入後） | AN1: 灯油（導入前） | AO1: 灯油（導入後） | AP1: A重油（導入前） | AQ1: A重油（導入後） | AR1: 排出量（導入前） | AS1: 排出量（導入後） | AT1: 排出量削減 | AU1: 設備区分＋投資額範囲 | AV1: 設備区分 | AW1: 対象経費 | AY1: 件数 | AZ1: 削減額 | BA1: 1件あたりの削減額 | BB1: 排出量削減 | BC1: 1件あたりの排出量 | BD1: 業種略称 | BE1: 主たる業種（集約） | BF1: 売上高範囲 | BH1: 主たる業種（集約） | BI1: 売上高範囲 | BJ1: 売上高 | BK1: 対象経費 | BL1: 設備区分 | BM1: 導入前 | BN1: 導入後 | BO1: 削減額 | BP1: 対象経費範囲 | BQ1: 排出量合計 | BR1: 件数 | BS1: 1件当たりの導入後額
A2: 製造業 | B2: =IFERROR(VLOOKUP(A2,【参照】選択リスト!$N$2:$O$22,2,FALSE),"") -> 製造業 | C2: =VLOOKUP(D2,INDIRECT(BD2&"_売上高範囲"),2) -> 250,000～1,000,000 | D2: 252788409 | E2: 10250000 | F2: 生産設備 | G2: 12930339 | H2: 12333485 | I2: 596854 | J2: =VLOOKUP(E2,【参照】選択リスト!$A$87:$B$108,2) -> 10,000～11,000 | K2: 656620 | L2: 626311 | AA2: =IFERROR(SUBSTITUTE(VLOOKUP('【入力】CO2算出（電気・都市ガス）'!L29,【参照】排出量係数!$C$2:$E$2000,2,FALSE),"※",""),"") -> 0.000433 | AB2: =K2/1000*$AA$2*1000 -> 284.31646 | AC2: =L2/1000*$AA$2*1000 -> 271.192663 | AD2: =M2*(1/458)*【出力】CO2排出量計算表!$H$22*【出力】CO2排出量計算表!$I$22*【出力】CO2排出量計算表!$J$22 -> 0 | AE2: =N2*(1/458)*【出力】CO2排出量計算表!$H$22*【出力】CO2排出量計算表!$I$22*【出力】CO2排出量計算表!$J$22 -> 0 | AF2: =O2*(1/458)*【出力】CO2排出量計算表!$H$22*【出力】CO2排出量計算表!$I$22*【出力】CO2排出量計算表!$J$22 -> 0 | AG2: =P2*(1/458)*【出力】CO2排出量計算表!$H$22*【出力】CO2排出量計算表!$I$22*【出力】CO2排出量計算表!$J$22 -> 0 | AH2: =Q2/1000*【出力】CO2排出量計算表!$H$24*【出力】CO2排出量計算表!$I$24*【出力】CO2排出量計算表!$J$24 -> 0 | AI2: =R2/1000*【出力】CO2排出量計算表!$H$24*【出力】CO2排出量計算表!$I$24*【出力】CO2排出量計算表!$J$24 -> 0 | AJ2: =S2/1000*【出力】CO2排出量計算表!$H$24*【出力】CO2排出量計算表!$I$24*【出力】CO2排出量計算表!$J$24 -> 0 | AK2: =T2/1000*【出力】CO2排出量計算表!$H$24*【出力】CO2排出量計算表!$I$24*【出力】CO2排出量計算表!$J$24 -> 0 | AL2: =U2/1000*45*'【入力】CO2算出（電気・都市ガス）'!$X$37*44/12 -> 0 | AM2: =V2/1000*45*'【入力】CO2算出（電気・都市ガス）'!$X$37*44/12 -> 0 | AN2: =W2*【出力】CO2排出量計算表!$H$16*【出力】CO2排出量計算表!$I$16*【出力】CO2排出量計算表!$J$16/1000 -> 0 | AO2: =X2*【出力】CO2排出量計算表!$H$16*【出力】CO2排出量計算表!$I$16*【出力】CO2排出量計算表!$J$16/1000 -> 0 | AP2: =Y2*【出力】CO2排出量計算表!$H$18*【出力】CO2排出量計算表!$I$18*【出力】CO2排出量計算表!$J$18/1000 -> 0 | AQ2: =Z2*【出力】CO2排出量計算表!$H$18*【出力】CO2排出量計算表!$I$18*【出力】CO2排出量計算表!$J$18/1000 -> 0 | AR2: =SUM(AB2,AD2,AF2,AH2,AJ2,AL2,AN2,AP2) -> 284.31646 | AS2: =SUM(AC2,AE2,AG2,AK2,AI2,AM2,AO2,AQ2) -> 271.192663 | AT2: =AR2-AS2 -> 13.123797 | AU2: =AV2&AW2 -> 空調・換気設備1～1,000 | AV2: 空調・換気設備 | AW2: 1～1,000 | AX2: 1 ～1,000 | AY2: =COUNTIFS($F$2:$F$2000,AV2,$J$2:$J$2000,AW2) -> 146 | AZ2: =SUMIFS($I$2:$I$2000,$F$2:$F$2000,AV2,$J$2:$J$2000,AW2) -> 14490865 | BA2: =IFERROR(AZ2/AY2/1000,0) -> 99.2525 | BB2: =SUMIFS($AT$2:$AT$2000,$F$2:$F$2000,AV2,$J$2:$J$2000,AW2) -> 266.3643032 | BC2: =IFERROR(BB2/AY2,0) -> 1.824413036 | BD2: =IF(B2="サービス業，その他","サービス業",IF(B2="卸売業，小売業","卸売業",IF(B2="製造業","製造業",IF(B2="建設業","建設業",IF(B2="宿泊業，飲食サービス業","宿泊業",""))))) -> 製造業 | BE2: =IFERROR(VLOOKUP(【出力】財務分析!D9,【参照】選択リスト!J2:L28,3,FALSE),"") ->  | BF2: =IFERROR(VLOOKUP(【出力】財務分析!D27*1000,INDIRECT(BE6&"_売上高範囲"),2),"") ->  | BH2: 宿泊業，飲食サービス業 | BI2: 50,000～100,000 | BJ2: 91765787 | BK2: 8790000 | BL2: 空調・換気設備 | BM2: 9701283 | BN2: 5687690 | BO2: 4013593 | BP2: 8,000～9,000 | BQ2: =SUMIFS($AS$2:$AS$2000,$B$2:$B$2000,BE2,$C$2:$C$2000,BF2) -> 0 | BR2: =IF(OR(BE2="",BF2=""),0,COUNTA(BH:BH)-1) -> 0 | BS2: =SUM(BN2:BN2000)/BR2 ->  | BT2: =BQ2/BR2 -> 
A3: 複合サービス事業 | B3: =IFERROR(VLOOKUP(A3,【参照】選択リスト!$N$2:$O$22,2,FALSE),"") -> サービス業，その他 | C3: =VLOOKUP(D3,INDIRECT(BD3&"_売上高範囲"),2) -> 25,000～50,000 | D3: 47697141 | E3: 1470000 | F3: 照明設備 | G3: 80630 | H3: 24816 | I3: 55814 | J3: =VLOOKUP(E3,【参照】選択リスト!$A$87:$B$108,2) -> 1,000～2,000 | K3: 4857 | L3: 1495 | AB3: =K3/1000*$AA$2*1000 -> 2.103081 | AC3: =L3/1000*$AA$2*1000 -> 0.647335 | AD3: =M3*(1/458)*【出力】CO2排出量計算表!$H$22*【出力】CO2排出量計算表!$I$22*【出力】CO2排出量計算表!$J$22 -> 0 | AE3: =N3*(1/458)*【出力】CO2排出量計算表!$H$22*【出力】CO2排出量計算表!$I$22*【出力】CO2排出量計算表!$J$22 -> 0 | AF3: =O3*(1/458)*【出力】CO2排出量計算表!$H$22*【出力】CO2排出量計算表!$I$22*【出力】CO2排出量計算表!$J$22 -> 0 | AG3: =P3*(1/458)*【出力】CO2排出量計算表!$H$22*【出力】CO2排出量計算表!$I$22*【出力】CO2排出量計算表!$J$22 -> 0 | AH3: =Q3/1000*【出力】CO2排出量計算表!$H$24*【出力】CO2排出量計算表!$I$24*【出力】CO2排出量計算表!$J$24 -> 0 | AI3: =R3/1000*【出力】CO2排出量計算表!$H$24*【出力】CO2排出量計算表!$I$24*【出力】CO2排出量計算表!$J$24 -> 0 | AJ3: =S3/1000*【出力】CO2排出量計算表!$H$24*【出力】CO2排出量計算表!$I$24*【出力】CO2排出量計算表!$J$24 -> 0 | AK3: =T3/1000*【出力】CO2排出量計算表!$H$24*【出力】CO2排出量計算表!$I$24*【出力】CO2排出量計算表!$J$24 -> 0 | AL3: =U3/1000*45*'【入力】CO2算出（電気・都市ガス）'!$X$37*44/12 -> 0 | AM3: =V3/1000*45*'【入力】CO2算出（電気・都市ガス）'!$X$37*44/12 -> 0 | AN3: =W3*【出力】CO2排出量計算表!$H$16*【出力】CO2排出量計算表!$I$16*【出力】CO2排出量計算表!$J$16/1000 -> 0 | AO3: =X3*【出力】CO2排出量計算表!$H$16*【出力】CO2排出量計算表!$I$16*【出力】CO2排出量計算表!$J$16/1000 -> 0 | AP3: =Y3*【出力】CO2排出量計算表!$H$18*【出力】CO2排出量計算表!$I$18*【出力】CO2排出量計算表!$J$18/1000 -> 0 | AQ3: =Z3*【出力】CO2排出量計算表!$H$18*【出力】CO2排出量計算表!$I$18*【出力】CO2排出量計算表!$J$18/1000 -> 0 | AR3: =SUM(AB3,AD3,AF3,AH3,AJ3,AL3,AN3,AP3) -> 2.103081 | AS3: =SUM(AC3,AE3,AG3,AK3,AI3,AM3,AO3,AQ3) -> 0.647335 | AT3: =AR3-AS3 -> 1.455746 | AU3: 空調・換気設備1,000～2,000 | AV3: 空調・換気設備 | AW3: 1,000～2,000 | AX3: 1,000 ～2,000 | AY3: =COUNTIFS($F$2:$F$2000,AV3,$J$2:$J$2000,AW3) -> 196 | AZ3: =SUMIFS($I$2:$I$2000,$F$2:$F$2000,AV3,$J$2:$J$2000,AW3) -> 26351382 | BA3: =IFERROR(AZ3/AY3/1000,0) -> 134.4458265 | BB3: =SUMIFS($AT$2:$AT$2000,$F$2:$F$2000,AV3,$J$2:$J$2000,AW3) -> 485.6562416 | BC3: =IFERROR(BB3/AY3,0) -> 2.477837967 | BD3: =IF(B3="サービス業，その他","サービス業",IF(B3="卸売業，小売業","卸売業",IF(B3="製造業","製造業",IF(B3="建設業","建設業",IF(B3="宿泊業，飲食サービス業","宿泊業",""))))) -> サービス業 | BH3: 宿泊業，飲食サービス業 | BI3: 50,000～100,000 | BJ3: 61411776 | BK3: 9404700 | BL3: 建物付属設備 | BM3: 16805597 | BN3: 15395692 | BO3: 1409905 | BP3: 9,000～10,000
A4: 生活関連サービス業，娯楽業 | B4: =IFERROR(VLOOKUP(A4,【参照】選択リスト!$N$2:$O$22,2,FALSE),"") -> サービス業，その他 | C4: 100,000～250,000 | D4: 119022743 | E4: 1402000 | F4: 建物付属設備 | G4: 202949 | H4: 162359 | I4: 40590 | J4: =VLOOKUP(E4,【参照】選択リスト!$A$87:$B$108,2) -> 1,000～2,000 | W4: 1847 | X4: 1477 | AB4: 0 | AC4: 0 | AD4: =M4*(1/458)*【出力】CO2排出量計算表!$H$22*【出力】CO2排出量計算表!$I$22*【出力】CO2排出量計算表!$J$22 -> 0 | AE4: =N4*(1/458)*【出力】CO2排出量計算表!$H$22*【出力】CO2排出量計算表!$I$22*【出力】CO2排出量計算表!$J$22 -> 0 | AF4: =O4*(1/458)*【出力】CO2排出量計算表!$H$22*【出力】CO2排出量計算表!$I$22*【出力】CO2排出量計算表!$J$22 -> 0 | AG4: =P4*(1/458)*【出力】CO2排出量計算表!$H$22*【出力】CO2排出量計算表!$I$22*【出力】CO2排出量計算表!$J$22 -> 0 | AH4: =Q4/1000*【出力】CO2排出量計算表!$H$24*【出力】CO2排出量計算表!$I$24*【出力】CO2排出量計算表!$J$24 -> 0 | AI4: =R4/1000*【出力】CO2排出量計算表!$H$24*【出力】CO2排出量計算表!$I$24*【出力】CO2排出量計算表!$J$24 -> 0 | AJ4: =S4/1000*【出力】CO2排出量計算表!$H$24*【出力】CO2排出量計算表!$I$24*【出力】CO2排出量計算表!$J$24 -> 0 | AK4: =T4/1000*【出力】CO2排出量計算表!$H$24*【出力】CO2排出量計算表!$I$24*【出力】CO2排出量計算表!$J$24 -> 0 | AL4: =U4/1000*45*'【入力】CO2算出（電気・都市ガス）'!$X$37*44/12 -> 0 | AM4: =V4/1000*45*'【入力】CO2算出（電気・都市ガス）'!$X$37*44/12 -> 0 | AN4: =W4*【出力】CO2排出量計算表!$H$16*【出力】CO2排出量計算表!$I$16*【出力】CO2排出量計算表!$J$16/1000 -> 4.598075717 | AO4: =X4*【出力】CO2排出量計算表!$H$16*【出力】CO2排出量計算表!$I$16*【出力】CO2排出量計算表!$J$16/1000 -> 3.676966883 | AP4: =Y4*【出力】CO2排出量計算表!$H$18*【出力】CO2排出量計算表!$I$18*【出力】CO2排出量計算表!$J$18/1000 -> 0 | AQ4: =Z4*【出力】CO2排出量計算表!$H$18*【出力】CO2排出量計算表!$I$18*【出力】CO2排出量計算表!$J$18/1000 -> 0 | AR4: 4.598075717 | AS4: 3.676966883 | AT4: 0.9211088333 | AU4: 空調・換気設備2,000～3,000 | AV4: 空調・換気設備 | AW4: 2,000～3,000 | AX4: 2,000 ～3,000 | AY4: 46 | AZ4: 11255982 | BA4: 244.6952609 | BB4: 219.8016108 | BC4: 4.778295888 | BD4: サービス業 | BH4: 宿泊業，飲食サービス業 | BI4: 50,000～100,000 | BJ4: 87215194 | BK4: 855000 | BL4: 空調・換気設備 | BM4: 151252 | BN4: 134378 | BO4: 16874 | BP4: 1～1,000 | BQ4: =SUM($AS$2:$AS$2000) -> 103338.2882 | BR4: =COUNTIF(F:F, "*") -> 1315 | BS4: =SUM(H:H)/BR4 -> 3799327.093 | BT4: =BQ4/BR4 -> 78.58424956
A5: 製造業 | B5: =IFERROR(VLOOKUP(A5,【参照】選択リスト!$N$2:$O$22,2,FALSE),"") -> 製造業 | C5: 100,000～250,000 | D5: 149530567 | E5: 3400000 | F5: 空調・換気設備 | G5: 2075645 | H5: 1726937 | I5: 348708 | J5: =VLOOKUP(E5,【参照】選択リスト!$A$87:$B$108,2) -> 3,000～4,000 | K5: 63866 | L5: 53136 | AB5: 27.653978 | AC5: 23.007888 | AD5: =M5*(1/458)*【出力】CO2排出量計算表!$H$22*【出力】CO2排出量計算表!$I$22*【出力】CO2排出量計算表!$J$22 -> 0 | AE5: =N5*(1/458)*【出力】CO2排出量計算表!$H$22*【出力】CO2排出量計算表!$I$22*【出力】CO2排出量計算表!$J$22 -> 0 | AF5: =O5*(1/458)*【出力】CO2排出量計算表!$H$22*【出力】CO2排出量計算表!$I$22*【出力】CO2排出量計算表!$J$22 -> 0 | AG5: =P5*(1/458)*【出力】CO2排出量計算表!$H$22*【出力】CO2排出量計算表!$I$22*【出力】CO2排出量計算表!$J$22 -> 0 | AH5: =Q5/1000*【出力】CO2排出量計算表!$H$24*【出力】CO2排出量計算表!$I$24*【出力】CO2排出量計算表!$J$24 -> 0 | AI5: =R5/1000*【出力】CO2排出量計算表!$H$24*【出力】CO2排出量計算表!$I$24*【出力】CO2排出量計算表!$J$24 -> 0 | AJ5: =S5/1000*【出力】CO2排出量計算表!$H$24*【出力】CO2排出量計算表!$I$24*【出力】CO2排出量計算表!$J$24 -> 0 | AK5: =T5/1000*【出力】CO2排出量計算表!$H$24*【出力】CO2排出量計算表!$I$24*【出力】CO2排出量計算表!$J$24 -> 0 | AL5: =U5/1000*45*'【入力】CO2算出（電気・都市ガス）'!$X$37*44/12 -> 0 | AM5: =V5/1000*45*'【入力】CO2算出（電気・都市ガス）'!$X$37*44/12 -> 0 | AN5: =W5*【出力】CO2排出量計算表!$H$16*【出力】CO2排出量計算表!$I$16*【出力】CO2排出量計算表!$J$16/1000 -> 0 | AO5: =X5*【出力】CO2排出量計算表!$H$16*【出力】CO2排出量計算表!$I$16*【出力】CO2排出量計算表!$J$16/1000 -> 0 | AP5: =Y5*【出力】CO2排出量計算表!$H$18*【出力】CO2排出量計算表!$I$18*【出力】CO2排出量計算表!$J$18/1000 -> 0 | AQ5: =Z5*【出力】CO2排出量計算表!$H$18*【出力】CO2排出量計算表!$I$18*【出力】CO2排出量計算表!$J$18/1000 -> 0 | AR5: 27.653978 | AS5: 23.007888 | AT5: 4.64609 | AU5: 空調・換気設備3,000～4,000 | AV5: 空調・換気設備 | AW5: 3,000～4,000 | AX5: 3,000 ～4,000 | AY5: 28 | AZ5: 7525691 | BA5: 268.7746786 | BB5: 126.8620314 | BC5: 4.530786837 | BD5: 製造業 | BH5: 宿泊業，飲食サービス業 | BI5: 50,000～100,000 | BJ5: 89663790 | BK5: 1492000 | BL5: 冷蔵・冷凍設備 | BM5: 97600 | BN5: 52000 | BO5: 45600 | BP5: 1,000～2,000
A6: 製造業 | B6: =IFERROR(VLOOKUP(A6,【参照】選択リスト!$N$2:$O$22,2,FALSE),"") -> 製造業 | C6: 250,000～1,000,000 | D6: 336928192 | E6: 7000000 | F6: 空調・換気設備 | G6: 10726743 | H6: 9000000 | I6: 1726743 | J6: =VLOOKUP(E6,【参照】選択リスト!$A$87:$B$108,2) -> 7,000～8,000 | K6: 422644 | L6: 370000 | AB6: 183.004852 | AC6: 160.21 | AD6: =M6*(1/458)*【出力】CO2排出量計算表!$H$22*【出力】CO2排出量計算表!$I$22*【出力】CO2排出量計算表!$J$22 -> 0 | AE6: =N6*(1/458)*【出力】CO2排出量計算表!$H$22*【出力】CO2排出量計算表!$I$22*【出力】CO2排出量計算表!$J$22 -> 0 | AF6: =O6*(1/458)*【出力】CO2排出量計算表!$H$22*【出力】CO2排出量計算表!$I$22*【出力】CO2排出量計算表!$J$22 -> 0 | AG6: =P6*(1/458)*【出力】CO2排出量計算表!$H$22*【出力】CO2排出量計算表!$I$22*【出力】CO2排出量計算表!$J$22 -> 0 | AH6: =Q6/1000*【出力】CO2排出量計算表!$H$24*【出力】CO2排出量計算表!$I$24*【出力】CO2排出量計算表!$J$24 -> 0 | AI6: =R6/1000*【出力】CO2排出量計算表!$H$24*【出力】CO2排出量計算表!$I$24*【出力】CO2排出量計算表!$J$24 -> 0 | AJ6: =S6/1000*【出力】CO2排出量計算表!$H$24*【出力】CO2排出量計算表!$I$24*【出力】CO2排出量計算表!$J$24 -> 0 | AK6: =T6/1000*【出力】CO2排出量計算表!$H$24*【出力】CO2排出量計算表!$I$24*【出力】CO2排出量計算表!$J$24 -> 0 | AL6: =U6/1000*45*'【入力】CO2算出（電気・都市ガス）'!$X$37*44/12 -> 0 | AM6: =V6/1000*45*'【入力】CO2算出（電気・都市ガス）'!$X$37*44/12 -> 0 | AN6: =W6*【出力】CO2排出量計算表!$H$16*【出力】CO2排出量計算表!$I$16*【出力】CO2排出量計算表!$J$16/1000 -> 0 | AO6: =X6*【出力】CO2排出量計算表!$H$16*【出力】CO2排出量計算表!$I$16*【出力】CO2排出量計算表!$J$16/1000 -> 0 | AP6: =Y6*【出力】CO2排出量計算表!$H$18*【出力】CO2排出量計算表!$I$18*【出力】CO2排出量計算表!$J$18/1000 -> 0 | AQ6: =Z6*【出力】CO2排出量計算表!$H$18*【出力】CO2排出量計算表!$I$18*【出力】CO2排出量計算表!$J$18/1000 -> 0 | AR6: 183.004852 | AS6: 160.21 | AT6: 22.794852 | AU6: 空調・換気設備4,000～5,000 | AV6: 空調・換気設備 | AW6: 4,000～5,000 | AX6: 4,000 ～5,000 | AY6: 18 | AZ6: 4512321 | BA6: 250.6845 | BB6: 95.60491788 | BC6: 5.311384327 | BD6: 製造業 | BE6: =IF(BE2="サービス業，その他","サービス業",IF(BE2="卸売業，小売業","卸売業",IF(BE2="製造業","製造業",IF(BE2="建設業","建設業",IF(BE2="宿泊業，飲食サービス業","宿泊業",""))))) ->  | BH6: 宿泊業，飲食サービス業 | BI6: 50,000～100,000 | BJ6: 61343593 | BK6: 1488500 | BL6: 照明設備 | BM6: 582250 | BN6: 43520 | BO6: 538730 | BP6: 1,000～2,000
A7: 宿泊業，飲食サービス業 | B7: =IFERROR(VLOOKUP(A7,【参照】選択リスト!$N$2:$O$22,2,FALSE),"") -> 宿泊業，飲食サービス業 | C7: 10,000～25,000 | D7: 17566344 | E7: 1243000 | F7: 冷蔵・冷凍設備 | G7: 116600 | H7: 22600 | I7: 94000 | J7: =VLOOKUP(E7,【参照】選択リスト!$A$87:$B$108,2) -> 1,000～2,000 | K7: 4320 | L7: 1410 | AB7: 1.87056 | AC7: 0.61053 | AD7: =M7*(1/458)*【出力】CO2排出量計算表!$H$22*【出力】CO2排出量計算表!$I$22*【出力】CO2排出量計算表!$J$22 -> 0 | AE7: =N7*(1/458)*【出力】CO2排出量計算表!$H$22*【出力】CO2排出量計算表!$I$22*【出力】CO2排出量計算表!$J$22 -> 0 | AF7: =O7*(1/458)*【出力】CO2排出量計算表!$H$22*【出力】CO2排出量計算表!$I$22*【出力】CO2排出量計算表!$J$22 -> 0 | AG7: =P7*(1/458)*【出力】CO2排出量計算表!$H$22*【出力】CO2排出量計算表!$I$22*【出力】CO2排出量計算表!$J$22 -> 0 | AH7: =Q7/1000*【出力】CO2排出量計算表!$H$24*【出力】CO2排出量計算表!$I$24*【出力】CO2排出量計算表!$J$24 -> 0 | AI7: =R7/1000*【出力】CO2排出量計算表!$H$24*【出力】CO2排出量計算表!$I$24*【出力】CO2排出量計算表!$J$24 -> 0 | AJ7: =S7/1000*【出力】CO2排出量計算表!$H$24*【出力】CO2排出量計算表!$I$24*【出力】CO2排出量計算表!$J$24 -> 0 | AK7: =T7/1000*【出力】CO2排出量計算表!$H$24*【出力】CO2排出量計算表!$I$24*【出力】CO2排出量計算表!$J$24 -> 0 | AL7: =U7/1000*45*'【入力】CO2算出（電気・都市ガス）'!$X$37*44/12 -> 0 | AM7: =V7/1000*45*'【入力】CO2算出（電気・都市ガス）'!$X$37*44/12 -> 0 | AN7: =W7*【出力】CO2排出量計算表!$H$16*【出力】CO2排出量計算表!$I$16*【出力】CO2排出量計算表!$J$16/1000 -> 0 | AO7: =X7*【出力】CO2排出量計算表!$H$16*【出力】CO2排出量計算表!$I$16*【出力】CO2排出量計算表!$J$16/1000 -> 0 | AP7: =Y7*【出力】CO2排出量計算表!$H$18*【出力】CO2排出量計算表!$I$18*【出力】CO2排出量計算表!$J$18/1000 -> 0 | AQ7: =Z7*【出力】CO2排出量計算表!$H$18*【出力】CO2排出量計算表!$I$18*【出力】CO2排出量計算表!$J$18/1000 -> 0 | AR7: 1.87056 | AS7: 0.61053 | AT7: 1.26003 | AU7: 空調・換気設備5,000～6,000 | AV7: 空調・換気設備 | AW7: 5,000～6,000 | AX7: 5,000 ～6,000 | AY7: 14 | AZ7: 13270500 | BA7: 947.8928571 | BB7: 249.5159763 | BC7: 17.82256974 | BD7: 宿泊業 | BH7: 宿泊業，飲食サービス業 | BI7: 50,000～100,000 | BJ7: 64397030 | BK7: 6790000 | BL7: 空調・換気設備 | BM7: 5619639 | BN7: 4780000 | BO7: 839639 | BP7: 6,000～7,000
A8: 宿泊業，飲食サービス業 | B8: =IFERROR(VLOOKUP(A8,【参照】選択リスト!$N$2:$O$22,2,FALSE),"") -> 宿泊業，飲食サービス業 | C8: =VLOOKUP(D8,INDIRECT(BD8&"_売上高範囲"),2) -> 10,000～25,000 | D8: 14961091 | E8: 893100 | F8: 冷蔵・冷凍設備 | G8: 49600 | H8: 25100 | I8: 24500 | J8: =VLOOKUP(E8,【参照】選択リスト!$A$87:$B$108,2) -> 1～1,000 | K8: 3100 | L8: 1570 | AB8: 1.3423 | AC8: 0.67981 | AD8: =M8*(1/458)*【出力】CO2排出量計算表!$H$22*【出力】CO2排出量計算表!$I$22*【出力】CO2排出量計算表!$J$22 -> 0 | AE8: =N8*(1/458)*【出力】CO2排出量計算表!$H$22*【出力】CO2排出量計算表!$I$22*【出力】CO2排出量計算表!$J$22 -> 0 | AF8: =O8*(1/458)*【出力】CO2排出量計算表!$H$22*【出力】CO2排出量計算表!$I$22*【出力】CO2排出量計算表!$J$22 -> 0 | AG8: =P8*(1/458)*【出力】CO2排出量計算表!$H$22*【出力】CO2排出量計算表!$I$22*【出力】CO2排出量計算表!$J$22 -> 0 | AH8: =Q8/1000*【出力】CO2排出量計算表!$H$24*【出力】CO2排出量計算表!$I$24*【出力】CO2排出量計算表!$J$24 -> 0 | AI8: =R8/1000*【出力】CO2排出量計算表!$H$24*【出力】CO2排出量計算表!$I$24*【出力】CO2排出量計算表!$J$24 -> 0 | AJ8: =S8/1000*【出力】CO2排出量計算表!$H$24*【出力】CO2排出量計算表!$I$24*【出力】CO2排出量計算表!$J$24 -> 0 | AK8: =T8/1000*【出力】CO2排出量計算表!$H$24*【出力】CO2排出量計算表!$I$24*【出力】CO2排出量計算表!$J$24 -> 0 | AL8: =U8/1000*45*'【入力】CO2算出（電気・都市ガス）'!$X$37*44/12 -> 0 | AM8: =V8/1000*45*'【入力】CO2算出（電気・都市ガス）'!$X$37*44/12 -> 0 | AN8: =W8*【出力】CO2排出量計算表!$H$16*【出力】CO2排出量計算表!$I$16*【出力】CO2排出量計算表!$J$16/1000 -> 0 | AO8: =X8*【出力】CO2排出量計算表!$H$16*【出力】CO2排出量計算表!$I$16*【出力】CO2排出量計算表!$J$16/1000 -> 0 | AP8: =Y8*【出力】CO2排出量計算表!$H$18*【出力】CO2排出量計算表!$I$18*【出力】CO2排出量計算表!$J$18/1000 -> 0 | AQ8: =Z8*【出力】CO2排出量計算表!$H$18*【出力】CO2排出量計算表!$I$18*【出力】CO2排出量計算表!$J$18/1000 -> 0 | AR8: 1.3423 | AS8: 0.67981 | AT8: 0.66249 | AU8: =AV8&AW8 -> 空調・換気設備6,000～7,000 | AV8: 空調・換気設備 | AW8: 6,000～7,000 | AX8: 6,000 ～7,000 | AY8: =COUNTIFS($F$2:$F$2000,AV8,$J$2:$J$2000,AW8) -> 8 | AZ8: 2860774 | BA8: 357.59675 | BB8: 43.15223217 | BC8: 5.394029021 | BD8: 宿泊業 | BH8: 宿泊業，飲食サービス業 | BI8: 50,000～100,000 | BJ8: 77348768 | BK8: 1500000 | BL8: 照明設備 | BM8: 71009 | BN8: 8131 | BO8: 62878 | BP8: 1,000～2,000
A9: 卸売業，小売業 | B9: =IFERROR(VLOOKUP(A9,【参照】選択リスト!$N$2:$O$22,2,FALSE),"") -> 卸売業，小売業 | C9: =VLOOKUP(D9,INDIRECT(BD9&"_売上高範囲"),2) -> 1,000～25,000 | D9: 16228515 | E9: 1306200 | F9: 空調・換気設備 | G9: 209891 | H9: 109499 | I9: 100392 | J9: =VLOOKUP(E9,【参照】選択リスト!$A$87:$B$108,2) -> 1,000～2,000 | K9: 6453.2 | L9: 4292.4 | AB9: 2.7942356 | AC9: 1.8586092 | AD9: =M9*(1/458)*【出力】CO2排出量計算表!$H$22*【出力】CO2排出量計算表!$I$22*【出力】CO2排出量計算表!$J$22 -> 0 | AE9: =N9*(1/458)*【出力】CO2排出量計算表!$H$22*【出力】CO2排出量計算表!$I$22*【出力】CO2排出量計算表!$J$22 -> 0 | AF9: =O9*(1/458)*【出力】CO2排出量計算表!$H$22*【出力】CO2排出量計算表!$I$22*【出力】CO2排出量計算表!$J$22 -> 0 | AG9: =P9*(1/458)*【出力】CO2排出量計算表!$H$22*【出力】CO2排出量計算表!$I$22*【出力】CO2排出量計算表!$J$22 -> 0 | AH9: =Q9/1000*【出力】CO2排出量計算表!$H$24*【出力】CO2排出量計算表!$I$24*【出力】CO2排出量計算表!$J$24 -> 0 | AI9: =R9/1000*【出力】CO2排出量計算表!$H$24*【出力】CO2排出量計算表!$I$24*【出力】CO2排出量計算表!$J$24 -> 0 | AJ9: =S9/1000*【出力】CO2排出量計算表!$H$24*【出力】CO2排出量計算表!$I$24*【出力】CO2排出量計算表!$J$24 -> 0 | AK9: =T9/1000*【出力】CO2排出量計算表!$H$24*【出力】CO2排出量計算表!$I$24*【出力】CO2排出量計算表!$J$24 -> 0 | AL9: =U9/1000*45*'【入力】CO2算出（電気・都市ガス）'!$X$37*44/12 -> 0 | AM9: =V9/1000*45*'【入力】CO2算出（電気・都市ガス）'!$X$37*44/12 -> 0 | AN9: =W9*【出力】CO2排出量計算表!$H$16*【出力】CO2排出量計算表!$I$16*【出力】CO2排出量計算表!$J$16/1000 -> 0 | AO9: =X9*【出力】CO2排出量計算表!$H$16*【出力】CO2排出量計算表!$I$16*【出力】CO2排出量計算表!$J$16/1000 -> 0 | AP9: =Y9*【出力】CO2排出量計算表!$H$18*【出力】CO2排出量計算表!$I$18*【出力】CO2排出量計算表!$J$18/1000 -> 0 | AQ9: =Z9*【出力】CO2排出量計算表!$H$18*【出力】CO2排出量計算表!$I$18*【出力】CO2排出量計算表!$J$18/1000 -> 0 | AR9: 2.7942356 | AS9: 1.8586092 | AT9: 0.9356264 | AU9: 空調・換気設備7,000～8,000 | AV9: 空調・換気設備 | AW9: 7,000～8,000 | AX9: 7,000 ～8,000 | AY9: 10 | AZ9: 12523129 | BA9: 1252.3129 | BB9: 260.6137308 | BC9: 26.06137308 | BD9: 卸売業 | BH9: 宿泊業，飲食サービス業 | BI9: 50,000～100,000 | BJ9: 54154512 | BK9: 4726570 | BL9: 建物付属設備 | BM9: 4042000 | BN9: 3552000 | BO9: 490000 | BP9: 4,000～5,000
A10: 宿泊業，飲食サービス業 | B10: =IFERROR(VLOOKUP(A10,【参照】選択リスト!$N$2:$O$22,2,FALSE),"") -> 宿泊業，飲食サービス業 | C10: =VLOOKUP(D10,INDIRECT(BD10&"_売上高範囲"),2) -> 25,000～50,000 | D10: 35261860 | E10: 900000 | F10: 照明設備 | G10: 383400 | H10: 98436 | I10: 284964 | J10: =VLOOKUP(E10,【参照】選択リスト!$A$87:$B$108,2) -> 1～1,000 | K10: 14200 | L10: 3645.9 | AB10: 6.1486 | AC10: 1.5786747 | AD10: =M10*(1/458)*【出力】CO2排出量計算表!$H$22*【出力】CO2排出量計算表!$I$22*【出力】CO2排出量計算表!$J$22 -> 0 | AE10: =N10*(1/458)*【出力】CO2排出量計算表!$H$22*【出力】CO2排出量計算表!$I$22*【出力】CO2排出量計算表!$J$22 -> 0 | AF10: =O10*(1/458)*【出力】CO2排出量計算表!$H$22*【出力】CO2排出量計算表!$I$22*【出力】CO2排出量計算表!$J$22 -> 0 | AG10: =P10*(1/458)*【出力】CO2排出量計算表!$H$22*【出力】CO2排出量計算表!$I$22*【出力】CO2排出量計算表!$J$22 -> 0 | AH10: =Q10/1000*【出力】CO2排出量計算表!$H$24*【出力】CO2排出量計算表!$I$24*【出力】CO2排出量計算表!$J$24 -> 0 | AI10: =R10/1000*【出力】CO2排出量計算表!$H$24*【出力】CO2排出量計算表!$I$24*【出力】CO2排出量計算表!$J$24 -> 0 | AJ10: =S10/1000*【出力】CO2排出量計算表!$H$24*【出力】CO2排出量計算表!$I$24*【出力】CO2排出量計算表!$J$24 -> 0 | AK10: =T10/1000*【出力】CO2排出量計算表!$H$24*【出力】CO2排出量計算表!$I$24*【出力】CO2排出量計算表!$J$24 -> 0 | AL10: =U10/1000*45*'【入力】CO2算出（電気・都市ガス）'!$X$37*44/12 -> 0 | AM10: =V10/1000*45*'【入力】CO2算出（電気・都市ガス）'!$X$37*44/12 -> 0 | AN10: =W10*【出力】CO2排出量計算表!$H$16*【出力】CO2排出量計算表!$I$16*【出力】CO2排出量計算表!$J$16/1000 -> 0 | AO10: =X10*【出力】CO2排出量計算表!$H$16*【出力】CO2排出量計算表!$I$16*【出力】CO2排出量計算表!$J$16/1000 -> 0 | AP10: =Y10*【出力】CO2排出量計算表!$H$18*【出力】CO2排出量計算表!$I$18*【出力】CO2排出量計算表!$J$18/1000 -> 0 | AQ10: =Z10*【出力】CO2排出量計算表!$H$18*【出力】CO2排出量計算表!$I$18*【出力】CO2排出量計算表!$J$18/1000 -> 0 | AR10: 6.1486 | AS10: 1.5786747 | AT10: 4.5699253 | AU10: 空調・換気設備8,000～9,000 | AV10: 空調・換気設備 | AW10: 8,000～9,000 | AX10: 8,000 ～9,000 | AY10: 2 | AZ10: 4249597 | BA10: 2124.7985 | BB10: 85.77052338 | BC10: 42.88526169 | BD10: 宿泊業 | BH10: 宿泊業，飲食サービス業 | BI10: 50,000～100,000 | BJ10: 76867415 | BK10: 7723519 | BL10: 建物付属設備 | BM10: 765485 | BN10: 697802 | BO10: 67683 | BP10: 7,000～8,000
A11: 卸売業，小売業 | B11: =IFERROR(VLOOKUP(A11,【参照】選択リスト!$N$2:$O$22,2,FALSE),"") -> 卸売業，小売業 | C11: =VLOOKUP(D11,INDIRECT(BD11&"_売上高範囲"),2) -> 25,000～500,000 | D11: 168927000 | E11: 3819400 | F11: 空調・換気設備 | G11: 424739 | H11: 223229 | I11: 201510 | J11: =VLOOKUP(E11,【参照】選択リスト!$A$87:$B$108,2) -> 3,000～4,000 | K11: 16207 | L11: 5371 | AB11: 7.017631 | AC11: 2.325643 | AD11: =M11*(1/458)*【出力】CO2排出量計算表!$H$22*【出力】CO2排出量計算表!$I$22*【出力】CO2排出量計算表!$J$22 -> 0 | AE11: =N11*(1/458)*【出力】CO2排出量計算表!$H$22*【出力】CO2排出量計算表!$I$22*【出力】CO2排出量計算表!$J$22 -> 0 | AF11: =O11*(1/458)*【出力】CO2排出量計算表!$H$22*【出力】CO2排出量計算表!$I$22*【出力】CO2排出量計算表!$J$22 -> 0 | AG11: =P11*(1/458)*【出力】CO2排出量計算表!$H$22*【出力】CO2排出量計算表!$I$22*【出力】CO2排出量計算表!$J$22 -> 0 | AH11: =Q11/1000*【出力】CO2排出量計算表!$H$24*【出力】CO2排出量計算表!$I$24*【出力】CO2排出量計算表!$J$24 -> 0 | AI11: =R11/1000*【出力】CO2排出量計算表!$H$24*【出力】CO2排出量計算表!$I$24*【出力】CO2排出量計算表!$J$24 -> 0 | AJ11: =S11/1000*【出力】CO2排出量計算表!$H$24*【出力】CO2排出量計算表!$I$24*【出力】CO2排出量計算表!$J$24 -> 0 | AK11: =T11/1000*【出力】CO2排出量計算表!$H$24*【出力】CO2排出量計算表!$I$24*【出力】CO2排出量計算表!$J$24 -> 0 | AL11: =U11/1000*45*'【入力】CO2算出（電気・都市ガス）'!$X$37*44/12 -> 0 | AM11: =V11/1000*45*'【入力】CO2算出（電気・都市ガス）'!$X$37*44/12 -> 0 | AN11: =W11*【出力】CO2排出量計算表!$H$16*【出力】CO2排出量計算表!$I$16*【出力】CO2排出量計算表!$J$16/1000 -> 0 | AO11: =X11*【出力】CO2排出量計算表!$H$16*【出力】CO2排出量計算表!$I$16*【出力】CO2排出量計算表!$J$16/1000 -> 0 | AP11: =Y11*【出力】CO2排出量計算表!$H$18*【出力】CO2排出量計算表!$I$18*【出力】CO2排出量計算表!$J$18/1000 -> 0 | AQ11: =Z11*【出力】CO2排出量計算表!$H$18*【出力】CO2排出量計算表!$I$18*【出力】CO2排出量計算表!$J$18/1000 -> 0 | AR11: 7.017631 | AS11: 2.325643 | AT11: 4.691988 | AU11: 空調・換気設備9,000～10,000 | AV11: 空調・換気設備 | AW11: 9,000～10,000 | AX11: 9,000 ～10,000 | AY11: 6 | AZ11: =SUMIFS($I$2:$I$2000,$F$2:$F$2000,AV11,$J$2:$J$2000,AW11) -> 2653258 | BA11: 442.2096667 | BB11: 50.16738 | BC11: 8.36123 | BD11: 卸売業 | BH11: 宿泊業，飲食サービス業 | BI11: 50,000～100,000 | BJ11: 84970022 | BK11: 900000 | BL11: 冷蔵・冷凍設備 | BM11: 398383 | BN11: 277020 | BO11: 121363 | BP11: 1～1,000
A12: サービス業（他に分類されないもの） | B12: =IFERROR(VLOOKUP(A12,【参照】選択リスト!$N$2:$O$22,2,FALSE),"") -> サービス業，その他 | C12: 250,000～1,000,000 | D12: 685892330 | E12: 12000000 | F12: 照明設備 | G12: 378601 | H12: 199488 | I12: 179113 | J12: =VLOOKUP(E12,【参照】選択リスト!$A$87:$B$108,2) -> 12,000～13,000 | K12: 26038.6 | L12: 13720 | AB12: 11.2747138 | AC12: 5.94076 | AD12: =M12*(1/458)*【出力】CO2排出量計算表!$H$22*【出力】CO2排出量計算表!$I$22*【出力】CO2排出量計算表!$J$22 -> 0 | AE12: =N12*(1/458)*【出力】CO2排出量計算表!$H$22*【出力】CO2排出量計算表!$I$22*【出力】CO2排出量計算表!$J$22 -> 0 | AF12: =O12*(1/458)*【出力】CO2排出量計算表!$H$22*【出力】CO2排出量計算表!$I$22*【出力】CO2排出量計算表!$J$22 -> 0 | AG12: =P12*(1/458)*【出力】CO2排出量計算表!$H$22*【出力】CO2排出量計算表!$I$22*【出力】CO2排出量計算表!$J$22 -> 0 | AH12: =Q12/1000*【出力】CO2排出量計算表!$H$24*【出力】CO2排出量計算表!$I$24*【出力】CO2排出量計算表!$J$24 -> 0 | AI12: =R12/1000*【出力】CO2排出量計算表!$H$24*【出力】CO2排出量計算表!$I$24*【出力】CO2排出量計算表!$J$24 -> 0 | AJ12: =S12/1000*【出力】CO2排出量計算表!$H$24*【出力】CO2排出量計算表!$I$24*【出力】CO2排出量計算表!$J$24 -> 0 | AK12: =T12/1000*【出力】CO2排出量計算表!$H$24*【出力】CO2排出量計算表!$I$24*【出力】CO2排出量計算表!$J$24 -> 0 | AL12: =U12/1000*45*'【入力】CO2算出（電気・都市ガス）'!$X$37*44/12 -> 0 | AM12: =V12/1000*45*'【入力】CO2算出（電気・都市ガス）'!$X$37*44/12 -> 0 | AN12: =W12*【出力】CO2排出量計算表!$H$16*【出力】CO2排出量計算表!$I$16*【出力】CO2排出量計算表!$J$16/1000 -> 0 | AO12: =X12*【出力】CO2排出量計算表!$H$16*【出力】CO2排出量計算表!$I$16*【出力】CO2排出量計算表!$J$16/1000 -> 0 | AP12: =Y12*【出力】CO2排出量計算表!$H$18*【出力】CO2排出量計算表!$I$18*【出力】CO2排出量計算表!$J$18/1000 -> 0 | AQ12: =Z12*【出力】CO2排出量計算表!$H$18*【出力】CO2排出量計算表!$I$18*【出力】CO2排出量計算表!$J$18/1000 -> 0 | AR12: 11.2747138 | AS12: 5.94076 | AT12: 5.3339538 | AU12: 空調・換気設備10,000～11,000 | AV12: 空調・換気設備 | AW12: 10,000～11,000 | AX12: 10,000 ～11,000 | AY12: 7 | AZ12: 3424254 | BA12: 489.1791429 | BB12: 64.2452888 | BC12: 9.1778984 | BD12: サービス業 | BH12: 宿泊業，飲食サービス業 | BI12: 50,000～100,000 | BJ12: 66765420 | BK12: 8320000 | BL12: 空調・換気設備 | BM12: 5900097 | BN12: 5664093 | BO12: 236004 | BP12: 8,000～9,000
A13: 製造業 | B13: =IFERROR(VLOOKUP(A13,【参照】選択リスト!$N$2:$O$22,2,FALSE),"") -> 製造業 | C13: 75,000～100,000 | D13: 80605000 | E13: 750000 | F13: 照明設備 | G13: 254377 | H13: 186000 | I13: 68377 | J13: =VLOOKUP(E13,【参照】選択リスト!$A$87:$B$108,2) -> 1～1,000 | K13: 8355 | L13: 6650 | AB13: 3.617715 | AC13: 2.87945 | AD13: =M13*(1/458)*【出力】CO2排出量計算表!$H$22*【出力】CO2排出量計算表!$I$22*【出力】CO2排出量計算表!$J$22 -> 0 | AE13: =N13*(1/458)*【出力】CO2排出量計算表!$H$22*【出力】CO2排出量計算表!$I$22*【出力】CO2排出量計算表!$J$22 -> 0 | AF13: =O13*(1/458)*【出力】CO2排出量計算表!$H$22*【出力】CO2排出量計算表!$I$22*【出力】CO2排出量計算表!$J$22 -> 0 | AG13: =P13*(1/458)*【出力】CO2排出量計算表!$H$22*【出力】CO2排出量計算表!$I$22*【出力】CO2排出量計算表!$J$22 -> 0 | AH13: =Q13/1000*【出力】CO2排出量計算表!$H$24*【出力】CO2排出量計算表!$I$24*【出力】CO2排出量計算表!$J$24 -> 0 | AI13: =R13/1000*【出力】CO2排出量計算表!$H$24*【出力】CO2排出量計算表!$I$24*【出力】CO2排出量計算表!$J$24 -> 0 | AJ13: =S13/1000*【出力】CO2排出量計算表!$H$24*【出力】CO2排出量計算表!$I$24*【出力】CO2排出量計算表!$J$24 -> 0 | AK13: =T13/1000*【出力】CO2排出量計算表!$H$24*【出力】CO2排出量計算表!$I$24*【出力】CO2排出量計算表!$J$24 -> 0 | AL13: =U13/1000*45*'【入力】CO2算出（電気・都市ガス）'!$X$37*44/12 -> 0 | AM13: =V13/1000*45*'【入力】CO2算出（電気・都市ガス）'!$X$37*44/12 -> 0 | AN13: =W13*【出力】CO2排出量計算表!$H$16*【出力】CO2排出量計算表!$I$16*【出力】CO2排出量計算表!$J$16/1000 -> 0 | AO13: =X13*【出力】CO2排出量計算表!$H$16*【出力】CO2排出量計算表!$I$16*【出力】CO2排出量計算表!$J$16/1000 -> 0 | AP13: =Y13*【出力】CO2排出量計算表!$H$18*【出力】CO2排出量計算表!$I$18*【出力】CO2排出量計算表!$J$18/1000 -> 0 | AQ13: =Z13*【出力】CO2排出量計算表!$H$18*【出力】CO2排出量計算表!$I$18*【出力】CO2排出量計算表!$J$18/1000 -> 0 | AR13: 3.617715 | AS13: 2.87945 | AT13: 0.738265 | AU13: 空調・換気設備11,000～12,000 | AV13: 空調・換気設備 | AW13: 11,000～12,000 | AX13: 11,000 ～12,000 | AY13: 2 | AZ13: 449876 | BA13: 224.938 | BB13: 11.508274 | BC13: 5.754137 | BD13: 製造業 | BH13: 宿泊業，飲食サービス業 | BI13: 50,000～100,000 | BJ13: 81711200 | BK13: 1318181 | BL13: 空調・換気設備 | BM13: 83483 | BN13: 31021 | BO13: 52462 | BP13: 1,000～2,000
A14: 卸売業，小売業 | B14: =IFERROR(VLOOKUP(A14,【参照】選択リスト!$N$2:$O$22,2,FALSE),"") -> 卸売業，小売業 | C14: 25,000～500,000 | D14: 493420487 | E14: 1275900 | F14: 空調・換気設備 | G14: 150000 | H14: 112500 | I14: 37500 | J14: =VLOOKUP(E14,【参照】選択リスト!$A$87:$B$108,2) -> 1,000～2,000 | K14: 2000 | L14: 1500 | AB14: 0.866 | AC14: 0.6495 | AD14: =M14*(1/458)*【出力】CO2排出量計算表!$H$22*【出力】CO2排出量計算表!$I$22*【出力】CO2排出量計算表!$J$22 -> 0 | AE14: =N14*(1/458)*【出力】CO2排出量計算表!$H$22*【出力】CO2排出量計算表!$I$22*【出力】CO2排出量計算表!$J$22 -> 0 | AF14: =O14*(1/458)*【出力】CO2排出量計算表!$H$22*【出力】CO2排出量計算表!$I$22*【出力】CO2排出量計算表!$J$22 -> 0 | AG14: =P14*(1/458)*【出力】CO2排出量計算表!$H$22*【出力】CO2排出量計算表!$I$22*【出力】CO2排出量計算表!$J$22 -> 0 | AH14: =Q14/1000*【出力】CO2排出量計算表!$H$24*【出力】CO2排出量計算表!$I$24*【出力】CO2排出量計算表!$J$24 -> 0 | AI14: =R14/1000*【出力】CO2排出量計算表!$H$24*【出力】CO2排出量計算表!$I$24*【出力】CO2排出量計算表!$J$24 -> 0 | AJ14: =S14/1000*【出力】CO2排出量計算表!$H$24*【出力】CO2排出量計算表!$I$24*【出力】CO2排出量計算表!$J$24 -> 0 | AK14: =T14/1000*【出力】CO2排出量計算表!$H$24*【出力】CO2排出量計算表!$I$24*【出力】CO2排出量計算表!$J$24 -> 0 | AL14: =U14/1000*45*'【入力】CO2算出（電気・都市ガス）'!$X$37*44/12 -> 0 | AM14: =V14/1000*45*'【入力】CO2算出（電気・都市ガス）'!$X$37*44/12 -> 0 | AN14: =W14*【出力】CO2排出量計算表!$H$16*【出力】CO2排出量計算表!$I$16*【出力】CO2排出量計算表!$J$16/1000 -> 0 | AO14: =X14*【出力】CO2排出量計算表!$H$16*【出力】CO2排出量計算表!$I$16*【出力】CO2排出量計算表!$J$16/1000 -> 0 | AP14: =Y14*【出力】CO2排出量計算表!$H$18*【出力】CO2排出量計算表!$I$18*【出力】CO2排出量計算表!$J$18/1000 -> 0 | AQ14: =Z14*【出力】CO2排出量計算表!$H$18*【出力】CO2排出量計算表!$I$18*【出力】CO2排出量計算表!$J$18/1000 -> 0 | AR14: 0.866 | AS14: 0.6495 | AT14: 0.2165 | AU14: 空調・換気設備12,000～13,000 | AV14: 空調・換気設備 | AW14: 12,000～13,000 | AX14: 12,000 ～13,000 | AY14: 1 | AZ14: 53986 | BA14: 53.986 | BB14: 0.697996 | BC14: 0.697996 | BD14: 卸売業 | BH14: 宿泊業，飲食サービス業 | BI14: 50,000～100,000 | BJ14: 76380560 | BK14: 3780000 | BL14: 照明設備 | BM14: 597240 | BN14: 56482 | BO14: 540758 | BP14: 3,000～4,000
A15: 製造業 | B15: =IFERROR(VLOOKUP(A15,【参照】選択リスト!$N$2:$O$22,2,FALSE),"") -> 製造業 | C15: 25,000～50,000 | D15: 44141314 | E15: 2850000 | F15: 空調・換気設備 | G15: 1857646 | H15: 1485979 | I15: 371667 | J15: =VLOOKUP(E15,【参照】選択リスト!$A$87:$B$108,2) -> 2,000～3,000 | K15: 58540 | L15: 46832 | AB15: 25.34782 | AC15: 20.278256 | AD15: =M15*(1/458)*【出力】CO2排出量計算表!$H$22*【出力】CO2排出量計算表!$I$22*【出力】CO2排出量計算表!$J$22 -> 0 | AE15: =N15*(1/458)*【出力】CO2排出量計算表!$H$22*【出力】CO2排出量計算表!$I$22*【出力】CO2排出量計算表!$J$22 -> 0 | AF15: =O15*(1/458)*【出力】CO2排出量計算表!$H$22*【出力】CO2排出量計算表!$I$22*【出力】CO2排出量計算表!$J$22 -> 0 | AG15: =P15*(1/458)*【出力】CO2排出量計算表!$H$22*【出力】CO2排出量計算表!$I$22*【出力】CO2排出量計算表!$J$22 -> 0 | AH15: =Q15/1000*【出力】CO2排出量計算表!$H$24*【出力】CO2排出量計算表!$I$24*【出力】CO2排出量計算表!$J$24 -> 0 | AI15: =R15/1000*【出力】CO2排出量計算表!$H$24*【出力】CO2排出量計算表!$I$24*【出力】CO2排出量計算表!$J$24 -> 0 | AJ15: =S15/1000*【出力】CO2排出量計算表!$H$24*【出力】CO2排出量計算表!$I$24*【出力】CO2排出量計算表!$J$24 -> 0 | AK15: =T15/1000*【出力】CO2排出量計算表!$H$24*【出力】CO2排出量計算表!$I$24*【出力】CO2排出量計算表!$J$24 -> 0 | AL15: =U15/1000*45*'【入力】CO2算出（電気・都市ガス）'!$X$37*44/12 -> 0 | AM15: =V15/1000*45*'【入力】CO2算出（電気・都市ガス）'!$X$37*44/12 -> 0 | AN15: =W15*【出力】CO2排出量計算表!$H$16*【出力】CO2排出量計算表!$I$16*【出力】CO2排出量計算表!$J$16/1000 -> 0 | AO15: =X15*【出力】CO2排出量計算表!$H$16*【出力】CO2排出量計算表!$I$16*【出力】CO2排出量計算表!$J$16/1000 -> 0 | AP15: =Y15*【出力】CO2排出量計算表!$H$18*【出力】CO2排出量計算表!$I$18*【出力】CO2排出量計算表!$J$18/1000 -> 0 | AQ15: =Z15*【出力】CO2排出量計算表!$H$18*【出力】CO2排出量計算表!$I$18*【出力】CO2排出量計算表!$J$18/1000 -> 0 | AR15: 25.34782 | AS15: 20.278256 | AT15: 5.069564 | AU15: 空調・換気設備13,000～14,000 | AV15: 空調・換気設備 | AW15: 13,000～14,000 | AX15: 13,000 ～14,000 | AY15: 1 | AZ15: 1048257 | BA15: 1048.257 | BB15: 20.457518 | BC15: 20.457518 | BD15: 製造業 | BH15: 宿泊業，飲食サービス業 | BI15: 50,000～100,000 | BJ15: 55093315 | BK15: 1454545 | BL15: 照明設備 | BM15: 1352840 | BN15: 186323 | BO15: 1166517 | BP15: 1,000～2,000
A16: 宿泊業，飲食サービス業 | B16: =IFERROR(VLOOKUP(A16,【参照】選択リスト!$N$2:$O$22,2,FALSE),"") -> 宿泊業，飲食サービス業 | C16: 25,000～50,000 | D16: 48882856 | E16: 1132200 | F16: 建物付属設備 | G16: 125000 | H16: 78125 | I16: 46875 | J16: =VLOOKUP(E16,【参照】選択リスト!$A$87:$B$108,2) -> 1,000～2,000 | AB16: 0 | AC16: 0 | AD16: =M16*(1/458)*【出力】CO2排出量計算表!$H$22*【出力】CO2排出量計算表!$I$22*【出力】CO2排出量計算表!$J$22 -> 0 | AE16: =N16*(1/458)*【出力】CO2排出量計算表!$H$22*【出力】CO2排出量計算表!$I$22*【出力】CO2排出量計算表!$J$22 -> 0 | AF16: =O16*(1/458)*【出力】CO2排出量計算表!$H$22*【出力】CO2排出量計算表!$I$22*【出力】CO2排出量計算表!$J$22 -> 0 | AG16: =P16*(1/458)*【出力】CO2排出量計算表!$H$22*【出力】CO2排出量計算表!$I$22*【出力】CO2排出量計算表!$J$22 -> 0 | AH16: =Q16/1000*【出力】CO2排出量計算表!$H$24*【出力】CO2排出量計算表!$I$24*【出力】CO2排出量計算表!$J$24 -> 0 | AI16: =R16/1000*【出力】CO2排出量計算表!$H$24*【出力】CO2排出量計算表!$I$24*【出力】CO2排出量計算表!$J$24 -> 0 | AJ16: =S16/1000*【出力】CO2排出量計算表!$H$24*【出力】CO2排出量計算表!$I$24*【出力】CO2排出量計算表!$J$24 -> 0 | AK16: =T16/1000*【出力】CO2排出量計算表!$H$24*【出力】CO2排出量計算表!$I$24*【出力】CO2排出量計算表!$J$24 -> 0 | AL16: =U16/1000*45*'【入力】CO2算出（電気・都市ガス）'!$X$37*44/12 -> 0 | AM16: =V16/1000*45*'【入力】CO2算出（電気・都市ガス）'!$X$37*44/12 -> 0 | AN16: =W16*【出力】CO2排出量計算表!$H$16*【出力】CO2排出量計算表!$I$16*【出力】CO2排出量計算表!$J$16/1000 -> 0 | AO16: =X16*【出力】CO2排出量計算表!$H$16*【出力】CO2排出量計算表!$I$16*【出力】CO2排出量計算表!$J$16/1000 -> 0 | AP16: =Y16*【出力】CO2排出量計算表!$H$18*【出力】CO2排出量計算表!$I$18*【出力】CO2排出量計算表!$J$18/1000 -> 0 | AQ16: =Z16*【出力】CO2排出量計算表!$H$18*【出力】CO2排出量計算表!$I$18*【出力】CO2排出量計算表!$J$18/1000 -> 0 | AR16: 0 | AS16: 0 | AT16: 0 | AU16: 空調・換気設備14,000～15,000 | AV16: 空調・換気設備 | AW16: 14,000～15,000 | AX16: 14,000 ～15,000 | AY16: 1 | AZ16: 249227 | BA16: 249.227 | BB16: 6.472051 | BC16: 6.472051 | BD16: 宿泊業 | BH16: 宿泊業，飲食サービス業 | BI16: 50,000～100,000 | BJ16: 98616669 | BK16: 1196000 | BL16: 空調・換気設備 | BM16: 449400 | BN16: 417884 | BO16: 31516 | BP16: 1,000～2,000
A17: 宿泊業，飲食サービス業 | B17: =IFERROR(VLOOKUP(A17,【参照】選択リスト!$N$2:$O$22,2,FALSE),"") -> 宿泊業，飲食サービス業 | C17: =VLOOKUP(D17,INDIRECT(BD17&"_売上高範囲"),2) -> 10,000～25,000 | D17: 15326719 | E17: 4100000 | F17: 建物付属設備 | G17: 1460093 | H17: 1394367 | I17: 65726 | J17: =VLOOKUP(E17,【参照】選択リスト!$A$87:$B$108,2) -> 4,000～5,000 | AB17: 0 | AC17: 0 | AD17: =M17*(1/458)*【出力】CO2排出量計算表!$H$22*【出力】CO2排出量計算表!$I$22*【出力】CO2排出量計算表!$J$22 -> 0 | AE17: =N17*(1/458)*【出力】CO2排出量計算表!$H$22*【出力】CO2排出量計算表!$I$22*【出力】CO2排出量計算表!$J$22 -> 0 | AF17: =O17*(1/458)*【出力】CO2排出量計算表!$H$22*【出力】CO2排出量計算表!$I$22*【出力】CO2排出量計算表!$J$22 -> 0 | AG17: =P17*(1/458)*【出力】CO2排出量計算表!$H$22*【出力】CO2排出量計算表!$I$22*【出力】CO2排出量計算表!$J$22 -> 0 | AH17: =Q17/1000*【出力】CO2排出量計算表!$H$24*【出力】CO2排出量計算表!$I$24*【出力】CO2排出量計算表!$J$24 -> 0 | AI17: =R17/1000*【出力】CO2排出量計算表!$H$24*【出力】CO2排出量計算表!$I$24*【出力】CO2排出量計算表!$J$24 -> 0 | AJ17: =S17/1000*【出力】CO2排出量計算表!$H$24*【出力】CO2排出量計算表!$I$24*【出力】CO2排出量計算表!$J$24 -> 0 | AK17: =T17/1000*【出力】CO2排出量計算表!$H$24*【出力】CO2排出量計算表!$I$24*【出力】CO2排出量計算表!$J$24 -> 0 | AL17: =U17/1000*45*'【入力】CO2算出（電気・都市ガス）'!$X$37*44/12 -> 0 | AM17: =V17/1000*45*'【入力】CO2算出（電気・都市ガス）'!$X$37*44/12 -> 0 | AN17: =W17*【出力】CO2排出量計算表!$H$16*【出力】CO2排出量計算表!$I$16*【出力】CO2排出量計算表!$J$16/1000 -> 0 | AO17: =X17*【出力】CO2排出量計算表!$H$16*【出力】CO2排出量計算表!$I$16*【出力】CO2排出量計算表!$J$16/1000 -> 0 | AP17: =Y17*【出力】CO2排出量計算表!$H$18*【出力】CO2排出量計算表!$I$18*【出力】CO2排出量計算表!$J$18/1000 -> 0 | AQ17: =Z17*【出力】CO2排出量計算表!$H$18*【出力】CO2排出量計算表!$I$18*【出力】CO2排出量計算表!$J$18/1000 -> 0 | AR17: 0 | AS17: 0 | AT17: 0 | AU17: 空調・換気設備15,000～16,000 | AV17: 空調・換気設備 | AW17: 15,000～16,000 | AX17: 15,000 ～16,000 | AY17: 0 | AZ17: 0 | BA17: 0 | BB17: 0 | BC17: 0 | BD17: 宿泊業 | BH17: 宿泊業，飲食サービス業 | BI17: 50,000～100,000 | BJ17: 69329263 | BK17: 2120000 | BL17: 冷蔵・冷凍設備 | BM17: 332400 | BN17: 23800 | BO17: 308600 | BP17: 2,000～3,000
A18: 宿泊業，飲食サービス業 | B18: =IFERROR(VLOOKUP(A18,【参照】選択リスト!$N$2:$O$22,2,FALSE),"") -> 宿泊業，飲食サービス業 | C18: ～5,000 | D18: 4531730 | E18: 1250000 | F18: 冷蔵・冷凍設備 | G18: 89370 | H18: 32400 | I18: 56970 | J18: =VLOOKUP(E18,【参照】選択リスト!$A$87:$B$108,2) -> 1,000～2,000 | K18: 3310 | L18: 1200 | AB18: 1.43323 | AC18: 0.5196 | AD18: =M18*(1/458)*【出力】CO2排出量計算表!$H$22*【出力】CO2排出量計算表!$I$22*【出力】CO2排出量計算表!$J$22 -> 0 | AE18: =N18*(1/458)*【出力】CO2排出量計算表!$H$22*【出力】CO2排出量計算表!$I$22*【出力】CO2排出量計算表!$J$22 -> 0 | AF18: =O18*(1/458)*【出力】CO2排出量計算表!$H$22*【出力】CO2排出量計算表!$I$22*【出力】CO2排出量計算表!$J$22 -> 0 | AG18: =P18*(1/458)*【出力】CO2排出量計算表!$H$22*【出力】CO2排出量計算表!$I$22*【出力】CO2排出量計算表!$J$22 -> 0 | AH18: =Q18/1000*【出力】CO2排出量計算表!$H$24*【出力】CO2排出量計算表!$I$24*【出力】CO2排出量計算表!$J$24 -> 0 | AI18: =R18/1000*【出力】CO2排出量計算表!$H$24*【出力】CO2排出量計算表!$I$24*【出力】CO2排出量計算表!$J$24 -> 0 | AJ18: =S18/1000*【出力】CO2排出量計算表!$H$24*【出力】CO2排出量計算表!$I$24*【出力】CO2排出量計算表!$J$24 -> 0 | AK18: =T18/1000*【出力】CO2排出量計算表!$H$24*【出力】CO2排出量計算表!$I$24*【出力】CO2排出量計算表!$J$24 -> 0 | AL18: =U18/1000*45*'【入力】CO2算出（電気・都市ガス）'!$X$37*44/12 -> 0 | AM18: =V18/1000*45*'【入力】CO2算出（電気・都市ガス）'!$X$37*44/12 -> 0 | AN18: =W18*【出力】CO2排出量計算表!$H$16*【出力】CO2排出量計算表!$I$16*【出力】CO2排出量計算表!$J$16/1000 -> 0 | AO18: =X18*【出力】CO2排出量計算表!$H$16*【出力】CO2排出量計算表!$I$16*【出力】CO2排出量計算表!$J$16/1000 -> 0 | AP18: =Y18*【出力】CO2排出量計算表!$H$18*【出力】CO2排出量計算表!$I$18*【出力】CO2排出量計算表!$J$18/1000 -> 0 | AQ18: =Z18*【出力】CO2排出量計算表!$H$18*【出力】CO2排出量計算表!$I$18*【出力】CO2排出量計算表!$J$18/1000 -> 0 | AR18: 1.43323 | AS18: 0.5196 | AT18: 0.91363 | AU18: 空調・換気設備16,000～17,000 | AV18: 空調・換気設備 | AW18: 16,000～17,000 | AX18: 16,000 ～17,000 | AY18: 0 | AZ18: 0 | BA18: 0 | BB18: 0 | BC18: 0 | BD18: 宿泊業 | BH18: 宿泊業，飲食サービス業 | BI18: 50,000～100,000 | BJ18: 75159368 | BK18: 904000 | BL18: 冷蔵・冷凍設備 | BM18: 66231 | BN18: 14850 | BO18: 51381 | BP18: 1～1,000
A19: 宿泊業，飲食サービス業 | B19: =IFERROR(VLOOKUP(A19,【参照】選択リスト!$N$2:$O$22,2,FALSE),"") -> 宿泊業，飲食サービス業 | C19: 25,000～50,000 | D19: 43650365 | E19: 5729167 | F19: 空調・換気設備 | G19: 8050565 | H19: 1410659 | I19: 6639906 | J19: =VLOOKUP(E19,【参照】選択リスト!$A$87:$B$108,2) -> 5,000～6,000 | K19: 302400 | L19: 52988 | AB19: 130.9392 | AC19: 22.943804 | AD19: =M19*(1/458)*【出力】CO2排出量計算表!$H$22*【出力】CO2排出量計算表!$I$22*【出力】CO2排出量計算表!$J$22 -> 0 | AE19: =N19*(1/458)*【出力】CO2排出量計算表!$H$22*【出力】CO2排出量計算表!$I$22*【出力】CO2排出量計算表!$J$22 -> 0 | AF19: =O19*(1/458)*【出力】CO2排出量計算表!$H$22*【出力】CO2排出量計算表!$I$22*【出力】CO2排出量計算表!$J$22 -> 0 | AG19: =P19*(1/458)*【出力】CO2排出量計算表!$H$22*【出力】CO2排出量計算表!$I$22*【出力】CO2排出量計算表!$J$22 -> 0 | AH19: =Q19/1000*【出力】CO2排出量計算表!$H$24*【出力】CO2排出量計算表!$I$24*【出力】CO2排出量計算表!$J$24 -> 0 | AI19: =R19/1000*【出力】CO2排出量計算表!$H$24*【出力】CO2排出量計算表!$I$24*【出力】CO2排出量計算表!$J$24 -> 0 | AJ19: =S19/1000*【出力】CO2排出量計算表!$H$24*【出力】CO2排出量計算表!$I$24*【出力】CO2排出量計算表!$J$24 -> 0 | AK19: =T19/1000*【出力】CO2排出量計算表!$H$24*【出力】CO2排出量計算表!$I$24*【出力】CO2排出量計算表!$J$24 -> 0 | AL19: =U19/1000*45*'【入力】CO2算出（電気・都市ガス）'!$X$37*44/12 -> 0 | AM19: =V19/1000*45*'【入力】CO2算出（電気・都市ガス）'!$X$37*44/12 -> 0 | AN19: =W19*【出力】CO2排出量計算表!$H$16*【出力】CO2排出量計算表!$I$16*【出力】CO2排出量計算表!$J$16/1000 -> 0 | AO19: =X19*【出力】CO2排出量計算表!$H$16*【出力】CO2排出量計算表!$I$16*【出力】CO2排出量計算表!$J$16/1000 -> 0 | AP19: =Y19*【出力】CO2排出量計算表!$H$18*【出力】CO2排出量計算表!$I$18*【出力】CO2排出量計算表!$J$18/1000 -> 0 | AQ19: =Z19*【出力】CO2排出量計算表!$H$18*【出力】CO2排出量計算表!$I$18*【出力】CO2排出量計算表!$J$18/1000 -> 0 | AR19: 130.9392 | AS19: 22.943804 | AT19: 107.995396 | AU19: 空調・換気設備17,000～18,000 | AV19: 空調・換気設備 | AW19: 17,000～18,000 | AX19: 17,000 ～18,000 | AY19: 0 | AZ19: 0 | BA19: 0 | BB19: 0 | BC19: 0 | BD19: 宿泊業 | BH19: 宿泊業，飲食サービス業 | BI19: 50,000～100,000 | BJ19: 61090070 | BK19: 750000 | BL19: 冷蔵・冷凍設備 | BM19: 63410 | BN19: 21080 | BO19: 42330 | BP19: 1～1,000
A20: 宿泊業，飲食サービス業 | B20: =IFERROR(VLOOKUP(A20,【参照】選択リスト!$N$2:$O$22,2,FALSE),"") -> 宿泊業，飲食サービス業 | C20: 5,000～10,000 | D20: 6367840 | E20: 833000 | F20: 冷蔵・冷凍設備 | G20: 72100 | H20: 23000 | I20: 49100 | J20: =VLOOKUP(E20,【参照】選択リスト!$A$87:$B$108,2) -> 1～1,000 | K20: 2670 | L20: 1440 | AB20: 1.15611 | AC20: 0.62352 | AD20: =M20*(1/458)*【出力】CO2排出量計算表!$H$22*【出力】CO2排出量計算表!$I$22*【出力】CO2排出量計算表!$J$22 -> 0 | AE20: =N20*(1/458)*【出力】CO2排出量計算表!$H$22*【出力】CO2排出量計算表!$I$22*【出力】CO2排出量計算表!$J$22 -> 0 | AF20: =O20*(1/458)*【出力】CO2排出量計算表!$H$22*【出力】CO2排出量計算表!$I$22*【出力】CO2排出量計算表!$J$22 -> 0 | AG20: =P20*(1/458)*【出力】CO2排出量計算表!$H$22*【出力】CO2排出量計算表!$I$22*【出力】CO2排出量計算表!$J$22 -> 0 | AH20: =Q20/1000*【出力】CO2排出量計算表!$H$24*【出力】CO2排出量計算表!$I$24*【出力】CO2排出量計算表!$J$24 -> 0 | AI20: =R20/1000*【出力】CO2排出量計算表!$H$24*【出力】CO2排出量計算表!$I$24*【出力】CO2排出量計算表!$J$24 -> 0 | AJ20: =S20/1000*【出力】CO2排出量計算表!$H$24*【出力】CO2排出量計算表!$I$24*【出力】CO2排出量計算表!$J$24 -> 0 | AK20: =T20/1000*【出力】CO2排出量計算表!$H$24*【出力】CO2排出量計算表!$I$24*【出力】CO2排出量計算表!$J$24 -> 0 | AL20: =U20/1000*45*'【入力】CO2算出（電気・都市ガス）'!$X$37*44/12 -> 0 | AM20: =V20/1000*45*'【入力】CO2算出（電気・都市ガス）'!$X$37*44/12 -> 0 | AN20: =W20*【出力】CO2排出量計算表!$H$16*【出力】CO2排出量計算表!$I$16*【出力】CO2排出量計算表!$J$16/1000 -> 0 | AO20: =X20*【出力】CO2排出量計算表!$H$16*【出力】CO2排出量計算表!$I$16*【出力】CO2排出量計算表!$J$16/1000 -> 0 | AP20: =Y20*【出力】CO2排出量計算表!$H$18*【出力】CO2排出量計算表!$I$18*【出力】CO2排出量計算表!$J$18/1000 -> 0 | AQ20: =Z20*【出力】CO2排出量計算表!$H$18*【出力】CO2排出量計算表!$I$18*【出力】CO2排出量計算表!$J$18/1000 -> 0 | AR20: 1.15611 | AS20: 0.62352 | AT20: 0.53259 | AU20: 空調・換気設備18,000～19,000 | AV20: 空調・換気設備 | AW20: 18,000～19,000 | AX20: 18,000 ～19,000 | AY20: 0 | AZ20: 0 | BA20: 0 | BB20: 0 | BC20: 0 | BD20: 宿泊業 | BH20: 宿泊業，飲食サービス業 | BI20: 50,000～100,000 | BJ20: 51508481 | BK20: 2660000 | BL20: 空調・換気設備 | BM20: 8878871 | BN20: 7029045 | BO20: 1849826 | BP20: 2,000～3,000
A21: 製造業 | B21: =IFERROR(VLOOKUP(A21,【参照】選択リスト!$N$2:$O$22,2,FALSE),"") -> 製造業 | C21: ～25,000 | D21: 13000000 | E21: 1832000 | F21: 恒温設備 | G21: 89400 | H21: 80000 | I21: 9400 | J21: =VLOOKUP(E21,【参照】選択リスト!$A$87:$B$108,2) -> 1,000～2,000 | Y21: 770 | Z21: 690 | AB21: 0 | AC21: 0 | AD21: =M21*(1/458)*【出力】CO2排出量計算表!$H$22*【出力】CO2排出量計算表!$I$22*【出力】CO2排出量計算表!$J$22 -> 0 | AE21: =N21*(1/458)*【出力】CO2排出量計算表!$H$22*【出力】CO2排出量計算表!$I$22*【出力】CO2排出量計算表!$J$22 -> 0 | AF21: =O21*(1/458)*【出力】CO2排出量計算表!$H$22*【出力】CO2排出量計算表!$I$22*【出力】CO2排出量計算表!$J$22 -> 0 | AG21: =P21*(1/458)*【出力】CO2排出量計算表!$H$22*【出力】CO2排出量計算表!$I$22*【出力】CO2排出量計算表!$J$22 -> 0 | AH21: =Q21/1000*【出力】CO2排出量計算表!$H$24*【出力】CO2排出量計算表!$I$24*【出力】CO2排出量計算表!$J$24 -> 0 | AI21: =R21/1000*【出力】CO2排出量計算表!$H$24*【出力】CO2排出量計算表!$I$24*【出力】CO2排出量計算表!$J$24 -> 0 | AJ21: =S21/1000*【出力】CO2排出量計算表!$H$24*【出力】CO2排出量計算表!$I$24*【出力】CO2排出量計算表!$J$24 -> 0 | AK21: =T21/1000*【出力】CO2排出量計算表!$H$24*【出力】CO2排出量計算表!$I$24*【出力】CO2排出量計算表!$J$24 -> 0 | AL21: =U21/1000*45*'【入力】CO2算出（電気・都市ガス）'!$X$37*44/12 -> 0 | AM21: =V21/1000*45*'【入力】CO2算出（電気・都市ガス）'!$X$37*44/12 -> 0 | AN21: =W21*【出力】CO2排出量計算表!$H$16*【出力】CO2排出量計算表!$I$16*【出力】CO2排出量計算表!$J$16/1000 -> 0 | AO21: =X21*【出力】CO2排出量計算表!$H$16*【出力】CO2排出量計算表!$I$16*【出力】CO2排出量計算表!$J$16/1000 -> 0 | AP21: =Y21*【出力】CO2排出量計算表!$H$18*【出力】CO2排出量計算表!$I$18*【出力】CO2排出量計算表!$J$18/1000 -> 2.0864151 | AQ21: =Z21*【出力】CO2排出量計算表!$H$18*【出力】CO2排出量計算表!$I$18*【出力】CO2排出量計算表!$J$18/1000 -> 1.8696447 | AR21: 2.0864151 | AS21: 1.8696447 | AT21: 0.2167704 | AU21: 空調・換気設備19,000～20,000 | AV21: 空調・換気設備 | AW21: 19,000～20,000 | AX21: 19,000 ～20,000 | AY21: 0 | AZ21: 0 | BA21: 0 | BB21: 0 | BC21: 0 | BD21: 製造業 | BH21: 宿泊業，飲食サービス業 | BI21: 50,000～100,000 | BJ21: 54053748 | BK21: 10255000 | BL21: 発電設備 | BM21: 2507429 | BN21: 1982739 | BO21: 524690 | BP21: 10,000～11,000
A22: サービス業（他に分類されないもの） | B22: =IFERROR(VLOOKUP(A22,【参照】選択リスト!$N$2:$O$22,2,FALSE),"") -> サービス業，その他 | C22: 50,000～100,000 | D22: 99731709 | E22: 780000 | F22: 空調・換気設備 | G22: 80385 | H22: 45724 | I22: 34661 | J22: =VLOOKUP(E22,【参照】選択リスト!$A$87:$B$108,2) -> 1～1,000 | K22: 2870 | L22: 1633 | AB22: 1.24271 | AC22: 0.707089 | AD22: =M22*(1/458)*【出力】CO2排出量計算表!$H$22*【出力】CO2排出量計算表!$I$22*【出力】CO2排出量計算表!$J$22 -> 0 | AE22: =N22*(1/458)*【出力】CO2排出量計算表!$H$22*【出力】CO2排出量計算表!$I$22*【出力】CO2排出量計算表!$J$22 -> 0 | AF22: =O22*(1/458)*【出力】CO2排出量計算表!$H$22*【出力】CO2排出量計算表!$I$22*【出力】CO2排出量計算表!$J$22 -> 0 | AG22: =P22*(1/458)*【出力】CO2排出量計算表!$H$22*【出力】CO2排出量計算表!$I$22*【出力】CO2排出量計算表!$J$22 -> 0 | AH22: =Q22/1000*【出力】CO2排出量計算表!$H$24*【出力】CO2排出量計算表!$I$24*【出力】CO2排出量計算表!$J$24 -> 0 | AI22: =R22/1000*【出力】CO2排出量計算表!$H$24*【出力】CO2排出量計算表!$I$24*【出力】CO2排出量計算表!$J$24 -> 0 | AJ22: =S22/1000*【出力】CO2排出量計算表!$H$24*【出力】CO2排出量計算表!$I$24*【出力】CO2排出量計算表!$J$24 -> 0 | AK22: =T22/1000*【出力】CO2排出量計算表!$H$24*【出力】CO2排出量計算表!$I$24*【出力】CO2排出量計算表!$J$24 -> 0 | AL22: =U22/1000*45*'【入力】CO2算出（電気・都市ガス）'!$X$37*44/12 -> 0 | AM22: =V22/1000*45*'【入力】CO2算出（電気・都市ガス）'!$X$37*44/12 -> 0 | AN22: =W22*【出力】CO2排出量計算表!$H$16*【出力】CO2排出量計算表!$I$16*【出力】CO2排出量計算表!$J$16/1000 -> 0 | AO22: =X22*【出力】CO2排出量計算表!$H$16*【出力】CO2排出量計算表!$I$16*【出力】CO2排出量計算表!$J$16/1000 -> 0 | AP22: =Y22*【出力】CO2排出量計算表!$H$18*【出力】CO2排出量計算表!$I$18*【出力】CO2排出量計算表!$J$18/1000 -> 0 | AQ22: =Z22*【出力】CO2排出量計算表!$H$18*【出力】CO2排出量計算表!$I$18*【出力】CO2排出量計算表!$J$18/1000 -> 0 | AR22: 1.24271 | AS22: 0.707089 | AT22: 0.535621 | AU22: 空調・換気設備20,000～ | AV22: 空調・換気設備 | AW22: 20,000～ | AX22: 20,000～ | AY22: 1 | AZ22: 1841972 | BA22: 1841.972 | BB22: 50.680052 | BC22: 50.680052 | BD22: サービス業 | BH22: 宿泊業，飲食サービス業 | BI22: 50,000～100,000 | BJ22: 82790000 | BK22: 1363000 | BL22: 空調・換気設備 | BM22: 381000 | BN22: 195000 | BO22: 186000 | BP22: 1,000～2,000
A23: 電気・ガス・熱供給・水道業 | B23: =IFERROR(VLOOKUP(A23,【参照】選択リスト!$N$2:$O$22,2,FALSE),"") -> サービス業，その他 | C23: 250,000～1,000,000 | D23: 641899192 | E23: 6000000 | F23: 建物付属設備 | G23: 549642 | H23: 455300 | I23: 94342 | J23: =VLOOKUP(E23,【参照】選択リスト!$A$87:$B$108,2) -> 6,000～7,000 | K23: 7567 | L23: 7077 | W23: 2315 | X23: 1620 | AB23: 3.276511 | AC23: 3.064341 | AD23: =M23*(1/458)*【出力】CO2排出量計算表!$H$22*【出力】CO2排出量計算表!$I$22*【出力】CO2排出量計算表!$J$22 -> 0 | AE23: =N23*(1/458)*【出力】CO2排出量計算表!$H$22*【出力】CO2排出量計算表!$I$22*【出力】CO2排出量計算表!$J$22 -> 0 | AF23: =O23*(1/458)*【出力】CO2排出量計算表!$H$22*【出力】CO2排出量計算表!$I$22*【出力】CO2排出量計算表!$J$22 -> 0 | AG23: =P23*(1/458)*【出力】CO2排出量計算表!$H$22*【出力】CO2排出量計算表!$I$22*【出力】CO2排出量計算表!$J$22 -> 0 | AH23: =Q23/1000*【出力】CO2排出量計算表!$H$24*【出力】CO2排出量計算表!$I$24*【出力】CO2排出量計算表!$J$24 -> 0 | AI23: =R23/1000*【出力】CO2排出量計算表!$H$24*【出力】CO2排出量計算表!$I$24*【出力】CO2排出量計算表!$J$24 -> 0 | AJ23: =S23/1000*【出力】CO2排出量計算表!$H$24*【出力】CO2排出量計算表!$I$24*【出力】CO2排出量計算表!$J$24 -> 0 | AK23: =T23/1000*【出力】CO2排出量計算表!$H$24*【出力】CO2排出量計算表!$I$24*【出力】CO2排出量計算表!$J$24 -> 0 | AL23: =U23/1000*45*'【入力】CO2算出（電気・都市ガス）'!$X$37*44/12 -> 0 | AM23: =V23/1000*45*'【入力】CO2算出（電気・都市ガス）'!$X$37*44/12 -> 0 | AN23: =W23*【出力】CO2排出量計算表!$H$16*【出力】CO2排出量計算表!$I$16*【出力】CO2排出量計算表!$J$16/1000 -> 5.763153917 | AO23: =X23*【出力】CO2排出量計算表!$H$16*【出力】CO2排出量計算表!$I$16*【出力】CO2排出量計算表!$J$16/1000 -> 4.032963 | AP23: =Y23*【出力】CO2排出量計算表!$H$18*【出力】CO2排出量計算表!$I$18*【出力】CO2排出量計算表!$J$18/1000 -> 0 | AQ23: =Z23*【出力】CO2排出量計算表!$H$18*【出力】CO2排出量計算表!$I$18*【出力】CO2排出量計算表!$J$18/1000 -> 0 | AR23: 9.039664917 | AS23: 7.097304 | AT23: 1.942360917 | AU23: =AV23&AW23 -> 照明設備1～1,000 | AV23: 照明設備 | AW23: 1～1,000 | AX23: 1 ～1,000 | AY23: 66 | AZ23: 11558328 | BA23: 175.1261818 | BB23: 189.5047319 | BC23: 2.871283817 | BD23: サービス業 | BH23: 宿泊業，飲食サービス業 | BI23: 50,000～100,000 | BJ23: 52755856 | BK23: 750000 | BL23: 冷蔵・冷凍設備 | BM23: 76800 | BN23: 31840 | BO23: 44960 | BP23: 1～1,000
A24: 宿泊業，飲食サービス業 | B24: =IFERROR(VLOOKUP(A24,【参照】選択リスト!$N$2:$O$22,2,FALSE),"") -> 宿泊業，飲食サービス業 | C24: 25,000～50,000 | D24: 25803511 | E24: 1250000 | F24: 空調・換気設備 | G24: 611000 | H24: 530000 | I24: 81000 | J24: =VLOOKUP(E24,【参照】選択リスト!$A$87:$B$108,2) -> 1,000～2,000 | K24: 6132 | L24: 5800 | W24: 4163 | X24: 3500 | AB24: 2.655156 | AC24: 2.5114 | AD24: =M24*(1/458)*【出力】CO2排出量計算表!$H$22*【出力】CO2排出量計算表!$I$22*【出力】CO2排出量計算表!$J$22 -> 0 | AE24: =N24*(1/458)*【出力】CO2排出量計算表!$H$22*【出力】CO2排出量計算表!$I$22*【出力】CO2排出量計算表!$J$22 -> 0 | AF24: =O24*(1/458)*【出力】CO2排出量計算表!$H$22*【出力】CO2排出量計算表!$I$22*【出力】CO2排出量計算表!$J$22 -> 0 | AG24: =P24*(1/458)*【出力】CO2排出量計算表!$H$22*【出力】CO2排出量計算表!$I$22*【出力】CO2排出量計算表!$J$22 -> 0 | AH24: =Q24/1000*【出力】CO2排出量計算表!$H$24*【出力】CO2排出量計算表!$I$24*【出力】CO2排出量計算表!$J$24 -> 0 | AI24: =R24/1000*【出力】CO2排出量計算表!$H$24*【出力】CO2排出量計算表!$I$24*【出力】CO2排出量計算表!$J$24 -> 0 | AJ24: =S24/1000*【出力】CO2排出量計算表!$H$24*【出力】CO2排出量計算表!$I$24*【出力】CO2排出量計算表!$J$24 -> 0 | AK24: =T24/1000*【出力】CO2排出量計算表!$H$24*【出力】CO2排出量計算表!$I$24*【出力】CO2排出量計算表!$J$24 -> 0 | AL24: =U24/1000*45*'【入力】CO2算出（電気・都市ガス）'!$X$37*44/12 -> 0 | AM24: =V24/1000*45*'【入力】CO2算出（電気・都市ガス）'!$X$37*44/12 -> 0 | AN24: =W24*【出力】CO2排出量計算表!$H$16*【出力】CO2排出量計算表!$I$16*【出力】CO2排出量計算表!$J$16/1000 -> 10.36371912 | AO24: =X24*【出力】CO2排出量計算表!$H$16*【出力】CO2排出量計算表!$I$16*【出力】CO2排出量計算表!$J$16/1000 -> 8.713191667 | AP24: =Y24*【出力】CO2排出量計算表!$H$18*【出力】CO2排出量計算表!$I$18*【出力】CO2排出量計算表!$J$18/1000 -> 0 | AQ24: =Z24*【出力】CO2排出量計算表!$H$18*【出力】CO2排出量計算表!$I$18*【出力】CO2排出量計算表!$J$18/1000 -> 0 | AR24: 13.01887512 | AS24: 11.22459167 | AT24: 1.79428345 | AU24: 照明設備1,000～2,000 | AV24: 照明設備 | AW24: 1,000～2,000 | AX24: 1,000 ～2,000 | AY24: 134 | AZ24: 28092370 | BA24: 209.6445522 | BB24: 447.6925127 | BC24: 3.340988901 | BD24: 宿泊業 | BH24: 宿泊業，飲食サービス業 | BI24: 50,000～100,000 | BJ24: 60680801 | BK24: 1430000 | BL24: 空調・換気設備 | BM24: 646203 | BN24: 268030 | BO24: 378173 | BP24: 1,000～2,000
A25: 宿泊業，飲食サービス業 | B25: =IFERROR(VLOOKUP(A25,【参照】選択リスト!$N$2:$O$22,2,FALSE),"") -> 宿泊業，飲食サービス業 | C25: 10,000～25,000 | D25: 10729627 | E25: 998000 | F25: 冷蔵・冷凍設備 | G25: 401165 | H25: 374305 | I25: 26860 | J25: =VLOOKUP(E25,【参照】選択リスト!$A$87:$B$108,2) -> 1～1,000 | K25: 13867 | L25: 12287 | AB25: 6.004411 | AC25: 5.320271 | AD25: =M25*(1/458)*【出力】CO2排出量計算表!$H$22*【出力】CO2排出量計算表!$I$22*【出力】CO2排出量計算表!$J$22 -> 0 | AE25: =N25*(1/458)*【出力】CO2排出量計算表!$H$22*【出力】CO2排出量計算表!$I$22*【出力】CO2排出量計算表!$J$22 -> 0 | AF25: =O25*(1/458)*【出力】CO2排出量計算表!$H$22*【出力】CO2排出量計算表!$I$22*【出力】CO2排出量計算表!$J$22 -> 0 | AG25: =P25*(1/458)*【出力】CO2排出量計算表!$H$22*【出力】CO2排出量計算表!$I$22*【出力】CO2排出量計算表!$J$22 -> 0 | AH25: =Q25/1000*【出力】CO2排出量計算表!$H$24*【出力】CO2排出量計算表!$I$24*【出力】CO2排出量計算表!$J$24 -> 0 | AI25: =R25/1000*【出力】CO2排出量計算表!$H$24*【出力】CO2排出量計算表!$I$24*【出力】CO2排出量計算表!$J$24 -> 0 | AJ25: =S25/1000*【出力】CO2排出量計算表!$H$24*【出力】CO2排出量計算表!$I$24*【出力】CO2排出量計算表!$J$24 -> 0 | AK25: =T25/1000*【出力】CO2排出量計算表!$H$24*【出力】CO2排出量計算表!$I$24*【出力】CO2排出量計算表!$J$24 -> 0 | AL25: =U25/1000*45*'【入力】CO2算出（電気・都市ガス）'!$X$37*44/12 -> 0 | AM25: =V25/1000*45*'【入力】CO2算出（電気・都市ガス）'!$X$37*44/12 -> 0 | AN25: =W25*【出力】CO2排出量計算表!$H$16*【出力】CO2排出量計算表!$I$16*【出力】CO2排出量計算表!$J$16/1000 -> 0 | AO25: =X25*【出力】CO2排出量計算表!$H$16*【出力】CO2排出量計算表!$I$16*【出力】CO2排出量計算表!$J$16/1000 -> 0 | AP25: =Y25*【出力】CO2排出量計算表!$H$18*【出力】CO2排出量計算表!$I$18*【出力】CO2排出量計算表!$J$18/1000 -> 0 | AQ25: =Z25*【出力】CO2排出量計算表!$H$18*【出力】CO2排出量計算表!$I$18*【出力】CO2排出量計算表!$J$18/1000 -> 0 | AR25: 6.004411 | AS25: 5.320271 | AT25: 0.68414 | AU25: 照明設備2,000～3,000 | AV25: 照明設備 | AW25: 2,000～3,000 | AX25: 2,000 ～3,000 | AY25: 41 | AZ25: 19157065 | BA25: 467.2454878 | BB25: 349.4189323 | BC25: 8.522412983 | BD25: 宿泊業 | BH25: 宿泊業，飲食サービス業 | BI25: 50,000～100,000 | BJ25: 77494658 | BK25: 4950000 | BL25: 空調・換気設備 | BM25: 1671833 | BN25: 1358584 | BO25: 313249 | BP25: 4,000～5,000
A26: 製造業 | B26: =IFERROR(VLOOKUP(A26,【参照】選択リスト!$N$2:$O$22,2,FALSE),"") -> 製造業 | C26: 1,000,000～2,000,000 | D26: 1103394304 | E26: 13500000 | F26: 空調・換気設備 | G26: 6288257 | H26: 5240000 | I26: 1048257 | J26: =VLOOKUP(E26,【参照】選択リスト!$A$87:$B$108,2) -> 13,000～14,000 | K26: 283246 | L26: 236000 | AB26: 122.645518 | AC26: 102.188 | AD26: =M26*(1/458)*【出力】CO2排出量計算表!$H$22*【出力】CO2排出量計算表!$I$22*【出力】CO2排出量計算表!$J$22 -> 0 | AE26: =N26*(1/458)*【出力】CO2排出量計算表!$H$22*【出力】CO2排出量計算表!$I$22*【出力】CO2排出量計算表!$J$22 -> 0 | AF26: =O26*(1/458)*【出力】CO2排出量計算表!$H$22*【出力】CO2排出量計算表!$I$22*【出力】CO2排出量計算表!$J$22 -> 0 | AG26: =P26*(1/458)*【出力】CO2排出量計算表!$H$22*【出力】CO2排出量計算表!$I$22*【出力】CO2排出量計算表!$J$22 -> 0 | AH26: =Q26/1000*【出力】CO2排出量計算表!$H$24*【出力】CO2排出量計算表!$I$24*【出力】CO2排出量計算表!$J$24 -> 0 | AI26: =R26/1000*【出力】CO2排出量計算表!$H$24*【出力】CO2排出量計算表!$I$24*【出力】CO2排出量計算表!$J$24 -> 0 | AJ26: =S26/1000*【出力】CO2排出量計算表!$H$24*【出力】CO2排出量計算表!$I$24*【出力】CO2排出量計算表!$J$24 -> 0 | AK26: =T26/1000*【出力】CO2排出量計算表!$H$24*【出力】CO2排出量計算表!$I$24*【出力】CO2排出量計算表!$J$24 -> 0 | AL26: =U26/1000*45*'【入力】CO2算出（電気・都市ガス）'!$X$37*44/12 -> 0 | AM26: =V26/1000*45*'【入力】CO2算出（電気・都市ガス）'!$X$37*44/12 -> 0 | AN26: =W26*【出力】CO2排出量計算表!$H$16*【出力】CO2排出量計算表!$I$16*【出力】CO2排出量計算表!$J$16/1000 -> 0 | AO26: =X26*【出力】CO2排出量計算表!$H$16*【出力】CO2排出量計算表!$I$16*【出力】CO2排出量計算表!$J$16/1000 -> 0 | AP26: =Y26*【出力】CO2排出量計算表!$H$18*【出力】CO2排出量計算表!$I$18*【出力】CO2排出量計算表!$J$18/1000 -> 0 | AQ26: =Z26*【出力】CO2排出量計算表!$H$18*【出力】CO2排出量計算表!$I$18*【出力】CO2排出量計算表!$J$18/1000 -> 0 | AR26: 122.645518 | AS26: 102.188 | AT26: 20.457518 | AU26: 照明設備3,000～4,000 | AV26: 照明設備 | AW26: 3,000～4,000 | AX26: 3,000 ～4,000 | AY26: 21 | AZ26: 10805532 | BA26: 514.5491429 | BB26: 152.2416222 | BC26: 7.249601059 | BD26: 製造業 | BH26: 宿泊業，飲食サービス業 | BI26: 50,000～100,000 | BJ26: 52449511 | BK26: 800000 | BL26: 冷蔵・冷凍設備 | BM26: 344618 | BN26: 311418 | BO26: 33200 | BP26: 1～1,000
A27: 製造業 | B27: =IFERROR(VLOOKUP(A27,【参照】選択リスト!$N$2:$O$22,2,FALSE),"") -> 製造業 | C27: 250,000～1,000,000 | D27: 394181870 | E27: 2070000 | F27: 電気制御設備 | G27: 12085918 | H27: 11481591 | I27: 604327 | J27: =VLOOKUP(E27,【参照】選択リスト!$A$87:$B$108,2) -> 2,000～3,000 | K27: 575370 | L27: 546600 | AB27: 249.13521 | AC27: 236.6778 | AD27: =M27*(1/458)*【出力】CO2排出量計算表!$H$22*【出力】CO2排出量計算表!$I$22*【出力】CO2排出量計算表!$J$22 -> 0 | AE27: =N27*(1/458)*【出力】CO2排出量計算表!$H$22*【出力】CO2排出量計算表!$I$22*【出力】CO2排出量計算表!$J$22 -> 0 | AF27: =O27*(1/458)*【出力】CO2排出量計算表!$H$22*【出力】CO2排出量計算表!$I$22*【出力】CO2排出量計算表!$J$22 -> 0 | AG27: =P27*(1/458)*【出力】CO2排出量計算表!$H$22*【出力】CO2排出量計算表!$I$22*【出力】CO2排出量計算表!$J$22 -> 0 | AH27: =Q27/1000*【出力】CO2排出量計算表!$H$24*【出力】CO2排出量計算表!$I$24*【出力】CO2排出量計算表!$J$24 -> 0 | AI27: =R27/1000*【出力】CO2排出量計算表!$H$24*【出力】CO2排出量計算表!$I$24*【出力】CO2排出量計算表!$J$24 -> 0 | AJ27: =S27/1000*【出力】CO2排出量計算表!$H$24*【出力】CO2排出量計算表!$I$24*【出力】CO2排出量計算表!$J$24 -> 0 | AK27: =T27/1000*【出力】CO2排出量計算表!$H$24*【出力】CO2排出量計算表!$I$24*【出力】CO2排出量計算表!$J$24 -> 0 | AL27: =U27/1000*45*'【入力】CO2算出（電気・都市ガス）'!$X$37*44/12 -> 0 | AM27: =V27/1000*45*'【入力】CO2算出（電気・都市ガス）'!$X$37*44/12 -> 0 | AN27: =W27*【出力】CO2排出量計算表!$H$16*【出力】CO2排出量計算表!$I$16*【出力】CO2排出量計算表!$J$16/1000 -> 0 | AO27: =X27*【出力】CO2排出量計算表!$H$16*【出力】CO2排出量計算表!$I$16*【出力】CO2排出量計算表!$J$16/1000 -> 0 | AP27: =Y27*【出力】CO2排出量計算表!$H$18*【出力】CO2排出量計算表!$I$18*【出力】CO2排出量計算表!$J$18/1000 -> 0 | AQ27: =Z27*【出力】CO2排出量計算表!$H$18*【出力】CO2排出量計算表!$I$18*【出力】CO2排出量計算表!$J$18/1000 -> 0 | AR27: 249.13521 | AS27: 236.6778 | AT27: 12.45741 | AU27: 照明設備4,000～5,000 | AV27: 照明設備 | AW27: 4,000～5,000 | AX27: 4,000 ～5,000 | AY27: 15 | AZ27: 10834506 | BA27: 722.3004 | BB27: 215.7974575 | BC27: 14.38649717 | BD27: 製造業 | BH27: 宿泊業，飲食サービス業 | BI27: 50,000～100,000 | BJ27: 83075120 | BK27: 1500000 | BL27: 冷蔵・冷凍設備 | BM27: 89100 | BN27: 40500 | BO27: 48600 | BP27: 1,000～2,000
A28: 生活関連サービス業，娯楽業 | B28: =IFERROR(VLOOKUP(A28,【参照】選択リスト!$N$2:$O$22,2,FALSE),"") -> サービス業，その他 | C28: 25,000～50,000 | D28: 28702563 | E28: 862000 | F28: 冷蔵・冷凍設備 | G28: 755342 | H28: 693042 | I28: 62300 | J28: =VLOOKUP(E28,【参照】選択リスト!$A$87:$B$108,2) -> 1～1,000 | K28: 20010 | L28: 18514 | AB28: 8.66433 | AC28: 8.016562 | AD28: =M28*(1/458)*【出力】CO2排出量計算表!$H$22*【出力】CO2排出量計算表!$I$22*【出力】CO2排出量計算表!$J$22 -> 0 | AE28: =N28*(1/458)*【出力】CO2排出量計算表!$H$22*【出力】CO2排出量計算表!$I$22*【出力】CO2排出量計算表!$J$22 -> 0 | AF28: =O28*(1/458)*【出力】CO2排出量計算表!$H$22*【出力】CO2排出量計算表!$I$22*【出力】CO2排出量計算表!$J$22 -> 0 | AG28: =P28*(1/458)*【出力】CO2排出量計算表!$H$22*【出力】CO2排出量計算表!$I$22*【出力】CO2排出量計算表!$J$22 -> 0 | AH28: =Q28/1000*【出力】CO2排出量計算表!$H$24*【出力】CO2排出量計算表!$I$24*【出力】CO2排出量計算表!$J$24 -> 0 | AI28: =R28/1000*【出力】CO2排出量計算表!$H$24*【出力】CO2排出量計算表!$I$24*【出力】CO2排出量計算表!$J$24 -> 0 | AJ28: =S28/1000*【出力】CO2排出量計算表!$H$24*【出力】CO2排出量計算表!$I$24*【出力】CO2排出量計算表!$J$24 -> 0 | AK28: =T28/1000*【出力】CO2排出量計算表!$H$24*【出力】CO2排出量計算表!$I$24*【出力】CO2排出量計算表!$J$24 -> 0 | AL28: =U28/1000*45*'【入力】CO2算出（電気・都市ガス）'!$X$37*44/12 -> 0 | AM28: =V28/1000*45*'【入力】CO2算出（電気・都市ガス）'!$X$37*44/12 -> 0 | AN28: =W28*【出力】CO2排出量計算表!$H$16*【出力】CO2排出量計算表!$I$16*【出力】CO2排出量計算表!$J$16/1000 -> 0 | AO28: =X28*【出力】CO2排出量計算表!$H$16*【出力】CO2排出量計算表!$I$16*【出力】CO2排出量計算表!$J$16/1000 -> 0 | AP28: =Y28*【出力】CO2排出量計算表!$H$18*【出力】CO2排出量計算表!$I$18*【出力】CO2排出量計算表!$J$18/1000 -> 0 | AQ28: =Z28*【出力】CO2排出量計算表!$H$18*【出力】CO2排出量計算表!$I$18*【出力】CO2排出量計算表!$J$18/1000 -> 0 | AR28: 8.66433 | AS28: 8.016562 | AT28: 0.647768 | AU28: 照明設備5,000～6,000 | AV28: 照明設備 | AW28: 5,000～6,000 | AX28: 5,000 ～6,000 | AY28: 6 | AZ28: 3356547 | BA28: 559.4245 | BB28: 52.9010822 | BC28: 8.816847033 | BD28: サービス業 | BH28: 宿泊業，飲食サービス業 | BI28: 50,000～100,000 | BJ28: 71240285 | BK28: 4000000 | BL28: 空調・換気設備 | BM28: 1133860 | BN28: 872693 | BO28: 261167 | BP28: 4,000～5,000
A29: 卸売業，小売業 | B29: =IFERROR(VLOOKUP(A29,【参照】選択リスト!$N$2:$O$22,2,FALSE),"") -> 卸売業，小売業 | C29: 1,000～25,000 | D29: 16796757 | E29: 781000 | F29: 冷蔵・冷凍設備 | G29: 120000 | H29: 31000 | I29: 89000 | J29: =VLOOKUP(E29,【参照】選択リスト!$A$87:$B$108,2) -> 1～1,000 | K29: 2400 | L29: 620 | AB29: 1.0392 | AC29: 0.26846 | AD29: =M29*(1/458)*【出力】CO2排出量計算表!$H$22*【出力】CO2排出量計算表!$I$22*【出力】CO2排出量計算表!$J$22 -> 0 | AE29: =N29*(1/458)*【出力】CO2排出量計算表!$H$22*【出力】CO2排出量計算表!$I$22*【出力】CO2排出量計算表!$J$22 -> 0 | AF29: =O29*(1/458)*【出力】CO2排出量計算表!$H$22*【出力】CO2排出量計算表!$I$22*【出力】CO2排出量計算表!$J$22 -> 0 | AG29: =P29*(1/458)*【出力】CO2排出量計算表!$H$22*【出力】CO2排出量計算表!$I$22*【出力】CO2排出量計算表!$J$22 -> 0 | AH29: =Q29/1000*【出力】CO2排出量計算表!$H$24*【出力】CO2排出量計算表!$I$24*【出力】CO2排出量計算表!$J$24 -> 0 | AI29: =R29/1000*【出力】CO2排出量計算表!$H$24*【出力】CO2排出量計算表!$I$24*【出力】CO2排出量計算表!$J$24 -> 0 | AJ29: =S29/1000*【出力】CO2排出量計算表!$H$24*【出力】CO2排出量計算表!$I$24*【出力】CO2排出量計算表!$J$24 -> 0 | AK29: =T29/1000*【出力】CO2排出量計算表!$H$24*【出力】CO2排出量計算表!$I$24*【出力】CO2排出量計算表!$J$24 -> 0 | AL29: =U29/1000*45*'【入力】CO2算出（電気・都市ガス）'!$X$37*44/12 -> 0 | AM29: =V29/1000*45*'【入力】CO2算出（電気・都市ガス）'!$X$37*44/12 -> 0 | AN29: =W29*【出力】CO2排出量計算表!$H$16*【出力】CO2排出量計算表!$I$16*【出力】CO2排出量計算表!$J$16/1000 -> 0 | AO29: =X29*【出力】CO2排出量計算表!$H$16*【出力】CO2排出量計算表!$I$16*【出力】CO2排出量計算表!$J$16/1000 -> 0 | AP29: =Y29*【出力】CO2排出量計算表!$H$18*【出力】CO2排出量計算表!$I$18*【出力】CO2排出量計算表!$J$18/1000 -> 0 | AQ29: =Z29*【出力】CO2排出量計算表!$H$18*【出力】CO2排出量計算表!$I$18*【出力】CO2排出量計算表!$J$18/1000 -> 0 | AR29: 1.0392 | AS29: 0.26846 | AT29: 0.77074 | AU29: =AV29&AW29 -> 照明設備6,000～7,000 | AV29: 照明設備 | AW29: 6,000～7,000 | AX29: 6,000 ～7,000 | AY29: 3 | AZ29: 5140946 | BA29: 1713.648667 | BB29: 80.872276 | BC29: 26.95742533 | BD29: 卸売業 | BH29: 宿泊業，飲食サービス業 | BI29: 50,000～100,000 | BJ29: 83577443 | BK29: 2636000 | BL29: 空調・換気設備 | BM29: 477236 | BN29: 358215 | BO29: 119021 | BP29: 2,000～3,000
A30: 製造業 | B30: =IFERROR(VLOOKUP(A30,【参照】選択リスト!$N$2:$O$22,2,FALSE),"") -> 製造業 | C30: 3,000,000～ | D30: 3943596205 | E30: 1862000 | F30: 建物付属設備 | G30: 642127 | H30: 541565 | I30: 100562 | J30: =VLOOKUP(E30,【参照】選択リスト!$A$87:$B$108,2) -> 1,000～2,000 | K30: 31476.816 | L30: 26547.318 | AB30: 13.62946133 | AC30: 11.49498869 | AD30: =M30*(1/458)*【出力】CO2排出量計算表!$H$22*【出力】CO2排出量計算表!$I$22*【出力】CO2排出量計算表!$J$22 -> 0 | AE30: =N30*(1/458)*【出力】CO2排出量計算表!$H$22*【出力】CO2排出量計算表!$I$22*【出力】CO2排出量計算表!$J$22 -> 0 | AF30: =O30*(1/458)*【出力】CO2排出量計算表!$H$22*【出力】CO2排出量計算表!$I$22*【出力】CO2排出量計算表!$J$22 -> 0 | AG30: =P30*(1/458)*【出力】CO2排出量計算表!$H$22*【出力】CO2排出量計算表!$I$22*【出力】CO2排出量計算表!$J$22 -> 0 | AH30: =Q30/1000*【出力】CO2排出量計算表!$H$24*【出力】CO2排出量計算表!$I$24*【出力】CO2排出量計算表!$J$24 -> 0 | AI30: =R30/1000*【出力】CO2排出量計算表!$H$24*【出力】CO2排出量計算表!$I$24*【出力】CO2排出量計算表!$J$24 -> 0 | AJ30: =S30/1000*【出力】CO2排出量計算表!$H$24*【出力】CO2排出量計算表!$I$24*【出力】CO2排出量計算表!$J$24 -> 0 | AK30: =T30/1000*【出力】CO2排出量計算表!$H$24*【出力】CO2排出量計算表!$I$24*【出力】CO2排出量計算表!$J$24 -> 0 | AL30: =U30/1000*45*'【入力】CO2算出（電気・都市ガス）'!$X$37*44/12 -> 0 | AM30: =V30/1000*45*'【入力】CO2算出（電気・都市ガス）'!$X$37*44/12 -> 0 | AN30: =W30*【出力】CO2排出量計算表!$H$16*【出力】CO2排出量計算表!$I$16*【出力】CO2排出量計算表!$J$16/1000 -> 0 | AO30: =X30*【出力】CO2排出量計算表!$H$16*【出力】CO2排出量計算表!$I$16*【出力】CO2排出量計算表!$J$16/1000 -> 0 | AP30: =Y30*【出力】CO2排出量計算表!$H$18*【出力】CO2排出量計算表!$I$18*【出力】CO2排出量計算表!$J$18/1000 -> 0 | AQ30: =Z30*【出力】CO2排出量計算表!$H$18*【出力】CO2排出量計算表!$I$18*【出力】CO2排出量計算表!$J$18/1000 -> 0 | AR30: 13.62946133 | AS30: 11.49498869 | AT30: 2.134472634 | AU30: 照明設備7,000～8,000 | AV30: 照明設備 | AW30: 7,000～8,000 | AX30: 7,000 ～8,000 | AY30: 3 | AZ30: 2419090 | BA30: 806.3633333 | BB30: 51.18493 | BC30: 17.06164333 | BD30: 製造業 | BH30: 宿泊業，飲食サービス業 | BI30: 50,000～100,000 | BJ30: 81711717 | BK30: 2991000 | BL30: 空調・換気設備 | BM30: 330420 | BN30: 103434 | BO30: 226986 | BP30: 2,000～3,000
A31: 製造業 | B31: =IFERROR(VLOOKUP(A31,【参照】選択リスト!$N$2:$O$22,2,FALSE),"") -> 製造業 | C31: ～25,000 | D31: 21600000 | E31: 3119300 | F31: 空調・換気設備 | G31: 144007 | H31: 54835 | I31: 89172 | J31: =VLOOKUP(E31,【参照】選択リスト!$A$87:$B$108,2) -> 3,000～4,000 | K31: 8476 | L31: 3227.5 | AB31: 3.670108 | AC31: 1.3975075 | AD31: =M31*(1/458)*【出力】CO2排出量計算表!$H$22*【出力】CO2排出量計算表!$I$22*【出力】CO2排出量計算表!$J$22 -> 0 | AE31: =N31*(1/458)*【出力】CO2排出量計算表!$H$22*【出力】CO2排出量計算表!$I$22*【出力】CO2排出量計算表!$J$22 -> 0 | AF31: =O31*(1/458)*【出力】CO2排出量計算表!$H$22*【出力】CO2排出量計算表!$I$22*【出力】CO2排出量計算表!$J$22 -> 0 | AG31: =P31*(1/458)*【出力】CO2排出量計算表!$H$22*【出力】CO2排出量計算表!$I$22*【出力】CO2排出量計算表!$J$22 -> 0 | AH31: =Q31/1000*【出力】CO2排出量計算表!$H$24*【出力】CO2排出量計算表!$I$24*【出力】CO2排出量計算表!$J$24 -> 0 | AI31: =R31/1000*【出力】CO2排出量計算表!$H$24*【出力】CO2排出量計算表!$I$24*【出力】CO2排出量計算表!$J$24 -> 0 | AJ31: =S31/1000*【出力】CO2排出量計算表!$H$24*【出力】CO2排出量計算表!$I$24*【出力】CO2排出量計算表!$J$24 -> 0 | AK31: =T31/1000*【出力】CO2排出量計算表!$H$24*【出力】CO2排出量計算表!$I$24*【出力】CO2排出量計算表!$J$24 -> 0 | AL31: =U31/1000*45*'【入力】CO2算出（電気・都市ガス）'!$X$37*44/12 -> 0 | AM31: =V31/1000*45*'【入力】CO2算出（電気・都市ガス）'!$X$37*44/12 -> 0 | AN31: =W31*【出力】CO2排出量計算表!$H$16*【出力】CO2排出量計算表!$I$16*【出力】CO2排出量計算表!$J$16/1000 -> 0 | AO31: =X31*【出力】CO2排出量計算表!$H$16*【出力】CO2排出量計算表!$I$16*【出力】CO2排出量計算表!$J$16/1000 -> 0 | AP31: =Y31*【出力】CO2排出量計算表!$H$18*【出力】CO2排出量計算表!$I$18*【出力】CO2排出量計算表!$J$18/1000 -> 0 | AQ31: =Z31*【出力】CO2排出量計算表!$H$18*【出力】CO2排出量計算表!$I$18*【出力】CO2排出量計算表!$J$18/1000 -> 0 | AR31: 3.670108 | AS31: 1.3975075 | AT31: 2.2726005 | AU31: 照明設備8,000～9,000 | AV31: 照明設備 | AW31: 8,000～9,000 | AX31: 8,000 ～9,000 | AY31: 3 | AZ31: 6604057 | BA31: 2201.352333 | BB31: 118.552369 | BC31: 39.51745633 | BD31: 製造業 | BH31: 宿泊業，飲食サービス業 | BI31: 50,000～100,000 | BJ31: 59090486 | BK31: 5000000 | BL31: 空調・換気設備 | BM31: 12637895 | BN31: 11472006 | BO31: 1165889 | BP31: 5,000～6,000
A32: 製造業 | B32: =IFERROR(VLOOKUP(A32,【参照】選択リスト!$N$2:$O$22,2,FALSE),"") -> 製造業 | C32: 250,000～1,000,000 | D32: 810234255 | E32: 7786000 | F32: 空調・換気設備 | G32: 5110383 | H32: 3270645 | I32: 1839738 | J32: =VLOOKUP(E32,【参照】選択リスト!$A$87:$B$108,2) -> 7,000～8,000 | K32: 262994 | L32: 168316 | AB32: 113.876402 | AC32: 72.880828 | AD32: =M32*(1/458)*【出力】CO2排出量計算表!$H$22*【出力】CO2排出量計算表!$I$22*【出力】CO2排出量計算表!$J$22 -> 0 | AE32: =N32*(1/458)*【出力】CO2排出量計算表!$H$22*【出力】CO2排出量計算表!$I$22*【出力】CO2排出量計算表!$J$22 -> 0 | AF32: =O32*(1/458)*【出力】CO2排出量計算表!$H$22*【出力】CO2排出量計算表!$I$22*【出力】CO2排出量計算表!$J$22 -> 0 | AG32: =P32*(1/458)*【出力】CO2排出量計算表!$H$22*【出力】CO2排出量計算表!$I$22*【出力】CO2排出量計算表!$J$22 -> 0 | AH32: =Q32/1000*【出力】CO2排出量計算表!$H$24*【出力】CO2排出量計算表!$I$24*【出力】CO2排出量計算表!$J$24 -> 0 | AI32: =R32/1000*【出力】CO2排出量計算表!$H$24*【出力】CO2排出量計算表!$I$24*【出力】CO2排出量計算表!$J$24 -> 0 | AJ32: =S32/1000*【出力】CO2排出量計算表!$H$24*【出力】CO2排出量計算表!$I$24*【出力】CO2排出量計算表!$J$24 -> 0 | AK32: =T32/1000*【出力】CO2排出量計算表!$H$24*【出力】CO2排出量計算表!$I$24*【出力】CO2排出量計算表!$J$24 -> 0 | AL32: =U32/1000*45*'【入力】CO2算出（電気・都市ガス）'!$X$37*44/12 -> 0 | AM32: =V32/1000*45*'【入力】CO2算出（電気・都市ガス）'!$X$37*44/12 -> 0 | AN32: =W32*【出力】CO2排出量計算表!$H$16*【出力】CO2排出量計算表!$I$16*【出力】CO2排出量計算表!$J$16/1000 -> 0 | AO32: =X32*【出力】CO2排出量計算表!$H$16*【出力】CO2排出量計算表!$I$16*【出力】CO2排出量計算表!$J$16/1000 -> 0 | AP32: =Y32*【出力】CO2排出量計算表!$H$18*【出力】CO2排出量計算表!$I$18*【出力】CO2排出量計算表!$J$18/1000 -> 0 | AQ32: =Z32*【出力】CO2排出量計算表!$H$18*【出力】CO2排出量計算表!$I$18*【出力】CO2排出量計算表!$J$18/1000 -> 0 | AR32: 113.876402 | AS32: 72.880828 | AT32: 40.995574 | AU32: 照明設備9,000～10,000 | AV32: 照明設備 | AW32: 9,000～10,000 | AX32: 9,000 ～10,000 | AY32: 6 | AZ32: 9239707 | BA32: 1539.951167 | BB32: 168.89598 | BC32: 28.14933 | BD32: 製造業 | BH32: 宿泊業，飲食サービス業 | BI32: 50,000～100,000 | BJ32: 68293215 | BK32: 3865800 | BL32: 空調・換気設備 | BM32: 10065553 | BN32: 9346430 | BO32: 719123 | BP32: 3,000～4,000
A33: 製造業 | B33: =IFERROR(VLOOKUP(A33,【参照】選択リスト!$N$2:$O$22,2,FALSE),"") -> 製造業 | C33: 1,000,000～2,000,000 | D33: 1696130579 | E33: 8640000 | F33: 発電設備 | G33: 4777853 | H33: 3883349 | I33: 894504 | J33: =VLOOKUP(E33,【参照】選択リスト!$A$87:$B$108,2) -> 8,000～9,000 | K33: 205821 | L33: 154183 | AB33: 89.120493 | AC33: 66.761239 | AD33: =M33*(1/458)*【出力】CO2排出量計算表!$H$22*【出力】CO2排出量計算表!$I$22*【出力】CO2排出量計算表!$J$22 -> 0 | AE33: =N33*(1/458)*【出力】CO2排出量計算表!$H$22*【出力】CO2排出量計算表!$I$22*【出力】CO2排出量計算表!$J$22 -> 0 | AF33: =O33*(1/458)*【出力】CO2排出量計算表!$H$22*【出力】CO2排出量計算表!$I$22*【出力】CO2排出量計算表!$J$22 -> 0 | AG33: =P33*(1/458)*【出力】CO2排出量計算表!$H$22*【出力】CO2排出量計算表!$I$22*【出力】CO2排出量計算表!$J$22 -> 0 | AH33: =Q33/1000*【出力】CO2排出量計算表!$H$24*【出力】CO2排出量計算表!$I$24*【出力】CO2排出量計算表!$J$24 -> 0 | AI33: =R33/1000*【出力】CO2排出量計算表!$H$24*【出力】CO2排出量計算表!$I$24*【出力】CO2排出量計算表!$J$24 -> 0 | AJ33: =S33/1000*【出力】CO2排出量計算表!$H$24*【出力】CO2排出量計算表!$I$24*【出力】CO2排出量計算表!$J$24 -> 0 | AK33: =T33/1000*【出力】CO2排出量計算表!$H$24*【出力】CO2排出量計算表!$I$24*【出力】CO2排出量計算表!$J$24 -> 0 | AL33: =U33/1000*45*'【入力】CO2算出（電気・都市ガス）'!$X$37*44/12 -> 0 | AM33: =V33/1000*45*'【入力】CO2算出（電気・都市ガス）'!$X$37*44/12 -> 0 | AN33: =W33*【出力】CO2排出量計算表!$H$16*【出力】CO2排出量計算表!$I$16*【出力】CO2排出量計算表!$J$16/1000 -> 0 | AO33: =X33*【出力】CO2排出量計算表!$H$16*【出力】CO2排出量計算表!$I$16*【出力】CO2排出量計算表!$J$16/1000 -> 0 | AP33: =Y33*【出力】CO2排出量計算表!$H$18*【出力】CO2排出量計算表!$I$18*【出力】CO2排出量計算表!$J$18/1000 -> 0 | AQ33: =Z33*【出力】CO2排出量計算表!$H$18*【出力】CO2排出量計算表!$I$18*【出力】CO2排出量計算表!$J$18/1000 -> 0 | AR33: 89.120493 | AS33: 66.761239 | AT33: 22.359254 | AU33: 照明設備10,000～11,000 | AV33: 照明設備 | AW33: 10,000～11,000 | AX33: 10,000 ～11,000 | AY33: 3 | AZ33: 3905661 | BA33: 1301.887 | BB33: 76.172927 | BC33: 25.39097567 | BD33: 製造業
A34: 卸売業，小売業 | B34: =IFERROR(VLOOKUP(A34,【参照】選択リスト!$N$2:$O$22,2,FALSE),"") -> 卸売業，小売業 | C34: 25,000～500,000 | D34: 234156550 | E34: 892400 | F34: 照明設備 | G34: 788198 | H34: 658172 | I34: 130026 | J34: =VLOOKUP(E34,【参照】選択リスト!$A$87:$B$108,2) -> 1～1,000 | K34: 23411 | L34: 19549 | AB34: 10.136963 | AC34: 8.464717 | AD34: =M34*(1/458)*【出力】CO2排出量計算表!$H$22*【出力】CO2排出量計算表!$I$22*【出力】CO2排出量計算表!$J$22 -> 0 | AE34: =N34*(1/458)*【出力】CO2排出量計算表!$H$22*【出力】CO2排出量計算表!$I$22*【出力】CO2排出量計算表!$J$22 -> 0 | AF34: =O34*(1/458)*【出力】CO2排出量計算表!$H$22*【出力】CO2排出量計算表!$I$22*【出力】CO2排出量計算表!$J$22 -> 0 | AG34: =P34*(1/458)*【出力】CO2排出量計算表!$H$22*【出力】CO2排出量計算表!$I$22*【出力】CO2排出量計算表!$J$22 -> 0 | AH34: =Q34/1000*【出力】CO2排出量計算表!$H$24*【出力】CO2排出量計算表!$I$24*【出力】CO2排出量計算表!$J$24 -> 0 | AI34: =R34/1000*【出力】CO2排出量計算表!$H$24*【出力】CO2排出量計算表!$I$24*【出力】CO2排出量計算表!$J$24 -> 0 | AJ34: =S34/1000*【出力】CO2排出量計算表!$H$24*【出力】CO2排出量計算表!$I$24*【出力】CO2排出量計算表!$J$24 -> 0 | AK34: =T34/1000*【出力】CO2排出量計算表!$H$24*【出力】CO2排出量計算表!$I$24*【出力】CO2排出量計算表!$J$24 -> 0 | AL34: =U34/1000*45*'【入力】CO2算出（電気・都市ガス）'!$X$37*44/12 -> 0 | AM34: =V34/1000*45*'【入力】CO2算出（電気・都市ガス）'!$X$37*44/12 -> 0 | AN34: =W34*【出力】CO2排出量計算表!$H$16*【出力】CO2排出量計算表!$I$16*【出力】CO2排出量計算表!$J$16/1000 -> 0 | AO34: =X34*【出力】CO2排出量計算表!$H$16*【出力】CO2排出量計算表!$I$16*【出力】CO2排出量計算表!$J$16/1000 -> 0 | AP34: =Y34*【出力】CO2排出量計算表!$H$18*【出力】CO2排出量計算表!$I$18*【出力】CO2排出量計算表!$J$18/1000 -> 0 | AQ34: =Z34*【出力】CO2排出量計算表!$H$18*【出力】CO2排出量計算表!$I$18*【出力】CO2排出量計算表!$J$18/1000 -> 0 | AR34: 10.136963 | AS34: 8.464717 | AT34: 1.672246 | AU34: 照明設備11,000～12,000 | AV34: 照明設備 | AW34: 11,000～12,000 | AX34: 11,000 ～12,000 | AY34: 1 | AZ34: 4145889 | BA34: 4145.889 | BB34: 69.5398 | BC34: 69.5398 | BD34: 卸売業
A35: 製造業 | B35: =IFERROR(VLOOKUP(A35,【参照】選択リスト!$N$2:$O$22,2,FALSE),"") -> 製造業 | C35: 1,000,000～2,000,000 | D35: 1521767608 | E35: 14900000 | F35: 生産設備 | G35: 46500068 | H35: 46035067 | I35: 465001 | J35: =VLOOKUP(E35,【参照】選択リスト!$A$87:$B$108,2) -> 14,000～15,000 | K35: 2328848 | L35: 2305560 | AB35: 1008.391184 | AC35: 998.30748 | AD35: =M35*(1/458)*【出力】CO2排出量計算表!$H$22*【出力】CO2排出量計算表!$I$22*【出力】CO2排出量計算表!$J$22 -> 0 | AE35: =N35*(1/458)*【出力】CO2排出量計算表!$H$22*【出力】CO2排出量計算表!$I$22*【出力】CO2排出量計算表!$J$22 -> 0 | AF35: =O35*(1/458)*【出力】CO2排出量計算表!$H$22*【出力】CO2排出量計算表!$I$22*【出力】CO2排出量計算表!$J$22 -> 0 | AG35: =P35*(1/458)*【出力】CO2排出量計算表!$H$22*【出力】CO2排出量計算表!$I$22*【出力】CO2排出量計算表!$J$22 -> 0 | AH35: =Q35/1000*【出力】CO2排出量計算表!$H$24*【出力】CO2排出量計算表!$I$24*【出力】CO2排出量計算表!$J$24 -> 0 | AI35: =R35/1000*【出力】CO2排出量計算表!$H$24*【出力】CO2排出量計算表!$I$24*【出力】CO2排出量計算表!$J$24 -> 0 | AJ35: =S35/1000*【出力】CO2排出量計算表!$H$24*【出力】CO2排出量計算表!$I$24*【出力】CO2排出量計算表!$J$24 -> 0 | AK35: =T35/1000*【出力】CO2排出量計算表!$H$24*【出力】CO2排出量計算表!$I$24*【出力】CO2排出量計算表!$J$24 -> 0 | AL35: =U35/1000*45*'【入力】CO2算出（電気・都市ガス）'!$X$37*44/12 -> 0 | AM35: =V35/1000*45*'【入力】CO2算出（電気・都市ガス）'!$X$37*44/12 -> 0 | AN35: =W35*【出力】CO2排出量計算表!$H$16*【出力】CO2排出量計算表!$I$16*【出力】CO2排出量計算表!$J$16/1000 -> 0 | AO35: =X35*【出力】CO2排出量計算表!$H$16*【出力】CO2排出量計算表!$I$16*【出力】CO2排出量計算表!$J$16/1000 -> 0 | AP35: =Y35*【出力】CO2排出量計算表!$H$18*【出力】CO2排出量計算表!$I$18*【出力】CO2排出量計算表!$J$18/1000 -> 0 | AQ35: =Z35*【出力】CO2排出量計算表!$H$18*【出力】CO2排出量計算表!$I$18*【出力】CO2排出量計算表!$J$18/1000 -> 0 | AR35: 1008.391184 | AS35: 998.30748 | AT35: 10.083704 | AU35: 照明設備12,000～13,000 | AV35: 照明設備 | AW35: 12,000～13,000 | AX35: 12,000 ～13,000 | AY35: 3 | AZ35: 5227717.4 | BA35: 1742.572467 | BB35: 91.1783688 | BC35: 30.3927896 | BD35: 製造業
A36: 製造業 | B36: =IFERROR(VLOOKUP(A36,【参照】選択リスト!$N$2:$O$22,2,FALSE),"") -> 製造業 | C36: 25,000～50,000 | D36: 34654566 | E36: 780000 | F36: 照明設備 | G36: 97965 | H36: 44555 | I36: 53410 | J36: =VLOOKUP(E36,【参照】選択リスト!$A$87:$B$108,2) -> 1～1,000 | K36: 6062 | L36: 2757 | AB36: 2.624846 | AC36: 1.193781 | AD36: =M36*(1/458)*【出力】CO2排出量計算表!$H$22*【出力】CO2排出量計算表!$I$22*【出力】CO2排出量計算表!$J$22 -> 0 | AE36: =N36*(1/458)*【出力】CO2排出量計算表!$H$22*【出力】CO2排出量計算表!$I$22*【出力】CO2排出量計算表!$J$22 -> 0 | AF36: =O36*(1/458)*【出力】CO2排出量計算表!$H$22*【出力】CO2排出量計算表!$I$22*【出力】CO2排出量計算表!$J$22 -> 0 | AG36: =P36*(1/458)*【出力】CO2排出量計算表!$H$22*【出力】CO2排出量計算表!$I$22*【出力】CO2排出量計算表!$J$22 -> 0 | AH36: =Q36/1000*【出力】CO2排出量計算表!$H$24*【出力】CO2排出量計算表!$I$24*【出力】CO2排出量計算表!$J$24 -> 0 | AI36: =R36/1000*【出力】CO2排出量計算表!$H$24*【出力】CO2排出量計算表!$I$24*【出力】CO2排出量計算表!$J$24 -> 0 | AJ36: =S36/1000*【出力】CO2排出量計算表!$H$24*【出力】CO2排出量計算表!$I$24*【出力】CO2排出量計算表!$J$24 -> 0 | AK36: =T36/1000*【出力】CO2排出量計算表!$H$24*【出力】CO2排出量計算表!$I$24*【出力】CO2排出量計算表!$J$24 -> 0 | AL36: =U36/1000*45*'【入力】CO2算出（電気・都市ガス）'!$X$37*44/12 -> 0 | AM36: =V36/1000*45*'【入力】CO2算出（電気・都市ガス）'!$X$37*44/12 -> 0 | AN36: =W36*【出力】CO2排出量計算表!$H$16*【出力】CO2排出量計算表!$I$16*【出力】CO2排出量計算表!$J$16/1000 -> 0 | AO36: =X36*【出力】CO2排出量計算表!$H$16*【出力】CO2排出量計算表!$I$16*【出力】CO2排出量計算表!$J$16/1000 -> 0 | AP36: =Y36*【出力】CO2排出量計算表!$H$18*【出力】CO2排出量計算表!$I$18*【出力】CO2排出量計算表!$J$18/1000 -> 0 | AQ36: =Z36*【出力】CO2排出量計算表!$H$18*【出力】CO2排出量計算表!$I$18*【出力】CO2排出量計算表!$J$18/1000 -> 0 | AR36: 2.624846 | AS36: 1.193781 | AT36: 1.431065 | AU36: 照明設備13,000～14,000 | AV36: 照明設備 | AW36: 13,000～14,000 | AX36: 13,000 ～14,000 | AY36: 2 | AZ36: 6265763 | BA36: 3132.8815 | BB36: 140.2296826 | BC36: 70.11484132 | BD36: 製造業
A37: 製造業 | B37: =IFERROR(VLOOKUP(A37,【参照】選択リスト!$N$2:$O$22,2,FALSE),"") -> 製造業 | C37: 25,000～50,000 | D37: 39952000 | E37: 1632446 | F37: 電気制御設備 | G37: 1523381 | H37: 1504999 | I37: 18382 | J37: =VLOOKUP(E37,【参照】選択リスト!$A$87:$B$108,2) -> 1,000～2,000 | K37: 93681 | L37: 92512 | AB37: 40.563873 | AC37: 40.057696 | AD37: =M37*(1/458)*【出力】CO2排出量計算表!$H$22*【出力】CO2排出量計算表!$I$22*【出力】CO2排出量計算表!$J$22 -> 0 | AE37: =N37*(1/458)*【出力】CO2排出量計算表!$H$22*【出力】CO2排出量計算表!$I$22*【出力】CO2排出量計算表!$J$22 -> 0 | AF37: =O37*(1/458)*【出力】CO2排出量計算表!$H$22*【出力】CO2排出量計算表!$I$22*【出力】CO2排出量計算表!$J$22 -> 0 | AG37: =P37*(1/458)*【出力】CO2排出量計算表!$H$22*【出力】CO2排出量計算表!$I$22*【出力】CO2排出量計算表!$J$22 -> 0 | AH37: =Q37/1000*【出力】CO2排出量計算表!$H$24*【出力】CO2排出量計算表!$I$24*【出力】CO2排出量計算表!$J$24 -> 0 | AI37: =R37/1000*【出力】CO2排出量計算表!$H$24*【出力】CO2排出量計算表!$I$24*【出力】CO2排出量計算表!$J$24 -> 0 | AJ37: =S37/1000*【出力】CO2排出量計算表!$H$24*【出力】CO2排出量計算表!$I$24*【出力】CO2排出量計算表!$J$24 -> 0 | AK37: =T37/1000*【出力】CO2排出量計算表!$H$24*【出力】CO2排出量計算表!$I$24*【出力】CO2排出量計算表!$J$24 -> 0 | AL37: =U37/1000*45*'【入力】CO2算出（電気・都市ガス）'!$X$37*44/12 -> 0 | AM37: =V37/1000*45*'【入力】CO2算出（電気・都市ガス）'!$X$37*44/12 -> 0 | AN37: =W37*【出力】CO2排出量計算表!$H$16*【出力】CO2排出量計算表!$I$16*【出力】CO2排出量計算表!$J$16/1000 -> 0 | AO37: =X37*【出力】CO2排出量計算表!$H$16*【出力】CO2排出量計算表!$I$16*【出力】CO2排出量計算表!$J$16/1000 -> 0 | AP37: =Y37*【出力】CO2排出量計算表!$H$18*【出力】CO2排出量計算表!$I$18*【出力】CO2排出量計算表!$J$18/1000 -> 0 | AQ37: =Z37*【出力】CO2排出量計算表!$H$18*【出力】CO2排出量計算表!$I$18*【出力】CO2排出量計算表!$J$18/1000 -> 0 | AR37: 40.563873 | AS37: 40.057696 | AT37: 0.506177 | AU37: 照明設備14,000～15,000 | AV37: 照明設備 | AW37: 14,000～15,000 | AX37: 14,000 ～15,000 | AY37: 0 | AZ37: 0 | BA37: 0 | BB37: 0 | BC37: 0 | BD37: 製造業
A38: 製造業 | B38: =IFERROR(VLOOKUP(A38,【参照】選択リスト!$N$2:$O$22,2,FALSE),"") -> 製造業 | C38: 25,000～50,000 | D38: 40753000 | E38: 1302000 | F38: 空調・換気設備 | G38: 1948637 | H38: 1850400 | I38: 98237 | J38: =VLOOKUP(E38,【参照】選択リスト!$A$87:$B$108,2) -> 1,000～2,000 | K38: 58186 | L38: 57500 | W38: 1700 | X38: 1700 | AB38: 25.194538 | AC38: 24.8975 | AD38: =M38*(1/458)*【出力】CO2排出量計算表!$H$22*【出力】CO2排出量計算表!$I$22*【出力】CO2排出量計算表!$J$22 -> 0 | AE38: =N38*(1/458)*【出力】CO2排出量計算表!$H$22*【出力】CO2排出量計算表!$I$22*【出力】CO2排出量計算表!$J$22 -> 0 | AF38: =O38*(1/458)*【出力】CO2排出量計算表!$H$22*【出力】CO2排出量計算表!$I$22*【出力】CO2排出量計算表!$J$22 -> 0 | AG38: =P38*(1/458)*【出力】CO2排出量計算表!$H$22*【出力】CO2排出量計算表!$I$22*【出力】CO2排出量計算表!$J$22 -> 0 | AH38: =Q38/1000*【出力】CO2排出量計算表!$H$24*【出力】CO2排出量計算表!$I$24*【出力】CO2排出量計算表!$J$24 -> 0 | AI38: =R38/1000*【出力】CO2排出量計算表!$H$24*【出力】CO2排出量計算表!$I$24*【出力】CO2排出量計算表!$J$24 -> 0 | AJ38: =S38/1000*【出力】CO2排出量計算表!$H$24*【出力】CO2排出量計算表!$I$24*【出力】CO2排出量計算表!$J$24 -> 0 | AK38: =T38/1000*【出力】CO2排出量計算表!$H$24*【出力】CO2排出量計算表!$I$24*【出力】CO2排出量計算表!$J$24 -> 0 | AL38: =U38/1000*45*'【入力】CO2算出（電気・都市ガス）'!$X$37*44/12 -> 0 | AM38: =V38/1000*45*'【入力】CO2算出（電気・都市ガス）'!$X$37*44/12 -> 0 | AN38: =W38*【出力】CO2排出量計算表!$H$16*【出力】CO2排出量計算表!$I$16*【出力】CO2排出量計算表!$J$16/1000 -> 4.232121667 | AO38: =X38*【出力】CO2排出量計算表!$H$16*【出力】CO2排出量計算表!$I$16*【出力】CO2排出量計算表!$J$16/1000 -> 4.232121667 | AP38: =Y38*【出力】CO2排出量計算表!$H$18*【出力】CO2排出量計算表!$I$18*【出力】CO2排出量計算表!$J$18/1000 -> 0 | AQ38: =Z38*【出力】CO2排出量計算表!$H$18*【出力】CO2排出量計算表!$I$18*【出力】CO2排出量計算表!$J$18/1000 -> 0 | AR38: 29.42665967 | AS38: 29.12962167 | AT38: 0.297038 | AU38: 照明設備15,000～16,000 | AV38: 照明設備 | AW38: 15,000～16,000 | AX38: 15,000 ～16,000 | AY38: 1 | AZ38: 2780537 | BA38: 2780.537 | BB38: 37.22068 | BC38: 37.22068 | BD38: 製造業
A39: 製造業 | B39: =IFERROR(VLOOKUP(A39,【参照】選択リスト!$N$2:$O$22,2,FALSE),"") -> 製造業 | C39: 250,000～1,000,000 | D39: 540587201 | E39: 4190000 | F39: 空調・換気設備 | G39: 450435 | H39: 414400 | I39: 36035 | J39: =VLOOKUP(E39,【参照】選択リスト!$A$87:$B$108,2) -> 4,000～5,000 | K39: 22535 | L39: 20733 | AB39: 9.757655 | AC39: 8.977389 | AD39: =M39*(1/458)*【出力】CO2排出量計算表!$H$22*【出力】CO2排出量計算表!$I$22*【出力】CO2排出量計算表!$J$22 -> 0 | AE39: =N39*(1/458)*【出力】CO2排出量計算表!$H$22*【出力】CO2排出量計算表!$I$22*【出力】CO2排出量計算表!$J$22 -> 0 | AF39: =O39*(1/458)*【出力】CO2排出量計算表!$H$22*【出力】CO2排出量計算表!$I$22*【出力】CO2排出量計算表!$J$22 -> 0 | AG39: =P39*(1/458)*【出力】CO2排出量計算表!$H$22*【出力】CO2排出量計算表!$I$22*【出力】CO2排出量計算表!$J$22 -> 0 | AH39: =Q39/1000*【出力】CO2排出量計算表!$H$24*【出力】CO2排出量計算表!$I$24*【出力】CO2排出量計算表!$J$24 -> 0 | AI39: =R39/1000*【出力】CO2排出量計算表!$H$24*【出力】CO2排出量計算表!$I$24*【出力】CO2排出量計算表!$J$24 -> 0 | AJ39: =S39/1000*【出力】CO2排出量計算表!$H$24*【出力】CO2排出量計算表!$I$24*【出力】CO2排出量計算表!$J$24 -> 0 | AK39: =T39/1000*【出力】CO2排出量計算表!$H$24*【出力】CO2排出量計算表!$I$24*【出力】CO2排出量計算表!$J$24 -> 0 | AL39: =U39/1000*45*'【入力】CO2算出（電気・都市ガス）'!$X$37*44/12 -> 0 | AM39: =V39/1000*45*'【入力】CO2算出（電気・都市ガス）'!$X$37*44/12 -> 0 | AN39: =W39*【出力】CO2排出量計算表!$H$16*【出力】CO2排出量計算表!$I$16*【出力】CO2排出量計算表!$J$16/1000 -> 0 | AO39: =X39*【出力】CO2排出量計算表!$H$16*【出力】CO2排出量計算表!$I$16*【出力】CO2排出量計算表!$J$16/1000 -> 0 | AP39: =Y39*【出力】CO2排出量計算表!$H$18*【出力】CO2排出量計算表!$I$18*【出力】CO2排出量計算表!$J$18/1000 -> 0 | AQ39: =Z39*【出力】CO2排出量計算表!$H$18*【出力】CO2排出量計算表!$I$18*【出力】CO2排出量計算表!$J$18/1000 -> 0 | AR39: 9.757655 | AS39: 8.977389 | AT39: 0.780266 | AU39: =AV39&AW39 -> 照明設備16,000～17,000 | AV39: 照明設備 | AW39: 16,000～17,000 | AX39: 16,000 ～17,000 | AY39: 0 | AZ39: 0 | BA39: 0 | BB39: 0 | BC39: 0 | BD39: 製造業
A40: 製造業 | B40: =IFERROR(VLOOKUP(A40,【参照】選択リスト!$N$2:$O$22,2,FALSE),"") -> 製造業 | C40: 250,000～1,000,000 | D40: 497146371 | E40: 1800000 | F40: 照明設備 | G40: 24047076 | H40: 23590152 | I40: 456924 | J40: =VLOOKUP(E40,【参照】選択リスト!$A$87:$B$108,2) -> 1,000～2,000 | K40: 1253682 | L40: 1253597 | AB40: 542.844306 | AC40: 542.807501 | AD40: =M40*(1/458)*【出力】CO2排出量計算表!$H$22*【出力】CO2排出量計算表!$I$22*【出力】CO2排出量計算表!$J$22 -> 0 | AE40: =N40*(1/458)*【出力】CO2排出量計算表!$H$22*【出力】CO2排出量計算表!$I$22*【出力】CO2排出量計算表!$J$22 -> 0 | AF40: =O40*(1/458)*【出力】CO2排出量計算表!$H$22*【出力】CO2排出量計算表!$I$22*【出力】CO2排出量計算表!$J$22 -> 0 | AG40: =P40*(1/458)*【出力】CO2排出量計算表!$H$22*【出力】CO2排出量計算表!$I$22*【出力】CO2排出量計算表!$J$22 -> 0 | AH40: =Q40/1000*【出力】CO2排出量計算表!$H$24*【出力】CO2排出量計算表!$I$24*【出力】CO2排出量計算表!$J$24 -> 0 | AI40: =R40/1000*【出力】CO2排出量計算表!$H$24*【出力】CO2排出量計算表!$I$24*【出力】CO2排出量計算表!$J$24 -> 0 | AJ40: =S40/1000*【出力】CO2排出量計算表!$H$24*【出力】CO2排出量計算表!$I$24*【出力】CO2排出量計算表!$J$24 -> 0 | AK40: =T40/1000*【出力】CO2排出量計算表!$H$24*【出力】CO2排出量計算表!$I$24*【出力】CO2排出量計算表!$J$24 -> 0 | AL40: =U40/1000*45*'【入力】CO2算出（電気・都市ガス）'!$X$37*44/12 -> 0 | AM40: =V40/1000*45*'【入力】CO2算出（電気・都市ガス）'!$X$37*44/12 -> 0 | AN40: =W40*【出力】CO2排出量計算表!$H$16*【出力】CO2排出量計算表!$I$16*【出力】CO2排出量計算表!$J$16/1000 -> 0 | AO40: =X40*【出力】CO2排出量計算表!$H$16*【出力】CO2排出量計算表!$I$16*【出力】CO2排出量計算表!$J$16/1000 -> 0 | AP40: =Y40*【出力】CO2排出量計算表!$H$18*【出力】CO2排出量計算表!$I$18*【出力】CO2排出量計算表!$J$18/1000 -> 0 | AQ40: =Z40*【出力】CO2排出量計算表!$H$18*【出力】CO2排出量計算表!$I$18*【出力】CO2排出量計算表!$J$18/1000 -> 0 | AR40: 542.844306 | AS40: 542.807501 | AT40: 0.036805 | AU40: =AV40&AW40 -> 照明設備17,000～18,000 | AV40: 照明設備 | AW40: 17,000～18,000 | AX40: 17,000 ～18,000 | AY40: 0 | AZ40: 0 | BA40: 0 | BB40: 0 | BC40: 0 | BD40: 製造業
A41: 製造業 | B41: =IFERROR(VLOOKUP(A41,【参照】選択リスト!$N$2:$O$22,2,FALSE),"") -> 製造業 | C41: 250,000～1,000,000 | D41: 947182433 | E41: 1750000 | F41: 照明設備 | G41: 10263198 | H41: 9885512 | I41: 377686 | J41: =VLOOKUP(E41,【参照】選択リスト!$A$87:$B$108,2) -> 1,000～2,000 | K41: 659607 | L41: 635333 | AB41: 285.609831 | AC41: 275.099189 | AD41: =M41*(1/458)*【出力】CO2排出量計算表!$H$22*【出力】CO2排出量計算表!$I$22*【出力】CO2排出量計算表!$J$22 -> 0 | AE41: =N41*(1/458)*【出力】CO2排出量計算表!$H$22*【出力】CO2排出量計算表!$I$22*【出力】CO2排出量計算表!$J$22 -> 0 | AF41: =O41*(1/458)*【出力】CO2排出量計算表!$H$22*【出力】CO2排出量計算表!$I$22*【出力】CO2排出量計算表!$J$22 -> 0 | AG41: =P41*(1/458)*【出力】CO2排出量計算表!$H$22*【出力】CO2排出量計算表!$I$22*【出力】CO2排出量計算表!$J$22 -> 0 | AH41: =Q41/1000*【出力】CO2排出量計算表!$H$24*【出力】CO2排出量計算表!$I$24*【出力】CO2排出量計算表!$J$24 -> 0 | AI41: =R41/1000*【出力】CO2排出量計算表!$H$24*【出力】CO2排出量計算表!$I$24*【出力】CO2排出量計算表!$J$24 -> 0 | AJ41: =S41/1000*【出力】CO2排出量計算表!$H$24*【出力】CO2排出量計算表!$I$24*【出力】CO2排出量計算表!$J$24 -> 0 | AK41: =T41/1000*【出力】CO2排出量計算表!$H$24*【出力】CO2排出量計算表!$I$24*【出力】CO2排出量計算表!$J$24 -> 0 | AL41: =U41/1000*45*'【入力】CO2算出（電気・都市ガス）'!$X$37*44/12 -> 0 | AM41: =V41/1000*45*'【入力】CO2算出（電気・都市ガス）'!$X$37*44/12 -> 0 | AN41: =W41*【出力】CO2排出量計算表!$H$16*【出力】CO2排出量計算表!$I$16*【出力】CO2排出量計算表!$J$16/1000 -> 0 | AO41: =X41*【出力】CO2排出量計算表!$H$16*【出力】CO2排出量計算表!$I$16*【出力】CO2排出量計算表!$J$16/1000 -> 0 | AP41: =Y41*【出力】CO2排出量計算表!$H$18*【出力】CO2排出量計算表!$I$18*【出力】CO2排出量計算表!$J$18/1000 -> 0 | AQ41: =Z41*【出力】CO2排出量計算表!$H$18*【出力】CO2排出量計算表!$I$18*【出力】CO2排出量計算表!$J$18/1000 -> 0 | AR41: 285.609831 | AS41: 275.099189 | AT41: 10.510642 | AU41: =AV41&AW41 -> 照明設備18,000～19,000 | AV41: 照明設備 | AW41: 18,000～19,000 | AX41: 18,000 ～19,000 | AY41: 1 | AZ41: 1997125 | BA41: 1997.125 | BB41: 34.590205 | BC41: 34.590205 | BD41: 製造業
A42: 製造業 | B42: =IFERROR(VLOOKUP(A42,【参照】選択リスト!$N$2:$O$22,2,FALSE),"") -> 製造業 | C42: 50,000～75,000 | D42: 69216350 | E42: 8200000 | F42: 生産設備 | G42: 3608655 | H42: 3470000 | I42: 138655 | J42: =VLOOKUP(E42,【参照】選択リスト!$A$87:$B$108,2) -> 8,000～9,000 | K42: 144756 | L42: 139400 | AB42: 62.679348 | AC42: 60.3602 | AD42: =M42*(1/458)*【出力】CO2排出量計算表!$H$22*【出力】CO2排出量計算表!$I$22*【出力】CO2排出量計算表!$J$22 -> 0 | AE42: =N42*(1/458)*【出力】CO2排出量計算表!$H$22*【出力】CO2排出量計算表!$I$22*【出力】CO2排出量計算表!$J$22 -> 0 | AF42: =O42*(1/458)*【出力】CO2排出量計算表!$H$22*【出力】CO2排出量計算表!$I$22*【出力】CO2排出量計算表!$J$22 -> 0 | AG42: =P42*(1/458)*【出力】CO2排出量計算表!$H$22*【出力】CO2排出量計算表!$I$22*【出力】CO2排出量計算表!$J$22 -> 0 | AH42: =Q42/1000*【出力】CO2排出量計算表!$H$24*【出力】CO2排出量計算表!$I$24*【出力】CO2排出量計算表!$J$24 -> 0 | AI42: =R42/1000*【出力】CO2排出量計算表!$H$24*【出力】CO2排出量計算表!$I$24*【出力】CO2排出量計算表!$J$24 -> 0 | AJ42: =S42/1000*【出力】CO2排出量計算表!$H$24*【出力】CO2排出量計算表!$I$24*【出力】CO2排出量計算表!$J$24 -> 0 | AK42: =T42/1000*【出力】CO2排出量計算表!$H$24*【出力】CO2排出量計算表!$I$24*【出力】CO2排出量計算表!$J$24 -> 0 | AL42: =U42/1000*45*'【入力】CO2算出（電気・都市ガス）'!$X$37*44/12 -> 0 | AM42: =V42/1000*45*'【入力】CO2算出（電気・都市ガス）'!$X$37*44/12 -> 0 | AN42: =W42*【出力】CO2排出量計算表!$H$16*【出力】CO2排出量計算表!$I$16*【出力】CO2排出量計算表!$J$16/1000 -> 0 | AO42: =X42*【出力】CO2排出量計算表!$H$16*【出力】CO2排出量計算表!$I$16*【出力】CO2排出量計算表!$J$16/1000 -> 0 | AP42: =Y42*【出力】CO2排出量計算表!$H$18*【出力】CO2排出量計算表!$I$18*【出力】CO2排出量計算表!$J$18/1000 -> 0 | AQ42: =Z42*【出力】CO2排出量計算表!$H$18*【出力】CO2排出量計算表!$I$18*【出力】CO2排出量計算表!$J$18/1000 -> 0 | AR42: 62.679348 | AS42: 60.3602 | AT42: 2.319148 | AU42: =AV42&AW42 -> 照明設備19,000～20,000 | AV42: 照明設備 | AW42: 19,000～20,000 | AX42: 19,000 ～20,000 | AY42: 0 | AZ42: 0 | BA42: 0 | BB42: 0 | BC42: 0 | BD42: 製造業
A43: 製造業 | B43: =IFERROR(VLOOKUP(A43,【参照】選択リスト!$N$2:$O$22,2,FALSE),"") -> 製造業 | C43: 250,000～1,000,000 | D43: 800597365 | E43: 11700000 | F43: 生産設備 | G43: 8835368 | H43: 8716091 | I43: 119277 | J43: =VLOOKUP(E43,【参照】選択リスト!$A$87:$B$108,2) -> 11,000～12,000 | K43: 447240 | L43: 441202 | AB43: 193.65492 | AC43: 191.040466 | AD43: =M43*(1/458)*【出力】CO2排出量計算表!$H$22*【出力】CO2排出量計算表!$I$22*【出力】CO2排出量計算表!$J$22 -> 0 | AE43: =N43*(1/458)*【出力】CO2排出量計算表!$H$22*【出力】CO2排出量計算表!$I$22*【出力】CO2排出量計算表!$J$22 -> 0 | AF43: =O43*(1/458)*【出力】CO2排出量計算表!$H$22*【出力】CO2排出量計算表!$I$22*【出力】CO2排出量計算表!$J$22 -> 0 | AG43: =P43*(1/458)*【出力】CO2排出量計算表!$H$22*【出力】CO2排出量計算表!$I$22*【出力】CO2排出量計算表!$J$22 -> 0 | AH43: =Q43/1000*【出力】CO2排出量計算表!$H$24*【出力】CO2排出量計算表!$I$24*【出力】CO2排出量計算表!$J$24 -> 0 | AI43: =R43/1000*【出力】CO2排出量計算表!$H$24*【出力】CO2排出量計算表!$I$24*【出力】CO2排出量計算表!$J$24 -> 0 | AJ43: =S43/1000*【出力】CO2排出量計算表!$H$24*【出力】CO2排出量計算表!$I$24*【出力】CO2排出量計算表!$J$24 -> 0 | AK43: =T43/1000*【出力】CO2排出量計算表!$H$24*【出力】CO2排出量計算表!$I$24*【出力】CO2排出量計算表!$J$24 -> 0 | AL43: =U43/1000*45*'【入力】CO2算出（電気・都市ガス）'!$X$37*44/12 -> 0 | AM43: =V43/1000*45*'【入力】CO2算出（電気・都市ガス）'!$X$37*44/12 -> 0 | AN43: =W43*【出力】CO2排出量計算表!$H$16*【出力】CO2排出量計算表!$I$16*【出力】CO2排出量計算表!$J$16/1000 -> 0 | AO43: =X43*【出力】CO2排出量計算表!$H$16*【出力】CO2排出量計算表!$I$16*【出力】CO2排出量計算表!$J$16/1000 -> 0 | AP43: =Y43*【出力】CO2排出量計算表!$H$18*【出力】CO2排出量計算表!$I$18*【出力】CO2排出量計算表!$J$18/1000 -> 0 | AQ43: =Z43*【出力】CO2排出量計算表!$H$18*【出力】CO2排出量計算表!$I$18*【出力】CO2排出量計算表!$J$18/1000 -> 0 | AR43: 193.65492 | AS43: 191.040466 | AT43: 2.614454 | AU43: =AV43&AW43 -> 照明設備20,000～ | AV43: 照明設備 | AW43: 20,000～ | AX43: 20,000～ | AY43: 0 | AZ43: 0 | BA43: 0 | BB43: 0 | BC43: 0 | BD43: 製造業
A44: 製造業 | B44: =IFERROR(VLOOKUP(A44,【参照】選択リスト!$N$2:$O$22,2,FALSE),"") -> 製造業 | C44: 3,000,000～ | D44: 4342333980 | E44: 2300000 | F44: 照明設備 | G44: 523212 | H44: 121559 | I44: 401653 | J44: =VLOOKUP(E44,【参照】選択リスト!$A$87:$B$108,2) -> 2,000～3,000 | K44: 23049 | L44: 5355 | AB44: 9.980217 | AC44: 2.318715 | AD44: =M44*(1/458)*【出力】CO2排出量計算表!$H$22*【出力】CO2排出量計算表!$I$22*【出力】CO2排出量計算表!$J$22 -> 0 | AE44: =N44*(1/458)*【出力】CO2排出量計算表!$H$22*【出力】CO2排出量計算表!$I$22*【出力】CO2排出量計算表!$J$22 -> 0 | AF44: =O44*(1/458)*【出力】CO2排出量計算表!$H$22*【出力】CO2排出量計算表!$I$22*【出力】CO2排出量計算表!$J$22 -> 0 | AG44: =P44*(1/458)*【出力】CO2排出量計算表!$H$22*【出力】CO2排出量計算表!$I$22*【出力】CO2排出量計算表!$J$22 -> 0 | AH44: =Q44/1000*【出力】CO2排出量計算表!$H$24*【出力】CO2排出量計算表!$I$24*【出力】CO2排出量計算表!$J$24 -> 0 | AI44: =R44/1000*【出力】CO2排出量計算表!$H$24*【出力】CO2排出量計算表!$I$24*【出力】CO2排出量計算表!$J$24 -> 0 | AJ44: =S44/1000*【出力】CO2排出量計算表!$H$24*【出力】CO2排出量計算表!$I$24*【出力】CO2排出量計算表!$J$24 -> 0 | AK44: =T44/1000*【出力】CO2排出量計算表!$H$24*【出力】CO2排出量計算表!$I$24*【出力】CO2排出量計算表!$J$24 -> 0 | AL44: =U44/1000*45*'【入力】CO2算出（電気・都市ガス）'!$X$37*44/12 -> 0 | AM44: =V44/1000*45*'【入力】CO2算出（電気・都市ガス）'!$X$37*44/12 -> 0 | AN44: =W44*【出力】CO2排出量計算表!$H$16*【出力】CO2排出量計算表!$I$16*【出力】CO2排出量計算表!$J$16/1000 -> 0 | AO44: =X44*【出力】CO2排出量計算表!$H$16*【出力】CO2排出量計算表!$I$16*【出力】CO2排出量計算表!$J$16/1000 -> 0 | AP44: =Y44*【出力】CO2排出量計算表!$H$18*【出力】CO2排出量計算表!$I$18*【出力】CO2排出量計算表!$J$18/1000 -> 0 | AQ44: =Z44*【出力】CO2排出量計算表!$H$18*【出力】CO2排出量計算表!$I$18*【出力】CO2排出量計算表!$J$18/1000 -> 0 | AR44: 9.980217 | AS44: 2.318715 | AT44: 7.661502 | AU44: =AV44&AW44 -> 冷蔵・冷凍設備1～1,000 | AV44: 冷蔵・冷凍設備 | AW44: 1～1,000 | AX44: 1 ～1,000 | AY44: 112 | AZ44: 5902143 | BA44: 52.69770536 | BB44: 99.47028849 | BC44: 0.8881275758 | BD44: 製造業
A45: 金融業・保険業 | B45: =IFERROR(VLOOKUP(A45,【参照】選択リスト!$N$2:$O$22,2,FALSE),"") -> サービス業，その他 | C45: 25,000～50,000 | D45: 45193005 | E45: 1700000 | F45: 空調・換気設備 | G45: 268000 | H45: 245000 | I45: 23000 | J45: =VLOOKUP(E45,【参照】選択リスト!$A$87:$B$108,2) -> 1,000～2,000 | K45: 4450 | L45: 4200 | AB45: 1.92685 | AC45: 1.8186 | AD45: =M45*(1/458)*【出力】CO2排出量計算表!$H$22*【出力】CO2排出量計算表!$I$22*【出力】CO2排出量計算表!$J$22 -> 0 | AE45: =N45*(1/458)*【出力】CO2排出量計算表!$H$22*【出力】CO2排出量計算表!$I$22*【出力】CO2排出量計算表!$J$22 -> 0 | AF45: =O45*(1/458)*【出力】CO2排出量計算表!$H$22*【出力】CO2排出量計算表!$I$22*【出力】CO2排出量計算表!$J$22 -> 0 | AG45: =P45*(1/458)*【出力】CO2排出量計算表!$H$22*【出力】CO2排出量計算表!$I$22*【出力】CO2排出量計算表!$J$22 -> 0 | AH45: =Q45/1000*【出力】CO2排出量計算表!$H$24*【出力】CO2排出量計算表!$I$24*【出力】CO2排出量計算表!$J$24 -> 0 | AI45: =R45/1000*【出力】CO2排出量計算表!$H$24*【出力】CO2排出量計算表!$I$24*【出力】CO2排出量計算表!$J$24 -> 0 | AJ45: =S45/1000*【出力】CO2排出量計算表!$H$24*【出力】CO2排出量計算表!$I$24*【出力】CO2排出量計算表!$J$24 -> 0 | AK45: =T45/1000*【出力】CO2排出量計算表!$H$24*【出力】CO2排出量計算表!$I$24*【出力】CO2排出量計算表!$J$24 -> 0 | AL45: =U45/1000*45*'【入力】CO2算出（電気・都市ガス）'!$X$37*44/12 -> 0 | AM45: =V45/1000*45*'【入力】CO2算出（電気・都市ガス）'!$X$37*44/12 -> 0 | AN45: =W45*【出力】CO2排出量計算表!$H$16*【出力】CO2排出量計算表!$I$16*【出力】CO2排出量計算表!$J$16/1000 -> 0 | AO45: =X45*【出力】CO2排出量計算表!$H$16*【出力】CO2排出量計算表!$I$16*【出力】CO2排出量計算表!$J$16/1000 -> 0 | AP45: =Y45*【出力】CO2排出量計算表!$H$18*【出力】CO2排出量計算表!$I$18*【出力】CO2排出量計算表!$J$18/1000 -> 0 | AQ45: =Z45*【出力】CO2排出量計算表!$H$18*【出力】CO2排出量計算表!$I$18*【出力】CO2排出量計算表!$J$18/1000 -> 0 | AR45: 1.92685 | AS45: 1.8186 | AT45: 0.10825 | AU45: 冷蔵・冷凍設備1,000～2,000 | AV45: 冷蔵・冷凍設備 | AW45: 1,000～2,000 | AX45: 1,000 ～2,000 | AY45: 53 | AZ45: 4318196 | BA45: 81.47539623 | BB45: 77.390956 | BC45: 1.460206717 | BD45: サービス業
A46: 宿泊業，飲食サービス業 | B46: =IFERROR(VLOOKUP(A46,【参照】選択リスト!$N$2:$O$22,2,FALSE),"") -> 宿泊業，飲食サービス業 | C46: 5,000～10,000 | D46: 8060324 | E46: 1074200 | F46: 空調・換気設備 | G46: 867041 | H46: 736950 | I46: 130091 | J46: =VLOOKUP(E46,【参照】選択リスト!$A$87:$B$108,2) -> 1,000～2,000 | K46: 26243 | L46: 22743 | M46: 195.5 | N46: 190 | W46: 520 | X46: 452 | Y46: 1000 | Z46: 600 | AB46: 11.363219 | AC46: 9.847719 | AD46: =M46*(1/458)*【出力】CO2排出量計算表!$H$22*【出力】CO2排出量計算表!$I$22*【出力】CO2排出量計算表!$J$22 -> 1.280095298 | AE46: =N46*(1/458)*【出力】CO2排出量計算表!$H$22*【出力】CO2排出量計算表!$I$22*【出力】CO2排出量計算表!$J$22 -> 1.244082387 | AF46: =O46*(1/458)*【出力】CO2排出量計算表!$H$22*【出力】CO2排出量計算表!$I$22*【出力】CO2排出量計算表!$J$22 -> 0 | AG46: =P46*(1/458)*【出力】CO2排出量計算表!$H$22*【出力】CO2排出量計算表!$I$22*【出力】CO2排出量計算表!$J$22 -> 0 | AH46: =Q46/1000*【出力】CO2排出量計算表!$H$24*【出力】CO2排出量計算表!$I$24*【出力】CO2排出量計算表!$J$24 -> 0 | AI46: =R46/1000*【出力】CO2排出量計算表!$H$24*【出力】CO2排出量計算表!$I$24*【出力】CO2排出量計算表!$J$24 -> 0 | AJ46: =S46/1000*【出力】CO2排出量計算表!$H$24*【出力】CO2排出量計算表!$I$24*【出力】CO2排出量計算表!$J$24 -> 0 | AK46: =T46/1000*【出力】CO2排出量計算表!$H$24*【出力】CO2排出量計算表!$I$24*【出力】CO2排出量計算表!$J$24 -> 0 | AL46: =U46/1000*45*'【入力】CO2算出（電気・都市ガス）'!$X$37*44/12 -> 0 | AM46: =V46/1000*45*'【入力】CO2算出（電気・都市ガス）'!$X$37*44/12 -> 0 | AN46: =W46*【出力】CO2排出量計算表!$H$16*【出力】CO2排出量計算表!$I$16*【出力】CO2排出量計算表!$J$16/1000 -> 1.294531333 | AO46: =X46*【出力】CO2排出量計算表!$H$16*【出力】CO2排出量計算表!$I$16*【出力】CO2排出量計算表!$J$16/1000 -> 1.125246467 | AP46: =Y46*【出力】CO2排出量計算表!$H$18*【出力】CO2排出量計算表!$I$18*【出力】CO2排出量計算表!$J$18/1000 -> 2.70963 | AQ46: =Z46*【出力】CO2排出量計算表!$H$18*【出力】CO2排出量計算表!$I$18*【出力】CO2排出量計算表!$J$18/1000 -> 1.625778 | AR46: 16.64747563 | AS46: 13.84282585 | AT46: 2.804649778 | AU46: 冷蔵・冷凍設備2,000～3,000 | AV46: 冷蔵・冷凍設備 | AW46: 2,000～3,000 | AX46: 2,000 ～3,000 | AY46: 11 | AZ46: 1963265 | BA46: 178.4786364 | BB46: 38.0912265 | BC46: 3.462838773 | BD46: 宿泊業
A47: 生活関連サービス業，娯楽業 | B47: =IFERROR(VLOOKUP(A47,【参照】選択リスト!$N$2:$O$22,2,FALSE),"") -> サービス業，その他 | C47: ～10,000 | D47: 3317890 | E47: 940000 | F47: 空調・換気設備 | G47: 19296 | H47: 14016 | I47: 5280 | J47: =VLOOKUP(E47,【参照】選択リスト!$A$87:$B$108,2) -> 1～1,000 | K47: 603 | L47: 438 | AB47: 0.261099 | AC47: 0.189654 | AD47: =M47*(1/458)*【出力】CO2排出量計算表!$H$22*【出力】CO2排出量計算表!$I$22*【出力】CO2排出量計算表!$J$22 -> 0 | AE47: =N47*(1/458)*【出力】CO2排出量計算表!$H$22*【出力】CO2排出量計算表!$I$22*【出力】CO2排出量計算表!$J$22 -> 0 | AF47: =O47*(1/458)*【出力】CO2排出量計算表!$H$22*【出力】CO2排出量計算表!$I$22*【出力】CO2排出量計算表!$J$22 -> 0 | AG47: =P47*(1/458)*【出力】CO2排出量計算表!$H$22*【出力】CO2排出量計算表!$I$22*【出力】CO2排出量計算表!$J$22 -> 0 | AH47: =Q47/1000*【出力】CO2排出量計算表!$H$24*【出力】CO2排出量計算表!$I$24*【出力】CO2排出量計算表!$J$24 -> 0 | AI47: =R47/1000*【出力】CO2排出量計算表!$H$24*【出力】CO2排出量計算表!$I$24*【出力】CO2排出量計算表!$J$24 -> 0 | AJ47: =S47/1000*【出力】CO2排出量計算表!$H$24*【出力】CO2排出量計算表!$I$24*【出力】CO2排出量計算表!$J$24 -> 0 | AK47: =T47/1000*【出力】CO2排出量計算表!$H$24*【出力】CO2排出量計算表!$I$24*【出力】CO2排出量計算表!$J$24 -> 0 | AL47: =U47/1000*45*'【入力】CO2算出（電気・都市ガス）'!$X$37*44/12 -> 0 | AM47: =V47/1000*45*'【入力】CO2算出（電気・都市ガス）'!$X$37*44/12 -> 0 | AN47: =W47*【出力】CO2排出量計算表!$H$16*【出力】CO2排出量計算表!$I$16*【出力】CO2排出量計算表!$J$16/1000 -> 0 | AO47: =X47*【出力】CO2排出量計算表!$H$16*【出力】CO2排出量計算表!$I$16*【出力】CO2排出量計算表!$J$16/1000 -> 0 | AP47: =Y47*【出力】CO2排出量計算表!$H$18*【出力】CO2排出量計算表!$I$18*【出力】CO2排出量計算表!$J$18/1000 -> 0 | AQ47: =Z47*【出力】CO2排出量計算表!$H$18*【出力】CO2排出量計算表!$I$18*【出力】CO2排出量計算表!$J$18/1000 -> 0 | AR47: 0.261099 | AS47: 0.189654 | AT47: 0.071445 | AU47: 冷蔵・冷凍設備3,000～4,000 | AV47: 冷蔵・冷凍設備 | AW47: 3,000～4,000 | AX47: 3,000 ～4,000 | AY47: 7 | AZ47: 1478869 | BA47: 211.267 | BB47: 24.723001 | BC47: 3.531857286 | BD47: サービス業
A48: 製造業 | B48: =IFERROR(VLOOKUP(A48,【参照】選択リスト!$N$2:$O$22,2,FALSE),"") -> 製造業 | C48: 50,000～75,000 | D48: 64415632 | E48: 1100000 | F48: 空調・換気設備 | G48: 319516 | H48: 234615 | I48: 84901 | J48: =VLOOKUP(E48,【参照】選択リスト!$A$87:$B$108,2) -> 1,000～2,000 | L48: 11151 | W48: 2792 | AB48: 0 | AC48: 4.828383 | AD48: =M48*(1/458)*【出力】CO2排出量計算表!$H$22*【出力】CO2排出量計算表!$I$22*【出力】CO2排出量計算表!$J$22 -> 0 | AE48: =N48*(1/458)*【出力】CO2排出量計算表!$H$22*【出力】CO2排出量計算表!$I$22*【出力】CO2排出量計算表!$J$22 -> 0 | AF48: =O48*(1/458)*【出力】CO2排出量計算表!$H$22*【出力】CO2排出量計算表!$I$22*【出力】CO2排出量計算表!$J$22 -> 0 | AG48: =P48*(1/458)*【出力】CO2排出量計算表!$H$22*【出力】CO2排出量計算表!$I$22*【出力】CO2排出量計算表!$J$22 -> 0 | AH48: =Q48/1000*【出力】CO2排出量計算表!$H$24*【出力】CO2排出量計算表!$I$24*【出力】CO2排出量計算表!$J$24 -> 0 | AI48: =R48/1000*【出力】CO2排出量計算表!$H$24*【出力】CO2排出量計算表!$I$24*【出力】CO2排出量計算表!$J$24 -> 0 | AJ48: =S48/1000*【出力】CO2排出量計算表!$H$24*【出力】CO2排出量計算表!$I$24*【出力】CO2排出量計算表!$J$24 -> 0 | AK48: =T48/1000*【出力】CO2排出量計算表!$H$24*【出力】CO2排出量計算表!$I$24*【出力】CO2排出量計算表!$J$24 -> 0 | AL48: =U48/1000*45*'【入力】CO2算出（電気・都市ガス）'!$X$37*44/12 -> 0 | AM48: =V48/1000*45*'【入力】CO2算出（電気・都市ガス）'!$X$37*44/12 -> 0 | AN48: =W48*【出力】CO2排出量計算表!$H$16*【出力】CO2排出量計算表!$I$16*【出力】CO2排出量計算表!$J$16/1000 -> 6.950637467 | AO48: =X48*【出力】CO2排出量計算表!$H$16*【出力】CO2排出量計算表!$I$16*【出力】CO2排出量計算表!$J$16/1000 -> 0 | AP48: =Y48*【出力】CO2排出量計算表!$H$18*【出力】CO2排出量計算表!$I$18*【出力】CO2排出量計算表!$J$18/1000 -> 0 | AQ48: =Z48*【出力】CO2排出量計算表!$H$18*【出力】CO2排出量計算表!$I$18*【出力】CO2排出量計算表!$J$18/1000 -> 0 | AR48: 6.950637467 | AS48: 4.828383 | AT48: 2.122254467 | AU48: 冷蔵・冷凍設備4,000～5,000 | AV48: 冷蔵・冷凍設備 | AW48: 4,000～5,000 | AX48: 4,000 ～5,000 | AY48: 3 | AZ48: 1201908 | BA48: 400.636 | BB48: 19.654303 | BC48: 6.551434333 | BD48: 製造業
A49: 製造業 | B49: =IFERROR(VLOOKUP(A49,【参照】選択リスト!$N$2:$O$22,2,FALSE),"") -> 製造業 | C49: 250,000～1,000,000 | D49: 250000000 | E49: 1473000 | F49: 照明設備 | G49: 569000 | H49: 227000 | I49: 342000 | J49: =VLOOKUP(E49,【参照】選択リスト!$A$87:$B$108,2) -> 1,000～2,000 | K49: 18969 | L49: 7588 | AB49: 8.213577 | AC49: 3.285604 | AD49: =M49*(1/458)*【出力】CO2排出量計算表!$H$22*【出力】CO2排出量計算表!$I$22*【出力】CO2排出量計算表!$J$22 -> 0 | AE49: =N49*(1/458)*【出力】CO2排出量計算表!$H$22*【出力】CO2排出量計算表!$I$22*【出力】CO2排出量計算表!$J$22 -> 0 | AF49: =O49*(1/458)*【出力】CO2排出量計算表!$H$22*【出力】CO2排出量計算表!$I$22*【出力】CO2排出量計算表!$J$22 -> 0 | AG49: =P49*(1/458)*【出力】CO2排出量計算表!$H$22*【出力】CO2排出量計算表!$I$22*【出力】CO2排出量計算表!$J$22 -> 0 | AH49: =Q49/1000*【出力】CO2排出量計算表!$H$24*【出力】CO2排出量計算表!$I$24*【出力】CO2排出量計算表!$J$24 -> 0 | AI49: =R49/1000*【出力】CO2排出量計算表!$H$24*【出力】CO2排出量計算表!$I$24*【出力】CO2排出量計算表!$J$24 -> 0 | AJ49: =S49/1000*【出力】CO2排出量計算表!$H$24*【出力】CO2排出量計算表!$I$24*【出力】CO2排出量計算表!$J$24 -> 0 | AK49: =T49/1000*【出力】CO2排出量計算表!$H$24*【出力】CO2排出量計算表!$I$24*【出力】CO2排出量計算表!$J$24 -> 0 | AL49: =U49/1000*45*'【入力】CO2算出（電気・都市ガス）'!$X$37*44/12 -> 0 | AM49: =V49/1000*45*'【入力】CO2算出（電気・都市ガス）'!$X$37*44/12 -> 0 | AN49: =W49*【出力】CO2排出量計算表!$H$16*【出力】CO2排出量計算表!$I$16*【出力】CO2排出量計算表!$J$16/1000 -> 0 | AO49: =X49*【出力】CO2排出量計算表!$H$16*【出力】CO2排出量計算表!$I$16*【出力】CO2排出量計算表!$J$16/1000 -> 0 | AP49: =Y49*【出力】CO2排出量計算表!$H$18*【出力】CO2排出量計算表!$I$18*【出力】CO2排出量計算表!$J$18/1000 -> 0 | AQ49: =Z49*【出力】CO2排出量計算表!$H$18*【出力】CO2排出量計算表!$I$18*【出力】CO2排出量計算表!$J$18/1000 -> 0 | AR49: 8.213577 | AS49: 3.285604 | AT49: 4.927973 | AU49: 冷蔵・冷凍設備5,000～6,000 | AV49: 冷蔵・冷凍設備 | AW49: 5,000～6,000 | AX49: 5,000 ～6,000 | AY49: 0 | AZ49: 0 | BA49: 0 | BB49: 0 | BC49: 0 | BD49: 製造業
A50: 宿泊業，飲食サービス業 | B50: =IFERROR(VLOOKUP(A50,【参照】選択リスト!$N$2:$O$22,2,FALSE),"") -> 宿泊業，飲食サービス業 | C50: 5,000～10,000 | D50: 7208455 | E50: 1510000 | F50: 空調・換気設備 | G50: 247582 | H50: 227476 | I50: 20106 | J50: =VLOOKUP(E50,【参照】選択リスト!$A$87:$B$108,2) -> 1,000～2,000 | K50: 6748 | L50: 6200 | AB50: 2.921884 | AC50: 2.6846 | AD50: =M50*(1/458)*【出力】CO2排出量計算表!$H$22*【出力】CO2排出量計算表!$I$22*【出力】CO2排出量計算表!$J$22 -> 0 | AE50: =N50*(1/458)*【出力】CO2排出量計算表!$H$22*【出力】CO2排出量計算表!$I$22*【出力】CO2排出量計算表!$J$22 -> 0 | AF50: =O50*(1/458)*【出力】CO2排出量計算表!$H$22*【出力】CO2排出量計算表!$I$22*【出力】CO2排出量計算表!$J$22 -> 0 | AG50: =P50*(1/458)*【出力】CO2排出量計算表!$H$22*【出力】CO2排出量計算表!$I$22*【出力】CO2排出量計算表!$J$22 -> 0 | AH50: =Q50/1000*【出力】CO2排出量計算表!$H$24*【出力】CO2排出量計算表!$I$24*【出力】CO2排出量計算表!$J$24 -> 0 | AI50: =R50/1000*【出力】CO2排出量計算表!$H$24*【出力】CO2排出量計算表!$I$24*【出力】CO2排出量計算表!$J$24 -> 0 | AJ50: =S50/1000*【出力】CO2排出量計算表!$H$24*【出力】CO2排出量計算表!$I$24*【出力】CO2排出量計算表!$J$24 -> 0 | AK50: =T50/1000*【出力】CO2排出量計算表!$H$24*【出力】CO2排出量計算表!$I$24*【出力】CO2排出量計算表!$J$24 -> 0 | AL50: =U50/1000*45*'【入力】CO2算出（電気・都市ガス）'!$X$37*44/12 -> 0 | AM50: =V50/1000*45*'【入力】CO2算出（電気・都市ガス）'!$X$37*44/12 -> 0 | AN50: =W50*【出力】CO2排出量計算表!$H$16*【出力】CO2排出量計算表!$I$16*【出力】CO2排出量計算表!$J$16/1000 -> 0 | AO50: =X50*【出力】CO2排出量計算表!$H$16*【出力】CO2排出量計算表!$I$16*【出力】CO2排出量計算表!$J$16/1000 -> 0 | AP50: =Y50*【出力】CO2排出量計算表!$H$18*【出力】CO2排出量計算表!$I$18*【出力】CO2排出量計算表!$J$18/1000 -> 0 | AQ50: =Z50*【出力】CO2排出量計算表!$H$18*【出力】CO2排出量計算表!$I$18*【出力】CO2排出量計算表!$J$18/1000 -> 0 | AR50: 2.921884 | AS50: 2.6846 | AT50: 0.237284 | AU50: =AV50&AW50 -> 冷蔵・冷凍設備6,000～7,000 | AV50: 冷蔵・冷凍設備 | AW50: 6,000～7,000 | AX50: 6,000 ～7,000 | AY50: 0 | AZ50: 0 | BA50: 0 | BB50: 0 | BC50: 0 | BD50: 宿泊業
A51: 不動産業，物品賃貸業 | B51: =IFERROR(VLOOKUP(A51,【参照】選択リスト!$N$2:$O$22,2,FALSE),"") -> サービス業，その他 | C51: 50,000～100,000 | D51: 61252000 | E51: 9391955 | F51: 照明設備 | G51: 1537425 | H51: 706750 | I51: 830675 | J51: =VLOOKUP(E51,【参照】選択リスト!$A$87:$B$108,2) -> 9,000～10,000 | K51: 61497 | L51: 28270 | AB51: 26.628201 | AC51: 12.24091 | AD51: =M51*(1/458)*【出力】CO2排出量計算表!$H$22*【出力】CO2排出量計算表!$I$22*【出力】CO2排出量計算表!$J$22 -> 0 | AE51: =N51*(1/458)*【出力】CO2排出量計算表!$H$22*【出力】CO2排出量計算表!$I$22*【出力】CO2排出量計算表!$J$22 -> 0 | AF51: =O51*(1/458)*【出力】CO2排出量計算表!$H$22*【出力】CO2排出量計算表!$I$22*【出力】CO2排出量計算表!$J$22 -> 0 | AG51: =P51*(1/458)*【出力】CO2排出量計算表!$H$22*【出力】CO2排出量計算表!$I$22*【出力】CO2排出量計算表!$J$22 -> 0 | AH51: =Q51/1000*【出力】CO2排出量計算表!$H$24*【出力】CO2排出量計算表!$I$24*【出力】CO2排出量計算表!$J$24 -> 0 | AI51: =R51/1000*【出力】CO2排出量計算表!$H$24*【出力】CO2排出量計算表!$I$24*【出力】CO2排出量計算表!$J$24 -> 0 | AJ51: =S51/1000*【出力】CO2排出量計算表!$H$24*【出力】CO2排出量計算表!$I$24*【出力】CO2排出量計算表!$J$24 -> 0 | AK51: =T51/1000*【出力】CO2排出量計算表!$H$24*【出力】CO2排出量計算表!$I$24*【出力】CO2排出量計算表!$J$24 -> 0 | AL51: =U51/1000*45*'【入力】CO2算出（電気・都市ガス）'!$X$37*44/12 -> 0 | AM51: =V51/1000*45*'【入力】CO2算出（電気・都市ガス）'!$X$37*44/12 -> 0 | AN51: =W51*【出力】CO2排出量計算表!$H$16*【出力】CO2排出量計算表!$I$16*【出力】CO2排出量計算表!$J$16/1000 -> 0 | AO51: =X51*【出力】CO2排出量計算表!$H$16*【出力】CO2排出量計算表!$I$16*【出力】CO2排出量計算表!$J$16/1000 -> 0 | AP51: =Y51*【出力】CO2排出量計算表!$H$18*【出力】CO2排出量計算表!$I$18*【出力】CO2排出量計算表!$J$18/1000 -> 0 | AQ51: =Z51*【出力】CO2排出量計算表!$H$18*【出力】CO2排出量計算表!$I$18*【出力】CO2排出量計算表!$J$18/1000 -> 0 | AR51: 26.628201 | AS51: 12.24091 | AT51: 14.387291 | AU51: 冷蔵・冷凍設備7,000～8,000 | AV51: 冷蔵・冷凍設備 | AW51: 7,000～8,000 | AX51: 7,000 ～8,000 | AY51: 0 | AZ51: 0 | BA51: 0 | BB51: 0 | BC51: 0 | BD51: サービス業
A52: 不動産業，物品賃貸業 | B52: =IFERROR(VLOOKUP(A52,【参照】選択リスト!$N$2:$O$22,2,FALSE),"") -> サービス業，その他 | C52: 1,000,000～ | D52: 1135821021 | E52: 2600000 | F52: 空調・換気設備 | G52: 2246412 | H52: 1961817 | I52: 284595 | J52: =VLOOKUP(E52,【参照】選択リスト!$A$87:$B$108,2) -> 2,000～3,000 | K52: 70077 | L52: 62029 | M52: 97.1 | N52: 97.1 | W52: 1945 | X52: 1500 | AB52: 30.343341 | AC52: 26.858557 | AD52: =M52*(1/458)*【出力】CO2排出量計算表!$H$22*【出力】CO2排出量計算表!$I$22*【出力】CO2排出量計算表!$J$22 -> 0.6357915779 | AE52: =N52*(1/458)*【出力】CO2排出量計算表!$H$22*【出力】CO2排出量計算表!$I$22*【出力】CO2排出量計算表!$J$22 -> 0.6357915779 | AF52: =O52*(1/458)*【出力】CO2排出量計算表!$H$22*【出力】CO2排出量計算表!$I$22*【出力】CO2排出量計算表!$J$22 -> 0 | AG52: =P52*(1/458)*【出力】CO2排出量計算表!$H$22*【出力】CO2排出量計算表!$I$22*【出力】CO2排出量計算表!$J$22 -> 0 | AH52: =Q52/1000*【出力】CO2排出量計算表!$H$24*【出力】CO2排出量計算表!$I$24*【出力】CO2排出量計算表!$J$24 -> 0 | AI52: =R52/1000*【出力】CO2排出量計算表!$H$24*【出力】CO2排出量計算表!$I$24*【出力】CO2排出量計算表!$J$24 -> 0 | AJ52: =S52/1000*【出力】CO2排出量計算表!$H$24*【出力】CO2排出量計算表!$I$24*【出力】CO2排出量計算表!$J$24 -> 0 | AK52: =T52/1000*【出力】CO2排出量計算表!$H$24*【出力】CO2排出量計算表!$I$24*【出力】CO2排出量計算表!$J$24 -> 0 | AL52: =U52/1000*45*'【入力】CO2算出（電気・都市ガス）'!$X$37*44/12 -> 0 | AM52: =V52/1000*45*'【入力】CO2算出（電気・都市ガス）'!$X$37*44/12 -> 0 | AN52: =W52*【出力】CO2排出量計算表!$H$16*【出力】CO2排出量計算表!$I$16*【出力】CO2排出量計算表!$J$16/1000 -> 4.842045083 | AO52: =X52*【出力】CO2排出量計算表!$H$16*【出力】CO2排出量計算表!$I$16*【出力】CO2排出量計算表!$J$16/1000 -> 3.734225 | AP52: =Y52*【出力】CO2排出量計算表!$H$18*【出力】CO2排出量計算表!$I$18*【出力】CO2排出量計算表!$J$18/1000 -> 0 | AQ52: =Z52*【出力】CO2排出量計算表!$H$18*【出力】CO2排出量計算表!$I$18*【出力】CO2排出量計算表!$J$18/1000 -> 0 | AR52: 35.82117766 | AS52: 31.22857358 | AT52: 4.592604083 | AU52: 冷蔵・冷凍設備8,000～9,000 | AV52: 冷蔵・冷凍設備 | AW52: 8,000～9,000 | AX52: 8,000 ～9,000 | AY52: 2 | AZ52: 2617032 | BA52: 1308.516 | BB52: 32.09829 | BC52: 16.049145 | BD52: サービス業
A53: 宿泊業，飲食サービス業 | B53: =IFERROR(VLOOKUP(A53,【参照】選択リスト!$N$2:$O$22,2,FALSE),"") -> 宿泊業，飲食サービス業 | C53: 25,000～50,000 | D53: 35869352 | E53: 1490000 | F53: 冷蔵・冷凍設備 | G53: 106380 | H53: 34560 | I53: 71820 | J53: =VLOOKUP(E53,【参照】選択リスト!$A$87:$B$108,2) -> 1,000～2,000 | K53: 3940 | L53: 1280 | AB53: 1.70602 | AC53: 0.55424 | AD53: =M53*(1/458)*【出力】CO2排出量計算表!$H$22*【出力】CO2排出量計算表!$I$22*【出力】CO2排出量計算表!$J$22 -> 0 | AE53: =N53*(1/458)*【出力】CO2排出量計算表!$H$22*【出力】CO2排出量計算表!$I$22*【出力】CO2排出量計算表!$J$22 -> 0 | AF53: =O53*(1/458)*【出力】CO2排出量計算表!$H$22*【出力】CO2排出量計算表!$I$22*【出力】CO2排出量計算表!$J$22 -> 0 | AG53: =P53*(1/458)*【出力】CO2排出量計算表!$H$22*【出力】CO2排出量計算表!$I$22*【出力】CO2排出量計算表!$J$22 -> 0 | AH53: =Q53/1000*【出力】CO2排出量計算表!$H$24*【出力】CO2排出量計算表!$I$24*【出力】CO2排出量計算表!$J$24 -> 0 | AI53: =R53/1000*【出力】CO2排出量計算表!$H$24*【出力】CO2排出量計算表!$I$24*【出力】CO2排出量計算表!$J$24 -> 0 | AJ53: =S53/1000*【出力】CO2排出量計算表!$H$24*【出力】CO2排出量計算表!$I$24*【出力】CO2排出量計算表!$J$24 -> 0 | AK53: =T53/1000*【出力】CO2排出量計算表!$H$24*【出力】CO2排出量計算表!$I$24*【出力】CO2排出量計算表!$J$24 -> 0 | AL53: =U53/1000*45*'【入力】CO2算出（電気・都市ガス）'!$X$37*44/12 -> 0 | AM53: =V53/1000*45*'【入力】CO2算出（電気・都市ガス）'!$X$37*44/12 -> 0 | AN53: =W53*【出力】CO2排出量計算表!$H$16*【出力】CO2排出量計算表!$I$16*【出力】CO2排出量計算表!$J$16/1000 -> 0 | AO53: =X53*【出力】CO2排出量計算表!$H$16*【出力】CO2排出量計算表!$I$16*【出力】CO2排出量計算表!$J$16/1000 -> 0 | AP53: =Y53*【出力】CO2排出量計算表!$H$18*【出力】CO2排出量計算表!$I$18*【出力】CO2排出量計算表!$J$18/1000 -> 0 | AQ53: =Z53*【出力】CO2排出量計算表!$H$18*【出力】CO2排出量計算表!$I$18*【出力】CO2排出量計算表!$J$18/1000 -> 0 | AR53: 1.70602 | AS53: 0.55424 | AT53: 1.15178 | AU53: 冷蔵・冷凍設備9,000～10,000 | AV53: 冷蔵・冷凍設備 | AW53: 9,000～10,000 | AX53: 9,000 ～10,000 | AY53: 0 | AZ53: 0 | BA53: 0 | BB53: 0 | BC53: 0 | BD53: 宿泊業
A54: 宿泊業，飲食サービス業 | B54: =IFERROR(VLOOKUP(A54,【参照】選択リスト!$N$2:$O$22,2,FALSE),"") -> 宿泊業，飲食サービス業 | C54: 10,000～25,000 | D54: 18950743 | E54: 1265000 | F54: 冷蔵・冷凍設備 | G54: 121800 | H54: 14000 | I54: 107800 | J54: =VLOOKUP(E54,【参照】選択リスト!$A$87:$B$108,2) -> 1,000～2,000 | K54: 7610 | L54: 440 | AB54: 3.29513 | AC54: 0.19052 | AD54: =M54*(1/458)*【出力】CO2排出量計算表!$H$22*【出力】CO2排出量計算表!$I$22*【出力】CO2排出量計算表!$J$22 -> 0 | AE54: =N54*(1/458)*【出力】CO2排出量計算表!$H$22*【出力】CO2排出量計算表!$I$22*【出力】CO2排出量計算表!$J$22 -> 0 | AF54: =O54*(1/458)*【出力】CO2排出量計算表!$H$22*【出力】CO2排出量計算表!$I$22*【出力】CO2排出量計算表!$J$22 -> 0 | AG54: =P54*(1/458)*【出力】CO2排出量計算表!$H$22*【出力】CO2排出量計算表!$I$22*【出力】CO2排出量計算表!$J$22 -> 0 | AH54: =Q54/1000*【出力】CO2排出量計算表!$H$24*【出力】CO2排出量計算表!$I$24*【出力】CO2排出量計算表!$J$24 -> 0 | AI54: =R54/1000*【出力】CO2排出量計算表!$H$24*【出力】CO2排出量計算表!$I$24*【出力】CO2排出量計算表!$J$24 -> 0 | AJ54: =S54/1000*【出力】CO2排出量計算表!$H$24*【出力】CO2排出量計算表!$I$24*【出力】CO2排出量計算表!$J$24 -> 0 | AK54: =T54/1000*【出力】CO2排出量計算表!$H$24*【出力】CO2排出量計算表!$I$24*【出力】CO2排出量計算表!$J$24 -> 0 | AL54: =U54/1000*45*'【入力】CO2算出（電気・都市ガス）'!$X$37*44/12 -> 0 | AM54: =V54/1000*45*'【入力】CO2算出（電気・都市ガス）'!$X$37*44/12 -> 0 | AN54: =W54*【出力】CO2排出量計算表!$H$16*【出力】CO2排出量計算表!$I$16*【出力】CO2排出量計算表!$J$16/1000 -> 0 | AO54: =X54*【出力】CO2排出量計算表!$H$16*【出力】CO2排出量計算表!$I$16*【出力】CO2排出量計算表!$J$16/1000 -> 0 | AP54: =Y54*【出力】CO2排出量計算表!$H$18*【出力】CO2排出量計算表!$I$18*【出力】CO2排出量計算表!$J$18/1000 -> 0 | AQ54: =Z54*【出力】CO2排出量計算表!$H$18*【出力】CO2排出量計算表!$I$18*【出力】CO2排出量計算表!$J$18/1000 -> 0 | AR54: 3.29513 | AS54: 0.19052 | AT54: 3.10461 | AU54: 冷蔵・冷凍設備10,000～11,000 | AV54: 冷蔵・冷凍設備 | AW54: 10,000～11,000 | AX54: 10,000 ～11,000 | AY54: 2 | AZ54: 2000238 | BA54: 1000.119 | BB54: 42.496352 | BC54: 21.248176 | BD54: 宿泊業
A55: 製造業 | B55: =IFERROR(VLOOKUP(A55,【参照】選択リスト!$N$2:$O$22,2,FALSE),"") -> 製造業 | C55: 75,000～100,000 | D55: 84937624 | E55: 1491400 | F55: 照明設備 | G55: 1111036 | H55: 841529 | I55: 269507 | J55: =VLOOKUP(E55,【参照】選択リスト!$A$87:$B$108,2) -> 1,000～2,000 | K55: 46702 | L55: 40701 | AB55: 20.221966 | AC55: 17.623533 | AD55: =M55*(1/458)*【出力】CO2排出量計算表!$H$22*【出力】CO2排出量計算表!$I$22*【出力】CO2排出量計算表!$J$22 -> 0 | AE55: =N55*(1/458)*【出力】CO2排出量計算表!$H$22*【出力】CO2排出量計算表!$I$22*【出力】CO2排出量計算表!$J$22 -> 0 | AF55: =O55*(1/458)*【出力】CO2排出量計算表!$H$22*【出力】CO2排出量計算表!$I$22*【出力】CO2排出量計算表!$J$22 -> 0 | AG55: =P55*(1/458)*【出力】CO2排出量計算表!$H$22*【出力】CO2排出量計算表!$I$22*【出力】CO2排出量計算表!$J$22 -> 0 | AH55: =Q55/1000*【出力】CO2排出量計算表!$H$24*【出力】CO2排出量計算表!$I$24*【出力】CO2排出量計算表!$J$24 -> 0 | AI55: =R55/1000*【出力】CO2排出量計算表!$H$24*【出力】CO2排出量計算表!$I$24*【出力】CO2排出量計算表!$J$24 -> 0 | AJ55: =S55/1000*【出力】CO2排出量計算表!$H$24*【出力】CO2排出量計算表!$I$24*【出力】CO2排出量計算表!$J$24 -> 0 | AK55: =T55/1000*【出力】CO2排出量計算表!$H$24*【出力】CO2排出量計算表!$I$24*【出力】CO2排出量計算表!$J$24 -> 0 | AL55: =U55/1000*45*'【入力】CO2算出（電気・都市ガス）'!$X$37*44/12 -> 0 | AM55: =V55/1000*45*'【入力】CO2算出（電気・都市ガス）'!$X$37*44/12 -> 0 | AN55: =W55*【出力】CO2排出量計算表!$H$16*【出力】CO2排出量計算表!$I$16*【出力】CO2排出量計算表!$J$16/1000 -> 0 | AO55: =X55*【出力】CO2排出量計算表!$H$16*【出力】CO2排出量計算表!$I$16*【出力】CO2排出量計算表!$J$16/1000 -> 0 | AP55: =Y55*【出力】CO2排出量計算表!$H$18*【出力】CO2排出量計算表!$I$18*【出力】CO2排出量計算表!$J$18/1000 -> 0 | AQ55: =Z55*【出力】CO2排出量計算表!$H$18*【出力】CO2排出量計算表!$I$18*【出力】CO2排出量計算表!$J$18/1000 -> 0 | AR55: 20.221966 | AS55: 17.623533 | AT55: 2.598433 | AU55: =AV55&AW55 -> 冷蔵・冷凍設備11,000～12,000 | AV55: 冷蔵・冷凍設備 | AW55: 11,000～12,000 | AX55: 11,000 ～12,000 | AY55: 0 | AZ55: 0 | BA55: 0 | BB55: 0 | BC55: 0 | BD55: 製造業
A56: 宿泊業，飲食サービス業 | B56: =IFERROR(VLOOKUP(A56,【参照】選択リスト!$N$2:$O$22,2,FALSE),"") -> 宿泊業，飲食サービス業 | C56: 100,000～250,000 | D56: 126388186 | E56: 10469550 | F56: 恒温設備 | G56: 15595903 | H56: 13610557 | I56: 1985346 | J56: =VLOOKUP(E56,【参照】選択リスト!$A$87:$B$108,2) -> 10,000～11,000 | W56: 152931 | X56: 133463 | AB56: 0 | AC56: 0 | AD56: =M56*(1/458)*【出力】CO2排出量計算表!$H$22*【出力】CO2排出量計算表!$I$22*【出力】CO2排出量計算表!$J$22 -> 0 | AE56: =N56*(1/458)*【出力】CO2排出量計算表!$H$22*【出力】CO2排出量計算表!$I$22*【出力】CO2排出量計算表!$J$22 -> 0 | AF56: =O56*(1/458)*【出力】CO2排出量計算表!$H$22*【出力】CO2排出量計算表!$I$22*【出力】CO2排出量計算表!$J$22 -> 0 | AG56: =P56*(1/458)*【出力】CO2排出量計算表!$H$22*【出力】CO2排出量計算表!$I$22*【出力】CO2排出量計算表!$J$22 -> 0 | AH56: =Q56/1000*【出力】CO2排出量計算表!$H$24*【出力】CO2排出量計算表!$I$24*【出力】CO2排出量計算表!$J$24 -> 0 | AI56: =R56/1000*【出力】CO2排出量計算表!$H$24*【出力】CO2排出量計算表!$I$24*【出力】CO2排出量計算表!$J$24 -> 0 | AJ56: =S56/1000*【出力】CO2排出量計算表!$H$24*【出力】CO2排出量計算表!$I$24*【出力】CO2排出量計算表!$J$24 -> 0 | AK56: =T56/1000*【出力】CO2排出量計算表!$H$24*【出力】CO2排出量計算表!$I$24*【出力】CO2排出量計算表!$J$24 -> 0 | AL56: =U56/1000*45*'【入力】CO2算出（電気・都市ガス）'!$X$37*44/12 -> 0 | AM56: =V56/1000*45*'【入力】CO2算出（電気・都市ガス）'!$X$37*44/12 -> 0 | AN56: =W56*【出力】CO2排出量計算表!$H$16*【出力】CO2排出量計算表!$I$16*【出力】CO2排出量計算表!$J$16/1000 -> 380.7191757 | AO56: =X56*【出力】CO2排出量計算表!$H$16*【出力】CO2排出量計算表!$I$16*【出力】CO2排出量計算表!$J$16/1000 -> 332.2539141 | AP56: =Y56*【出力】CO2排出量計算表!$H$18*【出力】CO2排出量計算表!$I$18*【出力】CO2排出量計算表!$J$18/1000 -> 0 | AQ56: =Z56*【出力】CO2排出量計算表!$H$18*【出力】CO2排出量計算表!$I$18*【出力】CO2排出量計算表!$J$18/1000 -> 0 | AR56: 380.7191757 | AS56: 332.2539141 | AT56: 48.46526153 | AU56: 冷蔵・冷凍設備12,000～13,000 | AV56: 冷蔵・冷凍設備 | AW56: 12,000～13,000 | AX56: 12,000 ～13,000 | AY56: 0 | AZ56: 0 | BA56: 0 | BB56: 0 | BC56: 0 | BD56: 宿泊業
A57: 卸売業，小売業 | B57: =IFERROR(VLOOKUP(A57,【参照】選択リスト!$N$2:$O$22,2,FALSE),"") -> 卸売業，小売業 | C57: 1,000,000～2,000,000 | D57: 1699229764 | E57: 968000 | F57: 冷蔵・冷凍設備 | G57: 88910 | H57: 26690 | I57: 62220 | J57: =VLOOKUP(E57,【参照】選択リスト!$A$87:$B$108,2) -> 1～1,000 | K57: 5230 | L57: 1570 | AB57: 2.26459 | AC57: 0.67981 | AD57: =M57*(1/458)*【出力】CO2排出量計算表!$H$22*【出力】CO2排出量計算表!$I$22*【出力】CO2排出量計算表!$J$22 -> 0 | AE57: =N57*(1/458)*【出力】CO2排出量計算表!$H$22*【出力】CO2排出量計算表!$I$22*【出力】CO2排出量計算表!$J$22 -> 0 | AF57: =O57*(1/458)*【出力】CO2排出量計算表!$H$22*【出力】CO2排出量計算表!$I$22*【出力】CO2排出量計算表!$J$22 -> 0 | AG57: =P57*(1/458)*【出力】CO2排出量計算表!$H$22*【出力】CO2排出量計算表!$I$22*【出力】CO2排出量計算表!$J$22 -> 0 | AH57: =Q57/1000*【出力】CO2排出量計算表!$H$24*【出力】CO2排出量計算表!$I$24*【出力】CO2排出量計算表!$J$24 -> 0 | AI57: =R57/1000*【出力】CO2排出量計算表!$H$24*【出力】CO2排出量計算表!$I$24*【出力】CO2排出量計算表!$J$24 -> 0 | AJ57: =S57/1000*【出力】CO2排出量計算表!$H$24*【出力】CO2排出量計算表!$I$24*【出力】CO2排出量計算表!$J$24 -> 0 | AK57: =T57/1000*【出力】CO2排出量計算表!$H$24*【出力】CO2排出量計算表!$I$24*【出力】CO2排出量計算表!$J$24 -> 0 | AL57: =U57/1000*45*'【入力】CO2算出（電気・都市ガス）'!$X$37*44/12 -> 0 | AM57: =V57/1000*45*'【入力】CO2算出（電気・都市ガス）'!$X$37*44/12 -> 0 | AN57: =W57*【出力】CO2排出量計算表!$H$16*【出力】CO2排出量計算表!$I$16*【出力】CO2排出量計算表!$J$16/1000 -> 0 | AO57: =X57*【出力】CO2排出量計算表!$H$16*【出力】CO2排出量計算表!$I$16*【出力】CO2排出量計算表!$J$16/1000 -> 0 | AP57: =Y57*【出力】CO2排出量計算表!$H$18*【出力】CO2排出量計算表!$I$18*【出力】CO2排出量計算表!$J$18/1000 -> 0 | AQ57: =Z57*【出力】CO2排出量計算表!$H$18*【出力】CO2排出量計算表!$I$18*【出力】CO2排出量計算表!$J$18/1000 -> 0 | AR57: 2.26459 | AS57: 0.67981 | AT57: 1.58478 | AU57: 冷蔵・冷凍設備13,000～14,000 | AV57: 冷蔵・冷凍設備 | AW57: 13,000～14,000 | AX57: 13,000 ～14,000 | AY57: 0 | AZ57: 0 | BA57: 0 | BB57: 0 | BC57: 0 | BD57: 卸売業
A58: 宿泊業，飲食サービス業 | B58: =IFERROR(VLOOKUP(A58,【参照】選択リスト!$N$2:$O$22,2,FALSE),"") -> 宿泊業，飲食サービス業 | C58: 50,000～100,000 | D58: 91765787 | E58: 8790000 | F58: 空調・換気設備 | G58: 9701283 | H58: 5687690 | I58: 4013593 | J58: =VLOOKUP(E58,【参照】選択リスト!$A$87:$B$108,2) -> 8,000～9,000 | K58: 196156 | L58: 127868 | W58: 41893 | X58: 20946 | AB58: 84.935548 | AC58: 55.366844 | AD58: =M58*(1/458)*【出力】CO2排出量計算表!$H$22*【出力】CO2排出量計算表!$I$22*【出力】CO2排出量計算表!$J$22 -> 0 | AE58: =N58*(1/458)*【出力】CO2排出量計算表!$H$22*【出力】CO2排出量計算表!$I$22*【出力】CO2排出量計算表!$J$22 -> 0 | AF58: =O58*(1/458)*【出力】CO2排出量計算表!$H$22*【出力】CO2排出量計算表!$I$22*【出力】CO2排出量計算表!$J$22 -> 0 | AG58: =P58*(1/458)*【出力】CO2排出量計算表!$H$22*【出力】CO2排出量計算表!$I$22*【出力】CO2排出量計算表!$J$22 -> 0 | AH58: =Q58/1000*【出力】CO2排出量計算表!$H$24*【出力】CO2排出量計算表!$I$24*【出力】CO2排出量計算表!$J$24 -> 0 | AI58: =R58/1000*【出力】CO2排出量計算表!$H$24*【出力】CO2排出量計算表!$I$24*【出力】CO2排出量計算表!$J$24 -> 0 | AJ58: =S58/1000*【出力】CO2排出量計算表!$H$24*【出力】CO2排出量計算表!$I$24*【出力】CO2排出量計算表!$J$24 -> 0 | AK58: =T58/1000*【出力】CO2排出量計算表!$H$24*【出力】CO2排出量計算表!$I$24*【出力】CO2排出量計算表!$J$24 -> 0 | AL58: =U58/1000*45*'【入力】CO2算出（電気・都市ガス）'!$X$37*44/12 -> 0 | AM58: =V58/1000*45*'【入力】CO2算出（電気・都市ガス）'!$X$37*44/12 -> 0 | AN58: =W58*【出力】CO2排出量計算表!$H$16*【出力】CO2排出量計算表!$I$16*【出力】CO2排出量計算表!$J$16/1000 -> 104.2919253 | AO58: =X58*【出力】CO2排出量計算表!$H$16*【出力】CO2排出量計算表!$I$16*【出力】CO2排出量計算表!$J$16/1000 -> 52.1447179 | AP58: =Y58*【出力】CO2排出量計算表!$H$18*【出力】CO2排出量計算表!$I$18*【出力】CO2排出量計算表!$J$18/1000 -> 0 | AQ58: =Z58*【出力】CO2排出量計算表!$H$18*【出力】CO2排出量計算表!$I$18*【出力】CO2排出量計算表!$J$18/1000 -> 0 | AR58: 189.2274733 | AS58: 107.5115619 | AT58: 81.71591138 | AU58: 冷蔵・冷凍設備14,000～15,000 | AV58: 冷蔵・冷凍設備 | AW58: 14,000～15,000 | AX58: 14,000 ～15,000 | AY58: 0 | AZ58: 0 | BA58: 0 | BB58: 0 | BC58: 0 | BD58: 宿泊業
A59: 生活関連サービス業，娯楽業 | B59: =IFERROR(VLOOKUP(A59,【参照】選択リスト!$N$2:$O$22,2,FALSE),"") -> サービス業，その他 | C59: 100,000～250,000 | D59: 177874387 | E59: 7400000 | F59: 恒温設備 | G59: 13989660 | H59: 12555000 | I59: 1434660 | J59: =VLOOKUP(E59,【参照】選択リスト!$A$87:$B$108,2) -> 7,000～8,000 | W59: 158000 | X59: 135000 | AB59: 0 | AC59: 0 | AD59: =M59*(1/458)*【出力】CO2排出量計算表!$H$22*【出力】CO2排出量計算表!$I$22*【出力】CO2排出量計算表!$J$22 -> 0 | AE59: =N59*(1/458)*【出力】CO2排出量計算表!$H$22*【出力】CO2排出量計算表!$I$22*【出力】CO2排出量計算表!$J$22 -> 0 | AF59: =O59*(1/458)*【出力】CO2排出量計算表!$H$22*【出力】CO2排出量計算表!$I$22*【出力】CO2排出量計算表!$J$22 -> 0 | AG59: =P59*(1/458)*【出力】CO2排出量計算表!$H$22*【出力】CO2排出量計算表!$I$22*【出力】CO2排出量計算表!$J$22 -> 0 | AH59: =Q59/1000*【出力】CO2排出量計算表!$H$24*【出力】CO2排出量計算表!$I$24*【出力】CO2排出量計算表!$J$24 -> 0 | AI59: =R59/1000*【出力】CO2排出量計算表!$H$24*【出力】CO2排出量計算表!$I$24*【出力】CO2排出量計算表!$J$24 -> 0 | AJ59: =S59/1000*【出力】CO2排出量計算表!$H$24*【出力】CO2排出量計算表!$I$24*【出力】CO2排出量計算表!$J$24 -> 0 | AK59: =T59/1000*【出力】CO2排出量計算表!$H$24*【出力】CO2排出量計算表!$I$24*【出力】CO2排出量計算表!$J$24 -> 0 | AL59: =U59/1000*45*'【入力】CO2算出（電気・都市ガス）'!$X$37*44/12 -> 0 | AM59: =V59/1000*45*'【入力】CO2算出（電気・都市ガス）'!$X$37*44/12 -> 0 | AN59: =W59*【出力】CO2排出量計算表!$H$16*【出力】CO2排出量計算表!$I$16*【出力】CO2排出量計算表!$J$16/1000 -> 393.3383667 | AO59: =X59*【出力】CO2排出量計算表!$H$16*【出力】CO2排出量計算表!$I$16*【出力】CO2排出量計算表!$J$16/1000 -> 336.08025 | AP59: =Y59*【出力】CO2排出量計算表!$H$18*【出力】CO2排出量計算表!$I$18*【出力】CO2排出量計算表!$J$18/1000 -> 0 | AQ59: =Z59*【出力】CO2排出量計算表!$H$18*【出力】CO2排出量計算表!$I$18*【出力】CO2排出量計算表!$J$18/1000 -> 0 | AR59: 393.3383667 | AS59: 336.08025 | AT59: 57.25811667 | AU59: 冷蔵・冷凍設備15,000～16,000 | AV59: 冷蔵・冷凍設備 | AW59: 15,000～16,000 | AX59: 15,000 ～16,000 | AY59: 0 | AZ59: 0 | BA59: 0 | BB59: 0 | BC59: 0 | BD59: サービス業
A60: 製造業 | B60: =IFERROR(VLOOKUP(A60,【参照】選択リスト!$N$2:$O$22,2,FALSE),"") -> 製造業 | C60: 75,000～100,000 | D60: 81367837 | E60: 1795000 | F60: 空調・換気設備 | G60: 1324008 | H60: 575954 | I60: 748054 | J60: =VLOOKUP(E60,【参照】選択リスト!$A$87:$B$108,2) -> 1,000～2,000 | K60: 36546 | L60: 26026 | W60: 5132 | X60: 0 | AB60: 15.824418 | AC60: 11.269258 | AD60: =M60*(1/458)*【出力】CO2排出量計算表!$H$22*【出力】CO2排出量計算表!$I$22*【出力】CO2排出量計算表!$J$22 -> 0 | AE60: =N60*(1/458)*【出力】CO2排出量計算表!$H$22*【出力】CO2排出量計算表!$I$22*【出力】CO2排出量計算表!$J$22 -> 0 | AF60: =O60*(1/458)*【出力】CO2排出量計算表!$H$22*【出力】CO2排出量計算表!$I$22*【出力】CO2排出量計算表!$J$22 -> 0 | AG60: =P60*(1/458)*【出力】CO2排出量計算表!$H$22*【出力】CO2排出量計算表!$I$22*【出力】CO2排出量計算表!$J$22 -> 0 | AH60: =Q60/1000*【出力】CO2排出量計算表!$H$24*【出力】CO2排出量計算表!$I$24*【出力】CO2排出量計算表!$J$24 -> 0 | AI60: =R60/1000*【出力】CO2排出量計算表!$H$24*【出力】CO2排出量計算表!$I$24*【出力】CO2排出量計算表!$J$24 -> 0 | AJ60: =S60/1000*【出力】CO2排出量計算表!$H$24*【出力】CO2排出量計算表!$I$24*【出力】CO2排出量計算表!$J$24 -> 0 | AK60: =T60/1000*【出力】CO2排出量計算表!$H$24*【出力】CO2排出量計算表!$I$24*【出力】CO2排出量計算表!$J$24 -> 0 | AL60: =U60/1000*45*'【入力】CO2算出（電気・都市ガス）'!$X$37*44/12 -> 0 | AM60: =V60/1000*45*'【入力】CO2算出（電気・都市ガス）'!$X$37*44/12 -> 0 | AN60: =W60*【出力】CO2排出量計算表!$H$16*【出力】CO2排出量計算表!$I$16*【出力】CO2排出量計算表!$J$16/1000 -> 12.77602847 | AO60: =X60*【出力】CO2排出量計算表!$H$16*【出力】CO2排出量計算表!$I$16*【出力】CO2排出量計算表!$J$16/1000 -> 0 | AP60: =Y60*【出力】CO2排出量計算表!$H$18*【出力】CO2排出量計算表!$I$18*【出力】CO2排出量計算表!$J$18/1000 -> 0 | AQ60: =Z60*【出力】CO2排出量計算表!$H$18*【出力】CO2排出量計算表!$I$18*【出力】CO2排出量計算表!$J$18/1000 -> 0 | AR60: 28.60044647 | AS60: 11.269258 | AT60: 17.33118847 | AU60: =AV60&AW60 -> 冷蔵・冷凍設備16,000～17,000 | AV60: 冷蔵・冷凍設備 | AW60: 16,000～17,000 | AX60: 16,000 ～17,000 | AY60: 0 | AZ60: 0 | BA60: 0 | BB60: 0 | BC60: 0 | BD60: 製造業
A61: 製造業 | B61: =IFERROR(VLOOKUP(A61,【参照】選択リスト!$N$2:$O$22,2,FALSE),"") -> 製造業 | C61: 50,000～75,000 | D61: 72646100 | E61: 900000 | F61: 空調・換気設備 | G61: 1049908 | H61: 994920 | I61: 54988 | J61: =VLOOKUP(E61,【参照】選択リスト!$A$87:$B$108,2) -> 1～1,000 | K61: 36813 | L61: 34885 | AB61: 15.940029 | AC61: 15.105205 | AD61: =M61*(1/458)*【出力】CO2排出量計算表!$H$22*【出力】CO2排出量計算表!$I$22*【出力】CO2排出量計算表!$J$22 -> 0 | AE61: =N61*(1/458)*【出力】CO2排出量計算表!$H$22*【出力】CO2排出量計算表!$I$22*【出力】CO2排出量計算表!$J$22 -> 0 | AF61: =O61*(1/458)*【出力】CO2排出量計算表!$H$22*【出力】CO2排出量計算表!$I$22*【出力】CO2排出量計算表!$J$22 -> 0 | AG61: =P61*(1/458)*【出力】CO2排出量計算表!$H$22*【出力】CO2排出量計算表!$I$22*【出力】CO2排出量計算表!$J$22 -> 0 | AH61: =Q61/1000*【出力】CO2排出量計算表!$H$24*【出力】CO2排出量計算表!$I$24*【出力】CO2排出量計算表!$J$24 -> 0 | AI61: =R61/1000*【出力】CO2排出量計算表!$H$24*【出力】CO2排出量計算表!$I$24*【出力】CO2排出量計算表!$J$24 -> 0 | AJ61: =S61/1000*【出力】CO2排出量計算表!$H$24*【出力】CO2排出量計算表!$I$24*【出力】CO2排出量計算表!$J$24 -> 0 | AK61: =T61/1000*【出力】CO2排出量計算表!$H$24*【出力】CO2排出量計算表!$I$24*【出力】CO2排出量計算表!$J$24 -> 0 | AL61: =U61/1000*45*'【入力】CO2算出（電気・都市ガス）'!$X$37*44/12 -> 0 | AM61: =V61/1000*45*'【入力】CO2算出（電気・都市ガス）'!$X$37*44/12 -> 0 | AN61: =W61*【出力】CO2排出量計算表!$H$16*【出力】CO2排出量計算表!$I$16*【出力】CO2排出量計算表!$J$16/1000 -> 0 | AO61: =X61*【出力】CO2排出量計算表!$H$16*【出力】CO2排出量計算表!$I$16*【出力】CO2排出量計算表!$J$16/1000 -> 0 | AP61: =Y61*【出力】CO2排出量計算表!$H$18*【出力】CO2排出量計算表!$I$18*【出力】CO2排出量計算表!$J$18/1000 -> 0 | AQ61: =Z61*【出力】CO2排出量計算表!$H$18*【出力】CO2排出量計算表!$I$18*【出力】CO2排出量計算表!$J$18/1000 -> 0 | AR61: 15.940029 | AS61: 15.105205 | AT61: 0.834824 | AU61: =AV61&AW61 -> 冷蔵・冷凍設備17,000～18,000 | AV61: 冷蔵・冷凍設備 | AW61: 17,000～18,000 | AX61: 17,000 ～18,000 | AY61: 0 | AZ61: 0 | BA61: 0 | BB61: 0 | BC61: 0 | BD61: 製造業
A62: 宿泊業，飲食サービス業 | B62: =IFERROR(VLOOKUP(A62,【参照】選択リスト!$N$2:$O$22,2,FALSE),"") -> 宿泊業，飲食サービス業 | C62: 10,000～25,000 | D62: 21643042 | E62: 1460000 | F62: 空調・換気設備 | G62: 752706 | H62: 459150 | I62: 293556 | J62: =VLOOKUP(E62,【参照】選択リスト!$A$87:$B$108,2) -> 1,000～2,000 | K62: 24376 | L62: 14869 | AB62: 10.554808 | AC62: 6.438277 | AD62: =M62*(1/458)*【出力】CO2排出量計算表!$H$22*【出力】CO2排出量計算表!$I$22*【出力】CO2排出量計算表!$J$22 -> 0 | AE62: =N62*(1/458)*【出力】CO2排出量計算表!$H$22*【出力】CO2排出量計算表!$I$22*【出力】CO2排出量計算表!$J$22 -> 0 | AF62: =O62*(1/458)*【出力】CO2排出量計算表!$H$22*【出力】CO2排出量計算表!$I$22*【出力】CO2排出量計算表!$J$22 -> 0 | AG62: =P62*(1/458)*【出力】CO2排出量計算表!$H$22*【出力】CO2排出量計算表!$I$22*【出力】CO2排出量計算表!$J$22 -> 0 | AH62: =Q62/1000*【出力】CO2排出量計算表!$H$24*【出力】CO2排出量計算表!$I$24*【出力】CO2排出量計算表!$J$24 -> 0 | AI62: =R62/1000*【出力】CO2排出量計算表!$H$24*【出力】CO2排出量計算表!$I$24*【出力】CO2排出量計算表!$J$24 -> 0 | AJ62: =S62/1000*【出力】CO2排出量計算表!$H$24*【出力】CO2排出量計算表!$I$24*【出力】CO2排出量計算表!$J$24 -> 0 | AK62: =T62/1000*【出力】CO2排出量計算表!$H$24*【出力】CO2排出量計算表!$I$24*【出力】CO2排出量計算表!$J$24 -> 0 | AL62: =U62/1000*45*'【入力】CO2算出（電気・都市ガス）'!$X$37*44/12 -> 0 | AM62: =V62/1000*45*'【入力】CO2算出（電気・都市ガス）'!$X$37*44/12 -> 0 | AN62: =W62*【出力】CO2排出量計算表!$H$16*【出力】CO2排出量計算表!$I$16*【出力】CO2排出量計算表!$J$16/1000 -> 0 | AO62: =X62*【出力】CO2排出量計算表!$H$16*【出力】CO2排出量計算表!$I$16*【出力】CO2排出量計算表!$J$16/1000 -> 0 | AP62: =Y62*【出力】CO2排出量計算表!$H$18*【出力】CO2排出量計算表!$I$18*【出力】CO2排出量計算表!$J$18/1000 -> 0 | AQ62: =Z62*【出力】CO2排出量計算表!$H$18*【出力】CO2排出量計算表!$I$18*【出力】CO2排出量計算表!$J$18/1000 -> 0 | AR62: 10.554808 | AS62: 6.438277 | AT62: 4.116531 | AU62: =AV62&AW62 -> 冷蔵・冷凍設備18,000～19,000 | AV62: 冷蔵・冷凍設備 | AW62: 18,000～19,000 | AX62: 18,000 ～19,000 | AY62: 0 | AZ62: 0 | BA62: 0 | BB62: 0 | BC62: 0 | BD62: 宿泊業
A63: 卸売業，小売業 | B63: =IFERROR(VLOOKUP(A63,【参照】選択リスト!$N$2:$O$22,2,FALSE),"") -> 卸売業，小売業 | C63: 25,000～500,000 | D63: 106533180 | E63: 2875000 | F63: 空調・換気設備 | G63: 794244 | H63: 572136 | I63: 222108 | J63: =VLOOKUP(E63,【参照】選択リスト!$A$87:$B$108,2) -> 2,000～3,000 | K63: 33827 | L63: 25267 | W63: 1298 | X63: 800 | AB63: 14.647091 | AC63: 10.940611 | AD63: =M63*(1/458)*【出力】CO2排出量計算表!$H$22*【出力】CO2排出量計算表!$I$22*【出力】CO2排出量計算表!$J$22 -> 0 | AE63: =N63*(1/458)*【出力】CO2排出量計算表!$H$22*【出力】CO2排出量計算表!$I$22*【出力】CO2排出量計算表!$J$22 -> 0 | AF63: =O63*(1/458)*【出力】CO2排出量計算表!$H$22*【出力】CO2排出量計算表!$I$22*【出力】CO2排出量計算表!$J$22 -> 0 | AG63: =P63*(1/458)*【出力】CO2排出量計算表!$H$22*【出力】CO2排出量計算表!$I$22*【出力】CO2排出量計算表!$J$22 -> 0 | AH63: =Q63/1000*【出力】CO2排出量計算表!$H$24*【出力】CO2排出量計算表!$I$24*【出力】CO2排出量計算表!$J$24 -> 0 | AI63: =R63/1000*【出力】CO2排出量計算表!$H$24*【出力】CO2排出量計算表!$I$24*【出力】CO2排出量計算表!$J$24 -> 0 | AJ63: =S63/1000*【出力】CO2排出量計算表!$H$24*【出力】CO2排出量計算表!$I$24*【出力】CO2排出量計算表!$J$24 -> 0 | AK63: =T63/1000*【出力】CO2排出量計算表!$H$24*【出力】CO2排出量計算表!$I$24*【出力】CO2排出量計算表!$J$24 -> 0 | AL63: =U63/1000*45*'【入力】CO2算出（電気・都市ガス）'!$X$37*44/12 -> 0 | AM63: =V63/1000*45*'【入力】CO2算出（電気・都市ガス）'!$X$37*44/12 -> 0 | AN63: =W63*【出力】CO2排出量計算表!$H$16*【出力】CO2排出量計算表!$I$16*【出力】CO2排出量計算表!$J$16/1000 -> 3.231349367 | AO63: =X63*【出力】CO2排出量計算表!$H$16*【出力】CO2排出量計算表!$I$16*【出力】CO2排出量計算表!$J$16/1000 -> 1.991586667 | AP63: =Y63*【出力】CO2排出量計算表!$H$18*【出力】CO2排出量計算表!$I$18*【出力】CO2排出量計算表!$J$18/1000 -> 0 | AQ63: =Z63*【出力】CO2排出量計算表!$H$18*【出力】CO2排出量計算表!$I$18*【出力】CO2排出量計算表!$J$18/1000 -> 0 | AR63: 17.87844037 | AS63: 12.93219767 | AT63: 4.9462427 | AU63: =AV63&AW63 -> 冷蔵・冷凍設備19,000～20,000 | AV63: 冷蔵・冷凍設備 | AW63: 19,000～20,000 | AX63: 19,000 ～20,000 | AY63: 0 | AZ63: 0 | BA63: 0 | BB63: 0 | BC63: 0 | BD63: 卸売業
A64: 製造業 | B64: =IFERROR(VLOOKUP(A64,【参照】選択リスト!$N$2:$O$22,2,FALSE),"") -> 製造業 | C64: 3,000,000～ | D64: 13642496717 | E64: 9950000 | F64: 空調・換気設備 | G64: 4335593 | H64: 4071593 | I64: 264000 | J64: =VLOOKUP(E64,【参照】選択リスト!$A$87:$B$108,2) -> 9,000～10,000 | K64: 164227 | L64: 154227 | AB64: 71.110291 | AC64: 66.780291 | AD64: =M64*(1/458)*【出力】CO2排出量計算表!$H$22*【出力】CO2排出量計算表!$I$22*【出力】CO2排出量計算表!$J$22 -> 0 | AE64: =N64*(1/458)*【出力】CO2排出量計算表!$H$22*【出力】CO2排出量計算表!$I$22*【出力】CO2排出量計算表!$J$22 -> 0 | AF64: =O64*(1/458)*【出力】CO2排出量計算表!$H$22*【出力】CO2排出量計算表!$I$22*【出力】CO2排出量計算表!$J$22 -> 0 | AG64: =P64*(1/458)*【出力】CO2排出量計算表!$H$22*【出力】CO2排出量計算表!$I$22*【出力】CO2排出量計算表!$J$22 -> 0 | AH64: =Q64/1000*【出力】CO2排出量計算表!$H$24*【出力】CO2排出量計算表!$I$24*【出力】CO2排出量計算表!$J$24 -> 0 | AI64: =R64/1000*【出力】CO2排出量計算表!$H$24*【出力】CO2排出量計算表!$I$24*【出力】CO2排出量計算表!$J$24 -> 0 | AJ64: =S64/1000*【出力】CO2排出量計算表!$H$24*【出力】CO2排出量計算表!$I$24*【出力】CO2排出量計算表!$J$24 -> 0 | AK64: =T64/1000*【出力】CO2排出量計算表!$H$24*【出力】CO2排出量計算表!$I$24*【出力】CO2排出量計算表!$J$24 -> 0 | AL64: =U64/1000*45*'【入力】CO2算出（電気・都市ガス）'!$X$37*44/12 -> 0 | AM64: =V64/1000*45*'【入力】CO2算出（電気・都市ガス）'!$X$37*44/12 -> 0 | AN64: =W64*【出力】CO2排出量計算表!$H$16*【出力】CO2排出量計算表!$I$16*【出力】CO2排出量計算表!$J$16/1000 -> 0 | AO64: =X64*【出力】CO2排出量計算表!$H$16*【出力】CO2排出量計算表!$I$16*【出力】CO2排出量計算表!$J$16/1000 -> 0 | AP64: =Y64*【出力】CO2排出量計算表!$H$18*【出力】CO2排出量計算表!$I$18*【出力】CO2排出量計算表!$J$18/1000 -> 0 | AQ64: =Z64*【出力】CO2排出量計算表!$H$18*【出力】CO2排出量計算表!$I$18*【出力】CO2排出量計算表!$J$18/1000 -> 0 | AR64: 71.110291 | AS64: 66.780291 | AT64: 4.33 | AU64: =AV64&AW64 -> 冷蔵・冷凍設備20,000～ | AV64: 冷蔵・冷凍設備 | AW64: 20,000～ | AX64: 20,000～ | AY64: 0 | AZ64: 0 | BA64: 0 | BB64: 0 | BC64: 0 | BD64: 製造業
A65: 製造業 | B65: =IFERROR(VLOOKUP(A65,【参照】選択リスト!$N$2:$O$22,2,FALSE),"") -> 製造業 | C65: 250,000～1,000,000 | D65: 371755964 | E65: 7900000 | F65: 発電設備 | G65: 1860526 | H65: 1281040 | I65: 579486 | J65: =VLOOKUP(E65,【参照】選択リスト!$A$87:$B$108,2) -> 7,000～8,000 | K65: 55495 | L65: 40000 | AB65: 24.029335 | AC65: 17.32 | AD65: =M65*(1/458)*【出力】CO2排出量計算表!$H$22*【出力】CO2排出量計算表!$I$22*【出力】CO2排出量計算表!$J$22 -> 0 | AE65: =N65*(1/458)*【出力】CO2排出量計算表!$H$22*【出力】CO2排出量計算表!$I$22*【出力】CO2排出量計算表!$J$22 -> 0 | AF65: =O65*(1/458)*【出力】CO2排出量計算表!$H$22*【出力】CO2排出量計算表!$I$22*【出力】CO2排出量計算表!$J$22 -> 0 | AG65: =P65*(1/458)*【出力】CO2排出量計算表!$H$22*【出力】CO2排出量計算表!$I$22*【出力】CO2排出量計算表!$J$22 -> 0 | AH65: =Q65/1000*【出力】CO2排出量計算表!$H$24*【出力】CO2排出量計算表!$I$24*【出力】CO2排出量計算表!$J$24 -> 0 | AI65: =R65/1000*【出力】CO2排出量計算表!$H$24*【出力】CO2排出量計算表!$I$24*【出力】CO2排出量計算表!$J$24 -> 0 | AJ65: =S65/1000*【出力】CO2排出量計算表!$H$24*【出力】CO2排出量計算表!$I$24*【出力】CO2排出量計算表!$J$24 -> 0 | AK65: =T65/1000*【出力】CO2排出量計算表!$H$24*【出力】CO2排出量計算表!$I$24*【出力】CO2排出量計算表!$J$24 -> 0 | AL65: =U65/1000*45*'【入力】CO2算出（電気・都市ガス）'!$X$37*44/12 -> 0 | AM65: =V65/1000*45*'【入力】CO2算出（電気・都市ガス）'!$X$37*44/12 -> 0 | AN65: =W65*【出力】CO2排出量計算表!$H$16*【出力】CO2排出量計算表!$I$16*【出力】CO2排出量計算表!$J$16/1000 -> 0 | AO65: =X65*【出力】CO2排出量計算表!$H$16*【出力】CO2排出量計算表!$I$16*【出力】CO2排出量計算表!$J$16/1000 -> 0 | AP65: =Y65*【出力】CO2排出量計算表!$H$18*【出力】CO2排出量計算表!$I$18*【出力】CO2排出量計算表!$J$18/1000 -> 0 | AQ65: =Z65*【出力】CO2排出量計算表!$H$18*【出力】CO2排出量計算表!$I$18*【出力】CO2排出量計算表!$J$18/1000 -> 0 | AR65: 24.029335 | AS65: 17.32 | AT65: 6.709335 | AU65: =AV65&AW65 -> エネルギー管理設備1～1,000 | AV65: エネルギー管理設備 | AW65: 1～1,000 | AX65: 1 ～1,000 | AY65: 0 | AZ65: 0 | BA65: 0 | BB65: 0 | BC65: 0 | BD65: 製造業
A66: 製造業 | B66: =IFERROR(VLOOKUP(A66,【参照】選択リスト!$N$2:$O$22,2,FALSE),"") -> 製造業 | C66: 1,000,000～2,000,000 | D66: 1373647916 | E66: 3720000 | F66: 空調・換気設備 | G66: 5178827 | H66: 4864154 | I66: 314673 | J66: =VLOOKUP(E66,【参照】選択リスト!$A$87:$B$108,2) -> 3,000～4,000 | K66: 215857 | L66: 202741 | AB66: 93.466081 | AC66: 87.786853 | AD66: =M66*(1/458)*【出力】CO2排出量計算表!$H$22*【出力】CO2排出量計算表!$I$22*【出力】CO2排出量計算表!$J$22 -> 0 | AE66: =N66*(1/458)*【出力】CO2排出量計算表!$H$22*【出力】CO2排出量計算表!$I$22*【出力】CO2排出量計算表!$J$22 -> 0 | AF66: =O66*(1/458)*【出力】CO2排出量計算表!$H$22*【出力】CO2排出量計算表!$I$22*【出力】CO2排出量計算表!$J$22 -> 0 | AG66: =P66*(1/458)*【出力】CO2排出量計算表!$H$22*【出力】CO2排出量計算表!$I$22*【出力】CO2排出量計算表!$J$22 -> 0 | AH66: =Q66/1000*【出力】CO2排出量計算表!$H$24*【出力】CO2排出量計算表!$I$24*【出力】CO2排出量計算表!$J$24 -> 0 | AI66: =R66/1000*【出力】CO2排出量計算表!$H$24*【出力】CO2排出量計算表!$I$24*【出力】CO2排出量計算表!$J$24 -> 0 | AJ66: =S66/1000*【出力】CO2排出量計算表!$H$24*【出力】CO2排出量計算表!$I$24*【出力】CO2排出量計算表!$J$24 -> 0 | AK66: =T66/1000*【出力】CO2排出量計算表!$H$24*【出力】CO2排出量計算表!$I$24*【出力】CO2排出量計算表!$J$24 -> 0 | AL66: =U66/1000*45*'【入力】CO2算出（電気・都市ガス）'!$X$37*44/12 -> 0 | AM66: =V66/1000*45*'【入力】CO2算出（電気・都市ガス）'!$X$37*44/12 -> 0 | AN66: =W66*【出力】CO2排出量計算表!$H$16*【出力】CO2排出量計算表!$I$16*【出力】CO2排出量計算表!$J$16/1000 -> 0 | AO66: =X66*【出力】CO2排出量計算表!$H$16*【出力】CO2排出量計算表!$I$16*【出力】CO2排出量計算表!$J$16/1000 -> 0 | AP66: =Y66*【出力】CO2排出量計算表!$H$18*【出力】CO2排出量計算表!$I$18*【出力】CO2排出量計算表!$J$18/1000 -> 0 | AQ66: =Z66*【出力】CO2排出量計算表!$H$18*【出力】CO2排出量計算表!$I$18*【出力】CO2排出量計算表!$J$18/1000 -> 0 | AR66: 93.466081 | AS66: 87.786853 | AT66: 5.679228 | AU66: エネルギー管理設備1,000～2,000 | AV66: エネルギー管理設備 | AW66: 1,000～2,000 | AX66: 1,000 ～2,000 | AY66: 0 | AZ66: 0 | BA66: 0 | BB66: 0 | BC66: 0 | BD66: 製造業
A67: 宿泊業，飲食サービス業 | B67: =IFERROR(VLOOKUP(A67,【参照】選択リスト!$N$2:$O$22,2,FALSE),"") -> 宿泊業，飲食サービス業 | C67: =VLOOKUP(D67,INDIRECT(BD67&"_売上高範囲"),2) -> ～5,000 | D67: 3294278 | E67: 3000000 | F67: 恒温設備 | G67: 1100000 | H67: 990000 | I67: 110000 | J67: =VLOOKUP(E67,【参照】選択リスト!$A$87:$B$108,2) -> 3,000～4,000 | W67: 10000 | X67: 9000 | AB67: =K67/1000*$AA$2*1000 -> 0 | AC67: =L67/1000*$AA$2*1000 -> 0 | AD67: =M67*(1/458)*【出力】CO2排出量計算表!$H$22*【出力】CO2排出量計算表!$I$22*【出力】CO2排出量計算表!$J$22 -> 0 | AE67: =N67*(1/458)*【出力】CO2排出量計算表!$H$22*【出力】CO2排出量計算表!$I$22*【出力】CO2排出量計算表!$J$22 -> 0 | AF67: =O67*(1/458)*【出力】CO2排出量計算表!$H$22*【出力】CO2排出量計算表!$I$22*【出力】CO2排出量計算表!$J$22 -> 0 | AG67: =P67*(1/458)*【出力】CO2排出量計算表!$H$22*【出力】CO2排出量計算表!$I$22*【出力】CO2排出量計算表!$J$22 -> 0 | AH67: =Q67/1000*【出力】CO2排出量計算表!$H$24*【出力】CO2排出量計算表!$I$24*【出力】CO2排出量計算表!$J$24 -> 0 | AI67: =R67/1000*【出力】CO2排出量計算表!$H$24*【出力】CO2排出量計算表!$I$24*【出力】CO2排出量計算表!$J$24 -> 0 | AJ67: =S67/1000*【出力】CO2排出量計算表!$H$24*【出力】CO2排出量計算表!$I$24*【出力】CO2排出量計算表!$J$24 -> 0 | AK67: =T67/1000*【出力】CO2排出量計算表!$H$24*【出力】CO2排出量計算表!$I$24*【出力】CO2排出量計算表!$J$24 -> 0 | AL67: =U67/1000*45*'【入力】CO2算出（電気・都市ガス）'!$X$37*44/12 -> 0 | AM67: =V67/1000*45*'【入力】CO2算出（電気・都市ガス）'!$X$37*44/12 -> 0 | AN67: =W67*【出力】CO2排出量計算表!$H$16*【出力】CO2排出量計算表!$I$16*【出力】CO2排出量計算表!$J$16/1000 -> 24.89483333 | AO67: =X67*【出力】CO2排出量計算表!$H$16*【出力】CO2排出量計算表!$I$16*【出力】CO2排出量計算表!$J$16/1000 -> 22.40535 | AP67: =Y67*【出力】CO2排出量計算表!$H$18*【出力】CO2排出量計算表!$I$18*【出力】CO2排出量計算表!$J$18/1000 -> 0 | AQ67: =Z67*【出力】CO2排出量計算表!$H$18*【出力】CO2排出量計算表!$I$18*【出力】CO2排出量計算表!$J$18/1000 -> 0 | AR67: =SUM(AB67,AD67,AF67,AH67,AJ67,AL67,AN67,AP67) -> 24.89483333 | AS67: =SUM(AC67,AE67,AG67,AK67,AI67,AM67,AO67,AQ67) -> 22.40535 | AT67: =AR67-AS67 -> 2.489483333 | AU67: エネルギー管理設備2,000～3,000 | AV67: エネルギー管理設備 | AW67: 2,000～3,000 | AX67: 2,000 ～3,000 | AY67: =COUNTIFS($F$2:$F$2000,AV67,$J$2:$J$2000,AW67) -> 0 | AZ67: =SUMIFS($I$2:$I$2000,$F$2:$F$2000,AV67,$J$2:$J$2000,AW67) -> 0 | BA67: =IFERROR(AZ67/AY67/1000,0) -> 0 | BB67: =SUMIFS($AT$2:$AT$2000,$F$2:$F$2000,AV67,$J$2:$J$2000,AW67) -> 0 | BC67: =IFERROR(BB67/AY67,0) -> 0 | BD67: =IF(B67="サービス業，その他","サービス業",IF(B67="卸売業，小売業","卸売業",IF(B67="製造業","製造業",IF(B67="建設業","建設業",IF(B67="宿泊業，飲食サービス業","宿泊業",""))))) -> 宿泊業
A68: 製造業 | B68: =IFERROR(VLOOKUP(A68,【参照】選択リスト!$N$2:$O$22,2,FALSE),"") -> 製造業 | C68: 3,000,000～ | D68: 5732526173 | E68: 2740000 | F68: 照明設備 | G68: 526680 | H68: 356479 | I68: 170201 | J68: =VLOOKUP(E68,【参照】選択リスト!$A$87:$B$108,2) -> 2,000～3,000 | K68: 25080 | L68: 16975 | AB68: 10.85964 | AC68: 7.350175 | AD68: =M68*(1/458)*【出力】CO2排出量計算表!$H$22*【出力】CO2排出量計算表!$I$22*【出力】CO2排出量計算表!$J$22 -> 0 | AE68: =N68*(1/458)*【出力】CO2排出量計算表!$H$22*【出力】CO2排出量計算表!$I$22*【出力】CO2排出量計算表!$J$22 -> 0 | AF68: =O68*(1/458)*【出力】CO2排出量計算表!$H$22*【出力】CO2排出量計算表!$I$22*【出力】CO2排出量計算表!$J$22 -> 0 | AG68: =P68*(1/458)*【出力】CO2排出量計算表!$H$22*【出力】CO2排出量計算表!$I$22*【出力】CO2排出量計算表!$J$22 -> 0 | AH68: =Q68/1000*【出力】CO2排出量計算表!$H$24*【出力】CO2排出量計算表!$I$24*【出力】CO2排出量計算表!$J$24 -> 0 | AI68: =R68/1000*【出力】CO2排出量計算表!$H$24*【出力】CO2排出量計算表!$I$24*【出力】CO2排出量計算表!$J$24 -> 0 | AJ68: =S68/1000*【出力】CO2排出量計算表!$H$24*【出力】CO2排出量計算表!$I$24*【出力】CO2排出量計算表!$J$24 -> 0 | AK68: =T68/1000*【出力】CO2排出量計算表!$H$24*【出力】CO2排出量計算表!$I$24*【出力】CO2排出量計算表!$J$24 -> 0 | AL68: =U68/1000*45*'【入力】CO2算出（電気・都市ガス）'!$X$37*44/12 -> 0 | AM68: =V68/1000*45*'【入力】CO2算出（電気・都市ガス）'!$X$37*44/12 -> 0 | AN68: =W68*【出力】CO2排出量計算表!$H$16*【出力】CO2排出量計算表!$I$16*【出力】CO2排出量計算表!$J$16/1000 -> 0 | AO68: =X68*【出力】CO2排出量計算表!$H$16*【出力】CO2排出量計算表!$I$16*【出力】CO2排出量計算表!$J$16/1000 -> 0 | AP68: =Y68*【出力】CO2排出量計算表!$H$18*【出力】CO2排出量計算表!$I$18*【出力】CO2排出量計算表!$J$18/1000 -> 0 | AQ68: =Z68*【出力】CO2排出量計算表!$H$18*【出力】CO2排出量計算表!$I$18*【出力】CO2排出量計算表!$J$18/1000 -> 0 | AR68: 10.85964 | AS68: 7.350175 | AT68: 3.509465 | AU68: エネルギー管理設備3,000～4,000 | AV68: エネルギー管理設備 | AW68: 3,000～4,000 | AX68: 3,000 ～4,000 | AY68: 0 | AZ68: 0 | BA68: 0 | BB68: 0 | BC68: 0 | BD68: 製造業
A69: 宿泊業，飲食サービス業 | B69: =IFERROR(VLOOKUP(A69,【参照】選択リスト!$N$2:$O$22,2,FALSE),"") -> 宿泊業，飲食サービス業 | C69: 250,000～ | D69: 7277945185 | E69: 850000 | F69: 空調・換気設備 | G69: 390915 | H69: 127020 | I69: 263895 | J69: =VLOOKUP(E69,【参照】選択リスト!$A$87:$B$108,2) -> 1～1,000 | K69: 15636.6 | L69: 5080.8 | AB69: 6.7706478 | AC69: 2.1999864 | AD69: =M69*(1/458)*【出力】CO2排出量計算表!$H$22*【出力】CO2排出量計算表!$I$22*【出力】CO2排出量計算表!$J$22 -> 0 | AE69: =N69*(1/458)*【出力】CO2排出量計算表!$H$22*【出力】CO2排出量計算表!$I$22*【出力】CO2排出量計算表!$J$22 -> 0 | AF69: =O69*(1/458)*【出力】CO2排出量計算表!$H$22*【出力】CO2排出量計算表!$I$22*【出力】CO2排出量計算表!$J$22 -> 0 | AG69: =P69*(1/458)*【出力】CO2排出量計算表!$H$22*【出力】CO2排出量計算表!$I$22*【出力】CO2排出量計算表!$J$22 -> 0 | AH69: =Q69/1000*【出力】CO2排出量計算表!$H$24*【出力】CO2排出量計算表!$I$24*【出力】CO2排出量計算表!$J$24 -> 0 | AI69: =R69/1000*【出力】CO2排出量計算表!$H$24*【出力】CO2排出量計算表!$I$24*【出力】CO2排出量計算表!$J$24 -> 0 | AJ69: =S69/1000*【出力】CO2排出量計算表!$H$24*【出力】CO2排出量計算表!$I$24*【出力】CO2排出量計算表!$J$24 -> 0 | AK69: =T69/1000*【出力】CO2排出量計算表!$H$24*【出力】CO2排出量計算表!$I$24*【出力】CO2排出量計算表!$J$24 -> 0 | AL69: =U69/1000*45*'【入力】CO2算出（電気・都市ガス）'!$X$37*44/12 -> 0 | AM69: =V69/1000*45*'【入力】CO2算出（電気・都市ガス）'!$X$37*44/12 -> 0 | AN69: =W69*【出力】CO2排出量計算表!$H$16*【出力】CO2排出量計算表!$I$16*【出力】CO2排出量計算表!$J$16/1000 -> 0 | AO69: =X69*【出力】CO2排出量計算表!$H$16*【出力】CO2排出量計算表!$I$16*【出力】CO2排出量計算表!$J$16/1000 -> 0 | AP69: =Y69*【出力】CO2排出量計算表!$H$18*【出力】CO2排出量計算表!$I$18*【出力】CO2排出量計算表!$J$18/1000 -> 0 | AQ69: =Z69*【出力】CO2排出量計算表!$H$18*【出力】CO2排出量計算表!$I$18*【出力】CO2排出量計算表!$J$18/1000 -> 0 | AR69: 6.7706478 | AS69: 2.1999864 | AT69: 4.5706614 | AU69: エネルギー管理設備4,000～5,000 | AV69: エネルギー管理設備 | AW69: 4,000～5,000 | AX69: 4,000 ～5,000 | AY69: 0 | AZ69: 0 | BA69: 0 | BB69: 0 | BC69: 0 | BD69: 宿泊業
A70: 生活関連サービス業，娯楽業 | B70: =IFERROR(VLOOKUP(A70,【参照】選択リスト!$N$2:$O$22,2,FALSE),"") -> サービス業，その他 | C70: 10,000～25,000 | D70: 10790558 | E70: 768500 | F70: 空調・換気設備 | G70: 750616 | H70: 675540 | I70: 75076 | J70: =VLOOKUP(E70,【参照】選択リスト!$A$87:$B$108,2) -> 1～1,000 | K70: 27800 | L70: 25020 | AB70: 12.0374 | AC70: 10.83366 | AD70: =M70*(1/458)*【出力】CO2排出量計算表!$H$22*【出力】CO2排出量計算表!$I$22*【出力】CO2排出量計算表!$J$22 -> 0 | AE70: =N70*(1/458)*【出力】CO2排出量計算表!$H$22*【出力】CO2排出量計算表!$I$22*【出力】CO2排出量計算表!$J$22 -> 0 | AF70: =O70*(1/458)*【出力】CO2排出量計算表!$H$22*【出力】CO2排出量計算表!$I$22*【出力】CO2排出量計算表!$J$22 -> 0 | AG70: =P70*(1/458)*【出力】CO2排出量計算表!$H$22*【出力】CO2排出量計算表!$I$22*【出力】CO2排出量計算表!$J$22 -> 0 | AH70: =Q70/1000*【出力】CO2排出量計算表!$H$24*【出力】CO2排出量計算表!$I$24*【出力】CO2排出量計算表!$J$24 -> 0 | AI70: =R70/1000*【出力】CO2排出量計算表!$H$24*【出力】CO2排出量計算表!$I$24*【出力】CO2排出量計算表!$J$24 -> 0 | AJ70: =S70/1000*【出力】CO2排出量計算表!$H$24*【出力】CO2排出量計算表!$I$24*【出力】CO2排出量計算表!$J$24 -> 0 | AK70: =T70/1000*【出力】CO2排出量計算表!$H$24*【出力】CO2排出量計算表!$I$24*【出力】CO2排出量計算表!$J$24 -> 0 | AL70: =U70/1000*45*'【入力】CO2算出（電気・都市ガス）'!$X$37*44/12 -> 0 | AM70: =V70/1000*45*'【入力】CO2算出（電気・都市ガス）'!$X$37*44/12 -> 0 | AN70: =W70*【出力】CO2排出量計算表!$H$16*【出力】CO2排出量計算表!$I$16*【出力】CO2排出量計算表!$J$16/1000 -> 0 | AO70: =X70*【出力】CO2排出量計算表!$H$16*【出力】CO2排出量計算表!$I$16*【出力】CO2排出量計算表!$J$16/1000 -> 0 | AP70: =Y70*【出力】CO2排出量計算表!$H$18*【出力】CO2排出量計算表!$I$18*【出力】CO2排出量計算表!$J$18/1000 -> 0 | AQ70: =Z70*【出力】CO2排出量計算表!$H$18*【出力】CO2排出量計算表!$I$18*【出力】CO2排出量計算表!$J$18/1000 -> 0 | AR70: 12.0374 | AS70: 10.83366 | AT70: 1.20374 | AU70: エネルギー管理設備5,000～6,000 | AV70: エネルギー管理設備 | AW70: 5,000～6,000 | AX70: 5,000 ～6,000 | AY70: 0 | AZ70: 0 | BA70: 0 | BB70: 0 | BC70: 0 | BD70: サービス業
A71: 建設業 | B71: =IFERROR(VLOOKUP(A71,【参照】選択リスト!$N$2:$O$22,2,FALSE),"") -> 建設業 | C71: ～50,000 | D71: 13618814 | E71: 1764686 | F71: 照明設備 | G71: 427232 | H71: 72413 | I71: 354819 | J71: =VLOOKUP(E71,【参照】選択リスト!$A$87:$B$108,2) -> 1,000～2,000 | K71: 16432 | L71: 2785.1 | AB71: 7.115056 | AC71: 1.2059483 | AD71: =M71*(1/458)*【出力】CO2排出量計算表!$H$22*【出力】CO2排出量計算表!$I$22*【出力】CO2排出量計算表!$J$22 -> 0 | AE71: =N71*(1/458)*【出力】CO2排出量計算表!$H$22*【出力】CO2排出量計算表!$I$22*【出力】CO2排出量計算表!$J$22 -> 0 | AF71: =O71*(1/458)*【出力】CO2排出量計算表!$H$22*【出力】CO2排出量計算表!$I$22*【出力】CO2排出量計算表!$J$22 -> 0 | AG71: =P71*(1/458)*【出力】CO2排出量計算表!$H$22*【出力】CO2排出量計算表!$I$22*【出力】CO2排出量計算表!$J$22 -> 0 | AH71: =Q71/1000*【出力】CO2排出量計算表!$H$24*【出力】CO2排出量計算表!$I$24*【出力】CO2排出量計算表!$J$24 -> 0 | AI71: =R71/1000*【出力】CO2排出量計算表!$H$24*【出力】CO2排出量計算表!$I$24*【出力】CO2排出量計算表!$J$24 -> 0 | AJ71: =S71/1000*【出力】CO2排出量計算表!$H$24*【出力】CO2排出量計算表!$I$24*【出力】CO2排出量計算表!$J$24 -> 0 | AK71: =T71/1000*【出力】CO2排出量計算表!$H$24*【出力】CO2排出量計算表!$I$24*【出力】CO2排出量計算表!$J$24 -> 0 | AL71: =U71/1000*45*'【入力】CO2算出（電気・都市ガス）'!$X$37*44/12 -> 0 | AM71: =V71/1000*45*'【入力】CO2算出（電気・都市ガス）'!$X$37*44/12 -> 0 | AN71: =W71*【出力】CO2排出量計算表!$H$16*【出力】CO2排出量計算表!$I$16*【出力】CO2排出量計算表!$J$16/1000 -> 0 | AO71: =X71*【出力】CO2排出量計算表!$H$16*【出力】CO2排出量計算表!$I$16*【出力】CO2排出量計算表!$J$16/1000 -> 0 | AP71: =Y71*【出力】CO2排出量計算表!$H$18*【出力】CO2排出量計算表!$I$18*【出力】CO2排出量計算表!$J$18/1000 -> 0 | AQ71: =Z71*【出力】CO2排出量計算表!$H$18*【出力】CO2排出量計算表!$I$18*【出力】CO2排出量計算表!$J$18/1000 -> 0 | AR71: 7.115056 | AS71: 1.2059483 | AT71: 5.9091077 | AU71: =AV71&AW71 -> エネルギー管理設備6,000～7,000 | AV71: エネルギー管理設備 | AW71: 6,000～7,000 | AX71: 6,000 ～7,000 | AY71: 0 | AZ71: 0 | BA71: 0 | BB71: 0 | BC71: 0 | BD71: 建設業
A72: 建設業 | B72: =IFERROR(VLOOKUP(A72,【参照】選択リスト!$N$2:$O$22,2,FALSE),"") -> 建設業 | C72: 50,000～100,000 | D72: 97699535 | E72: 784000 | F72: 空調・換気設備 | G72: 201363 | H72: 181226 | I72: 20137 | J72: =VLOOKUP(E72,【参照】選択リスト!$A$87:$B$108,2) -> 1～1,000 | K72: 6886 | L72: 6197 | AB72: 2.981638 | AC72: 2.683301 | AD72: =M72*(1/458)*【出力】CO2排出量計算表!$H$22*【出力】CO2排出量計算表!$I$22*【出力】CO2排出量計算表!$J$22 -> 0 | AE72: =N72*(1/458)*【出力】CO2排出量計算表!$H$22*【出力】CO2排出量計算表!$I$22*【出力】CO2排出量計算表!$J$22 -> 0 | AF72: =O72*(1/458)*【出力】CO2排出量計算表!$H$22*【出力】CO2排出量計算表!$I$22*【出力】CO2排出量計算表!$J$22 -> 0 | AG72: =P72*(1/458)*【出力】CO2排出量計算表!$H$22*【出力】CO2排出量計算表!$I$22*【出力】CO2排出量計算表!$J$22 -> 0 | AH72: =Q72/1000*【出力】CO2排出量計算表!$H$24*【出力】CO2排出量計算表!$I$24*【出力】CO2排出量計算表!$J$24 -> 0 | AI72: =R72/1000*【出力】CO2排出量計算表!$H$24*【出力】CO2排出量計算表!$I$24*【出力】CO2排出量計算表!$J$24 -> 0 | AJ72: =S72/1000*【出力】CO2排出量計算表!$H$24*【出力】CO2排出量計算表!$I$24*【出力】CO2排出量計算表!$J$24 -> 0 | AK72: =T72/1000*【出力】CO2排出量計算表!$H$24*【出力】CO2排出量計算表!$I$24*【出力】CO2排出量計算表!$J$24 -> 0 | AL72: =U72/1000*45*'【入力】CO2算出（電気・都市ガス）'!$X$37*44/12 -> 0 | AM72: =V72/1000*45*'【入力】CO2算出（電気・都市ガス）'!$X$37*44/12 -> 0 | AN72: =W72*【出力】CO2排出量計算表!$H$16*【出力】CO2排出量計算表!$I$16*【出力】CO2排出量計算表!$J$16/1000 -> 0 | AO72: =X72*【出力】CO2排出量計算表!$H$16*【出力】CO2排出量計算表!$I$16*【出力】CO2排出量計算表!$J$16/1000 -> 0 | AP72: =Y72*【出力】CO2排出量計算表!$H$18*【出力】CO2排出量計算表!$I$18*【出力】CO2排出量計算表!$J$18/1000 -> 0 | AQ72: =Z72*【出力】CO2排出量計算表!$H$18*【出力】CO2排出量計算表!$I$18*【出力】CO2排出量計算表!$J$18/1000 -> 0 | AR72: 2.981638 | AS72: 2.683301 | AT72: 0.298337 | AU72: エネルギー管理設備7,000～8,000 | AV72: エネルギー管理設備 | AW72: 7,000～8,000 | AX72: 7,000 ～8,000 | AY72: 0 | AZ72: 0 | BA72: 0 | BB72: 0 | BC72: 0 | BD72: 建設業
A73: 製造業 | B73: =IFERROR(VLOOKUP(A73,【参照】選択リスト!$N$2:$O$22,2,FALSE),"") -> 製造業 | C73: 250,000～1,000,000 | D73: 400363230 | E73: 2974000 | F73: 照明設備 | G73: 8703972 | H73: 8007106 | I73: 696866 | J73: =VLOOKUP(E73,【参照】選択リスト!$A$87:$B$108,2) -> 2,000～3,000 | K73: 365056 | L73: 336466 | AB73: 158.069248 | AC73: 145.689778 | AD73: =M73*(1/458)*【出力】CO2排出量計算表!$H$22*【出力】CO2排出量計算表!$I$22*【出力】CO2排出量計算表!$J$22 -> 0 | AE73: =N73*(1/458)*【出力】CO2排出量計算表!$H$22*【出力】CO2排出量計算表!$I$22*【出力】CO2排出量計算表!$J$22 -> 0 | AF73: =O73*(1/458)*【出力】CO2排出量計算表!$H$22*【出力】CO2排出量計算表!$I$22*【出力】CO2排出量計算表!$J$22 -> 0 | AG73: =P73*(1/458)*【出力】CO2排出量計算表!$H$22*【出力】CO2排出量計算表!$I$22*【出力】CO2排出量計算表!$J$22 -> 0 | AH73: =Q73/1000*【出力】CO2排出量計算表!$H$24*【出力】CO2排出量計算表!$I$24*【出力】CO2排出量計算表!$J$24 -> 0 | AI73: =R73/1000*【出力】CO2排出量計算表!$H$24*【出力】CO2排出量計算表!$I$24*【出力】CO2排出量計算表!$J$24 -> 0 | AJ73: =S73/1000*【出力】CO2排出量計算表!$H$24*【出力】CO2排出量計算表!$I$24*【出力】CO2排出量計算表!$J$24 -> 0 | AK73: =T73/1000*【出力】CO2排出量計算表!$H$24*【出力】CO2排出量計算表!$I$24*【出力】CO2排出量計算表!$J$24 -> 0 | AL73: =U73/1000*45*'【入力】CO2算出（電気・都市ガス）'!$X$37*44/12 -> 0 | AM73: =V73/1000*45*'【入力】CO2算出（電気・都市ガス）'!$X$37*44/12 -> 0 | AN73: =W73*【出力】CO2排出量計算表!$H$16*【出力】CO2排出量計算表!$I$16*【出力】CO2排出量計算表!$J$16/1000 -> 0 | AO73: =X73*【出力】CO2排出量計算表!$H$16*【出力】CO2排出量計算表!$I$16*【出力】CO2排出量計算表!$J$16/1000 -> 0 | AP73: =Y73*【出力】CO2排出量計算表!$H$18*【出力】CO2排出量計算表!$I$18*【出力】CO2排出量計算表!$J$18/1000 -> 0 | AQ73: =Z73*【出力】CO2排出量計算表!$H$18*【出力】CO2排出量計算表!$I$18*【出力】CO2排出量計算表!$J$18/1000 -> 0 | AR73: 158.069248 | AS73: 145.689778 | AT73: 12.37947 | AU73: エネルギー管理設備8,000～9,000 | AV73: エネルギー管理設備 | AW73: 8,000～9,000 | AX73: 8,000 ～9,000 | AY73: 0 | AZ73: 0 | BA73: 0 | BB73: 0 | BC73: 0 | BD73: 製造業
A74: 製造業 | B74: =IFERROR(VLOOKUP(A74,【参照】選択リスト!$N$2:$O$22,2,FALSE),"") -> 製造業 | C74: 250,000～1,000,000 | D74: 440285400 | E74: 5066000 | F74: 電気制御設備 | G74: 1934519 | H74: 1685933 | I74: 248586 | J74: =VLOOKUP(E74,【参照】選択リスト!$A$87:$B$108,2) -> 5,000～6,000 | K74: 72940 | L74: 63567 | AB74: 31.58302 | AC74: 27.524511 | AD74: =M74*(1/458)*【出力】CO2排出量計算表!$H$22*【出力】CO2排出量計算表!$I$22*【出力】CO2排出量計算表!$J$22 -> 0 | AE74: =N74*(1/458)*【出力】CO2排出量計算表!$H$22*【出力】CO2排出量計算表!$I$22*【出力】CO2排出量計算表!$J$22 -> 0 | AF74: =O74*(1/458)*【出力】CO2排出量計算表!$H$22*【出力】CO2排出量計算表!$I$22*【出力】CO2排出量計算表!$J$22 -> 0 | AG74: =P74*(1/458)*【出力】CO2排出量計算表!$H$22*【出力】CO2排出量計算表!$I$22*【出力】CO2排出量計算表!$J$22 -> 0 | AH74: =Q74/1000*【出力】CO2排出量計算表!$H$24*【出力】CO2排出量計算表!$I$24*【出力】CO2排出量計算表!$J$24 -> 0 | AI74: =R74/1000*【出力】CO2排出量計算表!$H$24*【出力】CO2排出量計算表!$I$24*【出力】CO2排出量計算表!$J$24 -> 0 | AJ74: =S74/1000*【出力】CO2排出量計算表!$H$24*【出力】CO2排出量計算表!$I$24*【出力】CO2排出量計算表!$J$24 -> 0 | AK74: =T74/1000*【出力】CO2排出量計算表!$H$24*【出力】CO2排出量計算表!$I$24*【出力】CO2排出量計算表!$J$24 -> 0 | AL74: =U74/1000*45*'【入力】CO2算出（電気・都市ガス）'!$X$37*44/12 -> 0 | AM74: =V74/1000*45*'【入力】CO2算出（電気・都市ガス）'!$X$37*44/12 -> 0 | AN74: =W74*【出力】CO2排出量計算表!$H$16*【出力】CO2排出量計算表!$I$16*【出力】CO2排出量計算表!$J$16/1000 -> 0 | AO74: =X74*【出力】CO2排出量計算表!$H$16*【出力】CO2排出量計算表!$I$16*【出力】CO2排出量計算表!$J$16/1000 -> 0 | AP74: =Y74*【出力】CO2排出量計算表!$H$18*【出力】CO2排出量計算表!$I$18*【出力】CO2排出量計算表!$J$18/1000 -> 0 | AQ74: =Z74*【出力】CO2排出量計算表!$H$18*【出力】CO2排出量計算表!$I$18*【出力】CO2排出量計算表!$J$18/1000 -> 0 | AR74: 31.58302 | AS74: 27.524511 | AT74: 4.058509 | AU74: エネルギー管理設備9,000～10,000 | AV74: エネルギー管理設備 | AW74: 9,000～10,000 | AX74: 9,000 ～10,000 | AY74: 0 | AZ74: 0 | BA74: 0 | BB74: 0 | BC74: 0 | BD74: 製造業
A75: 卸売業，小売業 | B75: =IFERROR(VLOOKUP(A75,【参照】選択リスト!$N$2:$O$22,2,FALSE),"") -> 卸売業，小売業 | C75: 25,000～500,000 | D75: 104365148 | E75: 1050000 | F75: 空調・換気設備 | G75: 120791 | H75: 91532 | I75: 29259 | J75: =VLOOKUP(E75,【参照】選択リスト!$A$87:$B$108,2) -> 1,000～2,000 | L75: 1402 | W75: 1136 | AB75: 0 | AC75: 0.607066 | AD75: =M75*(1/458)*【出力】CO2排出量計算表!$H$22*【出力】CO2排出量計算表!$I$22*【出力】CO2排出量計算表!$J$22 -> 0 | AE75: =N75*(1/458)*【出力】CO2排出量計算表!$H$22*【出力】CO2排出量計算表!$I$22*【出力】CO2排出量計算表!$J$22 -> 0 | AF75: =O75*(1/458)*【出力】CO2排出量計算表!$H$22*【出力】CO2排出量計算表!$I$22*【出力】CO2排出量計算表!$J$22 -> 0 | AG75: =P75*(1/458)*【出力】CO2排出量計算表!$H$22*【出力】CO2排出量計算表!$I$22*【出力】CO2排出量計算表!$J$22 -> 0 | AH75: =Q75/1000*【出力】CO2排出量計算表!$H$24*【出力】CO2排出量計算表!$I$24*【出力】CO2排出量計算表!$J$24 -> 0 | AI75: =R75/1000*【出力】CO2排出量計算表!$H$24*【出力】CO2排出量計算表!$I$24*【出力】CO2排出量計算表!$J$24 -> 0 | AJ75: =S75/1000*【出力】CO2排出量計算表!$H$24*【出力】CO2排出量計算表!$I$24*【出力】CO2排出量計算表!$J$24 -> 0 | AK75: =T75/1000*【出力】CO2排出量計算表!$H$24*【出力】CO2排出量計算表!$I$24*【出力】CO2排出量計算表!$J$24 -> 0 | AL75: =U75/1000*45*'【入力】CO2算出（電気・都市ガス）'!$X$37*44/12 -> 0 | AM75: =V75/1000*45*'【入力】CO2算出（電気・都市ガス）'!$X$37*44/12 -> 0 | AN75: =W75*【出力】CO2排出量計算表!$H$16*【出力】CO2排出量計算表!$I$16*【出力】CO2排出量計算表!$J$16/1000 -> 2.828053067 | AO75: =X75*【出力】CO2排出量計算表!$H$16*【出力】CO2排出量計算表!$I$16*【出力】CO2排出量計算表!$J$16/1000 -> 0 | AP75: =Y75*【出力】CO2排出量計算表!$H$18*【出力】CO2排出量計算表!$I$18*【出力】CO2排出量計算表!$J$18/1000 -> 0 | AQ75: =Z75*【出力】CO2排出量計算表!$H$18*【出力】CO2排出量計算表!$I$18*【出力】CO2排出量計算表!$J$18/1000 -> 0 | AR75: 2.828053067 | AS75: 0.607066 | AT75: 2.220987067 | AU75: エネルギー管理設備10,000～11,000 | AV75: エネルギー管理設備 | AW75: 10,000～11,000 | AX75: 10,000 ～11,000 | AY75: 0 | AZ75: 0 | BA75: 0 | BB75: 0 | BC75: 0 | BD75: 卸売業
A76: 建設業 | B76: =IFERROR(VLOOKUP(A76,【参照】選択リスト!$N$2:$O$22,2,FALSE),"") -> 建設業 | C76: 1,000,000～ | D76: 4308842198 | E76: 6100000 | F76: 空調・換気設備 | G76: 7830536 | H76: 7228000 | I76: 602536 | J76: =VLOOKUP(E76,【参照】選択リスト!$A$87:$B$108,2) -> 6,000～7,000 | K76: 248625 | L76: 242000 | W76: 4490 | AB76: 107.654625 | AC76: 104.786 | AD76: =M76*(1/458)*【出力】CO2排出量計算表!$H$22*【出力】CO2排出量計算表!$I$22*【出力】CO2排出量計算表!$J$22 -> 0 | AE76: =N76*(1/458)*【出力】CO2排出量計算表!$H$22*【出力】CO2排出量計算表!$I$22*【出力】CO2排出量計算表!$J$22 -> 0 | AF76: =O76*(1/458)*【出力】CO2排出量計算表!$H$22*【出力】CO2排出量計算表!$I$22*【出力】CO2排出量計算表!$J$22 -> 0 | AG76: =P76*(1/458)*【出力】CO2排出量計算表!$H$22*【出力】CO2排出量計算表!$I$22*【出力】CO2排出量計算表!$J$22 -> 0 | AH76: =Q76/1000*【出力】CO2排出量計算表!$H$24*【出力】CO2排出量計算表!$I$24*【出力】CO2排出量計算表!$J$24 -> 0 | AI76: =R76/1000*【出力】CO2排出量計算表!$H$24*【出力】CO2排出量計算表!$I$24*【出力】CO2排出量計算表!$J$24 -> 0 | AJ76: =S76/1000*【出力】CO2排出量計算表!$H$24*【出力】CO2排出量計算表!$I$24*【出力】CO2排出量計算表!$J$24 -> 0 | AK76: =T76/1000*【出力】CO2排出量計算表!$H$24*【出力】CO2排出量計算表!$I$24*【出力】CO2排出量計算表!$J$24 -> 0 | AL76: =U76/1000*45*'【入力】CO2算出（電気・都市ガス）'!$X$37*44/12 -> 0 | AM76: =V76/1000*45*'【入力】CO2算出（電気・都市ガス）'!$X$37*44/12 -> 0 | AN76: =W76*【出力】CO2排出量計算表!$H$16*【出力】CO2排出量計算表!$I$16*【出力】CO2排出量計算表!$J$16/1000 -> 11.17778017 | AO76: =X76*【出力】CO2排出量計算表!$H$16*【出力】CO2排出量計算表!$I$16*【出力】CO2排出量計算表!$J$16/1000 -> 0 | AP76: =Y76*【出力】CO2排出量計算表!$H$18*【出力】CO2排出量計算表!$I$18*【出力】CO2排出量計算表!$J$18/1000 -> 0 | AQ76: =Z76*【出力】CO2排出量計算表!$H$18*【出力】CO2排出量計算表!$I$18*【出力】CO2排出量計算表!$J$18/1000 -> 0 | AR76: 118.8324052 | AS76: 104.786 | AT76: 14.04640517 | AU76: エネルギー管理設備11,000～12,000 | AV76: エネルギー管理設備 | AW76: 11,000～12,000 | AX76: 11,000 ～12,000 | AY76: 0 | AZ76: 0 | BA76: 0 | BB76: 0 | BC76: 0 | BD76: 建設業
A77: 卸売業，小売業 | B77: =IFERROR(VLOOKUP(A77,【参照】選択リスト!$N$2:$O$22,2,FALSE),"") -> 卸売業，小売業 | C77: 25,000～500,000 | D77: 39496103 | E77: 1400000 | F77: 空調・換気設備 | G77: 347904 | H77: 276377 | I77: 71527 | J77: =VLOOKUP(E77,【参照】選択リスト!$A$87:$B$108,2) -> 1,000～2,000 | K77: 12438 | L77: 8029 | AB77: 5.385654 | AC77: 3.476557 | AD77: =M77*(1/458)*【出力】CO2排出量計算表!$H$22*【出力】CO2排出量計算表!$I$22*【出力】CO2排出量計算表!$J$22 -> 0 | AE77: =N77*(1/458)*【出力】CO2排出量計算表!$H$22*【出力】CO2排出量計算表!$I$22*【出力】CO2排出量計算表!$J$22 -> 0 | AF77: =O77*(1/458)*【出力】CO2排出量計算表!$H$22*【出力】CO2排出量計算表!$I$22*【出力】CO2排出量計算表!$J$22 -> 0 | AG77: =P77*(1/458)*【出力】CO2排出量計算表!$H$22*【出力】CO2排出量計算表!$I$22*【出力】CO2排出量計算表!$J$22 -> 0 | AH77: =Q77/1000*【出力】CO2排出量計算表!$H$24*【出力】CO2排出量計算表!$I$24*【出力】CO2排出量計算表!$J$24 -> 0 | AI77: =R77/1000*【出力】CO2排出量計算表!$H$24*【出力】CO2排出量計算表!$I$24*【出力】CO2排出量計算表!$J$24 -> 0 | AJ77: =S77/1000*【出力】CO2排出量計算表!$H$24*【出力】CO2排出量計算表!$I$24*【出力】CO2排出量計算表!$J$24 -> 0 | AK77: =T77/1000*【出力】CO2排出量計算表!$H$24*【出力】CO2排出量計算表!$I$24*【出力】CO2排出量計算表!$J$24 -> 0 | AL77: =U77/1000*45*'【入力】CO2算出（電気・都市ガス）'!$X$37*44/12 -> 0 | AM77: =V77/1000*45*'【入力】CO2算出（電気・都市ガス）'!$X$37*44/12 -> 0 | AN77: =W77*【出力】CO2排出量計算表!$H$16*【出力】CO2排出量計算表!$I$16*【出力】CO2排出量計算表!$J$16/1000 -> 0 | AO77: =X77*【出力】CO2排出量計算表!$H$16*【出力】CO2排出量計算表!$I$16*【出力】CO2排出量計算表!$J$16/1000 -> 0 | AP77: =Y77*【出力】CO2排出量計算表!$H$18*【出力】CO2排出量計算表!$I$18*【出力】CO2排出量計算表!$J$18/1000 -> 0 | AQ77: =Z77*【出力】CO2排出量計算表!$H$18*【出力】CO2排出量計算表!$I$18*【出力】CO2排出量計算表!$J$18/1000 -> 0 | AR77: 5.385654 | AS77: 3.476557 | AT77: 1.909097 | AU77: エネルギー管理設備12,000～13,000 | AV77: エネルギー管理設備 | AW77: 12,000～13,000 | AX77: 12,000 ～13,000 | AY77: 0 | AZ77: 0 | BA77: 0 | BB77: 0 | BC77: 0 | BD77: 卸売業
A78: 宿泊業，飲食サービス業 | B78: =IFERROR(VLOOKUP(A78,【参照】選択リスト!$N$2:$O$22,2,FALSE),"") -> 宿泊業，飲食サービス業 | C78: 10,000～25,000 | D78: 23472147 | E78: 850000 | F78: 冷蔵・冷凍設備 | G78: 55620 | H78: 17280 | I78: 38340 | J78: =VLOOKUP(E78,【参照】選択リスト!$A$87:$B$108,2) -> 1～1,000 | K78: 2060 | L78: 640 | AB78: 0.89198 | AC78: 0.27712 | AD78: =M78*(1/458)*【出力】CO2排出量計算表!$H$22*【出力】CO2排出量計算表!$I$22*【出力】CO2排出量計算表!$J$22 -> 0 | AE78: =N78*(1/458)*【出力】CO2排出量計算表!$H$22*【出力】CO2排出量計算表!$I$22*【出力】CO2排出量計算表!$J$22 -> 0 | AF78: =O78*(1/458)*【出力】CO2排出量計算表!$H$22*【出力】CO2排出量計算表!$I$22*【出力】CO2排出量計算表!$J$22 -> 0 | AG78: =P78*(1/458)*【出力】CO2排出量計算表!$H$22*【出力】CO2排出量計算表!$I$22*【出力】CO2排出量計算表!$J$22 -> 0 | AH78: =Q78/1000*【出力】CO2排出量計算表!$H$24*【出力】CO2排出量計算表!$I$24*【出力】CO2排出量計算表!$J$24 -> 0 | AI78: =R78/1000*【出力】CO2排出量計算表!$H$24*【出力】CO2排出量計算表!$I$24*【出力】CO2排出量計算表!$J$24 -> 0 | AJ78: =S78/1000*【出力】CO2排出量計算表!$H$24*【出力】CO2排出量計算表!$I$24*【出力】CO2排出量計算表!$J$24 -> 0 | AK78: =T78/1000*【出力】CO2排出量計算表!$H$24*【出力】CO2排出量計算表!$I$24*【出力】CO2排出量計算表!$J$24 -> 0 | AL78: =U78/1000*45*'【入力】CO2算出（電気・都市ガス）'!$X$37*44/12 -> 0 | AM78: =V78/1000*45*'【入力】CO2算出（電気・都市ガス）'!$X$37*44/12 -> 0 | AN78: =W78*【出力】CO2排出量計算表!$H$16*【出力】CO2排出量計算表!$I$16*【出力】CO2排出量計算表!$J$16/1000 -> 0 | AO78: =X78*【出力】CO2排出量計算表!$H$16*【出力】CO2排出量計算表!$I$16*【出力】CO2排出量計算表!$J$16/1000 -> 0 | AP78: =Y78*【出力】CO2排出量計算表!$H$18*【出力】CO2排出量計算表!$I$18*【出力】CO2排出量計算表!$J$18/1000 -> 0 | AQ78: =Z78*【出力】CO2排出量計算表!$H$18*【出力】CO2排出量計算表!$I$18*【出力】CO2排出量計算表!$J$18/1000 -> 0 | AR78: 0.89198 | AS78: 0.27712 | AT78: 0.61486 | AU78: エネルギー管理設備13,000～14,000 | AV78: エネルギー管理設備 | AW78: 13,000～14,000 | AX78: 13,000 ～14,000 | AY78: 0 | AZ78: 0 | BA78: 0 | BB78: 0 | BC78: 0 | BD78: 宿泊業
A79: 卸売業，小売業 | B79: =IFERROR(VLOOKUP(A79,【参照】選択リスト!$N$2:$O$22,2,FALSE),"") -> 卸売業，小売業 | C79: 1,000～25,000 | D79: 12269621 | E79: 2040000 | F79: 照明設備 | G79: 28050 | H79: 24458 | I79: 3592 | J79: =VLOOKUP(E79,【参照】選択リスト!$A$87:$B$108,2) -> 2,000～3,000 | K79: 1122 | L79: 978.32 | AB79: 0.485826 | AC79: 0.42361256 | AD79: =M79*(1/458)*【出力】CO2排出量計算表!$H$22*【出力】CO2排出量計算表!$I$22*【出力】CO2排出量計算表!$J$22 -> 0 | AE79: =N79*(1/458)*【出力】CO2排出量計算表!$H$22*【出力】CO2排出量計算表!$I$22*【出力】CO2排出量計算表!$J$22 -> 0 | AF79: =O79*(1/458)*【出力】CO2排出量計算表!$H$22*【出力】CO2排出量計算表!$I$22*【出力】CO2排出量計算表!$J$22 -> 0 | AG79: =P79*(1/458)*【出力】CO2排出量計算表!$H$22*【出力】CO2排出量計算表!$I$22*【出力】CO2排出量計算表!$J$22 -> 0 | AH79: =Q79/1000*【出力】CO2排出量計算表!$H$24*【出力】CO2排出量計算表!$I$24*【出力】CO2排出量計算表!$J$24 -> 0 | AI79: =R79/1000*【出力】CO2排出量計算表!$H$24*【出力】CO2排出量計算表!$I$24*【出力】CO2排出量計算表!$J$24 -> 0 | AJ79: =S79/1000*【出力】CO2排出量計算表!$H$24*【出力】CO2排出量計算表!$I$24*【出力】CO2排出量計算表!$J$24 -> 0 | AK79: =T79/1000*【出力】CO2排出量計算表!$H$24*【出力】CO2排出量計算表!$I$24*【出力】CO2排出量計算表!$J$24 -> 0 | AL79: =U79/1000*45*'【入力】CO2算出（電気・都市ガス）'!$X$37*44/12 -> 0 | AM79: =V79/1000*45*'【入力】CO2算出（電気・都市ガス）'!$X$37*44/12 -> 0 | AN79: =W79*【出力】CO2排出量計算表!$H$16*【出力】CO2排出量計算表!$I$16*【出力】CO2排出量計算表!$J$16/1000 -> 0 | AO79: =X79*【出力】CO2排出量計算表!$H$16*【出力】CO2排出量計算表!$I$16*【出力】CO2排出量計算表!$J$16/1000 -> 0 | AP79: =Y79*【出力】CO2排出量計算表!$H$18*【出力】CO2排出量計算表!$I$18*【出力】CO2排出量計算表!$J$18/1000 -> 0 | AQ79: =Z79*【出力】CO2排出量計算表!$H$18*【出力】CO2排出量計算表!$I$18*【出力】CO2排出量計算表!$J$18/1000 -> 0 | AR79: 0.485826 | AS79: 0.42361256 | AT79: 0.06221344 | AU79: エネルギー管理設備14,000～15,000 | AV79: エネルギー管理設備 | AW79: 14,000～15,000 | AX79: 14,000 ～15,000 | AY79: 0 | AZ79: 0 | BA79: 0 | BB79: 0 | BC79: 0 | BD79: 卸売業
A80: 宿泊業，飲食サービス業 | B80: =IFERROR(VLOOKUP(A80,【参照】選択リスト!$N$2:$O$22,2,FALSE),"") -> 宿泊業，飲食サービス業 | C80: 100,000～250,000 | D80: 107536672 | E80: 1483200 | F80: 空調・換気設備 | G80: 2999430 | H80: 1949629 | I80: 1049801 | J80: =VLOOKUP(E80,【参照】選択リスト!$A$87:$B$108,2) -> 1,000～2,000 | K80: 148290 | L80: 96388 | AB80: 64.20957 | AC80: 41.736004 | AD80: =M80*(1/458)*【出力】CO2排出量計算表!$H$22*【出力】CO2排出量計算表!$I$22*【出力】CO2排出量計算表!$J$22 -> 0 | AE80: =N80*(1/458)*【出力】CO2排出量計算表!$H$22*【出力】CO2排出量計算表!$I$22*【出力】CO2排出量計算表!$J$22 -> 0 | AF80: =O80*(1/458)*【出力】CO2排出量計算表!$H$22*【出力】CO2排出量計算表!$I$22*【出力】CO2排出量計算表!$J$22 -> 0 | AG80: =P80*(1/458)*【出力】CO2排出量計算表!$H$22*【出力】CO2排出量計算表!$I$22*【出力】CO2排出量計算表!$J$22 -> 0 | AH80: =Q80/1000*【出力】CO2排出量計算表!$H$24*【出力】CO2排出量計算表!$I$24*【出力】CO2排出量計算表!$J$24 -> 0 | AI80: =R80/1000*【出力】CO2排出量計算表!$H$24*【出力】CO2排出量計算表!$I$24*【出力】CO2排出量計算表!$J$24 -> 0 | AJ80: =S80/1000*【出力】CO2排出量計算表!$H$24*【出力】CO2排出量計算表!$I$24*【出力】CO2排出量計算表!$J$24 -> 0 | AK80: =T80/1000*【出力】CO2排出量計算表!$H$24*【出力】CO2排出量計算表!$I$24*【出力】CO2排出量計算表!$J$24 -> 0 | AL80: =U80/1000*45*'【入力】CO2算出（電気・都市ガス）'!$X$37*44/12 -> 0 | AM80: =V80/1000*45*'【入力】CO2算出（電気・都市ガス）'!$X$37*44/12 -> 0 | AN80: =W80*【出力】CO2排出量計算表!$H$16*【出力】CO2排出量計算表!$I$16*【出力】CO2排出量計算表!$J$16/1000 -> 0 | AO80: =X80*【出力】CO2排出量計算表!$H$16*【出力】CO2排出量計算表!$I$16*【出力】CO2排出量計算表!$J$16/1000 -> 0 | AP80: =Y80*【出力】CO2排出量計算表!$H$18*【出力】CO2排出量計算表!$I$18*【出力】CO2排出量計算表!$J$18/1000 -> 0 | AQ80: =Z80*【出力】CO2排出量計算表!$H$18*【出力】CO2排出量計算表!$I$18*【出力】CO2排出量計算表!$J$18/1000 -> 0 | AR80: 64.20957 | AS80: 41.736004 | AT80: 22.473566 | AU80: エネルギー管理設備15,000～16,000 | AV80: エネルギー管理設備 | AW80: 15,000～16,000 | AX80: 15,000 ～16,000 | AY80: 0 | AZ80: 0 | BA80: 0 | BB80: 0 | BC80: 0 | BD80: 宿泊業
A81: 宿泊業，飲食サービス業 | B81: =IFERROR(VLOOKUP(A81,【参照】選択リスト!$N$2:$O$22,2,FALSE),"") -> 宿泊業，飲食サービス業 | C81: 10,000～25,000 | D81: 15887446 | E81: 1494000 | F81: 空調・換気設備 | G81: 678453 | H81: 293208 | I81: 385245 | J81: =VLOOKUP(E81,【参照】選択リスト!$A$87:$B$108,2) -> 1,000～2,000 | K81: 4620 | L81: 4092 | M81: 1249.4 | N81: 412.302 | W81: 554 | X81: 182 | AB81: 2.00046 | AC81: 1.771836 | AD81: =M81*(1/458)*【出力】CO2排出量計算表!$H$22*【出力】CO2排出量計算表!$I$22*【出力】CO2排出量計算表!$J$22 -> 8.180823866 | AE81: =N81*(1/458)*【出力】CO2排出量計算表!$H$22*【出力】CO2排出量計算表!$I$22*【出力】CO2排出量計算表!$J$22 -> 2.699671876 | AF81: =O81*(1/458)*【出力】CO2排出量計算表!$H$22*【出力】CO2排出量計算表!$I$22*【出力】CO2排出量計算表!$J$22 -> 0 | AG81: =P81*(1/458)*【出力】CO2排出量計算表!$H$22*【出力】CO2排出量計算表!$I$22*【出力】CO2排出量計算表!$J$22 -> 0 | AH81: =Q81/1000*【出力】CO2排出量計算表!$H$24*【出力】CO2排出量計算表!$I$24*【出力】CO2排出量計算表!$J$24 -> 0 | AI81: =R81/1000*【出力】CO2排出量計算表!$H$24*【出力】CO2排出量計算表!$I$24*【出力】CO2排出量計算表!$J$24 -> 0 | AJ81: =S81/1000*【出力】CO2排出量計算表!$H$24*【出力】CO2排出量計算表!$I$24*【出力】CO2排出量計算表!$J$24 -> 0 | AK81: =T81/1000*【出力】CO2排出量計算表!$H$24*【出力】CO2排出量計算表!$I$24*【出力】CO2排出量計算表!$J$24 -> 0 | AL81: =U81/1000*45*'【入力】CO2算出（電気・都市ガス）'!$X$37*44/12 -> 0 | AM81: =V81/1000*45*'【入力】CO2算出（電気・都市ガス）'!$X$37*44/12 -> 0 | AN81: =W81*【出力】CO2排出量計算表!$H$16*【出力】CO2排出量計算表!$I$16*【出力】CO2排出量計算表!$J$16/1000 -> 1.379173767 | AO81: =X81*【出力】CO2排出量計算表!$H$16*【出力】CO2排出量計算表!$I$16*【出力】CO2排出量計算表!$J$16/1000 -> 0.4530859667 | AP81: =Y81*【出力】CO2排出量計算表!$H$18*【出力】CO2排出量計算表!$I$18*【出力】CO2排出量計算表!$J$18/1000 -> 0 | AQ81: =Z81*【出力】CO2排出量計算表!$H$18*【出力】CO2排出量計算表!$I$18*【出力】CO2排出量計算表!$J$18/1000 -> 0 | AR81: 11.56045763 | AS81: 4.924593842 | AT81: 6.63586379 | AU81: エネルギー管理設備16,000～17,000 | AV81: エネルギー管理設備 | AW81: 16,000～17,000 | AX81: 16,000 ～17,000 | AY81: 0 | AZ81: 0 | BA81: 0 | BB81: 0 | BC81: 0 | BD81: 宿泊業
A82: 宿泊業，飲食サービス業 | B82: =IFERROR(VLOOKUP(A82,【参照】選択リスト!$N$2:$O$22,2,FALSE),"") -> 宿泊業，飲食サービス業 | C82: 25,000～50,000 | D82: 42636262 | E82: 768500 | F82: 照明設備 | G82: 287496 | H82: 118166 | I82: 169330 | J82: =VLOOKUP(E82,【参照】選択リスト!$A$87:$B$108,2) -> 1～1,000 | K82: 10454.4 | L82: 4296.93 | AB82: 4.5267552 | AC82: 1.86057069 | AD82: =M82*(1/458)*【出力】CO2排出量計算表!$H$22*【出力】CO2排出量計算表!$I$22*【出力】CO2排出量計算表!$J$22 -> 0 | AE82: =N82*(1/458)*【出力】CO2排出量計算表!$H$22*【出力】CO2排出量計算表!$I$22*【出力】CO2排出量計算表!$J$22 -> 0 | AF82: =O82*(1/458)*【出力】CO2排出量計算表!$H$22*【出力】CO2排出量計算表!$I$22*【出力】CO2排出量計算表!$J$22 -> 0 | AG82: =P82*(1/458)*【出力】CO2排出量計算表!$H$22*【出力】CO2排出量計算表!$I$22*【出力】CO2排出量計算表!$J$22 -> 0 | AH82: =Q82/1000*【出力】CO2排出量計算表!$H$24*【出力】CO2排出量計算表!$I$24*【出力】CO2排出量計算表!$J$24 -> 0 | AI82: =R82/1000*【出力】CO2排出量計算表!$H$24*【出力】CO2排出量計算表!$I$24*【出力】CO2排出量計算表!$J$24 -> 0 | AJ82: =S82/1000*【出力】CO2排出量計算表!$H$24*【出力】CO2排出量計算表!$I$24*【出力】CO2排出量計算表!$J$24 -> 0 | AK82: =T82/1000*【出力】CO2排出量計算表!$H$24*【出力】CO2排出量計算表!$I$24*【出力】CO2排出量計算表!$J$24 -> 0 | AL82: =U82/1000*45*'【入力】CO2算出（電気・都市ガス）'!$X$37*44/12 -> 0 | AM82: =V82/1000*45*'【入力】CO2算出（電気・都市ガス）'!$X$37*44/12 -> 0 | AN82: =W82*【出力】CO2排出量計算表!$H$16*【出力】CO2排出量計算表!$I$16*【出力】CO2排出量計算表!$J$16/1000 -> 0 | AO82: =X82*【出力】CO2排出量計算表!$H$16*【出力】CO2排出量計算表!$I$16*【出力】CO2排出量計算表!$J$16/1000 -> 0 | AP82: =Y82*【出力】CO2排出量計算表!$H$18*【出力】CO2排出量計算表!$I$18*【出力】CO2排出量計算表!$J$18/1000 -> 0 | AQ82: =Z82*【出力】CO2排出量計算表!$H$18*【出力】CO2排出量計算表!$I$18*【出力】CO2排出量計算表!$J$18/1000 -> 0 | AR82: 4.5267552 | AS82: 1.86057069 | AT82: 2.66618451 | AU82: エネルギー管理設備17,000～18,000 | AV82: エネルギー管理設備 | AW82: 17,000～18,000 | AX82: 17,000 ～18,000 | AY82: 0 | AZ82: 0 | BA82: 0 | BB82: 0 | BC82: 0 | BD82: 宿泊業
A83: 不動産業，物品賃貸業 | B83: =IFERROR(VLOOKUP(A83,【参照】選択リスト!$N$2:$O$22,2,FALSE),"") -> サービス業，その他 | C83: 25,000～50,000 | D83: 33549239 | E83: 1500000 | F83: 空調・換気設備 | G83: 331517 | H83: 280672 | I83: 50845 | J83: =VLOOKUP(E83,【参照】選択リスト!$A$87:$B$108,2) -> 1,000～2,000 | K83: 21535 | L83: 14320 | AB83: 9.324655 | AC83: 6.20056 | AD83: =M83*(1/458)*【出力】CO2排出量計算表!$H$22*【出力】CO2排出量計算表!$I$22*【出力】CO2排出量計算表!$J$22 -> 0 | AE83: =N83*(1/458)*【出力】CO2排出量計算表!$H$22*【出力】CO2排出量計算表!$I$22*【出力】CO2排出量計算表!$J$22 -> 0 | AF83: =O83*(1/458)*【出力】CO2排出量計算表!$H$22*【出力】CO2排出量計算表!$I$22*【出力】CO2排出量計算表!$J$22 -> 0 | AG83: =P83*(1/458)*【出力】CO2排出量計算表!$H$22*【出力】CO2排出量計算表!$I$22*【出力】CO2排出量計算表!$J$22 -> 0 | AH83: =Q83/1000*【出力】CO2排出量計算表!$H$24*【出力】CO2排出量計算表!$I$24*【出力】CO2排出量計算表!$J$24 -> 0 | AI83: =R83/1000*【出力】CO2排出量計算表!$H$24*【出力】CO2排出量計算表!$I$24*【出力】CO2排出量計算表!$J$24 -> 0 | AJ83: =S83/1000*【出力】CO2排出量計算表!$H$24*【出力】CO2排出量計算表!$I$24*【出力】CO2排出量計算表!$J$24 -> 0 | AK83: =T83/1000*【出力】CO2排出量計算表!$H$24*【出力】CO2排出量計算表!$I$24*【出力】CO2排出量計算表!$J$24 -> 0 | AL83: =U83/1000*45*'【入力】CO2算出（電気・都市ガス）'!$X$37*44/12 -> 0 | AM83: =V83/1000*45*'【入力】CO2算出（電気・都市ガス）'!$X$37*44/12 -> 0 | AN83: =W83*【出力】CO2排出量計算表!$H$16*【出力】CO2排出量計算表!$I$16*【出力】CO2排出量計算表!$J$16/1000 -> 0 | AO83: =X83*【出力】CO2排出量計算表!$H$16*【出力】CO2排出量計算表!$I$16*【出力】CO2排出量計算表!$J$16/1000 -> 0 | AP83: =Y83*【出力】CO2排出量計算表!$H$18*【出力】CO2排出量計算表!$I$18*【出力】CO2排出量計算表!$J$18/1000 -> 0 | AQ83: =Z83*【出力】CO2排出量計算表!$H$18*【出力】CO2排出量計算表!$I$18*【出力】CO2排出量計算表!$J$18/1000 -> 0 | AR83: 9.324655 | AS83: 6.20056 | AT83: 3.124095 | AU83: エネルギー管理設備18,000～19,000 | AV83: エネルギー管理設備 | AW83: 18,000～19,000 | AX83: 18,000 ～19,000 | AY83: 0 | AZ83: 0 | BA83: 0 | BB83: 0 | BC83: 0 | BD83: サービス業
A84: 宿泊業，飲食サービス業 | B84: =IFERROR(VLOOKUP(A84,【参照】選択リスト!$N$2:$O$22,2,FALSE),"") -> 宿泊業，飲食サービス業 | C84: 250,000～ | D84: 258604002 | E84: 1250000 | F84: 空調・換気設備 | G84: 898308 | H84: 809000 | I84: 89308 | J84: =VLOOKUP(E84,【参照】選択リスト!$A$87:$B$108,2) -> 1,000～2,000 | K84: 27742 | L84: 25500 | AB84: 12.012286 | AC84: 11.0415 | AD84: =M84*(1/458)*【出力】CO2排出量計算表!$H$22*【出力】CO2排出量計算表!$I$22*【出力】CO2排出量計算表!$J$22 -> 0 | AE84: =N84*(1/458)*【出力】CO2排出量計算表!$H$22*【出力】CO2排出量計算表!$I$22*【出力】CO2排出量計算表!$J$22 -> 0 | AF84: =O84*(1/458)*【出力】CO2排出量計算表!$H$22*【出力】CO2排出量計算表!$I$22*【出力】CO2排出量計算表!$J$22 -> 0 | AG84: =P84*(1/458)*【出力】CO2排出量計算表!$H$22*【出力】CO2排出量計算表!$I$22*【出力】CO2排出量計算表!$J$22 -> 0 | AH84: =Q84/1000*【出力】CO2排出量計算表!$H$24*【出力】CO2排出量計算表!$I$24*【出力】CO2排出量計算表!$J$24 -> 0 | AI84: =R84/1000*【出力】CO2排出量計算表!$H$24*【出力】CO2排出量計算表!$I$24*【出力】CO2排出量計算表!$J$24 -> 0 | AJ84: =S84/1000*【出力】CO2排出量計算表!$H$24*【出力】CO2排出量計算表!$I$24*【出力】CO2排出量計算表!$J$24 -> 0 | AK84: =T84/1000*【出力】CO2排出量計算表!$H$24*【出力】CO2排出量計算表!$I$24*【出力】CO2排出量計算表!$J$24 -> 0 | AL84: =U84/1000*45*'【入力】CO2算出（電気・都市ガス）'!$X$37*44/12 -> 0 | AM84: =V84/1000*45*'【入力】CO2算出（電気・都市ガス）'!$X$37*44/12 -> 0 | AN84: =W84*【出力】CO2排出量計算表!$H$16*【出力】CO2排出量計算表!$I$16*【出力】CO2排出量計算表!$J$16/1000 -> 0 | AO84: =X84*【出力】CO2排出量計算表!$H$16*【出力】CO2排出量計算表!$I$16*【出力】CO2排出量計算表!$J$16/1000 -> 0 | AP84: =Y84*【出力】CO2排出量計算表!$H$18*【出力】CO2排出量計算表!$I$18*【出力】CO2排出量計算表!$J$18/1000 -> 0 | AQ84: =Z84*【出力】CO2排出量計算表!$H$18*【出力】CO2排出量計算表!$I$18*【出力】CO2排出量計算表!$J$18/1000 -> 0 | AR84: 12.012286 | AS84: 11.0415 | AT84: 0.970786 | AU84: エネルギー管理設備19,000～20,000 | AV84: エネルギー管理設備 | AW84: 19,000～20,000 | AX84: 19,000 ～20,000 | AY84: 0 | AZ84: 0 | BA84: 0 | BB84: 0 | BC84: 0 | BD84: 宿泊業
A85: 製造業 | B85: =IFERROR(VLOOKUP(A85,【参照】選択リスト!$N$2:$O$22,2,FALSE),"") -> 製造業 | C85: 50,000～75,000 | D85: 69331203 | E85: 5280000 | F85: 生産設備 | G85: 1488247 | H85: 1462946 | I85: 25301 | J85: =VLOOKUP(E85,【参照】選択リスト!$A$87:$B$108,2) -> 5,000～6,000 | K85: 84547 | L85: 83110 | AB85: 36.608851 | AC85: 35.98663 | AD85: =M85*(1/458)*【出力】CO2排出量計算表!$H$22*【出力】CO2排出量計算表!$I$22*【出力】CO2排出量計算表!$J$22 -> 0 | AE85: =N85*(1/458)*【出力】CO2排出量計算表!$H$22*【出力】CO2排出量計算表!$I$22*【出力】CO2排出量計算表!$J$22 -> 0 | AF85: =O85*(1/458)*【出力】CO2排出量計算表!$H$22*【出力】CO2排出量計算表!$I$22*【出力】CO2排出量計算表!$J$22 -> 0 | AG85: =P85*(1/458)*【出力】CO2排出量計算表!$H$22*【出力】CO2排出量計算表!$I$22*【出力】CO2排出量計算表!$J$22 -> 0 | AH85: =Q85/1000*【出力】CO2排出量計算表!$H$24*【出力】CO2排出量計算表!$I$24*【出力】CO2排出量計算表!$J$24 -> 0 | AI85: =R85/1000*【出力】CO2排出量計算表!$H$24*【出力】CO2排出量計算表!$I$24*【出力】CO2排出量計算表!$J$24 -> 0 | AJ85: =S85/1000*【出力】CO2排出量計算表!$H$24*【出力】CO2排出量計算表!$I$24*【出力】CO2排出量計算表!$J$24 -> 0 | AK85: =T85/1000*【出力】CO2排出量計算表!$H$24*【出力】CO2排出量計算表!$I$24*【出力】CO2排出量計算表!$J$24 -> 0 | AL85: =U85/1000*45*'【入力】CO2算出（電気・都市ガス）'!$X$37*44/12 -> 0 | AM85: =V85/1000*45*'【入力】CO2算出（電気・都市ガス）'!$X$37*44/12 -> 0 | AN85: =W85*【出力】CO2排出量計算表!$H$16*【出力】CO2排出量計算表!$I$16*【出力】CO2排出量計算表!$J$16/1000 -> 0 | AO85: =X85*【出力】CO2排出量計算表!$H$16*【出力】CO2排出量計算表!$I$16*【出力】CO2排出量計算表!$J$16/1000 -> 0 | AP85: =Y85*【出力】CO2排出量計算表!$H$18*【出力】CO2排出量計算表!$I$18*【出力】CO2排出量計算表!$J$18/1000 -> 0 | AQ85: =Z85*【出力】CO2排出量計算表!$H$18*【出力】CO2排出量計算表!$I$18*【出力】CO2排出量計算表!$J$18/1000 -> 0 | AR85: 36.608851 | AS85: 35.98663 | AT85: 0.622221 | AU85: エネルギー管理設備20,000～ | AV85: エネルギー管理設備 | AW85: 20,000～ | AX85: 20,000～ | AY85: 0 | AZ85: 0 | BA85: 0 | BB85: 0 | BC85: 0 | BD85: 製造業
A86: 製造業 | B86: =IFERROR(VLOOKUP(A86,【参照】選択リスト!$N$2:$O$22,2,FALSE),"") -> 製造業 | C86: 250,000～1,000,000 | D86: 410336864 | E86: 14000000 | F86: 発電設備 | G86: 6563708 | H86: 4523228 | I86: 2040480 | J86: =VLOOKUP(E86,【参照】選択リスト!$A$87:$B$108,2) -> 14,000～15,000 | K86: 253004 | L86: 174352 | AB86: 109.550732 | AC86: 75.494416 | AD86: =M86*(1/458)*【出力】CO2排出量計算表!$H$22*【出力】CO2排出量計算表!$I$22*【出力】CO2排出量計算表!$J$22 -> 0 | AE86: =N86*(1/458)*【出力】CO2排出量計算表!$H$22*【出力】CO2排出量計算表!$I$22*【出力】CO2排出量計算表!$J$22 -> 0 | AF86: =O86*(1/458)*【出力】CO2排出量計算表!$H$22*【出力】CO2排出量計算表!$I$22*【出力】CO2排出量計算表!$J$22 -> 0 | AG86: =P86*(1/458)*【出力】CO2排出量計算表!$H$22*【出力】CO2排出量計算表!$I$22*【出力】CO2排出量計算表!$J$22 -> 0 | AH86: =Q86/1000*【出力】CO2排出量計算表!$H$24*【出力】CO2排出量計算表!$I$24*【出力】CO2排出量計算表!$J$24 -> 0 | AI86: =R86/1000*【出力】CO2排出量計算表!$H$24*【出力】CO2排出量計算表!$I$24*【出力】CO2排出量計算表!$J$24 -> 0 | AJ86: =S86/1000*【出力】CO2排出量計算表!$H$24*【出力】CO2排出量計算表!$I$24*【出力】CO2排出量計算表!$J$24 -> 0 | AK86: =T86/1000*【出力】CO2排出量計算表!$H$24*【出力】CO2排出量計算表!$I$24*【出力】CO2排出量計算表!$J$24 -> 0 | AL86: =U86/1000*45*'【入力】CO2算出（電気・都市ガス）'!$X$37*44/12 -> 0 | AM86: =V86/1000*45*'【入力】CO2算出（電気・都市ガス）'!$X$37*44/12 -> 0 | AN86: =W86*【出力】CO2排出量計算表!$H$16*【出力】CO2排出量計算表!$I$16*【出力】CO2排出量計算表!$J$16/1000 -> 0 | AO86: =X86*【出力】CO2排出量計算表!$H$16*【出力】CO2排出量計算表!$I$16*【出力】CO2排出量計算表!$J$16/1000 -> 0 | AP86: =Y86*【出力】CO2排出量計算表!$H$18*【出力】CO2排出量計算表!$I$18*【出力】CO2排出量計算表!$J$18/1000 -> 0 | AQ86: =Z86*【出力】CO2排出量計算表!$H$18*【出力】CO2排出量計算表!$I$18*【出力】CO2排出量計算表!$J$18/1000 -> 0 | AR86: 109.550732 | AS86: 75.494416 | AT86: 34.056316 | AU86: =AV86&AW86 -> 恒温設備1～1,000 | AV86: 恒温設備 | AW86: 1～1,000 | AX86: 1 ～1,000 | AY86: 4 | AZ86: 1328562 | BA86: 332.1405 | BB86: 18.55599134 | BC86: 4.638997836 | BD86: 製造業
A87: 宿泊業，飲食サービス業 | B87: =IFERROR(VLOOKUP(A87,【参照】選択リスト!$N$2:$O$22,2,FALSE),"") -> 宿泊業，飲食サービス業 | C87: 5,000～10,000 | D87: 6271650 | E87: 1341000 | F87: 恒温設備 | G87: 115636 | H87: 83002 | I87: 32634 | J87: =VLOOKUP(E87,【参照】選択リスト!$A$87:$B$108,2) -> 1,000～2,000 | W87: 1179.9 | X87: 846.9 | AB87: 0 | AC87: 0 | AD87: =M87*(1/458)*【出力】CO2排出量計算表!$H$22*【出力】CO2排出量計算表!$I$22*【出力】CO2排出量計算表!$J$22 -> 0 | AE87: =N87*(1/458)*【出力】CO2排出量計算表!$H$22*【出力】CO2排出量計算表!$I$22*【出力】CO2排出量計算表!$J$22 -> 0 | AF87: =O87*(1/458)*【出力】CO2排出量計算表!$H$22*【出力】CO2排出量計算表!$I$22*【出力】CO2排出量計算表!$J$22 -> 0 | AG87: =P87*(1/458)*【出力】CO2排出量計算表!$H$22*【出力】CO2排出量計算表!$I$22*【出力】CO2排出量計算表!$J$22 -> 0 | AH87: =Q87/1000*【出力】CO2排出量計算表!$H$24*【出力】CO2排出量計算表!$I$24*【出力】CO2排出量計算表!$J$24 -> 0 | AI87: =R87/1000*【出力】CO2排出量計算表!$H$24*【出力】CO2排出量計算表!$I$24*【出力】CO2排出量計算表!$J$24 -> 0 | AJ87: =S87/1000*【出力】CO2排出量計算表!$H$24*【出力】CO2排出量計算表!$I$24*【出力】CO2排出量計算表!$J$24 -> 0 | AK87: =T87/1000*【出力】CO2排出量計算表!$H$24*【出力】CO2排出量計算表!$I$24*【出力】CO2排出量計算表!$J$24 -> 0 | AL87: =U87/1000*45*'【入力】CO2算出（電気・都市ガス）'!$X$37*44/12 -> 0 | AM87: =V87/1000*45*'【入力】CO2算出（電気・都市ガス）'!$X$37*44/12 -> 0 | AN87: =W87*【出力】CO2排出量計算表!$H$16*【出力】CO2排出量計算表!$I$16*【出力】CO2排出量計算表!$J$16/1000 -> 2.937341385 | AO87: =X87*【出力】CO2排出量計算表!$H$16*【出力】CO2排出量計算表!$I$16*【出力】CO2排出量計算表!$J$16/1000 -> 2.108343435 | AP87: =Y87*【出力】CO2排出量計算表!$H$18*【出力】CO2排出量計算表!$I$18*【出力】CO2排出量計算表!$J$18/1000 -> 0 | AQ87: =Z87*【出力】CO2排出量計算表!$H$18*【出力】CO2排出量計算表!$I$18*【出力】CO2排出量計算表!$J$18/1000 -> 0 | AR87: 2.937341385 | AS87: 2.108343435 | AT87: 0.82899795 | AU87: 恒温設備1,000～2,000 | AV87: 恒温設備 | AW87: 1,000～2,000 | AX87: 1,000 ～2,000 | AY87: 10 | AZ87: 439948 | BA87: 43.9948 | BB87: 6.594262822 | BC87: 0.6594262822 | BD87: 宿泊業
A88: 宿泊業，飲食サービス業 | B88: =IFERROR(VLOOKUP(A88,【参照】選択リスト!$N$2:$O$22,2,FALSE),"") -> 宿泊業，飲食サービス業 | C88: 5,000～10,000 | D88: 8633271 | E88: 994000 | F88: 空調・換気設備 | G88: 52466 | H88: 29381 | I88: 23085 | J88: =VLOOKUP(E88,【参照】選択リスト!$A$87:$B$108,2) -> 1～1,000 | K88: 1374 | L88: 769 | AB88: 0.594942 | AC88: 0.332977 | AD88: =M88*(1/458)*【出力】CO2排出量計算表!$H$22*【出力】CO2排出量計算表!$I$22*【出力】CO2排出量計算表!$J$22 -> 0 | AE88: =N88*(1/458)*【出力】CO2排出量計算表!$H$22*【出力】CO2排出量計算表!$I$22*【出力】CO2排出量計算表!$J$22 -> 0 | AF88: =O88*(1/458)*【出力】CO2排出量計算表!$H$22*【出力】CO2排出量計算表!$I$22*【出力】CO2排出量計算表!$J$22 -> 0 | AG88: =P88*(1/458)*【出力】CO2排出量計算表!$H$22*【出力】CO2排出量計算表!$I$22*【出力】CO2排出量計算表!$J$22 -> 0 | AH88: =Q88/1000*【出力】CO2排出量計算表!$H$24*【出力】CO2排出量計算表!$I$24*【出力】CO2排出量計算表!$J$24 -> 0 | AI88: =R88/1000*【出力】CO2排出量計算表!$H$24*【出力】CO2排出量計算表!$I$24*【出力】CO2排出量計算表!$J$24 -> 0 | AJ88: =S88/1000*【出力】CO2排出量計算表!$H$24*【出力】CO2排出量計算表!$I$24*【出力】CO2排出量計算表!$J$24 -> 0 | AK88: =T88/1000*【出力】CO2排出量計算表!$H$24*【出力】CO2排出量計算表!$I$24*【出力】CO2排出量計算表!$J$24 -> 0 | AL88: =U88/1000*45*'【入力】CO2算出（電気・都市ガス）'!$X$37*44/12 -> 0 | AM88: =V88/1000*45*'【入力】CO2算出（電気・都市ガス）'!$X$37*44/12 -> 0 | AN88: =W88*【出力】CO2排出量計算表!$H$16*【出力】CO2排出量計算表!$I$16*【出力】CO2排出量計算表!$J$16/1000 -> 0 | AO88: =X88*【出力】CO2排出量計算表!$H$16*【出力】CO2排出量計算表!$I$16*【出力】CO2排出量計算表!$J$16/1000 -> 0 | AP88: =Y88*【出力】CO2排出量計算表!$H$18*【出力】CO2排出量計算表!$I$18*【出力】CO2排出量計算表!$J$18/1000 -> 0 | AQ88: =Z88*【出力】CO2排出量計算表!$H$18*【出力】CO2排出量計算表!$I$18*【出力】CO2排出量計算表!$J$18/1000 -> 0 | AR88: 0.594942 | AS88: 0.332977 | AT88: 0.261965 | AU88: 恒温設備2,000～3,000 | AV88: 恒温設備 | AW88: 2,000～3,000 | AX88: 2,000 ～3,000 | AY88: 8 | AZ88: 838821 | BA88: 104.852625 | BB88: 20.38645835 | BC88: 2.548307294 | BD88: 宿泊業
A89: 宿泊業，飲食サービス業 | B89: =IFERROR(VLOOKUP(A89,【参照】選択リスト!$N$2:$O$22,2,FALSE),"") -> 宿泊業，飲食サービス業 | C89: 25,000～50,000 | D89: 32072046 | E89: 1200000 | F89: 冷蔵・冷凍設備 | G89: 52200 | H89: 31400 | I89: 20800 | J89: =VLOOKUP(E89,【参照】選択リスト!$A$87:$B$108,2) -> 1,000～2,000 | K89: 2010 | L89: 1220 | AB89: 0.87033 | AC89: 0.52826 | AD89: =M89*(1/458)*【出力】CO2排出量計算表!$H$22*【出力】CO2排出量計算表!$I$22*【出力】CO2排出量計算表!$J$22 -> 0 | AE89: =N89*(1/458)*【出力】CO2排出量計算表!$H$22*【出力】CO2排出量計算表!$I$22*【出力】CO2排出量計算表!$J$22 -> 0 | AF89: =O89*(1/458)*【出力】CO2排出量計算表!$H$22*【出力】CO2排出量計算表!$I$22*【出力】CO2排出量計算表!$J$22 -> 0 | AG89: =P89*(1/458)*【出力】CO2排出量計算表!$H$22*【出力】CO2排出量計算表!$I$22*【出力】CO2排出量計算表!$J$22 -> 0 | AH89: =Q89/1000*【出力】CO2排出量計算表!$H$24*【出力】CO2排出量計算表!$I$24*【出力】CO2排出量計算表!$J$24 -> 0 | AI89: =R89/1000*【出力】CO2排出量計算表!$H$24*【出力】CO2排出量計算表!$I$24*【出力】CO2排出量計算表!$J$24 -> 0 | AJ89: =S89/1000*【出力】CO2排出量計算表!$H$24*【出力】CO2排出量計算表!$I$24*【出力】CO2排出量計算表!$J$24 -> 0 | AK89: =T89/1000*【出力】CO2排出量計算表!$H$24*【出力】CO2排出量計算表!$I$24*【出力】CO2排出量計算表!$J$24 -> 0 | AL89: =U89/1000*45*'【入力】CO2算出（電気・都市ガス）'!$X$37*44/12 -> 0 | AM89: =V89/1000*45*'【入力】CO2算出（電気・都市ガス）'!$X$37*44/12 -> 0 | AN89: =W89*【出力】CO2排出量計算表!$H$16*【出力】CO2排出量計算表!$I$16*【出力】CO2排出量計算表!$J$16/1000 -> 0 | AO89: =X89*【出力】CO2排出量計算表!$H$16*【出力】CO2排出量計算表!$I$16*【出力】CO2排出量計算表!$J$16/1000 -> 0 | AP89: =Y89*【出力】CO2排出量計算表!$H$18*【出力】CO2排出量計算表!$I$18*【出力】CO2排出量計算表!$J$18/1000 -> 0 | AQ89: =Z89*【出力】CO2排出量計算表!$H$18*【出力】CO2排出量計算表!$I$18*【出力】CO2排出量計算表!$J$18/1000 -> 0 | AR89: 0.87033 | AS89: 0.52826 | AT89: 0.34207 | AU89: 恒温設備3,000～4,000 | AV89: 恒温設備 | AW89: 3,000～4,000 | AX89: 3,000 ～4,000 | AY89: 15 | AZ89: 3386083 | BA89: 225.7388667 | BB89: 84.1444787 | BC89: 5.609631913 | BD89: 宿泊業
A90: 製造業 | B90: =IFERROR(VLOOKUP(A90,【参照】選択リスト!$N$2:$O$22,2,FALSE),"") -> 製造業 | C90: 3,000,000～ | D90: 3352864135 | E90: 9700000 | F90: 照明設備 | G90: 39038677 | H90: 36919426 | I90: 2119251 | J90: =VLOOKUP(E90,【参照】選択リスト!$A$87:$B$108,2) -> 9,000～10,000 | K90: 1880400 | L90: 1800034 | AB90: 814.2132 | AC90: 779.414722 | AD90: =M90*(1/458)*【出力】CO2排出量計算表!$H$22*【出力】CO2排出量計算表!$I$22*【出力】CO2排出量計算表!$J$22 -> 0 | AE90: =N90*(1/458)*【出力】CO2排出量計算表!$H$22*【出力】CO2排出量計算表!$I$22*【出力】CO2排出量計算表!$J$22 -> 0 | AF90: =O90*(1/458)*【出力】CO2排出量計算表!$H$22*【出力】CO2排出量計算表!$I$22*【出力】CO2排出量計算表!$J$22 -> 0 | AG90: =P90*(1/458)*【出力】CO2排出量計算表!$H$22*【出力】CO2排出量計算表!$I$22*【出力】CO2排出量計算表!$J$22 -> 0 | AH90: =Q90/1000*【出力】CO2排出量計算表!$H$24*【出力】CO2排出量計算表!$I$24*【出力】CO2排出量計算表!$J$24 -> 0 | AI90: =R90/1000*【出力】CO2排出量計算表!$H$24*【出力】CO2排出量計算表!$I$24*【出力】CO2排出量計算表!$J$24 -> 0 | AJ90: =S90/1000*【出力】CO2排出量計算表!$H$24*【出力】CO2排出量計算表!$I$24*【出力】CO2排出量計算表!$J$24 -> 0 | AK90: =T90/1000*【出力】CO2排出量計算表!$H$24*【出力】CO2排出量計算表!$I$24*【出力】CO2排出量計算表!$J$24 -> 0 | AL90: =U90/1000*45*'【入力】CO2算出（電気・都市ガス）'!$X$37*44/12 -> 0 | AM90: =V90/1000*45*'【入力】CO2算出（電気・都市ガス）'!$X$37*44/12 -> 0 | AN90: =W90*【出力】CO2排出量計算表!$H$16*【出力】CO2排出量計算表!$I$16*【出力】CO2排出量計算表!$J$16/1000 -> 0 | AO90: =X90*【出力】CO2排出量計算表!$H$16*【出力】CO2排出量計算表!$I$16*【出力】CO2排出量計算表!$J$16/1000 -> 0 | AP90: =Y90*【出力】CO2排出量計算表!$H$18*【出力】CO2排出量計算表!$I$18*【出力】CO2排出量計算表!$J$18/1000 -> 0 | AQ90: =Z90*【出力】CO2排出量計算表!$H$18*【出力】CO2排出量計算表!$I$18*【出力】CO2排出量計算表!$J$18/1000 -> 0 | AR90: 814.2132 | AS90: 779.414722 | AT90: 34.798478 | AU90: 恒温設備4,000～5,000 | AV90: 恒温設備 | AW90: 4,000～5,000 | AX90: 4,000 ～5,000 | AY90: 4 | AZ90: 999524 | BA90: 249.881 | BB90: 23.65233856 | BC90: 5.913084639 | BD90: 製造業
A91: 卸売業，小売業 | B91: =IFERROR(VLOOKUP(A91,【参照】選択リスト!$N$2:$O$22,2,FALSE),"") -> 卸売業，小売業 | C91: 50,000～1,000,000 | D91: 520051789 | E91: 758000 | F91: 空調・換気設備 | G91: 594366 | H91: 320529 | I91: 273837 | J91: =VLOOKUP(E91,【参照】選択リスト!$A$87:$B$108,2) -> 1～1,000 | K91: 13335 | L91: 4365 | AB91: 5.774055 | AC91: 1.890045 | AD91: =M91*(1/458)*【出力】CO2排出量計算表!$H$22*【出力】CO2排出量計算表!$I$22*【出力】CO2排出量計算表!$J$22 -> 0 | AE91: =N91*(1/458)*【出力】CO2排出量計算表!$H$22*【出力】CO2排出量計算表!$I$22*【出力】CO2排出量計算表!$J$22 -> 0 | AF91: =O91*(1/458)*【出力】CO2排出量計算表!$H$22*【出力】CO2排出量計算表!$I$22*【出力】CO2排出量計算表!$J$22 -> 0 | AG91: =P91*(1/458)*【出力】CO2排出量計算表!$H$22*【出力】CO2排出量計算表!$I$22*【出力】CO2排出量計算表!$J$22 -> 0 | AH91: =Q91/1000*【出力】CO2排出量計算表!$H$24*【出力】CO2排出量計算表!$I$24*【出力】CO2排出量計算表!$J$24 -> 0 | AI91: =R91/1000*【出力】CO2排出量計算表!$H$24*【出力】CO2排出量計算表!$I$24*【出力】CO2排出量計算表!$J$24 -> 0 | AJ91: =S91/1000*【出力】CO2排出量計算表!$H$24*【出力】CO2排出量計算表!$I$24*【出力】CO2排出量計算表!$J$24 -> 0 | AK91: =T91/1000*【出力】CO2排出量計算表!$H$24*【出力】CO2排出量計算表!$I$24*【出力】CO2排出量計算表!$J$24 -> 0 | AL91: =U91/1000*45*'【入力】CO2算出（電気・都市ガス）'!$X$37*44/12 -> 0 | AM91: =V91/1000*45*'【入力】CO2算出（電気・都市ガス）'!$X$37*44/12 -> 0 | AN91: =W91*【出力】CO2排出量計算表!$H$16*【出力】CO2排出量計算表!$I$16*【出力】CO2排出量計算表!$J$16/1000 -> 0 | AO91: =X91*【出力】CO2排出量計算表!$H$16*【出力】CO2排出量計算表!$I$16*【出力】CO2排出量計算表!$J$16/1000 -> 0 | AP91: =Y91*【出力】CO2排出量計算表!$H$18*【出力】CO2排出量計算表!$I$18*【出力】CO2排出量計算表!$J$18/1000 -> 0 | AQ91: =Z91*【出力】CO2排出量計算表!$H$18*【出力】CO2排出量計算表!$I$18*【出力】CO2排出量計算表!$J$18/1000 -> 0 | AR91: 5.774055 | AS91: 1.890045 | AT91: 3.88401 | AU91: 恒温設備5,000～6,000 | AV91: 恒温設備 | AW91: 5,000～6,000 | AX91: 5,000 ～6,000 | AY91: 4 | AZ91: 566933 | BA91: 141.73325 | BB91: 6.024995152 | BC91: 1.506248788 | BD91: 卸売業
A92: 宿泊業，飲食サービス業 | B92: =IFERROR(VLOOKUP(A92,【参照】選択リスト!$N$2:$O$22,2,FALSE),"") -> 宿泊業，飲食サービス業 | C92: 25,000～50,000 | D92: 35887956 | E92: 860000 | F92: 空調・換気設備 | G92: 270420 | H92: 116280 | I92: 154140 | J92: =VLOOKUP(E92,【参照】選択リスト!$A$87:$B$108,2) -> 1～1,000 | K92: 9014 | L92: 3876 | AB92: 3.903062 | AC92: 1.678308 | AD92: =M92*(1/458)*【出力】CO2排出量計算表!$H$22*【出力】CO2排出量計算表!$I$22*【出力】CO2排出量計算表!$J$22 -> 0 | AE92: =N92*(1/458)*【出力】CO2排出量計算表!$H$22*【出力】CO2排出量計算表!$I$22*【出力】CO2排出量計算表!$J$22 -> 0 | AF92: =O92*(1/458)*【出力】CO2排出量計算表!$H$22*【出力】CO2排出量計算表!$I$22*【出力】CO2排出量計算表!$J$22 -> 0 | AG92: =P92*(1/458)*【出力】CO2排出量計算表!$H$22*【出力】CO2排出量計算表!$I$22*【出力】CO2排出量計算表!$J$22 -> 0 | AH92: =Q92/1000*【出力】CO2排出量計算表!$H$24*【出力】CO2排出量計算表!$I$24*【出力】CO2排出量計算表!$J$24 -> 0 | AI92: =R92/1000*【出力】CO2排出量計算表!$H$24*【出力】CO2排出量計算表!$I$24*【出力】CO2排出量計算表!$J$24 -> 0 | AJ92: =S92/1000*【出力】CO2排出量計算表!$H$24*【出力】CO2排出量計算表!$I$24*【出力】CO2排出量計算表!$J$24 -> 0 | AK92: =T92/1000*【出力】CO2排出量計算表!$H$24*【出力】CO2排出量計算表!$I$24*【出力】CO2排出量計算表!$J$24 -> 0 | AL92: =U92/1000*45*'【入力】CO2算出（電気・都市ガス）'!$X$37*44/12 -> 0 | AM92: =V92/1000*45*'【入力】CO2算出（電気・都市ガス）'!$X$37*44/12 -> 0 | AN92: =W92*【出力】CO2排出量計算表!$H$16*【出力】CO2排出量計算表!$I$16*【出力】CO2排出量計算表!$J$16/1000 -> 0 | AO92: =X92*【出力】CO2排出量計算表!$H$16*【出力】CO2排出量計算表!$I$16*【出力】CO2排出量計算表!$J$16/1000 -> 0 | AP92: =Y92*【出力】CO2排出量計算表!$H$18*【出力】CO2排出量計算表!$I$18*【出力】CO2排出量計算表!$J$18/1000 -> 0 | AQ92: =Z92*【出力】CO2排出量計算表!$H$18*【出力】CO2排出量計算表!$I$18*【出力】CO2排出量計算表!$J$18/1000 -> 0 | AR92: 3.903062 | AS92: 1.678308 | AT92: 2.224754 | AU92: =AV92&AW92 -> 恒温設備6,000～7,000 | AV92: 恒温設備 | AW92: 6,000～7,000 | AX92: 6,000 ～7,000 | AY92: 5 | AZ92: 1720070 | BA92: 344.014 | BB92: 92.65390406 | BC92: 18.53078081 | BD92: 宿泊業
A93: 製造業 | B93: =IFERROR(VLOOKUP(A93,【参照】選択リスト!$N$2:$O$22,2,FALSE),"") -> 製造業 | C93: 250,000～1,000,000 | D93: 930068366 | E93: 5180000 | F93: 空調・換気設備 | G93: 24775508 | H93: 23882508 | I93: 893000 | J93: =VLOOKUP(E93,【参照】選択リスト!$A$87:$B$108,2) -> 5,000～6,000 | K93: 1316483 | L93: 1224329 | AB93: 570.037139 | AC93: 530.134457 | AD93: =M93*(1/458)*【出力】CO2排出量計算表!$H$22*【出力】CO2排出量計算表!$I$22*【出力】CO2排出量計算表!$J$22 -> 0 | AE93: =N93*(1/458)*【出力】CO2排出量計算表!$H$22*【出力】CO2排出量計算表!$I$22*【出力】CO2排出量計算表!$J$22 -> 0 | AF93: =O93*(1/458)*【出力】CO2排出量計算表!$H$22*【出力】CO2排出量計算表!$I$22*【出力】CO2排出量計算表!$J$22 -> 0 | AG93: =P93*(1/458)*【出力】CO2排出量計算表!$H$22*【出力】CO2排出量計算表!$I$22*【出力】CO2排出量計算表!$J$22 -> 0 | AH93: =Q93/1000*【出力】CO2排出量計算表!$H$24*【出力】CO2排出量計算表!$I$24*【出力】CO2排出量計算表!$J$24 -> 0 | AI93: =R93/1000*【出力】CO2排出量計算表!$H$24*【出力】CO2排出量計算表!$I$24*【出力】CO2排出量計算表!$J$24 -> 0 | AJ93: =S93/1000*【出力】CO2排出量計算表!$H$24*【出力】CO2排出量計算表!$I$24*【出力】CO2排出量計算表!$J$24 -> 0 | AK93: =T93/1000*【出力】CO2排出量計算表!$H$24*【出力】CO2排出量計算表!$I$24*【出力】CO2排出量計算表!$J$24 -> 0 | AL93: =U93/1000*45*'【入力】CO2算出（電気・都市ガス）'!$X$37*44/12 -> 0 | AM93: =V93/1000*45*'【入力】CO2算出（電気・都市ガス）'!$X$37*44/12 -> 0 | AN93: =W93*【出力】CO2排出量計算表!$H$16*【出力】CO2排出量計算表!$I$16*【出力】CO2排出量計算表!$J$16/1000 -> 0 | AO93: =X93*【出力】CO2排出量計算表!$H$16*【出力】CO2排出量計算表!$I$16*【出力】CO2排出量計算表!$J$16/1000 -> 0 | AP93: =Y93*【出力】CO2排出量計算表!$H$18*【出力】CO2排出量計算表!$I$18*【出力】CO2排出量計算表!$J$18/1000 -> 0 | AQ93: =Z93*【出力】CO2排出量計算表!$H$18*【出力】CO2排出量計算表!$I$18*【出力】CO2排出量計算表!$J$18/1000 -> 0 | AR93: 570.037139 | AS93: 530.134457 | AT93: 39.902682 | AU93: 恒温設備7,000～8,000 | AV93: 恒温設備 | AW93: 7,000～8,000 | AX93: 7,000 ～8,000 | AY93: 4 | AZ93: 2089981.8 | BA93: 522.49545 | BB93: 78.1249773 | BC93: 19.53124432 | BD93: 製造業
A94: 宿泊業，飲食サービス業 | B94: =IFERROR(VLOOKUP(A94,【参照】選択リスト!$N$2:$O$22,2,FALSE),"") -> 宿泊業，飲食サービス業 | C94: 10,000～25,000 | D94: 14665187 | E94: 870000 | F94: 照明設備 | G94: 1350876 | H94: 1013157 | I94: 337719 | J94: =VLOOKUP(E94,【参照】選択リスト!$A$87:$B$108,2) -> 1～1,000 | K94: 34812 | L94: 26109 | AB94: 15.073596 | AC94: 11.305197 | AD94: =M94*(1/458)*【出力】CO2排出量計算表!$H$22*【出力】CO2排出量計算表!$I$22*【出力】CO2排出量計算表!$J$22 -> 0 | AE94: =N94*(1/458)*【出力】CO2排出量計算表!$H$22*【出力】CO2排出量計算表!$I$22*【出力】CO2排出量計算表!$J$22 -> 0 | AF94: =O94*(1/458)*【出力】CO2排出量計算表!$H$22*【出力】CO2排出量計算表!$I$22*【出力】CO2排出量計算表!$J$22 -> 0 | AG94: =P94*(1/458)*【出力】CO2排出量計算表!$H$22*【出力】CO2排出量計算表!$I$22*【出力】CO2排出量計算表!$J$22 -> 0 | AH94: =Q94/1000*【出力】CO2排出量計算表!$H$24*【出力】CO2排出量計算表!$I$24*【出力】CO2排出量計算表!$J$24 -> 0 | AI94: =R94/1000*【出力】CO2排出量計算表!$H$24*【出力】CO2排出量計算表!$I$24*【出力】CO2排出量計算表!$J$24 -> 0 | AJ94: =S94/1000*【出力】CO2排出量計算表!$H$24*【出力】CO2排出量計算表!$I$24*【出力】CO2排出量計算表!$J$24 -> 0 | AK94: =T94/1000*【出力】CO2排出量計算表!$H$24*【出力】CO2排出量計算表!$I$24*【出力】CO2排出量計算表!$J$24 -> 0 | AL94: =U94/1000*45*'【入力】CO2算出（電気・都市ガス）'!$X$37*44/12 -> 0 | AM94: =V94/1000*45*'【入力】CO2算出（電気・都市ガス）'!$X$37*44/12 -> 0 | AN94: =W94*【出力】CO2排出量計算表!$H$16*【出力】CO2排出量計算表!$I$16*【出力】CO2排出量計算表!$J$16/1000 -> 0 | AO94: =X94*【出力】CO2排出量計算表!$H$16*【出力】CO2排出量計算表!$I$16*【出力】CO2排出量計算表!$J$16/1000 -> 0 | AP94: =Y94*【出力】CO2排出量計算表!$H$18*【出力】CO2排出量計算表!$I$18*【出力】CO2排出量計算表!$J$18/1000 -> 0 | AQ94: =Z94*【出力】CO2排出量計算表!$H$18*【出力】CO2排出量計算表!$I$18*【出力】CO2排出量計算表!$J$18/1000 -> 0 | AR94: 15.073596 | AS94: 11.305197 | AT94: 3.768399 | AU94: 恒温設備8,000～9,000 | AV94: 恒温設備 | AW94: 8,000～9,000 | AX94: 8,000 ～9,000 | AY94: 2 | AZ94: 1262931 | BA94: 631.4655 | BB94: 22.29028 | BC94: 11.14514 | BD94: 宿泊業
A95: 宿泊業，飲食サービス業 | B95: =IFERROR(VLOOKUP(A95,【参照】選択リスト!$N$2:$O$22,2,FALSE),"") -> 宿泊業，飲食サービス業 | C95: 10,000～25,000 | D95: 23457353 | E95: 4925000 | F95: 恒温設備 | G95: 4345395 | H95: 4301941 | I95: 43454 | J95: =VLOOKUP(E95,【参照】選択リスト!$A$87:$B$108,2) -> 4,000～5,000 | Y95: 45741 | Z95: 45283 | AB95: 0 | AC95: 0 | AD95: =M95*(1/458)*【出力】CO2排出量計算表!$H$22*【出力】CO2排出量計算表!$I$22*【出力】CO2排出量計算表!$J$22 -> 0 | AE95: =N95*(1/458)*【出力】CO2排出量計算表!$H$22*【出力】CO2排出量計算表!$I$22*【出力】CO2排出量計算表!$J$22 -> 0 | AF95: =O95*(1/458)*【出力】CO2排出量計算表!$H$22*【出力】CO2排出量計算表!$I$22*【出力】CO2排出量計算表!$J$22 -> 0 | AG95: =P95*(1/458)*【出力】CO2排出量計算表!$H$22*【出力】CO2排出量計算表!$I$22*【出力】CO2排出量計算表!$J$22 -> 0 | AH95: =Q95/1000*【出力】CO2排出量計算表!$H$24*【出力】CO2排出量計算表!$I$24*【出力】CO2排出量計算表!$J$24 -> 0 | AI95: =R95/1000*【出力】CO2排出量計算表!$H$24*【出力】CO2排出量計算表!$I$24*【出力】CO2排出量計算表!$J$24 -> 0 | AJ95: =S95/1000*【出力】CO2排出量計算表!$H$24*【出力】CO2排出量計算表!$I$24*【出力】CO2排出量計算表!$J$24 -> 0 | AK95: =T95/1000*【出力】CO2排出量計算表!$H$24*【出力】CO2排出量計算表!$I$24*【出力】CO2排出量計算表!$J$24 -> 0 | AL95: =U95/1000*45*'【入力】CO2算出（電気・都市ガス）'!$X$37*44/12 -> 0 | AM95: =V95/1000*45*'【入力】CO2算出（電気・都市ガス）'!$X$37*44/12 -> 0 | AN95: =W95*【出力】CO2排出量計算表!$H$16*【出力】CO2排出量計算表!$I$16*【出力】CO2排出量計算表!$J$16/1000 -> 0 | AO95: =X95*【出力】CO2排出量計算表!$H$16*【出力】CO2排出量計算表!$I$16*【出力】CO2排出量計算表!$J$16/1000 -> 0 | AP95: =Y95*【出力】CO2排出量計算表!$H$18*【出力】CO2排出量計算表!$I$18*【出力】CO2排出量計算表!$J$18/1000 -> 123.9411858 | AQ95: =Z95*【出力】CO2排出量計算表!$H$18*【出力】CO2排出量計算表!$I$18*【出力】CO2排出量計算表!$J$18/1000 -> 122.7001753 | AR95: 123.9411858 | AS95: 122.7001753 | AT95: 1.24101054 | AU95: 恒温設備9,000～10,000 | AV95: 恒温設備 | AW95: 9,000～10,000 | AX95: 9,000 ～10,000 | AY95: 0 | AZ95: 0 | BA95: 0 | BB95: 0 | BC95: 0 | BD95: 宿泊業
A96: 建設業 | B96: =IFERROR(VLOOKUP(A96,【参照】選択リスト!$N$2:$O$22,2,FALSE),"") -> 建設業 | C96: ～50,000 | D96: 48840880 | E96: 2900000 | F96: 空調・換気設備 | G96: 179119 | H96: 160000 | I96: 19119 | J96: =VLOOKUP(E96,【参照】選択リスト!$A$87:$B$108,2) -> 2,000～3,000 | K96: 2713 | L96: 2400 | AB96: 1.174729 | AC96: 1.0392 | AD96: =M96*(1/458)*【出力】CO2排出量計算表!$H$22*【出力】CO2排出量計算表!$I$22*【出力】CO2排出量計算表!$J$22 -> 0 | AE96: =N96*(1/458)*【出力】CO2排出量計算表!$H$22*【出力】CO2排出量計算表!$I$22*【出力】CO2排出量計算表!$J$22 -> 0 | AF96: =O96*(1/458)*【出力】CO2排出量計算表!$H$22*【出力】CO2排出量計算表!$I$22*【出力】CO2排出量計算表!$J$22 -> 0 | AG96: =P96*(1/458)*【出力】CO2排出量計算表!$H$22*【出力】CO2排出量計算表!$I$22*【出力】CO2排出量計算表!$J$22 -> 0 | AH96: =Q96/1000*【出力】CO2排出量計算表!$H$24*【出力】CO2排出量計算表!$I$24*【出力】CO2排出量計算表!$J$24 -> 0 | AI96: =R96/1000*【出力】CO2排出量計算表!$H$24*【出力】CO2排出量計算表!$I$24*【出力】CO2排出量計算表!$J$24 -> 0 | AJ96: =S96/1000*【出力】CO2排出量計算表!$H$24*【出力】CO2排出量計算表!$I$24*【出力】CO2排出量計算表!$J$24 -> 0 | AK96: =T96/1000*【出力】CO2排出量計算表!$H$24*【出力】CO2排出量計算表!$I$24*【出力】CO2排出量計算表!$J$24 -> 0 | AL96: =U96/1000*45*'【入力】CO2算出（電気・都市ガス）'!$X$37*44/12 -> 0 | AM96: =V96/1000*45*'【入力】CO2算出（電気・都市ガス）'!$X$37*44/12 -> 0 | AN96: =W96*【出力】CO2排出量計算表!$H$16*【出力】CO2排出量計算表!$I$16*【出力】CO2排出量計算表!$J$16/1000 -> 0 | AO96: =X96*【出力】CO2排出量計算表!$H$16*【出力】CO2排出量計算表!$I$16*【出力】CO2排出量計算表!$J$16/1000 -> 0 | AP96: =Y96*【出力】CO2排出量計算表!$H$18*【出力】CO2排出量計算表!$I$18*【出力】CO2排出量計算表!$J$18/1000 -> 0 | AQ96: =Z96*【出力】CO2排出量計算表!$H$18*【出力】CO2排出量計算表!$I$18*【出力】CO2排出量計算表!$J$18/1000 -> 0 | AR96: 1.174729 | AS96: 1.0392 | AT96: 0.135529 | AU96: 恒温設備10,000～11,000 | AV96: 恒温設備 | AW96: 10,000～11,000 | AX96: 10,000 ～11,000 | AY96: 4 | AZ96: 3450756 | BA96: 862.689 | BB96: 81.56298698 | BC96: 20.39074675 | BD96: 建設業
A97: 宿泊業，飲食サービス業 | B97: =IFERROR(VLOOKUP(A97,【参照】選択リスト!$N$2:$O$22,2,FALSE),"") -> 宿泊業，飲食サービス業 | C97: 10,000～25,000 | D97: 11813105 | E97: 1180000 | F97: 空調・換気設備 | G97: 1359401 | H97: 1155490 | I97: 203911 | J97: =VLOOKUP(E97,【参照】選択リスト!$A$87:$B$108,2) -> 1,000～2,000 | K97: 50297.8 | L97: 42753.1 | AB97: 21.7789474 | AC97: 18.5120923 | AD97: =M97*(1/458)*【出力】CO2排出量計算表!$H$22*【出力】CO2排出量計算表!$I$22*【出力】CO2排出量計算表!$J$22 -> 0 | AE97: =N97*(1/458)*【出力】CO2排出量計算表!$H$22*【出力】CO2排出量計算表!$I$22*【出力】CO2排出量計算表!$J$22 -> 0 | AF97: =O97*(1/458)*【出力】CO2排出量計算表!$H$22*【出力】CO2排出量計算表!$I$22*【出力】CO2排出量計算表!$J$22 -> 0 | AG97: =P97*(1/458)*【出力】CO2排出量計算表!$H$22*【出力】CO2排出量計算表!$I$22*【出力】CO2排出量計算表!$J$22 -> 0 | AH97: =Q97/1000*【出力】CO2排出量計算表!$H$24*【出力】CO2排出量計算表!$I$24*【出力】CO2排出量計算表!$J$24 -> 0 | AI97: =R97/1000*【出力】CO2排出量計算表!$H$24*【出力】CO2排出量計算表!$I$24*【出力】CO2排出量計算表!$J$24 -> 0 | AJ97: =S97/1000*【出力】CO2排出量計算表!$H$24*【出力】CO2排出量計算表!$I$24*【出力】CO2排出量計算表!$J$24 -> 0 | AK97: =T97/1000*【出力】CO2排出量計算表!$H$24*【出力】CO2排出量計算表!$I$24*【出力】CO2排出量計算表!$J$24 -> 0 | AL97: =U97/1000*45*'【入力】CO2算出（電気・都市ガス）'!$X$37*44/12 -> 0 | AM97: =V97/1000*45*'【入力】CO2算出（電気・都市ガス）'!$X$37*44/12 -> 0 | AN97: =W97*【出力】CO2排出量計算表!$H$16*【出力】CO2排出量計算表!$I$16*【出力】CO2排出量計算表!$J$16/1000 -> 0 | AO97: =X97*【出力】CO2排出量計算表!$H$16*【出力】CO2排出量計算表!$I$16*【出力】CO2排出量計算表!$J$16/1000 -> 0 | AP97: =Y97*【出力】CO2排出量計算表!$H$18*【出力】CO2排出量計算表!$I$18*【出力】CO2排出量計算表!$J$18/1000 -> 0 | AQ97: =Z97*【出力】CO2排出量計算表!$H$18*【出力】CO2排出量計算表!$I$18*【出力】CO2排出量計算表!$J$18/1000 -> 0 | AR97: 21.7789474 | AS97: 18.5120923 | AT97: 3.2668551 | AU97: 恒温設備11,000～12,000 | AV97: 恒温設備 | AW97: 11,000～12,000 | AX97: 11,000 ～12,000 | AY97: 2 | AZ97: 12071339 | BA97: 6035.6695 | BB97: 330.7103415 | BC97: 165.3551707 | BD97: 宿泊業
A98: 製造業 | B98: =IFERROR(VLOOKUP(A98,【参照】選択リスト!$N$2:$O$22,2,FALSE),"") -> 製造業 | C98: 100,000～250,000 | D98: 127060760 | E98: 7430000 | F98: 生産設備 | G98: 9035066 | H98: 8596358 | I98: 438708 | J98: =VLOOKUP(E98,【参照】選択リスト!$A$87:$B$108,2) -> 7,000～8,000 | K98: 383160 | L98: 369865 | AB98: 165.90828 | AC98: 160.151545 | AD98: =M98*(1/458)*【出力】CO2排出量計算表!$H$22*【出力】CO2排出量計算表!$I$22*【出力】CO2排出量計算表!$J$22 -> 0 | AE98: =N98*(1/458)*【出力】CO2排出量計算表!$H$22*【出力】CO2排出量計算表!$I$22*【出力】CO2排出量計算表!$J$22 -> 0 | AF98: =O98*(1/458)*【出力】CO2排出量計算表!$H$22*【出力】CO2排出量計算表!$I$22*【出力】CO2排出量計算表!$J$22 -> 0 | AG98: =P98*(1/458)*【出力】CO2排出量計算表!$H$22*【出力】CO2排出量計算表!$I$22*【出力】CO2排出量計算表!$J$22 -> 0 | AH98: =Q98/1000*【出力】CO2排出量計算表!$H$24*【出力】CO2排出量計算表!$I$24*【出力】CO2排出量計算表!$J$24 -> 0 | AI98: =R98/1000*【出力】CO2排出量計算表!$H$24*【出力】CO2排出量計算表!$I$24*【出力】CO2排出量計算表!$J$24 -> 0 | AJ98: =S98/1000*【出力】CO2排出量計算表!$H$24*【出力】CO2排出量計算表!$I$24*【出力】CO2排出量計算表!$J$24 -> 0 | AK98: =T98/1000*【出力】CO2排出量計算表!$H$24*【出力】CO2排出量計算表!$I$24*【出力】CO2排出量計算表!$J$24 -> 0 | AL98: =U98/1000*45*'【入力】CO2算出（電気・都市ガス）'!$X$37*44/12 -> 0 | AM98: =V98/1000*45*'【入力】CO2算出（電気・都市ガス）'!$X$37*44/12 -> 0 | AN98: =W98*【出力】CO2排出量計算表!$H$16*【出力】CO2排出量計算表!$I$16*【出力】CO2排出量計算表!$J$16/1000 -> 0 | AO98: =X98*【出力】CO2排出量計算表!$H$16*【出力】CO2排出量計算表!$I$16*【出力】CO2排出量計算表!$J$16/1000 -> 0 | AP98: =Y98*【出力】CO2排出量計算表!$H$18*【出力】CO2排出量計算表!$I$18*【出力】CO2排出量計算表!$J$18/1000 -> 0 | AQ98: =Z98*【出力】CO2排出量計算表!$H$18*【出力】CO2排出量計算表!$I$18*【出力】CO2排出量計算表!$J$18/1000 -> 0 | AR98: 165.90828 | AS98: 160.151545 | AT98: 5.756735 | AU98: 恒温設備12,000～13,000 | AV98: 恒温設備 | AW98: 12,000～13,000 | AX98: 12,000 ～13,000 | AY98: 0 | AZ98: 0 | BA98: 0 | BB98: 0 | BC98: 0 | BD98: 製造業
A99: 卸売業，小売業 | B99: =IFERROR(VLOOKUP(A99,【参照】選択リスト!$N$2:$O$22,2,FALSE),"") -> 卸売業，小売業 | C99: 25,000～500,000 | D99: 31162274 | E99: 1775000 | F99: 空調・換気設備 | G99: 249015 | H99: 146088 | I99: 102927 | J99: =VLOOKUP(E99,【参照】選択リスト!$A$87:$B$108,2) -> 1,000～2,000 | K99: 8224.8 | L99: 3558.2 | AB99: 3.5613384 | AC99: 1.5407006 | AD99: =M99*(1/458)*【出力】CO2排出量計算表!$H$22*【出力】CO2排出量計算表!$I$22*【出力】CO2排出量計算表!$J$22 -> 0 | AE99: =N99*(1/458)*【出力】CO2排出量計算表!$H$22*【出力】CO2排出量計算表!$I$22*【出力】CO2排出量計算表!$J$22 -> 0 | AF99: =O99*(1/458)*【出力】CO2排出量計算表!$H$22*【出力】CO2排出量計算表!$I$22*【出力】CO2排出量計算表!$J$22 -> 0 | AG99: =P99*(1/458)*【出力】CO2排出量計算表!$H$22*【出力】CO2排出量計算表!$I$22*【出力】CO2排出量計算表!$J$22 -> 0 | AH99: =Q99/1000*【出力】CO2排出量計算表!$H$24*【出力】CO2排出量計算表!$I$24*【出力】CO2排出量計算表!$J$24 -> 0 | AI99: =R99/1000*【出力】CO2排出量計算表!$H$24*【出力】CO2排出量計算表!$I$24*【出力】CO2排出量計算表!$J$24 -> 0 | AJ99: =S99/1000*【出力】CO2排出量計算表!$H$24*【出力】CO2排出量計算表!$I$24*【出力】CO2排出量計算表!$J$24 -> 0 | AK99: =T99/1000*【出力】CO2排出量計算表!$H$24*【出力】CO2排出量計算表!$I$24*【出力】CO2排出量計算表!$J$24 -> 0 | AL99: =U99/1000*45*'【入力】CO2算出（電気・都市ガス）'!$X$37*44/12 -> 0 | AM99: =V99/1000*45*'【入力】CO2算出（電気・都市ガス）'!$X$37*44/12 -> 0 | AN99: =W99*【出力】CO2排出量計算表!$H$16*【出力】CO2排出量計算表!$I$16*【出力】CO2排出量計算表!$J$16/1000 -> 0 | AO99: =X99*【出力】CO2排出量計算表!$H$16*【出力】CO2排出量計算表!$I$16*【出力】CO2排出量計算表!$J$16/1000 -> 0 | AP99: =Y99*【出力】CO2排出量計算表!$H$18*【出力】CO2排出量計算表!$I$18*【出力】CO2排出量計算表!$J$18/1000 -> 0 | AQ99: =Z99*【出力】CO2排出量計算表!$H$18*【出力】CO2排出量計算表!$I$18*【出力】CO2排出量計算表!$J$18/1000 -> 0 | AR99: 3.5613384 | AS99: 1.5407006 | AT99: 2.0206378 | AU99: 恒温設備13,000～14,000 | AV99: 恒温設備 | AW99: 13,000～14,000 | AX99: 13,000 ～14,000 | AY99: 0 | AZ99: 0 | BA99: 0 | BB99: 0 | BC99: 0 | BD99: 卸売業
A100: 生活関連サービス業，娯楽業 | B100: =IFERROR(VLOOKUP(A100,【参照】選択リスト!$N$2:$O$22,2,FALSE),"") -> サービス業，その他 | C100: ～10,000 | D100: 5059700 | E100: 859950 | F100: 恒温設備 | G100: 420000 | H100: 24000 | I100: 396000 | J100: =VLOOKUP(E100,【参照】選択リスト!$A$87:$B$108,2) -> 1～1,000 | L100: 720 | M100: 660 | AB100: 0 | AC100: 0.31176 | AD100: =M100*(1/458)*【出力】CO2排出量計算表!$H$22*【出力】CO2排出量計算表!$I$22*【出力】CO2排出量計算表!$J$22 -> 4.321549345 | AE100: =N100*(1/458)*【出力】CO2排出量計算表!$H$22*【出力】CO2排出量計算表!$I$22*【出力】CO2排出量計算表!$J$22 -> 0 | AF100: =O100*(1/458)*【出力】CO2排出量計算表!$H$22*【出力】CO2排出量計算表!$I$22*【出力】CO2排出量計算表!$J$22 -> 0 | AG100: =P100*(1/458)*【出力】CO2排出量計算表!$H$22*【出力】CO2排出量計算表!$I$22*【出力】CO2排出量計算表!$J$22 -> 0 | AH100: =Q100/1000*【出力】CO2排出量計算表!$H$24*【出力】CO2排出量計算表!$I$24*【出力】CO2排出量計算表!$J$24 -> 0 | AI100: =R100/1000*【出力】CO2排出量計算表!$H$24*【出力】CO2排出量計算表!$I$24*【出力】CO2排出量計算表!$J$24 -> 0 | AJ100: =S100/1000*【出力】CO2排出量計算表!$H$24*【出力】CO2排出量計算表!$I$24*【出力】CO2排出量計算表!$J$24 -> 0 | AK100: =T100/1000*【出力】CO2排出量計算表!$H$24*【出力】CO2排出量計算表!$I$24*【出力】CO2排出量計算表!$J$24 -> 0 | AL100: =U100/1000*45*'【入力】CO2算出（電気・都市ガス）'!$X$37*44/12 -> 0 | AM100: =V100/1000*45*'【入力】CO2算出（電気・都市ガス）'!$X$37*44/12 -> 0 | AN100: =W100*【出力】CO2排出量計算表!$H$16*【出力】CO2排出量計算表!$I$16*【出力】CO2排出量計算表!$J$16/1000 -> 0 | AO100: =X100*【出力】CO2排出量計算表!$H$16*【出力】CO2排出量計算表!$I$16*【出力】CO2排出量計算表!$J$16/1000 -> 0 | AP100: =Y100*【出力】CO2排出量計算表!$H$18*【出力】CO2排出量計算表!$I$18*【出力】CO2排出量計算表!$J$18/1000 -> 0 | AQ100: =Z100*【出力】CO2排出量計算表!$H$18*【出力】CO2排出量計算表!$I$18*【出力】CO2排出量計算表!$J$18/1000 -> 0 | AR100: 4.321549345 | AS100: 0.31176 | AT100: 4.009789345 | AU100: 恒温設備14,000～15,000 | AV100: 恒温設備 | AW100: 14,000～15,000 | AX100: 14,000 ～15,000 | AY100: 0 | AZ100: 0 | BA100: 0 | BB100: 0 | BC100: 0 | BD100: サービス業
A101: 建設業 | B101: =IFERROR(VLOOKUP(A101,【参照】選択リスト!$N$2:$O$22,2,FALSE),"") -> 建設業 | C101: 500,000～1,000,000 | D101: 757887437 | E101: 5460000 | F101: 発電設備 | G101: 1245557 | H101: 1130882 | I101: 114675 | J101: =VLOOKUP(E101,【参照】選択リスト!$A$87:$B$108,2) -> 5,000～6,000 | K101: 31040 | L101: 31040 | AB101: 13.44032 | AC101: 13.44032 | AD101: =M101*(1/458)*【出力】CO2排出量計算表!$H$22*【出力】CO2排出量計算表!$I$22*【出力】CO2排出量計算表!$J$22 -> 0 | AE101: =N101*(1/458)*【出力】CO2排出量計算表!$H$22*【出力】CO2排出量計算表!$I$22*【出力】CO2排出量計算表!$J$22 -> 0 | AF101: =O101*(1/458)*【出力】CO2排出量計算表!$H$22*【出力】CO2排出量計算表!$I$22*【出力】CO2排出量計算表!$J$22 -> 0 | AG101: =P101*(1/458)*【出力】CO2排出量計算表!$H$22*【出力】CO2排出量計算表!$I$22*【出力】CO2排出量計算表!$J$22 -> 0 | AH101: =Q101/1000*【出力】CO2排出量計算表!$H$24*【出力】CO2排出量計算表!$I$24*【出力】CO2排出量計算表!$J$24 -> 0 | AI101: =R101/1000*【出力】CO2排出量計算表!$H$24*【出力】CO2排出量計算表!$I$24*【出力】CO2排出量計算表!$J$24 -> 0 | AJ101: =S101/1000*【出力】CO2排出量計算表!$H$24*【出力】CO2排出量計算表!$I$24*【出力】CO2排出量計算表!$J$24 -> 0 | AK101: =T101/1000*【出力】CO2排出量計算表!$H$24*【出力】CO2排出量計算表!$I$24*【出力】CO2排出量計算表!$J$24 -> 0 | AL101: =U101/1000*45*'【入力】CO2算出（電気・都市ガス）'!$X$37*44/12 -> 0 | AM101: =V101/1000*45*'【入力】CO2算出（電気・都市ガス）'!$X$37*44/12 -> 0 | AN101: =W101*【出力】CO2排出量計算表!$H$16*【出力】CO2排出量計算表!$I$16*【出力】CO2排出量計算表!$J$16/1000 -> 0 | AO101: =X101*【出力】CO2排出量計算表!$H$16*【出力】CO2排出量計算表!$I$16*【出力】CO2排出量計算表!$J$16/1000 -> 0 | AP101: =Y101*【出力】CO2排出量計算表!$H$18*【出力】CO2排出量計算表!$I$18*【出力】CO2排出量計算表!$J$18/1000 -> 0 | AQ101: =Z101*【出力】CO2排出量計算表!$H$18*【出力】CO2排出量計算表!$I$18*【出力】CO2排出量計算表!$J$18/1000 -> 0 | AR101: 13.44032 | AS101: 13.44032 | AT101: 0 | AU101: 恒温設備15,000～16,000 | AV101: 恒温設備 | AW101: 15,000～16,000 | AX101: 15,000 ～16,000 | AY101: 0 | AZ101: 0 | BA101: 0 | BB101: 0 | BC101: 0 | BD101: 建設業
A102: 製造業 | B102: =IFERROR(VLOOKUP(A102,【参照】選択リスト!$N$2:$O$22,2,FALSE),"") -> 製造業 | C102: 3,000,000～ | D102: 3589222389 | E102: 8000000 | F102: 生産設備 | G102: 2720080 | H102: 2365704 | I102: 354376 | J102: =VLOOKUP(E102,【参照】選択リスト!$A$87:$B$108,2) -> 8,000～9,000 | K102: 123640 | L102: 107532 | AB102: 53.53612 | AC102: 46.561356 | AD102: =M102*(1/458)*【出力】CO2排出量計算表!$H$22*【出力】CO2排出量計算表!$I$22*【出力】CO2排出量計算表!$J$22 -> 0 | AE102: =N102*(1/458)*【出力】CO2排出量計算表!$H$22*【出力】CO2排出量計算表!$I$22*【出力】CO2排出量計算表!$J$22 -> 0 | AF102: =O102*(1/458)*【出力】CO2排出量計算表!$H$22*【出力】CO2排出量計算表!$I$22*【出力】CO2排出量計算表!$J$22 -> 0 | AG102: =P102*(1/458)*【出力】CO2排出量計算表!$H$22*【出力】CO2排出量計算表!$I$22*【出力】CO2排出量計算表!$J$22 -> 0 | AH102: =Q102/1000*【出力】CO2排出量計算表!$H$24*【出力】CO2排出量計算表!$I$24*【出力】CO2排出量計算表!$J$24 -> 0 | AI102: =R102/1000*【出力】CO2排出量計算表!$H$24*【出力】CO2排出量計算表!$I$24*【出力】CO2排出量計算表!$J$24 -> 0 | AJ102: =S102/1000*【出力】CO2排出量計算表!$H$24*【出力】CO2排出量計算表!$I$24*【出力】CO2排出量計算表!$J$24 -> 0 | AK102: =T102/1000*【出力】CO2排出量計算表!$H$24*【出力】CO2排出量計算表!$I$24*【出力】CO2排出量計算表!$J$24 -> 0 | AL102: =U102/1000*45*'【入力】CO2算出（電気・都市ガス）'!$X$37*44/12 -> 0 | AM102: =V102/1000*45*'【入力】CO2算出（電気・都市ガス）'!$X$37*44/12 -> 0 | AN102: =W102*【出力】CO2排出量計算表!$H$16*【出力】CO2排出量計算表!$I$16*【出力】CO2排出量計算表!$J$16/1000 -> 0 | AO102: =X102*【出力】CO2排出量計算表!$H$16*【出力】CO2排出量計算表!$I$16*【出力】CO2排出量計算表!$J$16/1000 -> 0 | AP102: =Y102*【出力】CO2排出量計算表!$H$18*【出力】CO2排出量計算表!$I$18*【出力】CO2排出量計算表!$J$18/1000 -> 0 | AQ102: =Z102*【出力】CO2排出量計算表!$H$18*【出力】CO2排出量計算表!$I$18*【出力】CO2排出量計算表!$J$18/1000 -> 0 | AR102: 53.53612 | AS102: 46.561356 | AT102: 6.974764 | AU102: =AV102&AW102 -> 恒温設備16,000～17,000 | AV102: 恒温設備 | AW102: 16,000～17,000 | AX102: 16,000 ～17,000 | AY102: 0 | AZ102: 0 | BA102: 0 | BB102: 0 | BC102: 0 | BD102: 製造業
A103: 不動産業，物品賃貸業 | B103: =IFERROR(VLOOKUP(A103,【参照】選択リスト!$N$2:$O$22,2,FALSE),"") -> サービス業，その他 | C103: ～10,000 | D103: 4950000 | E103: 830000 | F103: 空調・換気設備 | G103: 185170 | H103: 166600 | I103: 18570 | J103: =VLOOKUP(E103,【参照】選択リスト!$A$87:$B$108,2) -> 1～1,000 | K103: 5290 | L103: 4760 | AB103: 2.29057 | AC103: 2.06108 | AD103: =M103*(1/458)*【出力】CO2排出量計算表!$H$22*【出力】CO2排出量計算表!$I$22*【出力】CO2排出量計算表!$J$22 -> 0 | AE103: =N103*(1/458)*【出力】CO2排出量計算表!$H$22*【出力】CO2排出量計算表!$I$22*【出力】CO2排出量計算表!$J$22 -> 0 | AF103: =O103*(1/458)*【出力】CO2排出量計算表!$H$22*【出力】CO2排出量計算表!$I$22*【出力】CO2排出量計算表!$J$22 -> 0 | AG103: =P103*(1/458)*【出力】CO2排出量計算表!$H$22*【出力】CO2排出量計算表!$I$22*【出力】CO2排出量計算表!$J$22 -> 0 | AH103: =Q103/1000*【出力】CO2排出量計算表!$H$24*【出力】CO2排出量計算表!$I$24*【出力】CO2排出量計算表!$J$24 -> 0 | AI103: =R103/1000*【出力】CO2排出量計算表!$H$24*【出力】CO2排出量計算表!$I$24*【出力】CO2排出量計算表!$J$24 -> 0 | AJ103: =S103/1000*【出力】CO2排出量計算表!$H$24*【出力】CO2排出量計算表!$I$24*【出力】CO2排出量計算表!$J$24 -> 0 | AK103: =T103/1000*【出力】CO2排出量計算表!$H$24*【出力】CO2排出量計算表!$I$24*【出力】CO2排出量計算表!$J$24 -> 0 | AL103: =U103/1000*45*'【入力】CO2算出（電気・都市ガス）'!$X$37*44/12 -> 0 | AM103: =V103/1000*45*'【入力】CO2算出（電気・都市ガス）'!$X$37*44/12 -> 0 | AN103: =W103*【出力】CO2排出量計算表!$H$16*【出力】CO2排出量計算表!$I$16*【出力】CO2排出量計算表!$J$16/1000 -> 0 | AO103: =X103*【出力】CO2排出量計算表!$H$16*【出力】CO2排出量計算表!$I$16*【出力】CO2排出量計算表!$J$16/1000 -> 0 | AP103: =Y103*【出力】CO2排出量計算表!$H$18*【出力】CO2排出量計算表!$I$18*【出力】CO2排出量計算表!$J$18/1000 -> 0 | AQ103: =Z103*【出力】CO2排出量計算表!$H$18*【出力】CO2排出量計算表!$I$18*【出力】CO2排出量計算表!$J$18/1000 -> 0 | AR103: 2.29057 | AS103: 2.06108 | AT103: 0.22949 | AU103: =AV103&AW103 -> 恒温設備17,000～18,000 | AV103: 恒温設備 | AW103: 17,000～18,000 | AX103: 17,000 ～18,000 | AY103: 0 | AZ103: 0 | BA103: 0 | BB103: 0 | BC103: 0 | BD103: サービス業
A104: 製造業 | B104: =IFERROR(VLOOKUP(A104,【参照】選択リスト!$N$2:$O$22,2,FALSE),"") -> 製造業 | C104: 250,000～1,000,000 | D104: 416641115 | E104: 10208000 | F104: 空調・換気設備 | G104: 12634491 | H104: 12500440 | I104: 134051 | J104: =VLOOKUP(E104,【参照】選択リスト!$A$87:$B$108,2) -> 10,000～11,000 | K104: 653995 | L104: 647292 | AB104: 283.179835 | AC104: 280.277436 | AD104: =M104*(1/458)*【出力】CO2排出量計算表!$H$22*【出力】CO2排出量計算表!$I$22*【出力】CO2排出量計算表!$J$22 -> 0 | AE104: =N104*(1/458)*【出力】CO2排出量計算表!$H$22*【出力】CO2排出量計算表!$I$22*【出力】CO2排出量計算表!$J$22 -> 0 | AF104: =O104*(1/458)*【出力】CO2排出量計算表!$H$22*【出力】CO2排出量計算表!$I$22*【出力】CO2排出量計算表!$J$22 -> 0 | AG104: =P104*(1/458)*【出力】CO2排出量計算表!$H$22*【出力】CO2排出量計算表!$I$22*【出力】CO2排出量計算表!$J$22 -> 0 | AH104: =Q104/1000*【出力】CO2排出量計算表!$H$24*【出力】CO2排出量計算表!$I$24*【出力】CO2排出量計算表!$J$24 -> 0 | AI104: =R104/1000*【出力】CO2排出量計算表!$H$24*【出力】CO2排出量計算表!$I$24*【出力】CO2排出量計算表!$J$24 -> 0 | AJ104: =S104/1000*【出力】CO2排出量計算表!$H$24*【出力】CO2排出量計算表!$I$24*【出力】CO2排出量計算表!$J$24 -> 0 | AK104: =T104/1000*【出力】CO2排出量計算表!$H$24*【出力】CO2排出量計算表!$I$24*【出力】CO2排出量計算表!$J$24 -> 0 | AL104: =U104/1000*45*'【入力】CO2算出（電気・都市ガス）'!$X$37*44/12 -> 0 | AM104: =V104/1000*45*'【入力】CO2算出（電気・都市ガス）'!$X$37*44/12 -> 0 | AN104: =W104*【出力】CO2排出量計算表!$H$16*【出力】CO2排出量計算表!$I$16*【出力】CO2排出量計算表!$J$16/1000 -> 0 | AO104: =X104*【出力】CO2排出量計算表!$H$16*【出力】CO2排出量計算表!$I$16*【出力】CO2排出量計算表!$J$16/1000 -> 0 | AP104: =Y104*【出力】CO2排出量計算表!$H$18*【出力】CO2排出量計算表!$I$18*【出力】CO2排出量計算表!$J$18/1000 -> 0 | AQ104: =Z104*【出力】CO2排出量計算表!$H$18*【出力】CO2排出量計算表!$I$18*【出力】CO2排出量計算表!$J$18/1000 -> 0 | AR104: 283.179835 | AS104: 280.277436 | AT104: 2.902399 | AU104: =AV104&AW104 -> 恒温設備18,000～19,000 | AV104: 恒温設備 | AW104: 18,000～19,000 | AX104: 18,000 ～19,000 | AY104: 1 | AZ104: 143908 | BA104: 143.908 | BB104: 20.1529317 | BC104: 20.1529317 | BD104: 製造業
A105: 製造業 | B105: =IFERROR(VLOOKUP(A105,【参照】選択リスト!$N$2:$O$22,2,FALSE),"") -> 製造業 | C105: 25,000～50,000 | D105: 30158926 | E105: 1830000 | F105: 恒温設備 | G105: 484135 | H105: 480644 | I105: 3491 | J105: =VLOOKUP(E105,【参照】選択リスト!$A$87:$B$108,2) -> 1,000～2,000 | W105: 4567 | X105: 4534.4 | AB105: 0 | AC105: 0 | AD105: =M105*(1/458)*【出力】CO2排出量計算表!$H$22*【出力】CO2排出量計算表!$I$22*【出力】CO2排出量計算表!$J$22 -> 0 | AE105: =N105*(1/458)*【出力】CO2排出量計算表!$H$22*【出力】CO2排出量計算表!$I$22*【出力】CO2排出量計算表!$J$22 -> 0 | AF105: =O105*(1/458)*【出力】CO2排出量計算表!$H$22*【出力】CO2排出量計算表!$I$22*【出力】CO2排出量計算表!$J$22 -> 0 | AG105: =P105*(1/458)*【出力】CO2排出量計算表!$H$22*【出力】CO2排出量計算表!$I$22*【出力】CO2排出量計算表!$J$22 -> 0 | AH105: =Q105/1000*【出力】CO2排出量計算表!$H$24*【出力】CO2排出量計算表!$I$24*【出力】CO2排出量計算表!$J$24 -> 0 | AI105: =R105/1000*【出力】CO2排出量計算表!$H$24*【出力】CO2排出量計算表!$I$24*【出力】CO2排出量計算表!$J$24 -> 0 | AJ105: =S105/1000*【出力】CO2排出量計算表!$H$24*【出力】CO2排出量計算表!$I$24*【出力】CO2排出量計算表!$J$24 -> 0 | AK105: =T105/1000*【出力】CO2排出量計算表!$H$24*【出力】CO2排出量計算表!$I$24*【出力】CO2排出量計算表!$J$24 -> 0 | AL105: =U105/1000*45*'【入力】CO2算出（電気・都市ガス）'!$X$37*44/12 -> 0 | AM105: =V105/1000*45*'【入力】CO2算出（電気・都市ガス）'!$X$37*44/12 -> 0 | AN105: =W105*【出力】CO2排出量計算表!$H$16*【出力】CO2排出量計算表!$I$16*【出力】CO2排出量計算表!$J$16/1000 -> 11.36947038 | AO105: =X105*【出力】CO2排出量計算表!$H$16*【出力】CO2排出量計算表!$I$16*【出力】CO2排出量計算表!$J$16/1000 -> 11.28831323 | AP105: =Y105*【出力】CO2排出量計算表!$H$18*【出力】CO2排出量計算表!$I$18*【出力】CO2排出量計算表!$J$18/1000 -> 0 | AQ105: =Z105*【出力】CO2排出量計算表!$H$18*【出力】CO2排出量計算表!$I$18*【出力】CO2排出量計算表!$J$18/1000 -> 0 | AR105: 11.36947038 | AS105: 11.28831323 | AT105: 0.08115715667 | AU105: =AV105&AW105 -> 恒温設備19,000～20,000 | AV105: 恒温設備 | AW105: 19,000～20,000 | AX105: 19,000 ～20,000 | AY105: 0 | AZ105: 0 | BA105: 0 | BB105: 0 | BC105: 0 | BD105: 製造業
A106: 製造業 | B106: =IFERROR(VLOOKUP(A106,【参照】選択リスト!$N$2:$O$22,2,FALSE),"") -> 製造業 | C106: 250,000～1,000,000 | D106: 275876541 | E106: 9300000 | F106: 電気制御設備 | G106: 3428547 | H106: 3366899 | I106: 61648 | J106: =VLOOKUP(E106,【参照】選択リスト!$A$87:$B$108,2) -> 9,000～10,000 | K106: 112154 | L106: 110137 | AB106: 48.562682 | AC106: 47.689321 | AD106: =M106*(1/458)*【出力】CO2排出量計算表!$H$22*【出力】CO2排出量計算表!$I$22*【出力】CO2排出量計算表!$J$22 -> 0 | AE106: =N106*(1/458)*【出力】CO2排出量計算表!$H$22*【出力】CO2排出量計算表!$I$22*【出力】CO2排出量計算表!$J$22 -> 0 | AF106: =O106*(1/458)*【出力】CO2排出量計算表!$H$22*【出力】CO2排出量計算表!$I$22*【出力】CO2排出量計算表!$J$22 -> 0 | AG106: =P106*(1/458)*【出力】CO2排出量計算表!$H$22*【出力】CO2排出量計算表!$I$22*【出力】CO2排出量計算表!$J$22 -> 0 | AH106: =Q106/1000*【出力】CO2排出量計算表!$H$24*【出力】CO2排出量計算表!$I$24*【出力】CO2排出量計算表!$J$24 -> 0 | AI106: =R106/1000*【出力】CO2排出量計算表!$H$24*【出力】CO2排出量計算表!$I$24*【出力】CO2排出量計算表!$J$24 -> 0 | AJ106: =S106/1000*【出力】CO2排出量計算表!$H$24*【出力】CO2排出量計算表!$I$24*【出力】CO2排出量計算表!$J$24 -> 0 | AK106: =T106/1000*【出力】CO2排出量計算表!$H$24*【出力】CO2排出量計算表!$I$24*【出力】CO2排出量計算表!$J$24 -> 0 | AL106: =U106/1000*45*'【入力】CO2算出（電気・都市ガス）'!$X$37*44/12 -> 0 | AM106: =V106/1000*45*'【入力】CO2算出（電気・都市ガス）'!$X$37*44/12 -> 0 | AN106: =W106*【出力】CO2排出量計算表!$H$16*【出力】CO2排出量計算表!$I$16*【出力】CO2排出量計算表!$J$16/1000 -> 0 | AO106: =X106*【出力】CO2排出量計算表!$H$16*【出力】CO2排出量計算表!$I$16*【出力】CO2排出量計算表!$J$16/1000 -> 0 | AP106: =Y106*【出力】CO2排出量計算表!$H$18*【出力】CO2排出量計算表!$I$18*【出力】CO2排出量計算表!$J$18/1000 -> 0 | AQ106: =Z106*【出力】CO2排出量計算表!$H$18*【出力】CO2排出量計算表!$I$18*【出力】CO2排出量計算表!$J$18/1000 -> 0 | AR106: 48.562682 | AS106: 47.689321 | AT106: 0.873361 | AU106: =AV106&AW106 -> 恒温設備20,000～ | AV106: 恒温設備 | AW106: 20,000～ | AX106: 20,000～ | AY106: 2 | AZ106: 707349 | BA106: 353.6745 | BB106: 14.71903685 | BC106: 7.359518425 | BD106: 製造業
A107: 製造業 | B107: =IFERROR(VLOOKUP(A107,【参照】選択リスト!$N$2:$O$22,2,FALSE),"") -> 製造業 | C107: 250,000～1,000,000 | D107: 784000000 | E107: 9795000 | F107: 生産設備 | G107: 190078 | H107: 103810 | I107: 86268 | J107: =VLOOKUP(E107,【参照】選択リスト!$A$87:$B$108,2) -> 9,000～10,000 | K107: 11689.92 | L107: 6384.42 | AB107: 5.06173536 | AC107: 2.76445386 | AD107: =M107*(1/458)*【出力】CO2排出量計算表!$H$22*【出力】CO2排出量計算表!$I$22*【出力】CO2排出量計算表!$J$22 -> 0 | AE107: =N107*(1/458)*【出力】CO2排出量計算表!$H$22*【出力】CO2排出量計算表!$I$22*【出力】CO2排出量計算表!$J$22 -> 0 | AF107: =O107*(1/458)*【出力】CO2排出量計算表!$H$22*【出力】CO2排出量計算表!$I$22*【出力】CO2排出量計算表!$J$22 -> 0 | AG107: =P107*(1/458)*【出力】CO2排出量計算表!$H$22*【出力】CO2排出量計算表!$I$22*【出力】CO2排出量計算表!$J$22 -> 0 | AH107: =Q107/1000*【出力】CO2排出量計算表!$H$24*【出力】CO2排出量計算表!$I$24*【出力】CO2排出量計算表!$J$24 -> 0 | AI107: =R107/1000*【出力】CO2排出量計算表!$H$24*【出力】CO2排出量計算表!$I$24*【出力】CO2排出量計算表!$J$24 -> 0 | AJ107: =S107/1000*【出力】CO2排出量計算表!$H$24*【出力】CO2排出量計算表!$I$24*【出力】CO2排出量計算表!$J$24 -> 0 | AK107: =T107/1000*【出力】CO2排出量計算表!$H$24*【出力】CO2排出量計算表!$I$24*【出力】CO2排出量計算表!$J$24 -> 0 | AL107: =U107/1000*45*'【入力】CO2算出（電気・都市ガス）'!$X$37*44/12 -> 0 | AM107: =V107/1000*45*'【入力】CO2算出（電気・都市ガス）'!$X$37*44/12 -> 0 | AN107: =W107*【出力】CO2排出量計算表!$H$16*【出力】CO2排出量計算表!$I$16*【出力】CO2排出量計算表!$J$16/1000 -> 0 | AO107: =X107*【出力】CO2排出量計算表!$H$16*【出力】CO2排出量計算表!$I$16*【出力】CO2排出量計算表!$J$16/1000 -> 0 | AP107: =Y107*【出力】CO2排出量計算表!$H$18*【出力】CO2排出量計算表!$I$18*【出力】CO2排出量計算表!$J$18/1000 -> 0 | AQ107: =Z107*【出力】CO2排出量計算表!$H$18*【出力】CO2排出量計算表!$I$18*【出力】CO2排出量計算表!$J$18/1000 -> 0 | AR107: 5.06173536 | AS107: 2.76445386 | AT107: 2.2972815 | AU107: =AV107&AW107 -> 熱電併給設備1～1,000 | AV107: 熱電併給設備 | AW107: 1～1,000 | AX107: 1 ～1,000 | AY107: 0 | AZ107: 0 | BA107: 0 | BB107: 0 | BC107: 0 | BD107: 製造業
A108: 建設業 | B108: =IFERROR(VLOOKUP(A108,【参照】選択リスト!$N$2:$O$22,2,FALSE),"") -> 建設業 | C108: 500,000～1,000,000 | D108: 573686076 | E108: 1224000 | F108: 空調・換気設備 | G108: 326721 | H108: 300000 | I108: 26721 | J108: =VLOOKUP(E108,【参照】選択リスト!$A$87:$B$108,2) -> 1,000～2,000 | K108: 8745 | L108: 7700 | AB108: 3.786585 | AC108: 3.3341 | AD108: =M108*(1/458)*【出力】CO2排出量計算表!$H$22*【出力】CO2排出量計算表!$I$22*【出力】CO2排出量計算表!$J$22 -> 0 | AE108: =N108*(1/458)*【出力】CO2排出量計算表!$H$22*【出力】CO2排出量計算表!$I$22*【出力】CO2排出量計算表!$J$22 -> 0 | AF108: =O108*(1/458)*【出力】CO2排出量計算表!$H$22*【出力】CO2排出量計算表!$I$22*【出力】CO2排出量計算表!$J$22 -> 0 | AG108: =P108*(1/458)*【出力】CO2排出量計算表!$H$22*【出力】CO2排出量計算表!$I$22*【出力】CO2排出量計算表!$J$22 -> 0 | AH108: =Q108/1000*【出力】CO2排出量計算表!$H$24*【出力】CO2排出量計算表!$I$24*【出力】CO2排出量計算表!$J$24 -> 0 | AI108: =R108/1000*【出力】CO2排出量計算表!$H$24*【出力】CO2排出量計算表!$I$24*【出力】CO2排出量計算表!$J$24 -> 0 | AJ108: =S108/1000*【出力】CO2排出量計算表!$H$24*【出力】CO2排出量計算表!$I$24*【出力】CO2排出量計算表!$J$24 -> 0 | AK108: =T108/1000*【出力】CO2排出量計算表!$H$24*【出力】CO2排出量計算表!$I$24*【出力】CO2排出量計算表!$J$24 -> 0 | AL108: =U108/1000*45*'【入力】CO2算出（電気・都市ガス）'!$X$37*44/12 -> 0 | AM108: =V108/1000*45*'【入力】CO2算出（電気・都市ガス）'!$X$37*44/12 -> 0 | AN108: =W108*【出力】CO2排出量計算表!$H$16*【出力】CO2排出量計算表!$I$16*【出力】CO2排出量計算表!$J$16/1000 -> 0 | AO108: =X108*【出力】CO2排出量計算表!$H$16*【出力】CO2排出量計算表!$I$16*【出力】CO2排出量計算表!$J$16/1000 -> 0 | AP108: =Y108*【出力】CO2排出量計算表!$H$18*【出力】CO2排出量計算表!$I$18*【出力】CO2排出量計算表!$J$18/1000 -> 0 | AQ108: =Z108*【出力】CO2排出量計算表!$H$18*【出力】CO2排出量計算表!$I$18*【出力】CO2排出量計算表!$J$18/1000 -> 0 | AR108: 3.786585 | AS108: 3.3341 | AT108: 0.452485 | AU108: 熱電併給設備1,000～2,000 | AV108: 熱電併給設備 | AW108: 1,000～2,000 | AX108: 1,000 ～2,000 | AY108: 0 | AZ108: 0 | BA108: 0 | BB108: 0 | BC108: 0 | BD108: 建設業
A109: 宿泊業，飲食サービス業 | B109: =IFERROR(VLOOKUP(A109,【参照】選択リスト!$N$2:$O$22,2,FALSE),"") -> 宿泊業，飲食サービス業 | C109: 25,000～50,000 | D109: 31499103 | E109: 1440000 | F109: 空調・換気設備 | G109: 57000 | H109: 51461 | I109: 5539 | J109: =VLOOKUP(E109,【参照】選択リスト!$A$87:$B$108,2) -> 1,000～2,000 | K109: 1820 | L109: 1500 | AB109: 0.78806 | AC109: 0.6495 | AD109: =M109*(1/458)*【出力】CO2排出量計算表!$H$22*【出力】CO2排出量計算表!$I$22*【出力】CO2排出量計算表!$J$22 -> 0 | AE109: =N109*(1/458)*【出力】CO2排出量計算表!$H$22*【出力】CO2排出量計算表!$I$22*【出力】CO2排出量計算表!$J$22 -> 0 | AF109: =O109*(1/458)*【出力】CO2排出量計算表!$H$22*【出力】CO2排出量計算表!$I$22*【出力】CO2排出量計算表!$J$22 -> 0 | AG109: =P109*(1/458)*【出力】CO2排出量計算表!$H$22*【出力】CO2排出量計算表!$I$22*【出力】CO2排出量計算表!$J$22 -> 0 | AH109: =Q109/1000*【出力】CO2排出量計算表!$H$24*【出力】CO2排出量計算表!$I$24*【出力】CO2排出量計算表!$J$24 -> 0 | AI109: =R109/1000*【出力】CO2排出量計算表!$H$24*【出力】CO2排出量計算表!$I$24*【出力】CO2排出量計算表!$J$24 -> 0 | AJ109: =S109/1000*【出力】CO2排出量計算表!$H$24*【出力】CO2排出量計算表!$I$24*【出力】CO2排出量計算表!$J$24 -> 0 | AK109: =T109/1000*【出力】CO2排出量計算表!$H$24*【出力】CO2排出量計算表!$I$24*【出力】CO2排出量計算表!$J$24 -> 0 | AL109: =U109/1000*45*'【入力】CO2算出（電気・都市ガス）'!$X$37*44/12 -> 0 | AM109: =V109/1000*45*'【入力】CO2算出（電気・都市ガス）'!$X$37*44/12 -> 0 | AN109: =W109*【出力】CO2排出量計算表!$H$16*【出力】CO2排出量計算表!$I$16*【出力】CO2排出量計算表!$J$16/1000 -> 0 | AO109: =X109*【出力】CO2排出量計算表!$H$16*【出力】CO2排出量計算表!$I$16*【出力】CO2排出量計算表!$J$16/1000 -> 0 | AP109: =Y109*【出力】CO2排出量計算表!$H$18*【出力】CO2排出量計算表!$I$18*【出力】CO2排出量計算表!$J$18/1000 -> 0 | AQ109: =Z109*【出力】CO2排出量計算表!$H$18*【出力】CO2排出量計算表!$I$18*【出力】CO2排出量計算表!$J$18/1000 -> 0 | AR109: 0.78806 | AS109: 0.6495 | AT109: 0.13856 | AU109: 熱電併給設備2,000～3,000 | AV109: 熱電併給設備 | AW109: 2,000～3,000 | AX109: 2,000 ～3,000 | AY109: 0 | AZ109: 0 | BA109: 0 | BB109: 0 | BC109: 0 | BD109: 宿泊業
A110: 製造業 | B110: =IFERROR(VLOOKUP(A110,【参照】選択リスト!$N$2:$O$22,2,FALSE),"") -> 製造業 | C110: 250,000～1,000,000 | D110: 511951168 | E110: 1730000 | F110: 空調・換気設備 | G110: 36880017 | H110: 36860017 | I110: 20000 | J110: =VLOOKUP(E110,【参照】選択リスト!$A$87:$B$108,2) -> 1,000～2,000 | K110: 1967078 | L110: 1966578 | AB110: 851.744774 | AC110: 851.528274 | AD110: =M110*(1/458)*【出力】CO2排出量計算表!$H$22*【出力】CO2排出量計算表!$I$22*【出力】CO2排出量計算表!$J$22 -> 0 | AE110: =N110*(1/458)*【出力】CO2排出量計算表!$H$22*【出力】CO2排出量計算表!$I$22*【出力】CO2排出量計算表!$J$22 -> 0 | AF110: =O110*(1/458)*【出力】CO2排出量計算表!$H$22*【出力】CO2排出量計算表!$I$22*【出力】CO2排出量計算表!$J$22 -> 0 | AG110: =P110*(1/458)*【出力】CO2排出量計算表!$H$22*【出力】CO2排出量計算表!$I$22*【出力】CO2排出量計算表!$J$22 -> 0 | AH110: =Q110/1000*【出力】CO2排出量計算表!$H$24*【出力】CO2排出量計算表!$I$24*【出力】CO2排出量計算表!$J$24 -> 0 | AI110: =R110/1000*【出力】CO2排出量計算表!$H$24*【出力】CO2排出量計算表!$I$24*【出力】CO2排出量計算表!$J$24 -> 0 | AJ110: =S110/1000*【出力】CO2排出量計算表!$H$24*【出力】CO2排出量計算表!$I$24*【出力】CO2排出量計算表!$J$24 -> 0 | AK110: =T110/1000*【出力】CO2排出量計算表!$H$24*【出力】CO2排出量計算表!$I$24*【出力】CO2排出量計算表!$J$24 -> 0 | AL110: =U110/1000*45*'【入力】CO2算出（電気・都市ガス）'!$X$37*44/12 -> 0 | AM110: =V110/1000*45*'【入力】CO2算出（電気・都市ガス）'!$X$37*44/12 -> 0 | AN110: =W110*【出力】CO2排出量計算表!$H$16*【出力】CO2排出量計算表!$I$16*【出力】CO2排出量計算表!$J$16/1000 -> 0 | AO110: =X110*【出力】CO2排出量計算表!$H$16*【出力】CO2排出量計算表!$I$16*【出力】CO2排出量計算表!$J$16/1000 -> 0 | AP110: =Y110*【出力】CO2排出量計算表!$H$18*【出力】CO2排出量計算表!$I$18*【出力】CO2排出量計算表!$J$18/1000 -> 0 | AQ110: =Z110*【出力】CO2排出量計算表!$H$18*【出力】CO2排出量計算表!$I$18*【出力】CO2排出量計算表!$J$18/1000 -> 0 | AR110: 851.744774 | AS110: 851.528274 | AT110: 0.2165 | AU110: 熱電併給設備3,000～4,000 | AV110: 熱電併給設備 | AW110: 3,000～4,000 | AX110: 3,000 ～4,000 | AY110: 0 | AZ110: 0 | BA110: 0 | BB110: 0 | BC110: 0 | BD110: 製造業
A111: 製造業 | B111: =IFERROR(VLOOKUP(A111,【参照】選択リスト!$N$2:$O$22,2,FALSE),"") -> 製造業 | C111: 250,000～1,000,000 | D111: 495001477 | E111: 10970000 | F111: 加熱設備 | G111: 25033785 | H111: 24280000 | I111: 753785 | J111: =VLOOKUP(E111,【参照】選択リスト!$A$87:$B$108,2) -> 10,000～11,000 | M111: 117836.67 | N111: 114300 | AB111: 0 | AC111: 0 | AD111: =M111*(1/458)*【出力】CO2排出量計算表!$H$22*【出力】CO2排出量計算表!$I$22*【出力】CO2排出量計算表!$J$22 -> 771.571188 | AE111: =N111*(1/458)*【出力】CO2排出量計算表!$H$22*【出力】CO2排出量計算表!$I$22*【出力】CO2排出量計算表!$J$22 -> 748.4137729 | AF111: =O111*(1/458)*【出力】CO2排出量計算表!$H$22*【出力】CO2排出量計算表!$I$22*【出力】CO2排出量計算表!$J$22 -> 0 | AG111: =P111*(1/458)*【出力】CO2排出量計算表!$H$22*【出力】CO2排出量計算表!$I$22*【出力】CO2排出量計算表!$J$22 -> 0 | AH111: =Q111/1000*【出力】CO2排出量計算表!$H$24*【出力】CO2排出量計算表!$I$24*【出力】CO2排出量計算表!$J$24 -> 0 | AI111: =R111/1000*【出力】CO2排出量計算表!$H$24*【出力】CO2排出量計算表!$I$24*【出力】CO2排出量計算表!$J$24 -> 0 | AJ111: =S111/1000*【出力】CO2排出量計算表!$H$24*【出力】CO2排出量計算表!$I$24*【出力】CO2排出量計算表!$J$24 -> 0 | AK111: =T111/1000*【出力】CO2排出量計算表!$H$24*【出力】CO2排出量計算表!$I$24*【出力】CO2排出量計算表!$J$24 -> 0 | AL111: =U111/1000*45*'【入力】CO2算出（電気・都市ガス）'!$X$37*44/12 -> 0 | AM111: =V111/1000*45*'【入力】CO2算出（電気・都市ガス）'!$X$37*44/12 -> 0 | AN111: =W111*【出力】CO2排出量計算表!$H$16*【出力】CO2排出量計算表!$I$16*【出力】CO2排出量計算表!$J$16/1000 -> 0 | AO111: =X111*【出力】CO2排出量計算表!$H$16*【出力】CO2排出量計算表!$I$16*【出力】CO2排出量計算表!$J$16/1000 -> 0 | AP111: =Y111*【出力】CO2排出量計算表!$H$18*【出力】CO2排出量計算表!$I$18*【出力】CO2排出量計算表!$J$18/1000 -> 0 | AQ111: =Z111*【出力】CO2排出量計算表!$H$18*【出力】CO2排出量計算表!$I$18*【出力】CO2排出量計算表!$J$18/1000 -> 0 | AR111: 771.571188 | AS111: 748.4137729 | AT111: 23.15741503 | AU111: 熱電併給設備4,000～5,000 | AV111: 熱電併給設備 | AW111: 4,000～5,000 | AX111: 4,000 ～5,000 | AY111: 0 | AZ111: 0 | BA111: 0 | BB111: 0 | BC111: 0 | BD111: 製造業
A112: 卸売業，小売業 | B112: =IFERROR(VLOOKUP(A112,【参照】選択リスト!$N$2:$O$22,2,FALSE),"") -> 卸売業，小売業 | C112: 50,000～1,000,000 | D112: 640981183 | E112: 2500000 | F112: 空調・換気設備 | G112: 806000 | H112: 262200 | I112: 543800 | J112: =VLOOKUP(E112,【参照】選択リスト!$A$87:$B$108,2) -> 2,000～3,000 | K112: 51062 | L112: 16738 | AB112: 22.109846 | AC112: 7.247554 | AD112: =M112*(1/458)*【出力】CO2排出量計算表!$H$22*【出力】CO2排出量計算表!$I$22*【出力】CO2排出量計算表!$J$22 -> 0 | AE112: =N112*(1/458)*【出力】CO2排出量計算表!$H$22*【出力】CO2排出量計算表!$I$22*【出力】CO2排出量計算表!$J$22 -> 0 | AF112: =O112*(1/458)*【出力】CO2排出量計算表!$H$22*【出力】CO2排出量計算表!$I$22*【出力】CO2排出量計算表!$J$22 -> 0 | AG112: =P112*(1/458)*【出力】CO2排出量計算表!$H$22*【出力】CO2排出量計算表!$I$22*【出力】CO2排出量計算表!$J$22 -> 0 | AH112: =Q112/1000*【出力】CO2排出量計算表!$H$24*【出力】CO2排出量計算表!$I$24*【出力】CO2排出量計算表!$J$24 -> 0 | AI112: =R112/1000*【出力】CO2排出量計算表!$H$24*【出力】CO2排出量計算表!$I$24*【出力】CO2排出量計算表!$J$24 -> 0 | AJ112: =S112/1000*【出力】CO2排出量計算表!$H$24*【出力】CO2排出量計算表!$I$24*【出力】CO2排出量計算表!$J$24 -> 0 | AK112: =T112/1000*【出力】CO2排出量計算表!$H$24*【出力】CO2排出量計算表!$I$24*【出力】CO2排出量計算表!$J$24 -> 0 | AL112: =U112/1000*45*'【入力】CO2算出（電気・都市ガス）'!$X$37*44/12 -> 0 | AM112: =V112/1000*45*'【入力】CO2算出（電気・都市ガス）'!$X$37*44/12 -> 0 | AN112: =W112*【出力】CO2排出量計算表!$H$16*【出力】CO2排出量計算表!$I$16*【出力】CO2排出量計算表!$J$16/1000 -> 0 | AO112: =X112*【出力】CO2排出量計算表!$H$16*【出力】CO2排出量計算表!$I$16*【出力】CO2排出量計算表!$J$16/1000 -> 0 | AP112: =Y112*【出力】CO2排出量計算表!$H$18*【出力】CO2排出量計算表!$I$18*【出力】CO2排出量計算表!$J$18/1000 -> 0 | AQ112: =Z112*【出力】CO2排出量計算表!$H$18*【出力】CO2排出量計算表!$I$18*【出力】CO2排出量計算表!$J$18/1000 -> 0 | AR112: 22.109846 | AS112: 7.247554 | AT112: 14.862292 | AU112: 熱電併給設備5,000～6,000 | AV112: 熱電併給設備 | AW112: 5,000～6,000 | AX112: 5,000 ～6,000 | AY112: 0 | AZ112: 0 | BA112: 0 | BB112: 0 | BC112: 0 | BD112: 卸売業
A113: 製造業 | B113: =IFERROR(VLOOKUP(A113,【参照】選択リスト!$N$2:$O$22,2,FALSE),"") -> 製造業 | C113: 100,000～250,000 | D113: 221612658 | E113: 1400000 | F113: 空調・換気設備 | G113: 742857 | H113: 298662 | I113: 444195 | J113: =VLOOKUP(E113,【参照】選択リスト!$A$87:$B$108,2) -> 1,000～2,000 | K113: 24829 | L113: 8632 | AB113: 10.750957 | AC113: 3.737656 | AD113: =M113*(1/458)*【出力】CO2排出量計算表!$H$22*【出力】CO2排出量計算表!$I$22*【出力】CO2排出量計算表!$J$22 -> 0 | AE113: =N113*(1/458)*【出力】CO2排出量計算表!$H$22*【出力】CO2排出量計算表!$I$22*【出力】CO2排出量計算表!$J$22 -> 0 | AF113: =O113*(1/458)*【出力】CO2排出量計算表!$H$22*【出力】CO2排出量計算表!$I$22*【出力】CO2排出量計算表!$J$22 -> 0 | AG113: =P113*(1/458)*【出力】CO2排出量計算表!$H$22*【出力】CO2排出量計算表!$I$22*【出力】CO2排出量計算表!$J$22 -> 0 | AH113: =Q113/1000*【出力】CO2排出量計算表!$H$24*【出力】CO2排出量計算表!$I$24*【出力】CO2排出量計算表!$J$24 -> 0 | AI113: =R113/1000*【出力】CO2排出量計算表!$H$24*【出力】CO2排出量計算表!$I$24*【出力】CO2排出量計算表!$J$24 -> 0 | AJ113: =S113/1000*【出力】CO2排出量計算表!$H$24*【出力】CO2排出量計算表!$I$24*【出力】CO2排出量計算表!$J$24 -> 0 | AK113: =T113/1000*【出力】CO2排出量計算表!$H$24*【出力】CO2排出量計算表!$I$24*【出力】CO2排出量計算表!$J$24 -> 0 | AL113: =U113/1000*45*'【入力】CO2算出（電気・都市ガス）'!$X$37*44/12 -> 0 | AM113: =V113/1000*45*'【入力】CO2算出（電気・都市ガス）'!$X$37*44/12 -> 0 | AN113: =W113*【出力】CO2排出量計算表!$H$16*【出力】CO2排出量計算表!$I$16*【出力】CO2排出量計算表!$J$16/1000 -> 0 | AO113: =X113*【出力】CO2排出量計算表!$H$16*【出力】CO2排出量計算表!$I$16*【出力】CO2排出量計算表!$J$16/1000 -> 0 | AP113: =Y113*【出力】CO2排出量計算表!$H$18*【出力】CO2排出量計算表!$I$18*【出力】CO2排出量計算表!$J$18/1000 -> 0 | AQ113: =Z113*【出力】CO2排出量計算表!$H$18*【出力】CO2排出量計算表!$I$18*【出力】CO2排出量計算表!$J$18/1000 -> 0 | AR113: 10.750957 | AS113: 3.737656 | AT113: 7.013301 | AU113: =AV113&AW113 -> 熱電併給設備6,000～7,000 | AV113: 熱電併給設備 | AW113: 6,000～7,000 | AX113: 6,000 ～7,000 | AY113: 0 | AZ113: 0 | BA113: 0 | BB113: 0 | BC113: 0 | BD113: 製造業
A114: 製造業 | B114: =IFERROR(VLOOKUP(A114,【参照】選択リスト!$N$2:$O$22,2,FALSE),"") -> 製造業 | C114: 250,000～1,000,000 | D114: 285004155 | E114: 2099000 | F114: 空調・換気設備 | G114: 7039641 | H114: 6977324 | I114: 62317 | J114: =VLOOKUP(E114,【参照】選択リスト!$A$87:$B$108,2) -> 2,000～3,000 | K114: 299699.4 | L114: 297301.8 | AB114: 129.7698402 | AC114: 128.7316794 | AD114: =M114*(1/458)*【出力】CO2排出量計算表!$H$22*【出力】CO2排出量計算表!$I$22*【出力】CO2排出量計算表!$J$22 -> 0 | AE114: =N114*(1/458)*【出力】CO2排出量計算表!$H$22*【出力】CO2排出量計算表!$I$22*【出力】CO2排出量計算表!$J$22 -> 0 | AF114: =O114*(1/458)*【出力】CO2排出量計算表!$H$22*【出力】CO2排出量計算表!$I$22*【出力】CO2排出量計算表!$J$22 -> 0 | AG114: =P114*(1/458)*【出力】CO2排出量計算表!$H$22*【出力】CO2排出量計算表!$I$22*【出力】CO2排出量計算表!$J$22 -> 0 | AH114: =Q114/1000*【出力】CO2排出量計算表!$H$24*【出力】CO2排出量計算表!$I$24*【出力】CO2排出量計算表!$J$24 -> 0 | AI114: =R114/1000*【出力】CO2排出量計算表!$H$24*【出力】CO2排出量計算表!$I$24*【出力】CO2排出量計算表!$J$24 -> 0 | AJ114: =S114/1000*【出力】CO2排出量計算表!$H$24*【出力】CO2排出量計算表!$I$24*【出力】CO2排出量計算表!$J$24 -> 0 | AK114: =T114/1000*【出力】CO2排出量計算表!$H$24*【出力】CO2排出量計算表!$I$24*【出力】CO2排出量計算表!$J$24 -> 0 | AL114: =U114/1000*45*'【入力】CO2算出（電気・都市ガス）'!$X$37*44/12 -> 0 | AM114: =V114/1000*45*'【入力】CO2算出（電気・都市ガス）'!$X$37*44/12 -> 0 | AN114: =W114*【出力】CO2排出量計算表!$H$16*【出力】CO2排出量計算表!$I$16*【出力】CO2排出量計算表!$J$16/1000 -> 0 | AO114: =X114*【出力】CO2排出量計算表!$H$16*【出力】CO2排出量計算表!$I$16*【出力】CO2排出量計算表!$J$16/1000 -> 0 | AP114: =Y114*【出力】CO2排出量計算表!$H$18*【出力】CO2排出量計算表!$I$18*【出力】CO2排出量計算表!$J$18/1000 -> 0 | AQ114: =Z114*【出力】CO2排出量計算表!$H$18*【出力】CO2排出量計算表!$I$18*【出力】CO2排出量計算表!$J$18/1000 -> 0 | AR114: 129.7698402 | AS114: 128.7316794 | AT114: 1.0381608 | AU114: 熱電併給設備7,000～8,000 | AV114: 熱電併給設備 | AW114: 7,000～8,000 | AX114: 7,000 ～8,000 | AY114: 0 | AZ114: 0 | BA114: 0 | BB114: 0 | BC114: 0 | BD114: 製造業
A115: 宿泊業，飲食サービス業 | B115: =IFERROR(VLOOKUP(A115,【参照】選択リスト!$N$2:$O$22,2,FALSE),"") -> 宿泊業，飲食サービス業 | C115: 25,000～50,000 | D115: 48020484 | E115: 2120000 | F115: 空調・換気設備 | G115: 4056271 | H115: 3714755 | I115: 341516 | J115: =VLOOKUP(E115,【参照】選択リスト!$A$87:$B$108,2) -> 2,000～3,000 | K115: 159016 | L115: 149642 | AB115: 68.853928 | AC115: 64.794986 | AD115: =M115*(1/458)*【出力】CO2排出量計算表!$H$22*【出力】CO2排出量計算表!$I$22*【出力】CO2排出量計算表!$J$22 -> 0 | AE115: =N115*(1/458)*【出力】CO2排出量計算表!$H$22*【出力】CO2排出量計算表!$I$22*【出力】CO2排出量計算表!$J$22 -> 0 | AF115: =O115*(1/458)*【出力】CO2排出量計算表!$H$22*【出力】CO2排出量計算表!$I$22*【出力】CO2排出量計算表!$J$22 -> 0 | AG115: =P115*(1/458)*【出力】CO2排出量計算表!$H$22*【出力】CO2排出量計算表!$I$22*【出力】CO2排出量計算表!$J$22 -> 0 | AH115: =Q115/1000*【出力】CO2排出量計算表!$H$24*【出力】CO2排出量計算表!$I$24*【出力】CO2排出量計算表!$J$24 -> 0 | AI115: =R115/1000*【出力】CO2排出量計算表!$H$24*【出力】CO2排出量計算表!$I$24*【出力】CO2排出量計算表!$J$24 -> 0 | AJ115: =S115/1000*【出力】CO2排出量計算表!$H$24*【出力】CO2排出量計算表!$I$24*【出力】CO2排出量計算表!$J$24 -> 0 | AK115: =T115/1000*【出力】CO2排出量計算表!$H$24*【出力】CO2排出量計算表!$I$24*【出力】CO2排出量計算表!$J$24 -> 0 | AL115: =U115/1000*45*'【入力】CO2算出（電気・都市ガス）'!$X$37*44/12 -> 0 | AM115: =V115/1000*45*'【入力】CO2算出（電気・都市ガス）'!$X$37*44/12 -> 0 | AN115: =W115*【出力】CO2排出量計算表!$H$16*【出力】CO2排出量計算表!$I$16*【出力】CO2排出量計算表!$J$16/1000 -> 0 | AO115: =X115*【出力】CO2排出量計算表!$H$16*【出力】CO2排出量計算表!$I$16*【出力】CO2排出量計算表!$J$16/1000 -> 0 | AP115: =Y115*【出力】CO2排出量計算表!$H$18*【出力】CO2排出量計算表!$I$18*【出力】CO2排出量計算表!$J$18/1000 -> 0 | AQ115: =Z115*【出力】CO2排出量計算表!$H$18*【出力】CO2排出量計算表!$I$18*【出力】CO2排出量計算表!$J$18/1000 -> 0 | AR115: 68.853928 | AS115: 64.794986 | AT115: 4.058942 | AU115: 熱電併給設備8,000～9,000 | AV115: 熱電併給設備 | AW115: 8,000～9,000 | AX115: 8,000 ～9,000 | AY115: 0 | AZ115: 0 | BA115: 0 | BB115: 0 | BC115: 0 | BD115: 宿泊業
A116: 製造業 | B116: =IFERROR(VLOOKUP(A116,【参照】選択リスト!$N$2:$O$22,2,FALSE),"") -> 製造業 | C116: 100,000～250,000 | D116: 180768058 | E116: 1970000 | F116: 空調・換気設備 | G116: 58208 | H116: 51805 | I116: 6403 | J116: =VLOOKUP(E116,【参照】選択リスト!$A$87:$B$108,2) -> 1,000～2,000 | K116: 3200 | L116: 2848 | AB116: 1.3856 | AC116: 1.233184 | AD116: =M116*(1/458)*【出力】CO2排出量計算表!$H$22*【出力】CO2排出量計算表!$I$22*【出力】CO2排出量計算表!$J$22 -> 0 | AE116: =N116*(1/458)*【出力】CO2排出量計算表!$H$22*【出力】CO2排出量計算表!$I$22*【出力】CO2排出量計算表!$J$22 -> 0 | AF116: =O116*(1/458)*【出力】CO2排出量計算表!$H$22*【出力】CO2排出量計算表!$I$22*【出力】CO2排出量計算表!$J$22 -> 0 | AG116: =P116*(1/458)*【出力】CO2排出量計算表!$H$22*【出力】CO2排出量計算表!$I$22*【出力】CO2排出量計算表!$J$22 -> 0 | AH116: =Q116/1000*【出力】CO2排出量計算表!$H$24*【出力】CO2排出量計算表!$I$24*【出力】CO2排出量計算表!$J$24 -> 0 | AI116: =R116/1000*【出力】CO2排出量計算表!$H$24*【出力】CO2排出量計算表!$I$24*【出力】CO2排出量計算表!$J$24 -> 0 | AJ116: =S116/1000*【出力】CO2排出量計算表!$H$24*【出力】CO2排出量計算表!$I$24*【出力】CO2排出量計算表!$J$24 -> 0 | AK116: =T116/1000*【出力】CO2排出量計算表!$H$24*【出力】CO2排出量計算表!$I$24*【出力】CO2排出量計算表!$J$24 -> 0 | AL116: =U116/1000*45*'【入力】CO2算出（電気・都市ガス）'!$X$37*44/12 -> 0 | AM116: =V116/1000*45*'【入力】CO2算出（電気・都市ガス）'!$X$37*44/12 -> 0 | AN116: =W116*【出力】CO2排出量計算表!$H$16*【出力】CO2排出量計算表!$I$16*【出力】CO2排出量計算表!$J$16/1000 -> 0 | AO116: =X116*【出力】CO2排出量計算表!$H$16*【出力】CO2排出量計算表!$I$16*【出力】CO2排出量計算表!$J$16/1000 -> 0 | AP116: =Y116*【出力】CO2排出量計算表!$H$18*【出力】CO2排出量計算表!$I$18*【出力】CO2排出量計算表!$J$18/1000 -> 0 | AQ116: =Z116*【出力】CO2排出量計算表!$H$18*【出力】CO2排出量計算表!$I$18*【出力】CO2排出量計算表!$J$18/1000 -> 0 | AR116: 1.3856 | AS116: 1.233184 | AT116: 0.152416 | AU116: 熱電併給設備9,000～10,000 | AV116: 熱電併給設備 | AW116: 9,000～10,000 | AX116: 9,000 ～10,000 | AY116: 0 | AZ116: 0 | BA116: 0 | BB116: 0 | BC116: 0 | BD116: 製造業
A117: 製造業 | B117: =IFERROR(VLOOKUP(A117,【参照】選択リスト!$N$2:$O$22,2,FALSE),"") -> 製造業 | C117: 250,000～1,000,000 | D117: 556706199 | E117: 4545455 | F117: 発電設備 | G117: 3315867 | H117: 3015698 | I117: 300169 | J117: =VLOOKUP(E117,【参照】選択リスト!$A$87:$B$108,2) -> 4,000～5,000 | K117: 214621 | L117: 194796 | AB117: 92.930893 | AC117: 84.346668 | AD117: =M117*(1/458)*【出力】CO2排出量計算表!$H$22*【出力】CO2排出量計算表!$I$22*【出力】CO2排出量計算表!$J$22 -> 0 | AE117: =N117*(1/458)*【出力】CO2排出量計算表!$H$22*【出力】CO2排出量計算表!$I$22*【出力】CO2排出量計算表!$J$22 -> 0 | AF117: =O117*(1/458)*【出力】CO2排出量計算表!$H$22*【出力】CO2排出量計算表!$I$22*【出力】CO2排出量計算表!$J$22 -> 0 | AG117: =P117*(1/458)*【出力】CO2排出量計算表!$H$22*【出力】CO2排出量計算表!$I$22*【出力】CO2排出量計算表!$J$22 -> 0 | AH117: =Q117/1000*【出力】CO2排出量計算表!$H$24*【出力】CO2排出量計算表!$I$24*【出力】CO2排出量計算表!$J$24 -> 0 | AI117: =R117/1000*【出力】CO2排出量計算表!$H$24*【出力】CO2排出量計算表!$I$24*【出力】CO2排出量計算表!$J$24 -> 0 | AJ117: =S117/1000*【出力】CO2排出量計算表!$H$24*【出力】CO2排出量計算表!$I$24*【出力】CO2排出量計算表!$J$24 -> 0 | AK117: =T117/1000*【出力】CO2排出量計算表!$H$24*【出力】CO2排出量計算表!$I$24*【出力】CO2排出量計算表!$J$24 -> 0 | AL117: =U117/1000*45*'【入力】CO2算出（電気・都市ガス）'!$X$37*44/12 -> 0 | AM117: =V117/1000*45*'【入力】CO2算出（電気・都市ガス）'!$X$37*44/12 -> 0 | AN117: =W117*【出力】CO2排出量計算表!$H$16*【出力】CO2排出量計算表!$I$16*【出力】CO2排出量計算表!$J$16/1000 -> 0 | AO117: =X117*【出力】CO2排出量計算表!$H$16*【出力】CO2排出量計算表!$I$16*【出力】CO2排出量計算表!$J$16/1000 -> 0 | AP117: =Y117*【出力】CO2排出量計算表!$H$18*【出力】CO2排出量計算表!$I$18*【出力】CO2排出量計算表!$J$18/1000 -> 0 | AQ117: =Z117*【出力】CO2排出量計算表!$H$18*【出力】CO2排出量計算表!$I$18*【出力】CO2排出量計算表!$J$18/1000 -> 0 | AR117: 92.930893 | AS117: 84.346668 | AT117: 8.584225 | AU117: 熱電併給設備10,000～11,000 | AV117: 熱電併給設備 | AW117: 10,000～11,000 | AX117: 10,000 ～11,000 | AY117: 0 | AZ117: 0 | BA117: 0 | BB117: 0 | BC117: 0 | BD117: 製造業
A118: 卸売業，小売業 | B118: =IFERROR(VLOOKUP(A118,【参照】選択リスト!$N$2:$O$22,2,FALSE),"") -> 卸売業，小売業 | C118: 1,000～25,000 | D118: 14122056 | E118: 755000 | F118: 空調・換気設備 | G118: 93164 | H118: 22400 | I118: 70764 | J118: =VLOOKUP(E118,【参照】選択リスト!$A$87:$B$108,2) -> 1～1,000 | K118: 1042 | L118: 226 | AB118: 0.451186 | AC118: 0.097858 | AD118: =M118*(1/458)*【出力】CO2排出量計算表!$H$22*【出力】CO2排出量計算表!$I$22*【出力】CO2排出量計算表!$J$22 -> 0 | AE118: =N118*(1/458)*【出力】CO2排出量計算表!$H$22*【出力】CO2排出量計算表!$I$22*【出力】CO2排出量計算表!$J$22 -> 0 | AF118: =O118*(1/458)*【出力】CO2排出量計算表!$H$22*【出力】CO2排出量計算表!$I$22*【出力】CO2排出量計算表!$J$22 -> 0 | AG118: =P118*(1/458)*【出力】CO2排出量計算表!$H$22*【出力】CO2排出量計算表!$I$22*【出力】CO2排出量計算表!$J$22 -> 0 | AH118: =Q118/1000*【出力】CO2排出量計算表!$H$24*【出力】CO2排出量計算表!$I$24*【出力】CO2排出量計算表!$J$24 -> 0 | AI118: =R118/1000*【出力】CO2排出量計算表!$H$24*【出力】CO2排出量計算表!$I$24*【出力】CO2排出量計算表!$J$24 -> 0 | AJ118: =S118/1000*【出力】CO2排出量計算表!$H$24*【出力】CO2排出量計算表!$I$24*【出力】CO2排出量計算表!$J$24 -> 0 | AK118: =T118/1000*【出力】CO2排出量計算表!$H$24*【出力】CO2排出量計算表!$I$24*【出力】CO2排出量計算表!$J$24 -> 0 | AL118: =U118/1000*45*'【入力】CO2算出（電気・都市ガス）'!$X$37*44/12 -> 0 | AM118: =V118/1000*45*'【入力】CO2算出（電気・都市ガス）'!$X$37*44/12 -> 0 | AN118: =W118*【出力】CO2排出量計算表!$H$16*【出力】CO2排出量計算表!$I$16*【出力】CO2排出量計算表!$J$16/1000 -> 0 | AO118: =X118*【出力】CO2排出量計算表!$H$16*【出力】CO2排出量計算表!$I$16*【出力】CO2排出量計算表!$J$16/1000 -> 0 | AP118: =Y118*【出力】CO2排出量計算表!$H$18*【出力】CO2排出量計算表!$I$18*【出力】CO2排出量計算表!$J$18/1000 -> 0 | AQ118: =Z118*【出力】CO2排出量計算表!$H$18*【出力】CO2排出量計算表!$I$18*【出力】CO2排出量計算表!$J$18/1000 -> 0 | AR118: 0.451186 | AS118: 0.097858 | AT118: 0.353328 | AU118: 熱電併給設備11,000～12,000 | AV118: 熱電併給設備 | AW118: 11,000～12,000 | AX118: 11,000 ～12,000 | AY118: 0 | AZ118: 0 | BA118: 0 | BB118: 0 | BC118: 0 | BD118: 卸売業
A119: 宿泊業，飲食サービス業 | B119: =IFERROR(VLOOKUP(A119,【参照】選択リスト!$N$2:$O$22,2,FALSE),"") -> 宿泊業，飲食サービス業 | C119: 5,000～10,000 | D119: 6227979 | E119: 750000 | F119: 冷蔵・冷凍設備 | G119: 305238 | H119: 239346 | I119: 65892 | J119: =VLOOKUP(E119,【参照】選択リスト!$A$87:$B$108,2) -> 1～1,000 | K119: 9896 | L119: 7771 | AB119: 4.284968 | AC119: 3.364843 | AD119: =M119*(1/458)*【出力】CO2排出量計算表!$H$22*【出力】CO2排出量計算表!$I$22*【出力】CO2排出量計算表!$J$22 -> 0 | AE119: =N119*(1/458)*【出力】CO2排出量計算表!$H$22*【出力】CO2排出量計算表!$I$22*【出力】CO2排出量計算表!$J$22 -> 0 | AF119: =O119*(1/458)*【出力】CO2排出量計算表!$H$22*【出力】CO2排出量計算表!$I$22*【出力】CO2排出量計算表!$J$22 -> 0 | AG119: =P119*(1/458)*【出力】CO2排出量計算表!$H$22*【出力】CO2排出量計算表!$I$22*【出力】CO2排出量計算表!$J$22 -> 0 | AH119: =Q119/1000*【出力】CO2排出量計算表!$H$24*【出力】CO2排出量計算表!$I$24*【出力】CO2排出量計算表!$J$24 -> 0 | AI119: =R119/1000*【出力】CO2排出量計算表!$H$24*【出力】CO2排出量計算表!$I$24*【出力】CO2排出量計算表!$J$24 -> 0 | AJ119: =S119/1000*【出力】CO2排出量計算表!$H$24*【出力】CO2排出量計算表!$I$24*【出力】CO2排出量計算表!$J$24 -> 0 | AK119: =T119/1000*【出力】CO2排出量計算表!$H$24*【出力】CO2排出量計算表!$I$24*【出力】CO2排出量計算表!$J$24 -> 0 | AL119: =U119/1000*45*'【入力】CO2算出（電気・都市ガス）'!$X$37*44/12 -> 0 | AM119: =V119/1000*45*'【入力】CO2算出（電気・都市ガス）'!$X$37*44/12 -> 0 | AN119: =W119*【出力】CO2排出量計算表!$H$16*【出力】CO2排出量計算表!$I$16*【出力】CO2排出量計算表!$J$16/1000 -> 0 | AO119: =X119*【出力】CO2排出量計算表!$H$16*【出力】CO2排出量計算表!$I$16*【出力】CO2排出量計算表!$J$16/1000 -> 0 | AP119: =Y119*【出力】CO2排出量計算表!$H$18*【出力】CO2排出量計算表!$I$18*【出力】CO2排出量計算表!$J$18/1000 -> 0 | AQ119: =Z119*【出力】CO2排出量計算表!$H$18*【出力】CO2排出量計算表!$I$18*【出力】CO2排出量計算表!$J$18/1000 -> 0 | AR119: 4.284968 | AS119: 3.364843 | AT119: 0.920125 | AU119: 熱電併給設備12,000～13,000 | AV119: 熱電併給設備 | AW119: 12,000～13,000 | AX119: 12,000 ～13,000 | AY119: 0 | AZ119: 0 | BA119: 0 | BB119: 0 | BC119: 0 | BD119: 宿泊業
A120: 宿泊業，飲食サービス業 | B120: =IFERROR(VLOOKUP(A120,【参照】選択リスト!$N$2:$O$22,2,FALSE),"") -> 宿泊業，飲食サービス業 | C120: 10,000～25,000 | D120: 18069191 | E120: 796000 | F120: 冷蔵・冷凍設備 | G120: 52183 | H120: 39576 | I120: 12607 | J120: =VLOOKUP(E120,【参照】選択リスト!$A$87:$B$108,2) -> 1～1,000 | K120: 2269 | L120: 1721 | AB120: 0.982477 | AC120: 0.745193 | AD120: =M120*(1/458)*【出力】CO2排出量計算表!$H$22*【出力】CO2排出量計算表!$I$22*【出力】CO2排出量計算表!$J$22 -> 0 | AE120: =N120*(1/458)*【出力】CO2排出量計算表!$H$22*【出力】CO2排出量計算表!$I$22*【出力】CO2排出量計算表!$J$22 -> 0 | AF120: =O120*(1/458)*【出力】CO2排出量計算表!$H$22*【出力】CO2排出量計算表!$I$22*【出力】CO2排出量計算表!$J$22 -> 0 | AG120: =P120*(1/458)*【出力】CO2排出量計算表!$H$22*【出力】CO2排出量計算表!$I$22*【出力】CO2排出量計算表!$J$22 -> 0 | AH120: =Q120/1000*【出力】CO2排出量計算表!$H$24*【出力】CO2排出量計算表!$I$24*【出力】CO2排出量計算表!$J$24 -> 0 | AI120: =R120/1000*【出力】CO2排出量計算表!$H$24*【出力】CO2排出量計算表!$I$24*【出力】CO2排出量計算表!$J$24 -> 0 | AJ120: =S120/1000*【出力】CO2排出量計算表!$H$24*【出力】CO2排出量計算表!$I$24*【出力】CO2排出量計算表!$J$24 -> 0 | AK120: =T120/1000*【出力】CO2排出量計算表!$H$24*【出力】CO2排出量計算表!$I$24*【出力】CO2排出量計算表!$J$24 -> 0 | AL120: =U120/1000*45*'【入力】CO2算出（電気・都市ガス）'!$X$37*44/12 -> 0 | AM120: =V120/1000*45*'【入力】CO2算出（電気・都市ガス）'!$X$37*44/12 -> 0 | AN120: =W120*【出力】CO2排出量計算表!$H$16*【出力】CO2排出量計算表!$I$16*【出力】CO2排出量計算表!$J$16/1000 -> 0 | AO120: =X120*【出力】CO2排出量計算表!$H$16*【出力】CO2排出量計算表!$I$16*【出力】CO2排出量計算表!$J$16/1000 -> 0 | AP120: =Y120*【出力】CO2排出量計算表!$H$18*【出力】CO2排出量計算表!$I$18*【出力】CO2排出量計算表!$J$18/1000 -> 0 | AQ120: =Z120*【出力】CO2排出量計算表!$H$18*【出力】CO2排出量計算表!$I$18*【出力】CO2排出量計算表!$J$18/1000 -> 0 | AR120: 0.982477 | AS120: 0.745193 | AT120: 0.237284 | AU120: 熱電併給設備13,000～14,000 | AV120: 熱電併給設備 | AW120: 13,000～14,000 | AX120: 13,000 ～14,000 | AY120: 0 | AZ120: 0 | BA120: 0 | BB120: 0 | BC120: 0 | BD120: 宿泊業
A121: 宿泊業，飲食サービス業 | B121: =IFERROR(VLOOKUP(A121,【参照】選択リスト!$N$2:$O$22,2,FALSE),"") -> 宿泊業，飲食サービス業 | C121: 5,000～10,000 | D121: 5621900 | E121: 1710000 | F121: 空調・換気設備 | G121: 849189 | H121: 688151 | I121: 161038 | J121: =VLOOKUP(E121,【参照】選択リスト!$A$87:$B$108,2) -> 1,000～2,000 | K121: 17776 | L121: 14220 | W121: 2900 | X121: 2400 | AB121: 7.697008 | AC121: 6.15726 | AD121: =M121*(1/458)*【出力】CO2排出量計算表!$H$22*【出力】CO2排出量計算表!$I$22*【出力】CO2排出量計算表!$J$22 -> 0 | AE121: =N121*(1/458)*【出力】CO2排出量計算表!$H$22*【出力】CO2排出量計算表!$I$22*【出力】CO2排出量計算表!$J$22 -> 0 | AF121: =O121*(1/458)*【出力】CO2排出量計算表!$H$22*【出力】CO2排出量計算表!$I$22*【出力】CO2排出量計算表!$J$22 -> 0 | AG121: =P121*(1/458)*【出力】CO2排出量計算表!$H$22*【出力】CO2排出量計算表!$I$22*【出力】CO2排出量計算表!$J$22 -> 0 | AH121: =Q121/1000*【出力】CO2排出量計算表!$H$24*【出力】CO2排出量計算表!$I$24*【出力】CO2排出量計算表!$J$24 -> 0 | AI121: =R121/1000*【出力】CO2排出量計算表!$H$24*【出力】CO2排出量計算表!$I$24*【出力】CO2排出量計算表!$J$24 -> 0 | AJ121: =S121/1000*【出力】CO2排出量計算表!$H$24*【出力】CO2排出量計算表!$I$24*【出力】CO2排出量計算表!$J$24 -> 0 | AK121: =T121/1000*【出力】CO2排出量計算表!$H$24*【出力】CO2排出量計算表!$I$24*【出力】CO2排出量計算表!$J$24 -> 0 | AL121: =U121/1000*45*'【入力】CO2算出（電気・都市ガス）'!$X$37*44/12 -> 0 | AM121: =V121/1000*45*'【入力】CO2算出（電気・都市ガス）'!$X$37*44/12 -> 0 | AN121: =W121*【出力】CO2排出量計算表!$H$16*【出力】CO2排出量計算表!$I$16*【出力】CO2排出量計算表!$J$16/1000 -> 7.219501667 | AO121: =X121*【出力】CO2排出量計算表!$H$16*【出力】CO2排出量計算表!$I$16*【出力】CO2排出量計算表!$J$16/1000 -> 5.97476 | AP121: =Y121*【出力】CO2排出量計算表!$H$18*【出力】CO2排出量計算表!$I$18*【出力】CO2排出量計算表!$J$18/1000 -> 0 | AQ121: =Z121*【出力】CO2排出量計算表!$H$18*【出力】CO2排出量計算表!$I$18*【出力】CO2排出量計算表!$J$18/1000 -> 0 | AR121: 14.91650967 | AS121: 12.13202 | AT121: 2.784489667 | AU121: 熱電併給設備14,000～15,000 | AV121: 熱電併給設備 | AW121: 14,000～15,000 | AX121: 14,000 ～15,000 | AY121: 0 | AZ121: 0 | BA121: 0 | BB121: 0 | BC121: 0 | BD121: 宿泊業
A122: 宿泊業，飲食サービス業 | B122: =IFERROR(VLOOKUP(A122,【参照】選択リスト!$N$2:$O$22,2,FALSE),"") -> 宿泊業，飲食サービス業 | C122: 10,000～25,000 | D122: 13933804 | E122: 2080000 | F122: 建物付属設備 | G122: 822780 | H122: 792000 | I122: 30780 | J122: =VLOOKUP(E122,【参照】選択リスト!$A$87:$B$108,2) -> 2,000～3,000 | W122: 6800 | X122: 6600 | AB122: 0 | AC122: 0 | AD122: =M122*(1/458)*【出力】CO2排出量計算表!$H$22*【出力】CO2排出量計算表!$I$22*【出力】CO2排出量計算表!$J$22 -> 0 | AE122: =N122*(1/458)*【出力】CO2排出量計算表!$H$22*【出力】CO2排出量計算表!$I$22*【出力】CO2排出量計算表!$J$22 -> 0 | AF122: =O122*(1/458)*【出力】CO2排出量計算表!$H$22*【出力】CO2排出量計算表!$I$22*【出力】CO2排出量計算表!$J$22 -> 0 | AG122: =P122*(1/458)*【出力】CO2排出量計算表!$H$22*【出力】CO2排出量計算表!$I$22*【出力】CO2排出量計算表!$J$22 -> 0 | AH122: =Q122/1000*【出力】CO2排出量計算表!$H$24*【出力】CO2排出量計算表!$I$24*【出力】CO2排出量計算表!$J$24 -> 0 | AI122: =R122/1000*【出力】CO2排出量計算表!$H$24*【出力】CO2排出量計算表!$I$24*【出力】CO2排出量計算表!$J$24 -> 0 | AJ122: =S122/1000*【出力】CO2排出量計算表!$H$24*【出力】CO2排出量計算表!$I$24*【出力】CO2排出量計算表!$J$24 -> 0 | AK122: =T122/1000*【出力】CO2排出量計算表!$H$24*【出力】CO2排出量計算表!$I$24*【出力】CO2排出量計算表!$J$24 -> 0 | AL122: =U122/1000*45*'【入力】CO2算出（電気・都市ガス）'!$X$37*44/12 -> 0 | AM122: =V122/1000*45*'【入力】CO2算出（電気・都市ガス）'!$X$37*44/12 -> 0 | AN122: =W122*【出力】CO2排出量計算表!$H$16*【出力】CO2排出量計算表!$I$16*【出力】CO2排出量計算表!$J$16/1000 -> 16.92848667 | AO122: =X122*【出力】CO2排出量計算表!$H$16*【出力】CO2排出量計算表!$I$16*【出力】CO2排出量計算表!$J$16/1000 -> 16.43059 | AP122: =Y122*【出力】CO2排出量計算表!$H$18*【出力】CO2排出量計算表!$I$18*【出力】CO2排出量計算表!$J$18/1000 -> 0 | AQ122: =Z122*【出力】CO2排出量計算表!$H$18*【出力】CO2排出量計算表!$I$18*【出力】CO2排出量計算表!$J$18/1000 -> 0 | AR122: 16.92848667 | AS122: 16.43059 | AT122: 0.4978966667 | AU122: 熱電併給設備15,000～16,000 | AV122: 熱電併給設備 | AW122: 15,000～16,000 | AX122: 15,000 ～16,000 | AY122: 0 | AZ122: 0 | BA122: 0 | BB122: 0 | BC122: 0 | BD122: 宿泊業
A123: 生活関連サービス業，娯楽業 | B123: =IFERROR(VLOOKUP(A123,【参照】選択リスト!$N$2:$O$22,2,FALSE),"") -> サービス業，その他 | C123: 50,000～100,000 | D123: 86206660 | E123: 2256000 | F123: 照明設備 | G123: 548108 | H123: 316648 | I123: 231460 | J123: =VLOOKUP(E123,【参照】選択リスト!$A$87:$B$108,2) -> 2,000～3,000 | K123: 17790 | L123: 10075 | AB123: 7.70307 | AC123: 4.362475 | AD123: =M123*(1/458)*【出力】CO2排出量計算表!$H$22*【出力】CO2排出量計算表!$I$22*【出力】CO2排出量計算表!$J$22 -> 0 | AE123: =N123*(1/458)*【出力】CO2排出量計算表!$H$22*【出力】CO2排出量計算表!$I$22*【出力】CO2排出量計算表!$J$22 -> 0 | AF123: =O123*(1/458)*【出力】CO2排出量計算表!$H$22*【出力】CO2排出量計算表!$I$22*【出力】CO2排出量計算表!$J$22 -> 0 | AG123: =P123*(1/458)*【出力】CO2排出量計算表!$H$22*【出力】CO2排出量計算表!$I$22*【出力】CO2排出量計算表!$J$22 -> 0 | AH123: =Q123/1000*【出力】CO2排出量計算表!$H$24*【出力】CO2排出量計算表!$I$24*【出力】CO2排出量計算表!$J$24 -> 0 | AI123: =R123/1000*【出力】CO2排出量計算表!$H$24*【出力】CO2排出量計算表!$I$24*【出力】CO2排出量計算表!$J$24 -> 0 | AJ123: =S123/1000*【出力】CO2排出量計算表!$H$24*【出力】CO2排出量計算表!$I$24*【出力】CO2排出量計算表!$J$24 -> 0 | AK123: =T123/1000*【出力】CO2排出量計算表!$H$24*【出力】CO2排出量計算表!$I$24*【出力】CO2排出量計算表!$J$24 -> 0 | AL123: =U123/1000*45*'【入力】CO2算出（電気・都市ガス）'!$X$37*44/12 -> 0 | AM123: =V123/1000*45*'【入力】CO2算出（電気・都市ガス）'!$X$37*44/12 -> 0 | AN123: =W123*【出力】CO2排出量計算表!$H$16*【出力】CO2排出量計算表!$I$16*【出力】CO2排出量計算表!$J$16/1000 -> 0 | AO123: =X123*【出力】CO2排出量計算表!$H$16*【出力】CO2排出量計算表!$I$16*【出力】CO2排出量計算表!$J$16/1000 -> 0 | AP123: =Y123*【出力】CO2排出量計算表!$H$18*【出力】CO2排出量計算表!$I$18*【出力】CO2排出量計算表!$J$18/1000 -> 0 | AQ123: =Z123*【出力】CO2排出量計算表!$H$18*【出力】CO2排出量計算表!$I$18*【出力】CO2排出量計算表!$J$18/1000 -> 0 | AR123: 7.70307 | AS123: 4.362475 | AT123: 3.340595 | AU123: =AV123&AW123 -> 熱電併給設備16,000～17,000 | AV123: 熱電併給設備 | AW123: 16,000～17,000 | AX123: 16,000 ～17,000 | AY123: 0 | AZ123: 0 | BA123: 0 | BB123: 0 | BC123: 0 | BD123: サービス業
A124: 製造業 | B124: =IFERROR(VLOOKUP(A124,【参照】選択リスト!$N$2:$O$22,2,FALSE),"") -> 製造業 | C124: 100,000～250,000 | D124: 105987966 | E124: 1439570 | F124: 照明設備 | G124: 166905 | H124: 49073 | I124: 117832 | J124: =VLOOKUP(E124,【参照】選択リスト!$A$87:$B$108,2) -> 1,000～2,000 | K124: 9818 | L124: 2887 | AB124: 4.251194 | AC124: 1.250071 | AD124: =M124*(1/458)*【出力】CO2排出量計算表!$H$22*【出力】CO2排出量計算表!$I$22*【出力】CO2排出量計算表!$J$22 -> 0 | AE124: =N124*(1/458)*【出力】CO2排出量計算表!$H$22*【出力】CO2排出量計算表!$I$22*【出力】CO2排出量計算表!$J$22 -> 0 | AF124: =O124*(1/458)*【出力】CO2排出量計算表!$H$22*【出力】CO2排出量計算表!$I$22*【出力】CO2排出量計算表!$J$22 -> 0 | AG124: =P124*(1/458)*【出力】CO2排出量計算表!$H$22*【出力】CO2排出量計算表!$I$22*【出力】CO2排出量計算表!$J$22 -> 0 | AH124: =Q124/1000*【出力】CO2排出量計算表!$H$24*【出力】CO2排出量計算表!$I$24*【出力】CO2排出量計算表!$J$24 -> 0 | AI124: =R124/1000*【出力】CO2排出量計算表!$H$24*【出力】CO2排出量計算表!$I$24*【出力】CO2排出量計算表!$J$24 -> 0 | AJ124: =S124/1000*【出力】CO2排出量計算表!$H$24*【出力】CO2排出量計算表!$I$24*【出力】CO2排出量計算表!$J$24 -> 0 | AK124: =T124/1000*【出力】CO2排出量計算表!$H$24*【出力】CO2排出量計算表!$I$24*【出力】CO2排出量計算表!$J$24 -> 0 | AL124: =U124/1000*45*'【入力】CO2算出（電気・都市ガス）'!$X$37*44/12 -> 0 | AM124: =V124/1000*45*'【入力】CO2算出（電気・都市ガス）'!$X$37*44/12 -> 0 | AN124: =W124*【出力】CO2排出量計算表!$H$16*【出力】CO2排出量計算表!$I$16*【出力】CO2排出量計算表!$J$16/1000 -> 0 | AO124: =X124*【出力】CO2排出量計算表!$H$16*【出力】CO2排出量計算表!$I$16*【出力】CO2排出量計算表!$J$16/1000 -> 0 | AP124: =Y124*【出力】CO2排出量計算表!$H$18*【出力】CO2排出量計算表!$I$18*【出力】CO2排出量計算表!$J$18/1000 -> 0 | AQ124: =Z124*【出力】CO2排出量計算表!$H$18*【出力】CO2排出量計算表!$I$18*【出力】CO2排出量計算表!$J$18/1000 -> 0 | AR124: 4.251194 | AS124: 1.250071 | AT124: 3.001123 | AU124: =AV124&AW124 -> 熱電併給設備17,000～18,000 | AV124: 熱電併給設備 | AW124: 17,000～18,000 | AX124: 17,000 ～18,000 | AY124: 0 | AZ124: 0 | BA124: 0 | BB124: 0 | BC124: 0 | BD124: 製造業
A125: 製造業 | B125: =IFERROR(VLOOKUP(A125,【参照】選択リスト!$N$2:$O$22,2,FALSE),"") -> 製造業 | C125: 25,000～50,000 | D125: 47875319 | E125: 11800000 | F125: 生産設備 | G125: 1732002 | H125: 1641030 | I125: 90972 | J125: =VLOOKUP(E125,【参照】選択リスト!$A$87:$B$108,2) -> 11,000～12,000 | K125: 90092 | L125: 86370 | AB125: 39.009836 | AC125: 37.39821 | AD125: =M125*(1/458)*【出力】CO2排出量計算表!$H$22*【出力】CO2排出量計算表!$I$22*【出力】CO2排出量計算表!$J$22 -> 0 | AE125: =N125*(1/458)*【出力】CO2排出量計算表!$H$22*【出力】CO2排出量計算表!$I$22*【出力】CO2排出量計算表!$J$22 -> 0 | AF125: =O125*(1/458)*【出力】CO2排出量計算表!$H$22*【出力】CO2排出量計算表!$I$22*【出力】CO2排出量計算表!$J$22 -> 0 | AG125: =P125*(1/458)*【出力】CO2排出量計算表!$H$22*【出力】CO2排出量計算表!$I$22*【出力】CO2排出量計算表!$J$22 -> 0 | AH125: =Q125/1000*【出力】CO2排出量計算表!$H$24*【出力】CO2排出量計算表!$I$24*【出力】CO2排出量計算表!$J$24 -> 0 | AI125: =R125/1000*【出力】CO2排出量計算表!$H$24*【出力】CO2排出量計算表!$I$24*【出力】CO2排出量計算表!$J$24 -> 0 | AJ125: =S125/1000*【出力】CO2排出量計算表!$H$24*【出力】CO2排出量計算表!$I$24*【出力】CO2排出量計算表!$J$24 -> 0 | AK125: =T125/1000*【出力】CO2排出量計算表!$H$24*【出力】CO2排出量計算表!$I$24*【出力】CO2排出量計算表!$J$24 -> 0 | AL125: =U125/1000*45*'【入力】CO2算出（電気・都市ガス）'!$X$37*44/12 -> 0 | AM125: =V125/1000*45*'【入力】CO2算出（電気・都市ガス）'!$X$37*44/12 -> 0 | AN125: =W125*【出力】CO2排出量計算表!$H$16*【出力】CO2排出量計算表!$I$16*【出力】CO2排出量計算表!$J$16/1000 -> 0 | AO125: =X125*【出力】CO2排出量計算表!$H$16*【出力】CO2排出量計算表!$I$16*【出力】CO2排出量計算表!$J$16/1000 -> 0 | AP125: =Y125*【出力】CO2排出量計算表!$H$18*【出力】CO2排出量計算表!$I$18*【出力】CO2排出量計算表!$J$18/1000 -> 0 | AQ125: =Z125*【出力】CO2排出量計算表!$H$18*【出力】CO2排出量計算表!$I$18*【出力】CO2排出量計算表!$J$18/1000 -> 0 | AR125: 39.009836 | AS125: 37.39821 | AT125: 1.611626 | AU125: =AV125&AW125 -> 熱電併給設備18,000～19,000 | AV125: 熱電併給設備 | AW125: 18,000～19,000 | AX125: 18,000 ～19,000 | AY125: 0 | AZ125: 0 | BA125: 0 | BB125: 0 | BC125: 0 | BD125: 製造業
A126: 宿泊業，飲食サービス業 | B126: =IFERROR(VLOOKUP(A126,【参照】選択リスト!$N$2:$O$22,2,FALSE),"") -> 宿泊業，飲食サービス業 | C126: 100,000～250,000 | D126: 180971677 | E126: 10748450 | F126: 恒温設備 | G126: 5302198 | H126: 4705943 | I126: 596255 | J126: =VLOOKUP(E126,【参照】選択リスト!$A$87:$B$108,2) -> 10,000～11,000 | N126: 18372 | W126: 53000 | AB126: 0 | AC126: 0 | AD126: =M126*(1/458)*【出力】CO2排出量計算表!$H$22*【出力】CO2排出量計算表!$I$22*【出力】CO2排出量計算表!$J$22 -> 0 | AE126: =N126*(1/458)*【出力】CO2排出量計算表!$H$22*【出力】CO2排出量計算表!$I$22*【出力】CO2排出量計算表!$J$22 -> 120.296219 | AF126: =O126*(1/458)*【出力】CO2排出量計算表!$H$22*【出力】CO2排出量計算表!$I$22*【出力】CO2排出量計算表!$J$22 -> 0 | AG126: =P126*(1/458)*【出力】CO2排出量計算表!$H$22*【出力】CO2排出量計算表!$I$22*【出力】CO2排出量計算表!$J$22 -> 0 | AH126: =Q126/1000*【出力】CO2排出量計算表!$H$24*【出力】CO2排出量計算表!$I$24*【出力】CO2排出量計算表!$J$24 -> 0 | AI126: =R126/1000*【出力】CO2排出量計算表!$H$24*【出力】CO2排出量計算表!$I$24*【出力】CO2排出量計算表!$J$24 -> 0 | AJ126: =S126/1000*【出力】CO2排出量計算表!$H$24*【出力】CO2排出量計算表!$I$24*【出力】CO2排出量計算表!$J$24 -> 0 | AK126: =T126/1000*【出力】CO2排出量計算表!$H$24*【出力】CO2排出量計算表!$I$24*【出力】CO2排出量計算表!$J$24 -> 0 | AL126: =U126/1000*45*'【入力】CO2算出（電気・都市ガス）'!$X$37*44/12 -> 0 | AM126: =V126/1000*45*'【入力】CO2算出（電気・都市ガス）'!$X$37*44/12 -> 0 | AN126: =W126*【出力】CO2排出量計算表!$H$16*【出力】CO2排出量計算表!$I$16*【出力】CO2排出量計算表!$J$16/1000 -> 131.9426167 | AO126: =X126*【出力】CO2排出量計算表!$H$16*【出力】CO2排出量計算表!$I$16*【出力】CO2排出量計算表!$J$16/1000 -> 0 | AP126: =Y126*【出力】CO2排出量計算表!$H$18*【出力】CO2排出量計算表!$I$18*【出力】CO2排出量計算表!$J$18/1000 -> 0 | AQ126: =Z126*【出力】CO2排出量計算表!$H$18*【出力】CO2排出量計算表!$I$18*【出力】CO2排出量計算表!$J$18/1000 -> 0 | AR126: 131.9426167 | AS126: 120.296219 | AT126: 11.64639763 | AU126: =AV126&AW126 -> 熱電併給設備19,000～20,000 | AV126: 熱電併給設備 | AW126: 19,000～20,000 | AX126: 19,000 ～20,000 | AY126: 0 | AZ126: 0 | BA126: 0 | BB126: 0 | BC126: 0 | BD126: 宿泊業
A127: 宿泊業，飲食サービス業 | B127: =IFERROR(VLOOKUP(A127,【参照】選択リスト!$N$2:$O$22,2,FALSE),"") -> 宿泊業，飲食サービス業 | C127: 10,000～25,000 | D127: 21190550 | E127: 753000 | F127: 空調・換気設備 | G127: 140349 | H127: 93316 | I127: 47033 | J127: =VLOOKUP(E127,【参照】選択リスト!$A$87:$B$108,2) -> 1～1,000 | K127: 8251 | L127: 5486 | AB127: 3.572683 | AC127: 2.375438 | AD127: =M127*(1/458)*【出力】CO2排出量計算表!$H$22*【出力】CO2排出量計算表!$I$22*【出力】CO2排出量計算表!$J$22 -> 0 | AE127: =N127*(1/458)*【出力】CO2排出量計算表!$H$22*【出力】CO2排出量計算表!$I$22*【出力】CO2排出量計算表!$J$22 -> 0 | AF127: =O127*(1/458)*【出力】CO2排出量計算表!$H$22*【出力】CO2排出量計算表!$I$22*【出力】CO2排出量計算表!$J$22 -> 0 | AG127: =P127*(1/458)*【出力】CO2排出量計算表!$H$22*【出力】CO2排出量計算表!$I$22*【出力】CO2排出量計算表!$J$22 -> 0 | AH127: =Q127/1000*【出力】CO2排出量計算表!$H$24*【出力】CO2排出量計算表!$I$24*【出力】CO2排出量計算表!$J$24 -> 0 | AI127: =R127/1000*【出力】CO2排出量計算表!$H$24*【出力】CO2排出量計算表!$I$24*【出力】CO2排出量計算表!$J$24 -> 0 | AJ127: =S127/1000*【出力】CO2排出量計算表!$H$24*【出力】CO2排出量計算表!$I$24*【出力】CO2排出量計算表!$J$24 -> 0 | AK127: =T127/1000*【出力】CO2排出量計算表!$H$24*【出力】CO2排出量計算表!$I$24*【出力】CO2排出量計算表!$J$24 -> 0 | AL127: =U127/1000*45*'【入力】CO2算出（電気・都市ガス）'!$X$37*44/12 -> 0 | AM127: =V127/1000*45*'【入力】CO2算出（電気・都市ガス）'!$X$37*44/12 -> 0 | AN127: =W127*【出力】CO2排出量計算表!$H$16*【出力】CO2排出量計算表!$I$16*【出力】CO2排出量計算表!$J$16/1000 -> 0 | AO127: =X127*【出力】CO2排出量計算表!$H$16*【出力】CO2排出量計算表!$I$16*【出力】CO2排出量計算表!$J$16/1000 -> 0 | AP127: =Y127*【出力】CO2排出量計算表!$H$18*【出力】CO2排出量計算表!$I$18*【出力】CO2排出量計算表!$J$18/1000 -> 0 | AQ127: =Z127*【出力】CO2排出量計算表!$H$18*【出力】CO2排出量計算表!$I$18*【出力】CO2排出量計算表!$J$18/1000 -> 0 | AR127: 3.572683 | AS127: 2.375438 | AT127: 1.197245 | AU127: =AV127&AW127 -> 熱電併給設備20,000～ | AV127: 熱電併給設備 | AW127: 20,000～ | AX127: 20,000～ | AY127: 0 | AZ127: 0 | BA127: 0 | BB127: 0 | BC127: 0 | BD127: 宿泊業
A128: 分類不能の産業 | B128: =IFERROR(VLOOKUP(A128,【参照】選択リスト!$N$2:$O$22,2,FALSE),"") -> サービス業，その他 | C128: 25,000～50,000 | D128: 40848168 | E128: 1489300 | F128: 空調・換気設備 | G128: 167700 | H128: 86800 | I128: 80900 | J128: =VLOOKUP(E128,【参照】選択リスト!$A$87:$B$108,2) -> 1,000～2,000 | K128: 5472 | L128: 2265 | AB128: 2.369376 | AC128: 0.980745 | AD128: =M128*(1/458)*【出力】CO2排出量計算表!$H$22*【出力】CO2排出量計算表!$I$22*【出力】CO2排出量計算表!$J$22 -> 0 | AE128: =N128*(1/458)*【出力】CO2排出量計算表!$H$22*【出力】CO2排出量計算表!$I$22*【出力】CO2排出量計算表!$J$22 -> 0 | AF128: =O128*(1/458)*【出力】CO2排出量計算表!$H$22*【出力】CO2排出量計算表!$I$22*【出力】CO2排出量計算表!$J$22 -> 0 | AG128: =P128*(1/458)*【出力】CO2排出量計算表!$H$22*【出力】CO2排出量計算表!$I$22*【出力】CO2排出量計算表!$J$22 -> 0 | AH128: =Q128/1000*【出力】CO2排出量計算表!$H$24*【出力】CO2排出量計算表!$I$24*【出力】CO2排出量計算表!$J$24 -> 0 | AI128: =R128/1000*【出力】CO2排出量計算表!$H$24*【出力】CO2排出量計算表!$I$24*【出力】CO2排出量計算表!$J$24 -> 0 | AJ128: =S128/1000*【出力】CO2排出量計算表!$H$24*【出力】CO2排出量計算表!$I$24*【出力】CO2排出量計算表!$J$24 -> 0 | AK128: =T128/1000*【出力】CO2排出量計算表!$H$24*【出力】CO2排出量計算表!$I$24*【出力】CO2排出量計算表!$J$24 -> 0 | AL128: =U128/1000*45*'【入力】CO2算出（電気・都市ガス）'!$X$37*44/12 -> 0 | AM128: =V128/1000*45*'【入力】CO2算出（電気・都市ガス）'!$X$37*44/12 -> 0 | AN128: =W128*【出力】CO2排出量計算表!$H$16*【出力】CO2排出量計算表!$I$16*【出力】CO2排出量計算表!$J$16/1000 -> 0 | AO128: =X128*【出力】CO2排出量計算表!$H$16*【出力】CO2排出量計算表!$I$16*【出力】CO2排出量計算表!$J$16/1000 -> 0 | AP128: =Y128*【出力】CO2排出量計算表!$H$18*【出力】CO2排出量計算表!$I$18*【出力】CO2排出量計算表!$J$18/1000 -> 0 | AQ128: =Z128*【出力】CO2排出量計算表!$H$18*【出力】CO2排出量計算表!$I$18*【出力】CO2排出量計算表!$J$18/1000 -> 0 | AR128: 2.369376 | AS128: 0.980745 | AT128: 1.388631 | AU128: =AV128&AW128 -> 電気制御設備1～1,000 | AV128: 電気制御設備 | AW128: 1～1,000 | AX128: 1 ～1,000 | AY128: 0 | AZ128: 0 | BA128: 0 | BB128: 0 | BC128: 0 | BD128: サービス業
A129: 製造業 | B129: =IFERROR(VLOOKUP(A129,【参照】選択リスト!$N$2:$O$22,2,FALSE),"") -> 製造業 | C129: 100,000～250,000 | D129: 104291743 | E129: 2268900 | F129: 照明設備 | G129: 118069 | H129: 88551 | I129: 29518 | J129: =VLOOKUP(E129,【参照】選択リスト!$A$87:$B$108,2) -> 2,000～3,000 | K129: 5928 | L129: 4446 | AB129: 2.566824 | AC129: 1.925118 | AD129: =M129*(1/458)*【出力】CO2排出量計算表!$H$22*【出力】CO2排出量計算表!$I$22*【出力】CO2排出量計算表!$J$22 -> 0 | AE129: =N129*(1/458)*【出力】CO2排出量計算表!$H$22*【出力】CO2排出量計算表!$I$22*【出力】CO2排出量計算表!$J$22 -> 0 | AF129: =O129*(1/458)*【出力】CO2排出量計算表!$H$22*【出力】CO2排出量計算表!$I$22*【出力】CO2排出量計算表!$J$22 -> 0 | AG129: =P129*(1/458)*【出力】CO2排出量計算表!$H$22*【出力】CO2排出量計算表!$I$22*【出力】CO2排出量計算表!$J$22 -> 0 | AH129: =Q129/1000*【出力】CO2排出量計算表!$H$24*【出力】CO2排出量計算表!$I$24*【出力】CO2排出量計算表!$J$24 -> 0 | AI129: =R129/1000*【出力】CO2排出量計算表!$H$24*【出力】CO2排出量計算表!$I$24*【出力】CO2排出量計算表!$J$24 -> 0 | AJ129: =S129/1000*【出力】CO2排出量計算表!$H$24*【出力】CO2排出量計算表!$I$24*【出力】CO2排出量計算表!$J$24 -> 0 | AK129: =T129/1000*【出力】CO2排出量計算表!$H$24*【出力】CO2排出量計算表!$I$24*【出力】CO2排出量計算表!$J$24 -> 0 | AL129: =U129/1000*45*'【入力】CO2算出（電気・都市ガス）'!$X$37*44/12 -> 0 | AM129: =V129/1000*45*'【入力】CO2算出（電気・都市ガス）'!$X$37*44/12 -> 0 | AN129: =W129*【出力】CO2排出量計算表!$H$16*【出力】CO2排出量計算表!$I$16*【出力】CO2排出量計算表!$J$16/1000 -> 0 | AO129: =X129*【出力】CO2排出量計算表!$H$16*【出力】CO2排出量計算表!$I$16*【出力】CO2排出量計算表!$J$16/1000 -> 0 | AP129: =Y129*【出力】CO2排出量計算表!$H$18*【出力】CO2排出量計算表!$I$18*【出力】CO2排出量計算表!$J$18/1000 -> 0 | AQ129: =Z129*【出力】CO2排出量計算表!$H$18*【出力】CO2排出量計算表!$I$18*【出力】CO2排出量計算表!$J$18/1000 -> 0 | AR129: 2.566824 | AS129: 1.925118 | AT129: 0.641706 | AU129: 電気制御設備1,000～2,000 | AV129: 電気制御設備 | AW129: 1,000～2,000 | AX129: 1,000 ～2,000 | AY129: 27 | AZ129: 3435613 | BA129: 127.2449259 | BB129: 67.699983 | BC129: 2.507406778 | BD129: 製造業
